Workbook

Sheet Introduction
B2: Informing Interventions to reduce health Inequalities ('Triple I'):
B3: Increasing Tobacco Taxation by 10%
B7: Informing Interventions to reduce health Inequalities ('Triple I') is a collaboration between NHS Health Scotland and the Scottish Public Health Observatory (ScotPHO).
B8: Triple I provides national and local decision makers with practical tools and interpreted results about investing in interventions to reduce health inequalities in Scotland.
B9: It does this by modelling the potential impact of different interventions and policies on overall population health and health inequalities.
B10: This tool is part of a set of 9 spreadsheets and associated documentation, produced as an update and extension of our 2014 Triple I work.
B11: Data and evidence have been updated where applicable, new interventions have been included, and presentation of the results has been improved.
B12: The tool can be used to produce detailed results for different geographies (Scotland, Local Authorities, Health Boards, City Regions, or Integrated Joint Boards).
B13: Results are provided for three health outcomes: premature mortality, years of life lost, and hospital stays.
B15: The interventions:
B16: The interventions were chosen based on the highest quality and most generalisable evidence linking them to changes in all-cause mortality and hospital admissions.
B17: The topics addressed by the interventions span the determinants of health (including ‘upstream’, ‘downstream’, individual-level and population-wide).
B18: There are 9 Triple I spreadsheet tools (corresponding to the topic areas below).
C20: Individual-level interventions: | H20: Population-wide interventions:
C21: (N.B. modelled as being implemented in year 1 only) | H21: (N.B. permanent: modelled as remaining
C22: Topic | D22: Intervention(s) | H22: in place after implementation in year 1)
C23: Mental Health | D23: Interventions for depression | H23: Topic | J23: Intervention(s)
C24: Obesity | D24: Weight management service | H24: Physical Environment | J24: 20 mph speed limits
C25: Physical inactivity | D25: Physical activity interventions | H25: Smoking | J25: Tobacco taxation
C26: Smoking | D26: Smoking cessation | H26: Income | J26: Income-based policies
C27: Alcohol consumption | D27: Alcohol Brief Interventions (ABIs)
C28: Unemployment | D28: Job provision
B30: Pages in this spreadsheet tool:
C31: Introduction | E31: >> | F31: Information about the Triple I project
C32: User guide | E32: >> | F32: How to use this spreadsheet tool
C33: Options | E33: >> | F33: Where users can change the model options, and see high-level results
C34: Results | E34: >> | F34: Full results for the chosen model options
C35: Evidence | E35: >> | F35: Summary of the evidence underpinning the model, and definitions of the policies/interventions
B37: Further information is available on the Triple I website: | G37: Triple I website
C38: Interactive results browser | E38: >> | F38: An online interactive results browser for comparing different interventions (April 2019)
C39: National Overview Report | E39: >> | F39: A summary report of the national-level findings (April 2019)
C40: Technical Report | E40: >> | F40: Details of Triple I's methods and data sources (April 2019)
C41: Frequently Asked Questions | E41: >> | F41: Answers to frequently-asked questions about Triple I (April 2019)
C42: Income-based policies | E42: >> | F42: Report and Supplementary Information about the income-based policies work (October 2018)
C43: nhs.triple.i@nhs.net | E43: >> | F43: Email us for more information.
B45: Abbreviations used
B46: IJB | C46: Integrated Joint Board
B47: LA | C47: Local Authority
B48: RII | C48: Relative Index of Inequality
B49: SII | C49: Slope Index of Inequality
B50: SIMD | C50: Scottish Index of Multiple Deprivation
B51: Q1 - Q5 | C51: Quintiles of the SIMD: Q1 contains the 20% most deprived areas, and Q5 contains the 20% least deprived areas.

Sheet User Guide
B2: User Guide
B4: Please note: Macros need to be enabled for the tools to work properly.
B5: How to do this in a recent version of Excel: File > Options > Trust Center > Trust Center Settings > Macro Settings > "Enable all macros"
B6: How to do this in an older version of Excel: Tools > Options > Security > Macro Security > "Medium"
B8: Changing the intervention details:
B9: You can interact with the Triple I model from the Options tab.
B10: Any changes made to the shaded cells (blue) on this tab will cause Excel to recalculate the model and present new results.
B11: Below are the options available (N.B. not every spreadsheet will have all of these options):
B13: Intervention:
B14: Choose the intervention of interest (only relevant for tools covering more than one intervention: Mental health, Physical activity, and Income-based interventions)
B16: Area:
B17: Choose the area to run the model for. The available geographies are listed below.
C18: 1. Health Boards: | F18: The 14 territorial NHS health boards responsible for delivery of frontline healthcare services in Scotland (2014 boundaries).
C19: 2. Local Authorities: | F19: The 32 elected councils that provide a range of services to local people, including education and care.
F20: The Gaelic name of Eilean Siar is used for the local authority covering the Western Isles.
C21: 3. Integrated Joint Boards: | F21: 31 integration authorities were created by The Public Bodies (Joint Working) Act 2014, in order to integrate the health
F22: and social care functions of health boards and local authorities. These Integrated Joint Boards (IJBs) or Partnerships
F23: correspond to local authority areas, with the exception of Clackmannanshire and Stirling IJB which combines two local
F24: authorities. The Gaelic name of Eilean Siar is used for the IJB covering the Western Isles.
C25: 4. City Region Deals: | F25: City Region Deals are agreements between the Scottish Government, the UK Government and local government.
F26: They have been designed to bring about long-term strategic approaches to improving regional economies.
F27: The following 6 city regions are included:
F29: City Region: | J29: Local Authorities (LAs) included:
F30: Aberdeen City Region Deal | J30: Aberdeen and Aberdeenshire
F31: Edinburgh & Southeast Scotland City Region Deal | J31: Edinburgh, Fife, East Lothian, Midlothian, West Lothian, Borders
F32: Glasgow City Region Deal | J32: East Dunbartonshire, East Renfrewshire, Glasgow City, Inverclyde,
J33: North Lanarkshire, Renfrewshire, South Lanarkshire, West Dunbartonshire
F34: Inverness & Highland City Region Deal | J34: Highland
F35: Stirling and Clackmannanshire City Region Deal | J35: Stirling and Clackmannanshire
F36: Tay Cities Region Deal | J36: Dundee, Perth & Kinross, Angus, Fife
B38: Targeting strategy:
B39: The strategy for delivering the individual-level* interventions can be altered by the user.
B40: *Interventions delivered to individuals: mental health, weight management, physical activity, smoking cessation, alcohol brief interventions, and job provision.
B41: Four options are available:
B42: · Even distribution: treat the same proportion of the eligible population in each subgroup (i.e., age group, sex and SIMD 2016 quintile).
B43: · Proportionate to need: the proportion of each subgroup treated is proportionate to the subgroup's prevalence of the exposure (e.g., smoking or depression).
B44: · Most deprived 20% only**: treat only those in SIMD quintile 1 (even distribution within this quintile).
B45: · Most deprived 40% only: treat only those in SIMD quintiles 1 and 2 (even distribution within these quintiles).
B46: **The Orkney Islands, Shetland Islands and the Western Isles do not have population in SIMD 2016 quintile 1, so targeting to quintile 1 will produce an error message.
B48: Number to treat:
B49: For individual-level interventions you can choose the number of people to be treated.
B50: · For information the maximum number of people who are eligible to be treated will be calculated in the preceding cell.
B51: · If a higher number is entered an error message will prevent the calculation from occurring.
B52: · Be aware that the model will run and produce results if changes to another cell mean that the number of people then exceeds the new maximum number.
B54: Number of years:
B55: The interventions are delivered in year 1.
B56: Their effects can be modelled from year 2 (the first year of follow-up) to year 20.
B57: N.B. Individual-level interventions are delivered for a single year, while the population-level interventions are modelled as remaining in place after year 1.
B59: Viewing the results:
B60: Options tab | D60: A summary of the results is shown on the Options tab.
B61: Results tab | D61: More detailed results are shown on the Results tab.
B62: Technical Report | D62: Further information about how the results are calculated, and how to interpret them, can be found in the Triple I Technical Report.
B64: For advanced users: How to make more advanced changes to the model
B65: The inner workings of the Triple I tools are described in the Technical Report. We recommend you consult the report before making any advanced changes.
B66: The model data and calculations can be found in a number of 'hidden' tabs.
B67: These are hidden to simplify the spreadsheet for users.
B68: To see the hidden tabs, right-click on any tab, select 'Unhide', then select the tab you want to unhide.
B69: The hidden tabs include population data, prevalence data, targeting calculations, and result calculations.
B70: VBA (Visual Basic for Applications) code has been written to create bespoke functions for the calculations.
B71: The code can be found from the Developer tab > Visual Basic.
B72: If the Developer tab is not shown in your version of Excel go to File > Options > Customize Ribbon and switch on the Developer tab (recent Excel versions only).

Sheet Options
B2: Options for changing the model: | E2: Results summary:
B4: Change the shaded cells (blue) to recalculate. | E4: Check the Results tab for a detailed breakdown of the results
B5: N.B. Results may take a few seconds to change. | E5: Results shown as cumulative difference from baseline over the follow-up period (% difference in brackets).
B7: Intervention: (defined on Evidence tab) | E7: POLICY IMPACT ON HEALTH* | F7: Whole population | G7: SIMD Q1 & Q2 | H7: SIMD Q1
B8: Tobacco tax +10% | E8: Hospital stays prevented | F8: =CONCATENATE(FIXED(Results!E16,0)," (",FIXED(Results!F16,2),"%)") -> 1,147 (0.10%) | G8: =CONCATENATE(FIXED(Results!E17,0)," (",FIXED(Results!F17,2),"%)") -> 733 (0.14%) | H8: =IF(OR(Calculations!$E$2="Orkney Health Board",Calculations!$E$2="Orkney Islands Local Authority",Calculations!$E$2="Shetland Health Board",Calculations!$E$2="Western Isles Health Board",Calculations!$E$2="Shetland Islands Local Authority",Calculations!$E$2="Eilean Siar Local Authority"),"N/A", CONCATENATE(FIXED(Results!E18,0)," (",FIXED(Results!F18,2),"%)")) -> 441 (0.15%)
E9: Premature deaths prevented | F9: =CONCATENATE(FIXED(Results!E20,0)," (",FIXED(Results!F20,2),"%)") -> 37 (0.17%) | G9: =CONCATENATE(FIXED(Results!E21,0)," (",FIXED(Results!F21,2),"%)") -> 25 (0.22%) | H9: =IF(OR(Calculations!$E$2="Orkney Health Board",Calculations!$E$2="Orkney Islands Local Authority",Calculations!$E$2="Shetland Health Board",Calculations!$E$2="Western Isles Health Board",Calculations!$E$2="Shetland Islands Local Authority",Calculations!$E$2="Eilean Siar Local Authority"),"N/A", CONCATENATE(FIXED(Results!E22,0)," (",FIXED(Results!F22,2),"%)")) -> 16 (0.24%)
B10: Choose the area to run the model for: | E10: Years of life saved | F10: =CONCATENATE(FIXED(Results!E24,0)," (",FIXED(Results!F24,2),"%)") -> 957 (0.16%) | G10: =CONCATENATE(FIXED(Results!E25,0)," (",FIXED(Results!F25,2),"%)") -> 651 (0.20%) | H10: =IF(OR(Calculations!$E$2="Orkney Health Board",Calculations!$E$2="Orkney Islands Local Authority",Calculations!$E$2="Shetland Health Board",Calculations!$E$2="Western Isles Health Board",Calculations!$E$2="Shetland Islands Local Authority",Calculations!$E$2="Eilean Siar Local Authority"),"N/A", CONCATENATE(FIXED(Results!E26,0)," (",FIXED(Results!F26,2),"%)")) -> 409 (0.23%)
B11: Scotland | E11: *N.B. a positive figure indicates an improvement in health outcomes.
B13: Calculate health impact after this many years: | E13: POLICY IMPACT ON HEALTH INEQUALITIES**
B14: 2 | E14: Gap between most and least deprived | F14: Absolute | G14: Relative
E15: Hospital stays | F15: =CONCATENATE(FIXED(Results!E29,0)," (",FIXED(Results!F29,3),"%)") -> -36 (-0.272%) | G15: =CONCATENATE(FIXED(Results!E33,4)," (",FIXED(Results!F33,3),"%)") -> -0.0018 (-0.102%)
E16: Premature deaths | F16: =CONCATENATE(FIXED(Results!E30,0)," (",FIXED(Results!F30,3),"%)") -> -1 (-0.322%) | G16: =CONCATENATE(FIXED(Results!E34,4)," (",FIXED(Results!F34,3),"%)") -> -0.0049 (-0.163%)
E17: Years of life lost | F17: =CONCATENATE(FIXED(Results!E31,0)," (",FIXED(Results!F31,3),"%)") -> -37 (-0.295%) | G17: =CONCATENATE(FIXED(Results!E35,4)," (",FIXED(Results!F35,3),"%)") -> -0.0044 (-0.148%)
E18: Population-wide inequalities slope | F18: Absolute (SII) | G18: Relative (RII)
E19: Hospital stays | F19: =CONCATENATE(FIXED(Results!E37,0)," (",FIXED(Results!F37,3),"%)") -> -44 (-0.271%) | G19: =CONCATENATE(FIXED(Results!E41,4)," (",FIXED(Results!F41,3),"%)") -> -0.0013 (-0.172%)
E20: Premature deaths | F20: =CONCATENATE(FIXED(Results!E38,0)," (",FIXED(Results!F38,3),"%)") -> -2 (-0.323%) | G20: =CONCATENATE(FIXED(Results!E42,4)," (",FIXED(Results!F42,3),"%)") -> -0.0019 (-0.149%)
E21: Years of life lost | F21: =CONCATENATE(FIXED(Results!E39,0)," (",FIXED(Results!F39,3),"%)") -> -43 (-0.295%) | G21: =CONCATENATE(FIXED(Results!E43,4)," (",FIXED(Results!F43,3),"%)") -> -0.0017 (-0.136%)
E22: **N.B. Based on rates per 100,000. A negative figure indicates reduced inequalities / narrowing of the gap.
E24: SELECTED COSTS AND SAVINGS*** | G24: £
E25: Direct financial cost of the intervention (£)****: | G25: =Results!D50 -> -70636839.04
E26: Direct financial savings from reduced hospitalisations (£):
F27: Whole population | G27: =CONCATENATE(FIXED(Results!E54,0)," (",FIXED(Results!F54,3),"%)") -> 2,881,901 (0.100%)
F28: SIMD Q1 & Q2 | G28: =CONCATENATE(FIXED(Results!E55,0)," (",FIXED(Results!F55,3),"%)") -> 1,840,734 (0.135%)
F29: SIMD Q1 | G29: =IF(OR(Calculations!$E$2="Orkney Health Board",Calculations!$E$2="Orkney Islands Local Authority",Calculations!$E$2="Shetland Health Board",Calculations!$E$2="Western Isles Health Board",Calculations!$E$2="Shetland Islands Local Authority",Calculations!$E$2="Eilean Siar Local Authority"),"N/A", CONCATENATE(FIXED(Results!E56,0)," (",FIXED(Results!F56,3),"%)")) -> 1,108,432 (0.153%)
E30: ***Costs/savings from changes to other health outcomes and to health inequalities have not been estimated.
E31: ****This calculation accounts for the recurring annual costs/savings of this intervention.

Sheet Results
B2: Detailed results for intervention: | D2: =Options!B8 -> Tobacco tax +10%
B4: Area of interest: | C4: =Options!B11 -> Scotland
B5: Age group: | C5: 16+ years
B6: Baseline year (prevalence and population data): | C6: 2016 | D6: Health impact calculated after: | E6: =CONCATENATE(Options!B14," years") -> 2 years
B8: Baseline situation (2016): | C8: No. smokers | D8: No. all-cause hospital stays | E8: No. all-cause deaths | F8: No. all-cause premature deaths | G8: Years of life lost (all causes)
B9: Whole population | C9: =HLOOKUP(Calculations!$E$2,'Population at Risk'!$C$3:$BC$257,'Population at Risk'!BD251,FALSE) -> 990842.2113 | D9: =HLOOKUP(Calculations!$E$2,'Health outcome totals 2016'!$C$3:$BC$17,'Health outcome totals 2016'!$BD6,FALSE) -> 1125093 | E9: =HLOOKUP(Calculations!$E$2,'Health outcome totals 2016'!$C$3:$BC$17,'Health outcome totals 2016'!$BD9,FALSE) -> 56725 | F9: =HLOOKUP(Calculations!$E$2,'Health outcome totals 2016'!$C$3:$BC$17,'Health outcome totals 2016'!$BD12,FALSE) -> 21313 | G9: =HLOOKUP(Calculations!$E$2,'Health outcome totals 2016'!$C$3:$BC$17,'Health outcome totals 2016'!$BD15,FALSE) -> 708624.0484
B10: Most deprived 40% (Q1 & Q2) | C10: =HLOOKUP(Calculations!$E$2,'Population at Risk'!$C$3:$BC$257,'Population at Risk'!BD253,FALSE) -> 561679.8749 | D10: =HLOOKUP(Calculations!$E$2,'Health outcome totals 2016'!$C$3:$BC$17,'Health outcome totals 2016'!$BD8,FALSE) -> 534382 | E10: =HLOOKUP(Calculations!$E$2,'Health outcome totals 2016'!$C$3:$BC$17,'Health outcome totals 2016'!$BD11,FALSE) -> 26567 | F10: =HLOOKUP(Calculations!$E$2,'Health outcome totals 2016'!$C$3:$BC$17,'Health outcome totals 2016'!$BD14,FALSE) -> 11618 | G10: =HLOOKUP(Calculations!$E$2,'Health outcome totals 2016'!$C$3:$BC$17,'Health outcome totals 2016'!$BD17,FALSE) -> 372328.9705
B11: Most deprived 20% (Q1) | C11: =IF(OR(Calculations!$E$2="Orkney Health Board",Calculations!$E$2="Orkney Islands Local Authority",Calculations!$E$2="Shetland Health Board",Calculations!$E$2="Western Isles Health Board",Calculations!$E$2="Shetland Islands Local Authority",Calculations!$E$2="Eilean Siar Local Authority"),"N/A", HLOOKUP(Calculations!$E$2,'Population at Risk'!$C$3:$BC$257,'Population at Risk'!BD252,FALSE)) -> 316301.9712 | D11: =IF(OR(Calculations!$E$2="Orkney Health Board",Calculations!$E$2="Orkney Islands Local Authority",Calculations!$E$2="Shetland Health Board",Calculations!$E$2="Western Isles Health Board",Calculations!$E$2="Shetland Islands Local Authority",Calculations!$E$2="Eilean Siar Local Authority"),"N/A", HLOOKUP(Calculations!$E$2,'Health outcome totals 2016'!$C$3:$BC$17,'Health outcome totals 2016'!$BD7,FALSE)) -> 283718 | E11: =IF(OR(Calculations!$E$2="Orkney Health Board",Calculations!$E$2="Orkney Islands Local Authority",Calculations!$E$2="Shetland Health Board",Calculations!$E$2="Western Isles Health Board",Calculations!$E$2="Shetland Islands Local Authority",Calculations!$E$2="Eilean Siar Local Authority"),"N/A", HLOOKUP(Calculations!$E$2,'Health outcome totals 2016'!$C$3:$BC$17,'Health outcome totals 2016'!$BD10,FALSE)) -> 13665 | F11: =IF(OR(Calculations!$E$2="Orkney Health Board",Calculations!$E$2="Orkney Islands Local Authority",Calculations!$E$2="Shetland Health Board",Calculations!$E$2="Western Isles Health Board",Calculations!$E$2="Shetland Islands Local Authority",Calculations!$E$2="Eilean Siar Local Authority"),"N/A", HLOOKUP(Calculations!$E$2,'Health outcome totals 2016'!$C$3:$BC$17,'Health outcome totals 2016'!$BD13,FALSE)) -> 6443 | G11: =IF(OR(Calculations!$E$2="Orkney Health Board",Calculations!$E$2="Orkney Islands Local Authority",Calculations!$E$2="Shetland Health Board",Calculations!$E$2="Western Isles Health Board",Calculations!$E$2="Shetland Islands Local Authority",Calculations!$E$2="Eilean Siar Local Authority"),"N/A", HLOOKUP(Calculations!$E$2,'Health outcome totals 2016'!$C$3:$BC$17,'Health outcome totals 2016'!$BD16,FALSE)) -> 203545.7107
B13: Health impact | C13: Without intervention | D13: With intervention | E13: Difference | F13: Difference | G13: Interpretation
B14: HEALTH OUTCOMES | C14: n | D14: n | E14: n | F14: %
B15: Hospital stays | F15: % prevented
B16: Whole population | C16: =Calculations!O5 -> 1143855.727 | D16: =Calculations!P5 -> 1142708.474 | E16: =C16-D16 -> 1147.253781 | F16: =E16*100/C16 -> 0.1002970701 | G16: Hospital stays prevented
B17: Q1 & Q2 | C17: =Calculations!O6 -> 542278.7308 | D17: =Calculations!P6 -> 541545.9544 | E17: =C17-D17 -> 732.7763954 | F17: =E17*100/C17 -> 0.135129105 | G17: (N.B. positive difference =
B18: Q1 | C18: =IF(OR(Calculations!$E$2="Orkney Health Board",Calculations!$E$2="Orkney Islands Local Authority",Calculations!$E$2="Shetland Health Board",Calculations!$E$2="Western Isles Health Board",Calculations!$E$2="Shetland Islands Local Authority",Calculations!$E$2="Eilean Siar Local Authority"),"N/A", Calculations!O7) -> 288715.8401 | D18: =IF(OR(Calculations!$E$2="Orkney Health Board",Calculations!$E$2="Orkney Islands Local Authority",Calculations!$E$2="Shetland Health Board",Calculations!$E$2="Western Isles Health Board",Calculations!$E$2="Shetland Islands Local Authority",Calculations!$E$2="Eilean Siar Local Authority"),"N/A", Calculations!P7) -> 288274.5852 | E18: =IF(OR(Calculations!$E$2="Orkney Health Board",Calculations!$E$2="Orkney Islands Local Authority",Calculations!$E$2="Shetland Health Board",Calculations!$E$2="Western Isles Health Board",Calculations!$E$2="Shetland Islands Local Authority",Calculations!$E$2="Eilean Siar Local Authority"),"N/A", C18-D18) -> 441.2548644 | F18: =IF(OR(Calculations!$E$2="Orkney Health Board",Calculations!$E$2="Orkney Islands Local Authority",Calculations!$E$2="Shetland Health Board",Calculations!$E$2="Western Isles Health Board",Calculations!$E$2="Shetland Islands Local Authority",Calculations!$E$2="Eilean Siar Local Authority"),"N/A", E18*100/C18) -> 0.1528336181 | G18: fewer stays)
B19: Premature deaths (<75 years) | F19: % prevented
B20: Whole population | C20: =Calculations!Q5 -> 21611.41313 | D20: =Calculations!R5 -> 21574.03251 | E20: =C20-D20 -> 37.38061783 | F20: =E20*100/C20 -> 0.1729670226 | G20: Premature deaths prevented
B21: Q1 & Q2 | C21: =Calculations!Q6 -> 11396.36468 | D21: =Calculations!R6 -> 11371.11761 | E21: =C21-D21 -> 25.24706744 | F21: =E21*100/C21 -> 0.221536149 | G21: (N.B. positive difference =
B22: Q1 | C22: =IF(OR(Calculations!$E$2="Orkney Health Board",Calculations!$E$2="Orkney Islands Local Authority",Calculations!$E$2="Shetland Health Board",Calculations!$E$2="Western Isles Health Board",Calculations!$E$2="Shetland Islands Local Authority",Calculations!$E$2="Eilean Siar Local Authority"),"N/A", Calculations!Q7) -> 6418.203214 | D22: =IF(OR(Calculations!$E$2="Orkney Health Board",Calculations!$E$2="Orkney Islands Local Authority",Calculations!$E$2="Shetland Health Board",Calculations!$E$2="Western Isles Health Board",Calculations!$E$2="Shetland Islands Local Authority",Calculations!$E$2="Eilean Siar Local Authority"),"N/A", Calculations!R7) -> 6402.487485 | E22: =IF(OR(Calculations!$E$2="Orkney Health Board",Calculations!$E$2="Orkney Islands Local Authority",Calculations!$E$2="Shetland Health Board",Calculations!$E$2="Western Isles Health Board",Calculations!$E$2="Shetland Islands Local Authority",Calculations!$E$2="Eilean Siar Local Authority"),"N/A", C22-D22) -> 15.71572901 | F22: =IF(OR(Calculations!$E$2="Orkney Health Board",Calculations!$E$2="Orkney Islands Local Authority",Calculations!$E$2="Shetland Health Board",Calculations!$E$2="Western Isles Health Board",Calculations!$E$2="Shetland Islands Local Authority",Calculations!$E$2="Eilean Siar Local Authority"),"N/A", E22*100/C22) -> 0.244861817 | G22: fewer premature deaths)
B23: Years of life lost | F23: % saved
B24: Whole population | C24: =Calculations!M5 -> 595251.8803 | D24: =Calculations!N5 -> 594294.9513 | E24: =C24-D24 -> 956.9289575 | F24: =E24*100/C24 -> 0.1607603418 | G24: Years of life saved
B25: Q1 & Q2 | C25: =Calculations!M6 -> 317747.9065 | D25: =Calculations!N6 -> 317097.1946 | E25: =C25-D25 -> 650.7118672 | F25: =E25*100/C25 -> 0.2047887189 | G25: (N.B. positive difference =
B26: Q1 | C26: =IF(OR(Calculations!$E$2="Orkney Health Board",Calculations!$E$2="Orkney Islands Local Authority",Calculations!$E$2="Shetland Health Board",Calculations!$E$2="Western Isles Health Board",Calculations!$E$2="Shetland Islands Local Authority",Calculations!$E$2="Eilean Siar Local Authority"),"N/A", Calculations!M7) -> 179391.5396 | D26: =IF(OR(Calculations!$E$2="Orkney Health Board",Calculations!$E$2="Orkney Islands Local Authority",Calculations!$E$2="Shetland Health Board",Calculations!$E$2="Western Isles Health Board",Calculations!$E$2="Shetland Islands Local Authority",Calculations!$E$2="Eilean Siar Local Authority"),"N/A", Calculations!N7) -> 178982.465 | E26: =IF(OR(Calculations!$E$2="Orkney Health Board",Calculations!$E$2="Orkney Islands Local Authority",Calculations!$E$2="Shetland Health Board",Calculations!$E$2="Western Isles Health Board",Calculations!$E$2="Shetland Islands Local Authority",Calculations!$E$2="Eilean Siar Local Authority"),"N/A", C26-D26) -> 409.0745359 | F26: =IF(OR(Calculations!$E$2="Orkney Health Board",Calculations!$E$2="Orkney Islands Local Authority",Calculations!$E$2="Shetland Health Board",Calculations!$E$2="Western Isles Health Board",Calculations!$E$2="Shetland Islands Local Authority",Calculations!$E$2="Eilean Siar Local Authority"),"N/A", E26*100/C26) -> 0.2280344641 | G26: years of life saved)
B27: HEALTH INEQUALITIES | C27: rate* | D27: rate* | E27: rate* | F27: %
B28: Absolute gap (Q1 minus Q5**) | F28: % increase
B29: Hospital stays | C29: =Inequalities!H17 -> 13347.3262 | D29: =Inequalities!J17 -> 13310.95933 | E29: =D29-C29 -> -36.36686459 | F29: =E29*100/C29 -> -0.2724655414 | G29: Change in the absolute gap
B30: Premature deaths | C30: =Inequalities!N17 -> 452.8597277 | D30: =Inequalities!P17 -> 451.4028325 | E30: =D30-C30 -> -1.456895163 | F30: =E30*100/C30 -> -0.3217100293 | G30: (N.B. negative = narrower gap)
B31: YLL | C31: =Inequalities!T17 -> 12467.78861 | D31: =Inequalities!V17 -> 12430.98804 | E31: =D31-C31 -> -36.80056799 | F31: =E31*100/C31 -> -0.2951651584
B32: Relative gap Q1 to Q5** | F32: % increase
B33: Hospital stays | C33: =Inequalities!H18 -> 1.813617171 | D33: =Inequalities!J18 -> 1.811769601 | E33: =D33-C33 -> -0.001847569938 | F33: =E33*100/C33 -> -0.1018721022 | G33: Change in the relative gap
B34: Premature deaths | C34: =Inequalities!N18 -> 3.002146027 | D34: =Inequalities!P18 -> 2.997260557 | E34: =D34-C34 -> -0.004885469572 | F34: =E34*100/C34 -> -0.1627325762 | G34: (N.B. negative = narrower gap)
B35: YLL | C35: =Inequalities!T18 -> 2.98905031 | D35: =Inequalities!V18 -> 2.9846355 | E35: =D35-C35 -> -0.004414809718 | F35: =E35*100/C35 -> -0.1476994115
B36: Slope Index of Inequality (SII) | F36: % increase
B37: Hospital stays | C37: =Inequalities!H15 -> 16090.34056 | D37: =Inequalities!J15 -> 16046.75987 | E37: =D37-C37 -> -43.58068534 | F37: =E37*100/C37 -> -0.2708499872 | G37: Change in absolute inequalities
B38: Premature deaths | C38: =Inequalities!N15 -> 533.4684817 | D38: =Inequalities!P15 -> 531.7463437 | E38: =D38-C38 -> -1.722138004 | F38: =E38*100/C38 -> -0.3228190723 | G38: (N.B. negative = decreased inequalities)
B39: YLL | C39: =Inequalities!T15 -> 14690.30452 | D39: =Inequalities!V15 -> 14646.92394 | E39: =D39-C39 -> -43.38057321 | F39: =E39*100/C39 -> -0.2953007077
B40: Relative Index of Inequality (RII) | F40: % increase
B41: Hospital stays | C41: =Inequalities!H16 -> 0.7333895263 | D41: =Inequalities!J16 -> 0.7321283017 | E41: =D41-C41 -> -0.001261224556 | F41: =E41*100/C41 -> -0.1719719891 | G41: Change in relative inequalities
B42: Premature deaths | C42: =Inequalities!N16 -> 1.284938004 | D42: =Inequalities!P16 -> 1.283028486 | E42: =D42-C42 -> -0.001909518082 | F42: =E42*100/C42 -> -0.1486077987 | G42: (N.B. negative = decreased inequalities)
B43: YLL | C43: =Inequalities!T16 -> 1.279828615 | D43: =Inequalities!V16 -> 1.278090303 | E43: =D43-C43 -> -0.00173831207 | F43: =E43*100/C43 -> -0.1358238165
B45: * European age-standardised rate per 100,000
B46: ** or the most and least deprived quintiles in the area
B48: Economic impact | C48: Without intervention | D48: With intervention | E48: Difference | F48: Difference | G48: Interpretation
C49: £ | D49: £ | E49: £
B50: Direct financial cost: | C50: 0 | D50: =(Options!B14-1)*Evidence!D175*HLOOKUP(Calculations!$E$2,'Population at Risk'!$C$3:$BC$257,'Population at Risk'!$BD255,FALSE)/'Population at Risk'!AR255 -> -70636839.04 | E50: =D50-C50 -> -70636839.04 | G50: Positive difference = net cost incurred
B52: Direct financial savings: | C52: £ | D52: £ | E52: £ | F52: % saved
B53: Hospital stays
B54: Whole population | C54: =Evidence!$D$185*Results!C16 -> 2873365587 | D54: =Evidence!$D$185*Results!D16 -> 2870483686 | E54: =C54-D54 -> 2881901.498 | F54: =E54*100/C54 -> 0.1002970701 | G54: Reduction in hospital stay costs
B55: Q1 & Q2 | C55: =Evidence!$D$185*Results!C17 -> 1362204172 | D55: =Evidence!$D$185*Results!D17 -> 1360363437 | E55: =C55-D55 -> 1840734.305 | F55: =E55*100/C55 -> 0.135129105 | G55: (N.B. positive difference =
B56: Q1 | C56: =IF(OR(Calculations!$E$2="Orkney Health Board",Calculations!$E$2="Orkney Islands Local Authority",Calculations!$E$2="Shetland Health Board",Calculations!$E$2="Western Isles Health Board",Calculations!$E$2="Shetland Islands Local Authority",Calculations!$E$2="Eilean Siar Local Authority"),"N/A", Evidence!$D$185*Results!C18) -> 725254190.2 | D56: =IF(OR(Calculations!$E$2="Orkney Health Board",Calculations!$E$2="Orkney Islands Local Authority",Calculations!$E$2="Shetland Health Board",Calculations!$E$2="Western Isles Health Board",Calculations!$E$2="Shetland Islands Local Authority",Calculations!$E$2="Eilean Siar Local Authority"),"N/A", Evidence!$D$185*Results!D18) -> 724145758 | E56: =IF(OR(Calculations!$E$2="Orkney Health Board",Calculations!$E$2="Orkney Islands Local Authority",Calculations!$E$2="Shetland Health Board",Calculations!$E$2="Western Isles Health Board",Calculations!$E$2="Shetland Islands Local Authority",Calculations!$E$2="Eilean Siar Local Authority"),"N/A", C56-D56) -> 1108432.219 | F56: =IF(OR(Calculations!$E$2="Orkney Health Board",Calculations!$E$2="Orkney Islands Local Authority",Calculations!$E$2="Shetland Health Board",Calculations!$E$2="Western Isles Health Board",Calculations!$E$2="Shetland Islands Local Authority",Calculations!$E$2="Eilean Siar Local Authority"),"N/A", E56*100/C56) -> 0.1528336181 | G56: money saved)
B57: Premature deaths (<75 years) | E57: Savings not estimated
B58: Years of life lost | E58: Savings not estimated
B59: Inequalities | E59: Savings not estimated

Sheet Evidence
B2: The intervention
B4: The intervention to be modelled is a 10% increase in the retail price of tobacco through taxation.
B5: Tobacco taxation is one of the tools to reduce demand for tobacco and is an important component of government policies to reduce smoking prevalence.
B8: Exposure Rate Ratios (ERR) for smoking
B10: Outcome | C10: Sex | D10: ERR (relative to non-smokers) | E10: Source | F10: Quoted/calculated?
B11: All-cause hospitalisation | C11: Men | D11: 1.48 | E11: Lawder et al., 2007 | F11: Quoted
C12: Women | D12: 1.55 | E12: Lawder et al., 2007 | F12: Quoted
B14: All-cause mortality | C14: Men | D14: 1.9 | E14: Gellert et al., 2012 | F14: Quoted
C15: Women | D15: 1.8 | E15: Gellert et al., 2012 | F15: Quoted
B17: Hospitalisation
B18: The relative risk of hospitalisation in current smokers compared with never smokers is 1.48 (HR) for males and 1.55 (HR) for females as reported in the Linked
B19: Scottish Health Survey to Predict Hospitalization and Deaths (Lawder et al, 2007). The hazard ratios are based on individuals who smoke 10-20 cigarettes per day.
B21: Mortality
B22: Based on a systematic review and meta-analysis of association of smoking with all-cause mortality in people 60 years and older (Gellert et al 2012).
B23: The study included 17 cohort studies from 7 countries (including England) published before 2011.
B24: Age and sex were adjusted for in all studies that were not restricted to single age group or sex.
B25: Other factors controlled for were systolic blood pressure, alcohol consumption, and physical activity.
B28: Intervention effect for tobacco taxation
B30: We assumed that a 10% increase in the retail price of tobacco would result in a 5.6% reduction in consumption of tobacco products.
B31: 5.6% is the midpoint of the range of price elasticity of demand figures (3.5 to 7.8%) estimated for the UK between 2001 and 2011 (Reed et al 2013).
B32: Prevalence of smoking would be reduced by a lower amount: Golden et al (2016) estimated that in response to tobacco price changes smoking prevalence would
B33: be reduced by about half the consumption rate. We therefore assumed that prevalence would be reduced by 2.8% if tobacco retail prices increased by 10%.
B36: Intervention Rate Ratios (IRR) for tobacco taxation
B38: Outcome | C38: Sex | D38: IRR for ex-smokers relative to current smokers | E38: Sources | F38: Quoted/calculated?
B39: All-cause hospitalisation | C39: Men | D39: 0.82 | E39: Lawder et al, 2007 | F39: Calculated
C40: Women | D40: 0.76 | E40: Lawder et al, 2007 | F40: Calculated
B42: All-cause mortality | C42: Men | D42: 0.76 | E42: Hart et al, 2013 | F42: Quoted
C43: Women | D43: 0.64 | E43: Hart et al, 2013 | F43: Quoted
B45: Hospitalisation
B46: We found no direct evidence for the effect of giving up smoking on hospitalisation risks.
B47: We therefore calculated these from the HRs given by Lawder et al (2007), for the risk of hospitalisation for former smokers and moderate smokers,
B48: relative to never smokers. The hospitalisation IRR was calculated as the HR for former smokers divided by the HR for moderate smokers.
B49: For males this was 1.21/1.48 = 0.82 and for females it was 1.18/1.55 = 0.76.
B52: "Eligibility" for the intervention
B54: Increases in tobacco taxation affect the legal tobacco trade, but smokers that obtain their tobacco from illicit sources will be unaffected.
B55: Her Majesty's Revenue and Customs (HMRC) estimated that in 2016/17 the illicit market accounted for 15% of the number of cigarettes smoked and 28% of the weight
B56: of hand-rolling tobacco consumed (HMRC 2017). Usage of hand-rolling tobacco has increased relative to cigarette use in recent decades (Young et al 2006,
B57: Brown et al 2015; see table below) and the latest prevalence estimate of 32.7% of smokers in 2010 was therefore used here.
B59: Year | C59: % smokers using hand-rolling tobacco | D59: Use type | E59: Reference details
B60: 2002 | C60: 28.4 | D60: Any use | E60: UK; Young et al 2006
B61: 2007 | C61: 26.4 | D61: Exclusive use | E61: UK; Brown et al 2015
B62: 2008 | C62: 28 | D62: Main product used | E62: GB; Gilmore et al 2014
B63: 2010 | C63: 32.7 | D63: Exclusive use | E63: UK; Brown et al 2015
B65: Using these figures we estimate that 80.7% of smokers will be affected by the tobacco taxation increase:
B66: 72% of those using hand-rolling tobacco (32.7% of smokers) + 85% of those smoking cigarettes (67.3% of smokers)
B69: Change in intervention effect over time
B71: A meta-analysis of nicotine-replacement therapy (Etter and Stapleton, 2006) found that most relapse occurred within 2 years of the intervention.
B72: 30% of the treated individuals began smoking again after the treatment. In order to calculate the intervention effect in each year of follow up we assumed
B73: 2.8% quit in year one (intervention year) and 70% of these (1.96% of treated population) remained ex-smokers from year 2 onwards.
F75: Rate ratio (see above):
F76: Hospitalisation | H76: Mortality
F77: male | G77: female | H77: male | I77: female
D78: Ex-smoker relative to current smoker: | F78: 0.82 | G78: 0.76 | H78: 0.76 | I78: 0.64
D79: Current smoker relative to ex-smoker: | F79: =1/F78 -> 1.219512195 | G79: =1/G78 -> 1.315789474 | H79: =1/H78 -> 1.315789474 | I79: =1/I78 -> 1.5625
C80: Smoking prevalence | F80: IRR for treated group (relative to untreated)
C81: Treated group | E81: Untreated | F81: Hospitalisation | H81: Mortality
B82: Year | C82: % smokers | D82: % non-smokers | E82: % smokers | F82: male | G82: female | H82: male | I82: female
B83: 0 (pre-intervention) | C83: 100 | D83: 0 | E83: 100
B84: 1 (intervention) | C84: =C83-2.8 -> 97.2 | D84: 2.8 | E84: 100 | F84: =(($C84/100)*F$79 + ($D84/100))/(1*F$79) -> 0.99496 | G84: 0.99328 | H84: 0.99328 | I84: 0.98992
B85: 2 | C85: =100-D85 -> 98.04 | D85: =D84*0.7 -> 1.96 | E85: 100 | F85: 0.996472 | G85: 0.995296 | H85: 0.995296 | I85: 0.992944
B86: 3 | C86: =100-D86 -> 98.04 | D86: =D85 -> 1.96 | E86: 100 | F86: 0.996472 | G86: 0.995296 | H86: 0.995296 | I86: 0.992944
B87: 4 | C87: =100-D87 -> 98.04 | D87: =D86 -> 1.96 | E87: 100 | F87: 0.996472 | G87: 0.995296 | H87: 0.995296 | I87: 0.992944
B88: 5 | C88: 98.04 | D88: 1.96 | E88: 100 | F88: 0.996472 | G88: 0.995296 | H88: 0.995296 | I88: 0.992944
B89: 6 | C89: 98.04 | D89: 1.96 | E89: 100 | F89: 0.996472 | G89: 0.995296 | H89: 0.995296 | I89: 0.992944
B90: 7 | C90: 98.04 | D90: 1.96 | E90: 100 | F90: 0.996472 | G90: 0.995296 | H90: 0.995296 | I90: 0.992944
B91: 8 | C91: 98.04 | D91: 1.96 | E91: 100 | F91: 0.996472 | G91: 0.995296 | H91: 0.995296 | I91: 0.992944
B92: 9 | C92: 98.04 | D92: 1.96 | E92: 100 | F92: 0.996472 | G92: 0.995296 | H92: 0.995296 | I92: 0.992944
B93: 10 | C93: 98.04 | D93: 1.96 | E93: 100 | F93: 0.996472 | G93: 0.995296 | H93: 0.995296 | I93: 0.992944
B94: 11 | C94: 98.04 | D94: 1.96 | E94: 100 | F94: 0.996472 | G94: 0.995296 | H94: 0.995296 | I94: 0.992944
B95: 12 | C95: 98.04 | D95: 1.96 | E95: 100 | F95: 0.996472 | G95: 0.995296 | H95: 0.995296 | I95: 0.992944
B96: 13 | C96: 98.04 | D96: 1.96 | E96: 100 | F96: 0.996472 | G96: 0.995296 | H96: 0.995296 | I96: 0.992944
B97: 14 | C97: 98.04 | D97: 1.96 | E97: 100 | F97: 0.996472 | G97: 0.995296 | H97: 0.995296 | I97: 0.992944
B98: 15 | C98: 98.04 | D98: 1.96 | E98: 100 | F98: 0.996472 | G98: 0.995296 | H98: 0.995296 | I98: 0.992944
B99: 16 | C99: 98.04 | D99: 1.96 | E99: 100 | F99: 0.996472 | G99: 0.995296 | H99: 0.995296 | I99: 0.992944
B100: 17 | C100: 98.04 | D100: 1.96 | E100: 100 | F100: 0.996472 | G100: 0.995296 | H100: 0.995296 | I100: 0.992944
B101: 18 | C101: 98.04 | D101: 1.96 | E101: 100 | F101: 0.996472 | G101: 0.995296 | H101: 0.995296 | I101: 0.992944
B102: 19 | C102: 98.04 | D102: 1.96 | E102: 100 | F102: 0.996472 | G102: 0.995296 | H102: 0.995296 | I102: 0.992944
B103: 20 | C103: 98.04 | D103: 1.96 | E103: 100 | F103: 0.996472 | G103: 0.995296 | H103: 0.995296 | I103: 0.992944
B104: 21 | C104: 98.04 | D104: 1.96 | E104: 100 | F104: 0.996472 | G104: 0.995296 | H104: 0.995296 | I104: 0.992944
B107: Prevalence of smoking
B109: The prevalence data (proportion of the population that smoke) were extracted from the Scottish Surveys Core Questions. Prevalence for local areas (by sex) was
B110: taken from the 2015 dataset, and national prevalence (by age group, sex and SIMD) was taken from the 2012-2015 combined data.
B112: Prevalence by Area (proportion) | F112: Prevalence by deprivation quintile (proportion)
B113: Area | C113: Females | D113: Males | F113: SIMD 2016 quintile | G113: age group | H113: Females | I113: Males
B114: SCOTLAND | C114: 0.188 | D114: 0.2266 | F114: Q1 (most deprived) | G114: 16-24 | H114: 0.2768 | I114: 0.3326
B115: Ayrshire & Arran Health Board | C115: 0.1901 | D115: 0.2357 | G115: 25-34 | H115: 0.3587 | I115: 0.4096
B116: Borders Health Board | C116: 0.1921 | D116: 0.1669 | G116: 35-44 | H116: 0.3929 | I116: 0.4741
B117: Dumfries & Galloway Health Board | C117: 0.2236 | D117: 0.2341 | G117: 45-54 | H117: 0.4315 | I117: 0.4347
B118: Fife Health Board | C118: 0.1938 | D118: 0.2481 | G118: 55-64 | H118: 0.3953 | I118: 0.4326
B119: Forth Valley Health Board | C119: 0.1385 | D119: 0.1935 | G119: 65-74 | H119: 0.2737 | I119: 0.3095
B120: Grampian Health Board | C120: 0.166 | D120: 0.2376 | G120: 75+ | H120: 0.149 | I120: 0.1705
B121: Greater Glasgow & Clyde Health Board | C121: 0.21 | D121: 0.2432 | F121: Q2 | G121: 16-24 | H121: 0.2637 | I121: 0.2858
B122: Highland Health Board | C122: 0.1787 | D122: 0.2402 | G122: 25-34 | H122: 0.2801 | I122: 0.3198
B123: Lanarkshire Health Board | C123: 0.2192 | D123: 0.2164 | G123: 35-44 | H123: 0.303 | I123: 0.3409
B124: Lothian Health Board | C124: 0.1709 | D124: 0.2011 | G124: 45-54 | H124: 0.3128 | I124: 0.367
B125: Orkney Health Board | C125: 0.188 | D125: 0.2266 | G125: 55-64 | H125: 0.293 | I125: 0.2838
B126: Shetland Health Board | C126: 0.188 | D126: 0.2266 | G126: 65-74 | H126: 0.211 | I126: 0.2184
B127: Tayside Health Board | C127: 0.1686 | D127: 0.2381 | G127: 75+ | H127: 0.0965 | I127: 0.1005
B128: Western Isles Health Board | C128: 0.188 | D128: 0.2266 | F128: Q3 | G128: 16-24 | H128: 0.1986 | I128: 0.2051
B129: Aberdeen City Local Authority | C129: 0.1666 | D129: 0.2563 | G129: 25-34 | H129: 0.2312 | I129: 0.2873
B130: Aberdeenshire Local Authority | C130: 0.1415 | D130: 0.2177 | G130: 35-44 | H130: 0.2222 | I130: 0.3101
B131: Angus Local Authority | C131: 0.0983 | D131: 0.2617 | G131: 45-54 | H131: 0.2312 | I131: 0.2486
B132: Argyll & Bute Local Authority | C132: 0.188 | D132: 0.2266 | G132: 55-64 | H132: 0.1841 | I132: 0.2095
B133: Clackmannanshire Local Authority | C133: 0.188 | D133: 0.2266 | G133: 65-74 | H133: 0.1651 | I133: 0.1629
B134: Dumfries & Galloway Local Authority | C134: 0.2236 | D134: 0.2341 | G134: 75+ | H134: 0.0737 | I134: 0.074
B135: Dundee City Local Authority | C135: 0.2443 | D135: 0.2577 | F135: Q4 | G135: 16-24 | H135: 0.1918 | I135: 0.2054
B136: East Ayrshire Local Authority | C136: 0.1919 | D136: 0.2306 | G136: 25-34 | H136: 0.1872 | I136: 0.2365
B137: East Dunbartonshire Local Authority | C137: 0.1425 | D137: 0.1952 | G137: 35-44 | H137: 0.1567 | I137: 0.2083
B138: East Lothian Local Authority | C138: 0.2117 | D138: 0.2169 | G138: 45-54 | H138: 0.1495 | I138: 0.2069
B139: East Renfrewshire Local Authority | C139: 0.0815 | D139: 0.1306 | G139: 55-64 | H139: 0.1377 | I139: 0.1494
B140: Edinburgh, City of Local Authority | C140: 0.1428 | D140: 0.1935 | G140: 65-74 | H140: 0.1156 | I140: 0.1132
B141: Eilean Siar Local Authority | C141: 0.188 | D141: 0.2266 | G141: 75+ | H141: 0.0614 | I141: 0.0407
B142: Falkirk Local Authority | C142: 0.1248 | D142: 0.2111 | F142: Q5 (least deprived) | G142: 16-24 | H142: 0.0983 | I142: 0.1351
B143: Fife Local Authority | C143: 0.1938 | D143: 0.2481 | G143: 25-34 | H143: 0.1003 | I143: 0.1926
B144: Glasgow City Local Authority | C144: 0.2281 | D144: 0.2658 | G144: 35-44 | H144: 0.0922 | I144: 0.1286
B145: Highland Local Authority | C145: 0.1766 | D145: 0.245 | G145: 45-54 | H145: 0.0998 | I145: 0.1229
B146: Inverclyde Local Authority | C146: 0.188 | D146: 0.2266 | G146: 55-64 | H146: 0.1084 | I146: 0.1136
B147: Midlothian Local Authority | C147: 0.188 | D147: 0.2266 | G147: 65-74 | H147: 0.0726 | I147: 0.0762
B148: Moray Local Authority | C148: 0.2303 | D148: 0.2446 | G148: 75+ | H148: 0.0506 | I148: 0.04
B149: North Ayrshire Local Authority | C149: 0.1837 | D149: 0.2882
B150: North Lanarkshire Local Authority | C150: 0.2586 | D150: 0.2189
B151: Orkney Islands Local Authority | C151: 0.188 | D151: 0.2266
B152: Perth & Kinross Local Authority | C152: 0.1471 | D152: 0.2007
B153: Renfrewshire Local Authority | C153: 0.2174 | D153: 0.2378
B154: Scottish Borders Local Authority | C154: 0.1921 | D154: 0.1669
B155: Shetland Islands Local Authority | C155: 0.188 | D155: 0.2266
B156: South Ayrshire Local Authority | C156: 0.1958 | D156: 0.179
B157: South Lanarkshire Local Authority | C157: 0.1778 | D157: 0.2138
B158: Stirling Local Authority | C158: 0.188 | D158: 0.2266
B159: West Dunbartonshire Local Authority | C159: 0.2507 | D159: 0.261
B160: West Lothian Local Authority | C160: 0.2024 | D160: 0.1833
B161: Aberdeen City Region Deal | C161: 0.09016472358 | D161: 0.09016472358
B162: Edinburgh & SE Scotland City Region Deal | C162: 0.133805666 | D162: 0.133805666
B163: Glasgow City Region Deal | C163: 0.07915554109 | D163: 0.07915554109
B164: Inverness & Highland City Region Deal | C164: 0.09434782609 | D164: 0.09434782609
B165: Tay Cities Region Deal | C165: 0.1071890422 | D165: 0.1071890422
B166: Clackmannanshire & Stirling IJB | C166: 0.188 | D166: 0.2266
B169: Intervention costs
B171: The revenue to Her Majesty's Revenue and Customs (HMRC) from tobacco tax in 2016 was £9092 million (HMRC 2018).
B172: A reduction in tobacco products consumption of 5.6% would reduce this to: | D172: =9092*0.944 -> 8582.848
B173: Scotland's population was 8.23% of the 2016 UK population (Office for National Statistics, ONS, 2018) hence tobacco taxation revenue in Scotland is
B174: estimated at £706.37 million. Increasing tobacco taxation by 10% in Scotland could raise an additional £71 million annually.
B175: Estimated 'cost' of tobacco taxation increase (per year) | D175: -70636839.04
B176: This 'cost' is multiplied by the follow-up period to estimate the total 'cost'.
B177: When the model is run for local areas this 'cost' is scaled by the proportion of smokers in the area, out of the Scottish total.
B180: Hospitalisation costs
B182: The cost of a continuous inpatient stay was estimated to be £2,113 in 2006/07 (Geue et al 2012; based on healthcare resource groups and the English tariff).
B183: This was inflated to £2,512 for 2015/16 using the Hospital and Community Health Service (HCHS) inflation index.
B185: Cost of continuous Inpatient stay | D185: 2512
B188: References
B190: Etter and Stapleton 2006 | C190: Nicotine replacement therapy for long-term smoking cessation: a meta-analysis. Tobacco Control 15(4): 280-285. https://www.ncbi.nlm.nih.gov/pmc/articles/PMC2563611/
B191: Brown et al 2015 | C191: Trends and socioeconomic differences in roll-your-own tobacco use: findings from the ITC Europe Surveys. Tobacco Control 24:iii11-iii16. https://tobaccocontrol.bmj.com/content/tobaccocontrol/24/Suppl_3/iii11.full.pdf
B192: Gellert et al 2012 | C192: Smoking and all-cause mortality in older people. Arch Intern Med 172(11): 837-844. https://jamanetwork.com/journals/jamainternalmedicine/fullarticle/1182214
B193: Geue et al 2012 | C193: Spoilt for choice: implications of using alternative methods of costing hospital episode statistics. Health Economics 21: 1201-1216. https://onlinelibrary.wiley.com/doi/abs/10.1002/hec.1785
B194: Golden et al 2016 | C194: Comparing projected impacts of cigarette floor price and excise tax policies on socioeconomic disparities in smoking. Tobacco Control 2016(25):i60-i66. http://dx.doi.org/10.1136/tobaccocontrol-2016-053230
B195: Gilmore et al 2014 | C195: Smoking patterns in Great Britain: the rise of cheap cigarette brands and roll your own (RYO) tobacco. Journal of Public Health 37(1): 78-88. https://academic.oup.com/jpubhealth/article/37/1/78/1559709
B196: Hart et al 2013 | C196: Does smoking reduction in midlife reduce mortality risk? Results of 2 long-term prospective cohort studies of men and women in Scotland. Am J Epidemiol 178(5): 770-779. http://doi.org/10.1093/aje/kwt038
B197: HMRC 2017 | C197: Tobacco tax gap estimates for 2016-17. https://assets.publishing.service.gov.uk/government/uploads/system/uploads/attachment_data/file/654490/HMRC-tobacco-tax-gap-estimates-2017.pdf
B198: HMRC 2018 | C198: Tobacco Bulletin April 2018. https://www.uktradeinfo.com/Statistics/Tax%20and%20Duty%20Bulletins/Tobacco0418.xls
B199: Lawder et al 2007 | C199: Using the linked Scottish Health Survey to predict hospitalisation and death: an analysis of the link between behavioural, biological and social risk factors and subsequent hospital admission and death in Scotland. http://www.scotpho.org.uk/publications/reports-and-papers/using-the-linked-scottish-health-survey-to-predict-hospitalisation-and-death/
B200: ONS 2018 | C200: Population Estimates for UK, England and Wales, Scotland and Northern Ireland: mid-2012 to mid-2016. https://www.ons.gov.uk/file?uri=/peoplepopulationandcommunity/populationandmigration/populationestimates/datasets/populationestimatesforukenglandandwalesscotlandandnorthernireland/mid2012tomid2016/ukmidyearestimates20122016.xls
B201: Reed et al 2013 | C201: The price elasticity of demand for cigarettes in the UK, 2001-2011. Eur J Pub Health 23(S1): 150-151. https://doi.org/10.1093/eurpub/ckt123.012
B202: Scottish Health Survey 2016 | C202: Supplementary Tables. Part 10: Smoking. http://www.gov.scot/Topics/Statistics/Browse/Health/scottish-health-survey/Publications/Supplementary2015/Supplementary2016
B203: Young et al 2006 | C203: Prevalence and attributes of roll-your-own smokers in the International Tobacco Control (ITC) Four Country Survey. Tobacco Control 15(Suppl. III): iii76-iii82. https://www.ncbi.nlm.nih.gov/pmc/articles/PMC2593057/pdf/iii76.pdf

Sheet SHEETS TO BE HIDDEN -> (hidden)

Sheet Calculations (hidden)
A1: Calculating the deaths, years of life lost, hospital stays, and premature deaths for each group | K1: COUNTS | AJ1: EUROPEAN AGE-STANDARDISED RATE (EASR) PER 100000
A2: AREA: | B2: =Options!B11 -> Scotland | C2: EQUIVALENT AREA: | E2: =VLOOKUP(B2,Lists!D2:E85,2) -> Scotland | K2: CUMULATIVE INCIDENCE (DEATHS) | M2: YEARS OF LIFE LOST | O2: HOSPITALISATIONS | Q2: PREMATURE MORTALITY | S2: AGE STANDARDISED RATE (ASR) | AA2: ASR*EUROPEAN STANDARD POPULATION (ESP2013) | AJ2: CUMULATIVE INCIDENCE (DEATHS) | AL2: YEARS OF LIFE LOST | AN2: HOSPITALISATIONS | AP2: PREMATURE MORTALITY
A3: SIMD | B3: group | C3: mean age (2016) | D3: life exp (2014-16) | E3: sex | F3: SIMD | G3: prevalence exposure | H3: population (2016) | I3: no. treated at base | J3: additional no. treated under policy | K3: Baseline | L3: Policy | M3: Baseline | N3: Policy | O3: Baseline | P3: Policy | Q3: Baseline | R3: Policy | S3: CI_BASE | T3: CI_POLICY | U3: YLL_BASE | V3: YLL_POLICY | W3: HOSP_BASE | X3: HOSP_POLICY | Y3: PREM_BASE | Z3: PREM_POLICY | AA3: CI_BASE | AB3: CI_POLICY | AC3: YLL_BASE | AD3: YLL_POLICY | AE3: HOSP_BASE | AF3: HOSP_POLICY | AG3: PREM_BASE | AH3: PREM_POLICY | AI3: ESP2013 | AJ3: Baseline | AK3: Policy | AL3: Baseline | AM3: Policy | AN3: Baseline | AO3: Policy | AP3: Baseline | AQ3: Policy
A5: All quintiles | B5: 16+ Males and Females | C5: N/A | E5: BOTH | F5: ALL | H5: =SUM(H7:H11) -> 4488783 | I5: =SUM(I7:I11) -> 0 | J5: =SUM(J7:J11) -> 799613 | K5: =SUMIF(K7:K11,">0") -> 44470.02431 | L5: 44414.91437 | M5: 595251.8803 | N5: 594294.9513 | O5: 1143855.727 | P5: 1142708.474 | Q5: 21611.41313 | R5: 21574.03251 | AA5: =SUMIF(AA7:AA11,">0") -> 905253480.2 | AB5: =SUMIF(AB7:AB11,">0") -> 904155881.5 | AC5: 1.147833729e+10 | AD5: 1.14600071e+10 | AE5: 2.193969232e+10 | AF5: 2.191796142e+10 | AG5: 415170599.8 | AH5: 414446249.4 | AI5: =SUM(AI7:AI11) -> 1000000 | AJ5: =AA5/$AI5 -> 905.2534802 | AK5: =AB5/$AI5 -> 904.1558815 | AL5: =AC5/$AI5 -> 11478.33729 | AM5: 11460.0071 | AN5: 21939.69232 | AO5: 21917.96142 | AP5: 415.1705998 | AQ5: 414.4462494
A6: Q1 and Q2 | B6: 16+ Males and Females | C6: N/A | E6: BOTH | F6: Q1&2 | H6: =SUM(H7:H8) -> 1769266 | I6: 0 | J6: 453279 | K6: 23376.35266 | L6: 23339.00212 | M6: 317747.9065 | N6: 317097.1946 | O6: 542278.7308 | P6: 541545.9544 | Q6: 11396.36468 | R6: 11371.11761 | AA6: =SUMIF(AA7:AA8,">0") -> 501761254.7 | AB6: =SUMIF(AB7:AB8,">0") -> 500987621.7 | AC6: 6385547341 | AD6: 6372733730 | AE6: 1.078771081e+10 | AF6: 1.077349931e+10 | AG6: 231238681.2 | AH6: 230731308.4 | AI6: =SUM(AI7:AI8) -> 400000 | AJ6: =AA6/$AI6 -> 1254.403137 | AK6: 1252.469054 | AL6: 15963.86835 | AM6: 15931.83432 | AN6: 26969.27703 | AO6: 26933.74827 | AP6: 578.096703 | AQ6: 576.828271
A7: SIMD Q1 (most deprived) | B7: 16+ Males and Females | C7: N/A | E7: BOTH | F7: 1 | H7: =H12+H17 -> 872234 | I7: 0 | J7: 255257 | K7: 12882.17379 | L7: 12858.76557 | M7: =M12+M17 -> 179391.5396 | N7: 178982.465 | O7: 288715.8401 | P7: 288274.5852 | Q7: 6418.203214 | R7: 6402.487485 | AA7: =AA12+AA17 -> 293701286 | AB7: =AB12+AB17 -> 293194337 | AC7: 3747200080 | AD7: 3738920139 | AE7: 5950449632 | AF7: 5941683810 | AG7: 135809377.9 | AH7: 135482764.2 | AI7: =AI12+AI17 -> 200000 | AJ7: =AA7/$AI7 -> 1468.50643 | AK7: 1465.971685 | AL7: =AC7/$AI7 -> 18736.0004 | AM7: =AD7/$AI7 -> 18694.6007 | AN7: =AE7/$AI7 -> 29752.24816 | AO7: =AF7/$AI7 -> 29708.41905 | AP7: =AG7/$AI7 -> 679.0468897 | AQ7: =AH7/$AI7 -> 677.4138209
A8: SIMD Q2 | C8: N/A | E8: BOTH | F8: 2 | H8: =H13+H18 -> 897032 | I8: 0 | J8: 198022 | K8: =K13+K18 -> 10494.17887 | L8: 10480.23655 | M8: 138356.3669 | N8: 138114.7296 | O8: 253562.8907 | P8: 253271.3692 | Q8: 4978.161464 | R8: 4968.630125 | AA8: =AA13+AA18 -> 208059968.7 | AB8: =AB13+AB18 -> 207793284.7 | AC8: 2638347261 | AD8: 2633813590 | AE8: 4837261178 | AF8: 4831815499 | AG8: 95429303.28 | AH8: 95248544.21 | AI8: =AI13+AI18 -> 200000 | AJ8: 1040.299844 | AK8: 1038.966423 | AL8: 13191.7363 | AM8: 13169.06795 | AN8: 24186.30589 | AO8: 24159.0775 | AP8: 477.1465164 | AQ8: 476.2427211
A9: SIMD Q3 | C9: N/A | E9: BOTH | F9: 3 | H9: 907978 | I9: 0 | J9: 151980 | K9: 8984.668605 | L9: 8975.408115 | M9: 117466.9451 | N9: 117307.7827 | O9: 227312.9823 | P9: 227113.4916 | Q9: 4320.232465 | R9: 4313.856719 | AA9: =AA14+AA19 -> 169124904.3 | AB9: =AB14+AB19 -> 168956679.7 | AC9: 2138813713 | AD9: 2135946791 | AE9: 4182172525 | AF9: 4178551071 | AG9: 77293683.45 | AH9: 77179900.92 | AI9: =AI14+AI19 -> 200000 | AJ9: 845.6245214 | AK9: 844.7833984 | AL9: 10694.06856 | AM9: 10679.73396 | AN9: 20910.86262 | AO9: 20892.75536 | AP9: 386.4684172 | AQ9: 385.8995046
A10: SIMD Q4 | C10: N/A | E10: BOTH | F10: 4 | H10: 910792 | I10: 0 | J10: 117505 | K10: 7029.388105 | L10: 7023.892321 | M10: 93214.46862 | N10: 93117.4891 | O10: 200119.0561 | P10: 199985.232 | Q10: 3451.08122 | R10: 3447.243309 | AA10: =AA15+AA20 -> 134772459.5 | AB10: =AB15+AB20 -> 134672977.3 | AC10: 1700333876 | AD10: 1698604043 | AE10: 3688824591 | AF10: 3686419094 | AG10: 61400802.76 | AH10: 61332842.4 | AI10: =AI15+AI20 -> 200000 | AJ10: 673.8622974 | AK10: 673.3648864 | AL10: 8501.66938 | AM10: 8493.020215 | AN10: 18444.12295 | AO10: 18432.09547 | AP10: 307.0040138 | AQ10: 306.664212
A11: SIMD Q5 (least deprived) | C11: N/A | E11: BOTH | F11: 5 | H11: 900747 | I11: 0 | J11: 76849 | K11: 5079.614934 | L11: 5076.611811 | M11: 66822.56006 | N11: 66772.48484 | O11: 174144.9582 | P11: 174063.7956 | Q11: 2443.734765 | R11: 2441.814871 | AA11: =AA16+AA21 -> 99594861.73 | AB11: =AB16+AB21 -> 99538602.88 | AC11: 1253642358 | AD11: 1252722531 | AE11: 3280984393 | AF11: 3279491944 | AG11: 45237432.4 | AH11: 45202197.67 | AI11: =AI16+AI21 -> 200000 | AJ11: =AA11/$AI11 -> 497.9743087 | AK11: 497.6930144 | AL11: 6268.211792 | AM11: 6263.612657 | AN11: 16404.92197 | AO11: 16397.45972 | AP11: 226.187162 | AQ11: 226.0109883
A12: SIMD Q1 (most deprived) | B12: 16+ Females | C12: N/A | E12: female | F12: 1 | H12: =SUM(H60:H78) -> 457633 | I12: =SUM(I60:I78) -> 0 | J12: =SUM(J60:J78) -> 125379 | K12: =SUMIF(K60:K78,">0") -> 6419.095527 | L12: 6406.525682 | M12: 82501.7709 | N12: 82291.00696 | O12: 155037.8909 | P12: 154777.5841 | Q12: 2637.166875 | R12: 2629.56637 | AA12: =SUMIF(AA60:AA78,">0") -> 123883425.9 | AB12: =SUMIF(AB60:AB78,">0") -> 123639209.5 | AC12: =SUMIF(AC60:AC78,">0") -> 1588767246 | AD12: 1584722705 | AE12: 2906076588 | AF12: 2901219941 | AG12: 53045749.2 | AH12: 52894518.21 | AI12: =SUM(AI60:AI78) -> 100000 | AJ12: 1238.834259 | AK12: 1236.392095 | AL12: 15887.67246 | AM12: 15847.22705 | AN12: 29060.76588 | AO12: 29012.19941 | AP12: 530.457492 | AQ12: 528.9451821
A13: SIMD Q2 | C13: N/A | E13: female | F13: 2 | H13: =SUM(H98:H116) -> 469079 | I13: =SUM(I98:I116) -> 0 | J13: =SUM(J98:J116) -> 97755 | K13: =SUMIF(K98:K116,">0") -> 5237.017551 | L13: 5229.434275 | M13: 64009.39453 | N13: 63883.97441 | O13: 134904.8591 | P13: 134731.6588 | Q13: 2051.850667 | R13: 2047.161215 | AA13: =SUMIF(AA98:AA116,">0") -> 87683288.28 | AB13: =SUMIF(AB98:AB116,">0") -> 87552416.85 | AC13: 1118092062 | AD13: 1115860655 | AE13: 2362418360 | AF13: 2359335837 | AG13: 37245419.04 | AH13: 37160367.99 | AI13: =SUM(AI98:AI116) -> 100000 | AJ13: 876.8328828 | AK13: 875.5241685 | AL13: 11180.92062 | AM13: 11158.60655 | AN13: 23624.1836 | AO13: 23593.35837 | AP13: 372.4541904 | AQ13: 371.6036799
A14: SIMD Q3 | C14: N/A | E14: female | F14: 3 | H14: =SUM(H136:H154) -> 469093 | I14: =SUM(I136:I154) -> 0 | J14: =SUM(J136:J154) -> 72334 | K14: =SUMIF(K136:K154,">0") -> 4353.976932 | L14: 4349.068188 | M14: 53280.10446 | N14: 53200.01746 | O14: 118438.0814 | P14: 118322.5462 | Q14: 1752.745704 | R14: 1749.695942 | AA14: =SUMIF(AA136:AA154,">0") -> 71247777.69 | AB14: =SUMIF(AB136:AB154,">0") -> 71165809.71 | AC14: 906201622.7 | AD14: 904821652.9 | AE14: 2042486604 | AF14: 2040464375 | AG14: 30156555.49 | AH14: 30103984.79 | AI14: =SUM(AI136:AI154) -> 100000 | AJ14: 712.4777769 | AK14: 711.6580971 | AL14: 9062.016227 | AM14: 9048.216529 | AN14: 20424.86604 | AO14: 20404.64375 | AP14: 301.5655549 | AQ14: 301.0398479
A15: SIMD Q4 | C15: N/A | E15: female | F15: 4 | H15: =SUM(H174:H192) -> 468792 | I15: =SUM(I174:I192) -> 0 | J15: =SUM(J174:J192) -> 54884 | K15: =SUMIF(K174:K192,">0") -> 3353.219599 | L15: 3350.2352 | M15: 41820.32352 | N15: 41772.24572 | O15: 103630.2706 | P15: 103552.8671 | Q15: 1387.236404 | R15: 1385.449865 | AA15: =SUMIF(AA174:AA192,">0") -> 56753042.45 | AB15: =SUMIF(AB174:AB192,">0") -> 56702199.34 | AC15: 720264097.9 | AD15: 719433890.8 | AE15: 1801545672 | AF15: 1800190839 | AG15: 23948420.4 | AH15: 23917585.89 | AI15: =SUM(AI174:AI192) -> 100000 | AJ15: 567.5304245 | AK15: 567.0219934 | AL15: 7202.640979 | AM15: 7194.338908 | AN15: 18015.45672 | AO15: 18001.90839 | AP15: 239.484204 | AQ15: 239.1758589
A16: SIMD Q5 (least deprived) | C16: N/A | E16: female | F16: 5 | H16: =SUM(H212:H230) -> 465079 | I16: =SUM(I212:I230) -> 0 | J16: =SUM(J212:J230) -> 34105 | K16: =SUMIF(K212:K230,">0") -> 2445.460229 | L16: 2443.823878 | M16: 30215.8233 | N16: 30191.04674 | O16: 90811.93649 | P16: 90765.76716 | Q16: 993.4640335 | R16: 992.5734621 | AA16: =SUMIF(AA212:AA230,">0") -> 41929695.88 | AB16: =SUMIF(AB212:AB230,">0") -> 41901439.5 | AC16: 530961234.6 | AD16: 530525395.7 | AE16: 1602364951 | AF16: 1601548522 | AG16: 17638809.19 | AH16: 17623041.5 | AI16: =SUM(AI212:AI230) -> 100000 | AJ16: 419.2969588 | AK16: 419.014395 | AL16: 5309.612346 | AM16: 5305.253957 | AN16: 16023.64951 | AO16: 16015.48522 | AP16: 176.3880919 | AQ16: 176.230415
A17: SIMD Q1 (most deprived) | B17: 16+ Males | C17: N/A | E17: male | F17: 1 | H17: =SUM(H79:H97) -> 414601 | I17: =SUM(I79:I97) -> 0 | J17: =SUM(J79:J97) -> 129878 | K17: =SUMIF(K79:K97,">0") -> 6463.078264 | L17: 6452.239886 | M17: 96889.76867 | N17: 96691.45807 | O17: 133677.9492 | P17: 133497.0011 | Q17: 3781.036339 | R17: 3772.921115 | AA17: =SUMIF(AA79:AA97,">0") -> 169817860.1 | AB17: =SUMIF(AB79:AB97,">0") -> 169555127.5 | AC17: 2158432834 | AD17: 2154197435 | AE17: 3044373044 | AF17: 3040463870 | AG17: 82763628.74 | AH17: 82588245.96 | AI17: =SUM(AI79:AI97) -> 100000 | AJ17: 1698.178601 | AK17: 1695.551275 | AL17: 21584.32834 | AM17: 21541.97435 | AN17: 30443.73044 | AO17: 30404.6387 | AP17: 827.6362874 | AQ17: 825.8824596
A18: SIMD Q2 | C18: N/A | E18: male | F18: 2 | H18: =SUM(H117:H135) -> 427953 | I18: =SUM(I117:I135) -> 0 | J18: =SUM(J117:J135) -> 100267 | K18: =SUMIF(K117:K135,">0") -> 5257.161323 | L18: 5250.80228 | M18: 74346.97242 | N18: 74230.75521 | O18: 118658.0316 | P18: 118539.7104 | Q18: 2926.310797 | R18: 2921.46891 | AA18: =SUMIF(AA117:AA135,">0") -> 120376680.5 | AB18: =SUMIF(AB117:AB135,">0") -> 120240867.8 | AC18: 1520255199 | AD18: 1517952935 | AE18: 2474842818 | AF18: 2472479663 | AG18: 58183884.24 | AH18: 58088176.23 | AI18: =SUM(AI117:AI135) -> 100000 | AJ18: 1203.766805 | AK18: 1202.408678 | AL18: 15202.55199 | AM18: 15179.52935 | AN18: 24748.42818 | AO18: 24724.79663 | AP18: 581.8388424 | AQ18: 580.8817623
A19: SIMD Q3 | C19: N/A | E19: male | F19: 3 | H19: =SUM(H155:H173) -> 438885 | I19: =SUM(I155:I173) -> 0 | J19: =SUM(J155:J173) -> 79646 | K19: =SUMIF(K155:K173,">0") -> 4630.691672 | L19: 4626.339927 | M19: 64186.84061 | N19: 64107.76527 | O19: 108874.9009 | P19: 108790.9454 | Q19: 2567.486761 | R19: 2564.160778 | AA19: =SUMIF(AA155:AA173,">0") -> 97877126.59 | AB19: =SUMIF(AB155:AB173,">0") -> 97790869.96 | AC19: 1232612090 | AD19: 1231125139 | AE19: 2139685921 | AF19: 2138086696 | AG19: 47137127.96 | AH19: 47075916.13 | AI19: =SUM(AI155:AI173) -> 100000 | AJ19: =AA19/$AI19 -> 978.7712659 | AK19: =AB19/$AI19 -> 977.9086996 | AL19: =AC19/$AI19 -> 12326.1209 | AM19: =AD19/$AI19 -> 12311.25139 | AN19: 21396.85921 | AO19: 21380.86696 | AP19: 471.3712796 | AQ19: 470.7591613
A20: SIMD Q4 | C20: N/A | E20: male | F20: 4 | H20: =SUM(H193:H211) -> 442000 | I20: =SUM(I193:I211) -> 0 | J20: =SUM(J193:J211) -> 62621 | K20: =SUMIF(K193:K211,">0") -> 3676.168506 | L20: 3673.657121 | M20: 51394.1451 | N20: 51345.24338 | O20: 96488.78552 | P20: 96432.36485 | Q20: 2063.844816 | R20: 2061.793444 | AA20: =SUMIF(AA193:AA211,">0") -> 78019417.03 | AB20: =SUMIF(AB193:AB211,">0") -> 77970777.94 | AC20: 980069778 | AD20: 979170152.2 | AE20: 1887278919 | AF20: 1886228255 | AG20: 37452382.36 | AH20: 37415256.51 | AI20: =SUM(AI193:AI211) -> 100000 | AJ20: 780.1941703 | AK20: 779.7077794 | AL20: 9800.69778 | AM20: 9791.701522 | AN20: 18872.78919 | AO20: 18862.28255 | AP20: 374.5238236 | AQ20: 374.1525651
A21: SIMD Q5 (least deprived) | C21: N/A | E21: male | F21: 5 | H21: =SUM(H231:H249) -> 435668 | I21: =SUM(I231:I249) -> 0 | J21: =SUM(J231:J249) -> 42744 | K21: =SUMIF(K231:K249,">0") -> 2634.154705 | L21: 2632.787933 | M21: 36606.73677 | N21: 36581.4381 | O21: 83333.02172 | P21: 83298.02844 | Q21: 1450.270731 | R21: 1449.241409 | AA21: =SUMIF(AA231:AA249,">0") -> 57665165.85 | AB21: =SUMIF(AB231:AB249,">0") -> 57637163.38 | AC21: 722681123.8 | AD21: 722197135.7 | AE21: 1678619443 | AF21: 1677943422 | AG21: 27598623.21 | AH21: 27579156.17 | AI21: =SUM(AI231:AI249) -> 100000 | AJ21: =AA21/$AI21 -> 576.6516585 | AK21: 576.3716338 | AL21: 7226.811238 | AM21: 7221.971357 | AN21: 16786.19443 | AO21: 16779.43422 | AP21: 275.9862321 | AQ21: 275.7915617
B22: Female 0-4 | C22: 2.0384007 | D22: 81.468401 | E22: female | F22: ALL | H22: =SUM(H60,H98,H136,H174,H212) -> 0 | I22: 0 | J22: 0 | K22: =SUM(K60,K98,K136,K174,K212) ->  | AA22: =SUM(AA60,AA98,AA136,AA174,AA212) ->  | AI22: 25000
B23: Female 5-9 | C23: 6.9792795 | D23: 81.43928 | E23: female | F23: ALL | H23: =SUM(H61,H99,H137,H175,H213) -> 0 | I23: 0 | J23: 0 | K23: =SUM(K61,K99,K137,K175,K213) ->  | M23: =SUM(M61,M99,M137,M175,M213) ->  | AA23: =SUM(AA61,AA99,AA137,AA175,AA213) ->  | AI23: 27500
B24: Female 10-15 | C24: 12.478312 | D24: 81.94831 | E24: female | F24: ALL | H24: =SUM(H62,H100,H138,H176,H214) -> 0 | I24: 0 | J24: 0 | K24: =SUM(K62,K100,K138,K176,K214) ->  | L24: =SUM(L62,L100,L138,L176,L214) ->  | O24: =SUM(O62,O100,O138,O176,O214) ->  | P24: =SUM(P62,P100,P138,P176,P214) ->  | AA24: =SUM(AA62,AA100,AA138,AA176,AA214) ->  | AI24: 33000
A25: All quintiles | B25: Female 16-19 | C25: 17.570053 | D25: 81.10005 | E25: female | F25: ALL | H25: =SUM(H63,H101,H139,H177,H215) -> 118803 | I25: 0 | J25: 19604 | K25: 22.93737186 | L25: 22.8892587 | M25: 1434.273794 | N25: 1431.265278 | O25: 12465.29027 | P25: 12450.06633 | Q25: 22.93737186 | R25: 22.8892587 | AA25: =SUM(AA63,AA101,AA139,AA177,AA215) -> 426135.1395 | AB25: 425239.0482 | AC25: 26646228.99 | AD25: 26590196.41 | AE25: 231245008.5 | AF25: 230961392.3 | AG25: 426135.1395 | AH25: 425239.0482 | AI25: 22000 | AJ25: 19.36977907 | AK25: 19.32904765 | AL25: 1211.192227 | AM25: 1208.645291 | AN25: 10511.13675 | AO25: 10498.2451 | AP25: 19.36977907 | AQ25: 19.32904765
B26: Female 20-24 | C26: 22.077057 | D26: 81.66706 | E26: female | F26: ALL | H26: =SUM(H64,H102,H140,H178,H216) -> 182279 | I26: 0 | J26: 30258 | K26: 51.98035021 | L26: 51.87088226 | M26: 3045.528875 | N26: 3039.115147 | O26: 21506.62704 | P26: 21480.23129 | Q26: 51.98035021 | R26: 51.87088226 | AA26: =SUM(AA64,AA102,AA140,AA178,AA216) -> 852519.1348 | AB26: 850726.6209 | AC26: 49949098.67 | AD26: 49844075.27 | AE26: 353188002.8 | AF26: 352754818.2 | AG26: 852519.1348 | AH26: 850726.6209 | AI26: 30000 | AJ26: 28.41730449 | AK26: 28.35755403 | AL26: 1664.969956 | AM26: 1661.469176 | AN26: 11772.93343 | AO26: 11758.49394 | AP26: 28.41730449 | AQ26: 28.35755403
B27: Female 25-29 | C27: 26.975187 | D27: 81.64519 | E27: female | F27: ALL | H27: =SUM(H65,H103,H141,H179,H217) -> 187975 | I27: 0 | J27: 36712 | K27: 84.83159381 | L27: 84.62454882 | M27: 4552.911895 | N27: 4541.799789 | O27: 25701.25489 | P27: 25664.56427 | Q27: 84.83159381 | R27: 84.62454882 | AA27: =SUM(AA65,AA103,AA141,AA179,AA217) -> 1292988.477 | AB27: 1289931.797 | AC27: 69394695.45 | AD27: 69230643.42 | AE27: 399497115.4 | AF27: 398947648.2 | AG27: 1292988.477 | AH27: 1289931.797 | AI27: 30000 | AJ27: 43.0996159 | AK27: 42.99772657 | AL27: 2313.156515 | AM27: 2307.688114 | AN27: 13316.57051 | AO27: 13298.25494 | AP27: 43.0996159 | AQ27: 42.99772657
B28: Female 30-34 | C28: 31.999905 | D28: 81.7999 | E28: female | F28: ALL | H28: =SUM(H66,H104,H142,H180,H218) -> 179608 | I28: 0 | J28: 34715 | K28: 122.8514676 | L28: 122.5539913 | M28: 5995.151006 | N28: 5980.634165 | O28: 27681.46121 | P28: 27642.28947 | Q28: 122.8514676 | R28: 122.5539913 | AA28: =SUM(AA66,AA104,AA142,AA180,AA218) -> 2147341.466 | AB28: 2142266.429 | AC28: 104790252.8 | AD28: 104542591 | AE28: 491095913.1 | AF28: 490420467 | AG28: 2147341.466 | AH28: 2142266.429 | AI28: 32500 | AJ28: 66.0720451 | AK28: 65.91589013 | AL28: 3224.31547 | AM28: 3216.695109 | AN28: 15110.64348 | AO28: 15089.86052 | AP28: 66.0720451 | AQ28: 65.91589013
B29: Female 35-39 | C29: 36.918118 | D29: 81.89812 | E29: female | F29: ALL | H29: =SUM(H67,H105,H143,H181,H219) -> 166485 | I29: 0 | J29: 31567 | K29: 168.2289626 | L29: 167.8200027 | M29: 7398.71011 | N29: 7380.724056 | O29: 28578.84599 | P29: 28538.6478 | Q29: 168.2289626 | R29: 167.8200027 | AA29: =SUM(AA67,AA105,AA143,AA181,AA219) -> 3512899.406 | AB29: 3504419.593 | AC29: 154497322.9 | AD29: 154124380.7 | AE29: 598519214.2 | AF29: 597683113.2 | AG29: 3512899.406 | AH29: 3504419.593 | AI29: 35000 | AJ29: 100.3685545 | AK29: 100.1262741 | AL29: 4414.209226 | AM29: 4403.553735 | AN29: 17100.54898 | AO29: 17076.66038 | AP29: 100.3685545 | AQ29: 100.1262741
B30: Female 40-44 | C30: 42.077438 | D30: 82.30744 | E30: female | F30: ALL | H30: =SUM(H68,H106,H144,H182,H220) -> 172709 | I30: 0 | J30: 32065 | K30: 265.8350733 | L30: 265.1994062 | M30: 10428.71046 | N30: 10403.77324 | O30: 33419.63756 | P30: 33373.4715 | Q30: 265.8350733 | R30: 265.1994062 | AA30: =SUM(AA68,AA106,AA144,AA182,AA220) -> 5446220.673 | AB30: 5433082.711 | AC30: 213655247.9 | AD30: 213139845.6 | AE30: 681457961.7 | AF30: 680506013.7 | AG30: 5446220.673 | AH30: 5433082.711 | AI30: 35000 | AJ30: 155.6063049 | AK30: 155.2309346 | AL30: 6104.435654 | AM30: 6089.709875 | AN30: 19470.22748 | AO30: 19443.02896 | AP30: 155.6063049 | AQ30: 155.2309346
B31: Female 45-49 | C31: 47.025772 | D31: 82.58577 | E31: female | F31: ALL | H31: =SUM(H69,H107,H145,H183,H221) -> 202829 | I31: 0 | J31: 39546 | K31: 475.6435655 | L31: 474.458114 | M31: 16438.24067 | N31: 16397.27147 | O31: 44462.66378 | P31: 44398.49615 | Q31: 475.6435655 | R31: 474.458114 | AA31: =SUM(AA69,AA107,AA145,AA183,AA221) -> 8292036.593 | AB31: 8271169.308 | AC31: 286572768.1 | AD31: 285851594.7 | AE31: 771783001 | AF31: 770656439.3 | AG31: 8292036.593 | AH31: 8271169.308 | AI31: 35000 | AJ31: 236.9153312 | AK31: 236.3191231 | AL31: 8187.793373 | AM31: 8167.188421 | AN31: 22050.94289 | AO31: 22018.75541 | AP31: 236.9153312 | AQ31: 236.3191231
B32: Female 50-54 | C32: 51.990826 | D32: 82.98083 | E32: female | F32: ALL | H32: =SUM(H70,H108,H146,H184,H222) -> 209262 | I32: 0 | J32: 40724 | K32: 746.786679 | L32: 744.932953 | M32: 22396.13549 | N32: 22340.54224 | O32: 51924.44852 | P32: 51849.68115 | Q32: 746.786679 | R32: 744.932953 | AA32: =SUM(AA70,AA108,AA146,AA184,AA222) -> 12639468.8 | AB32: 12607707.35 | AC32: 379057720 | AD32: 378105193.8 | AE32: 874448019.8 | AF32: 873171607.2 | AG32: 12639468.8 | AH32: 12607707.35 | AI32: 35000 | AJ32: 361.1276801 | AK32: 360.2202099 | AL32: 10830.22057 | AM32: 10803.00554 | AN32: 24984.22914 | AO32: 24947.76021 | AP32: 361.1276801 | AQ32: 360.2202099
B33: Female 55-59 | C33: 56.953041 | D33: 83.47304 | E33: female | F33: ALL | H33: =SUM(H71,H109,H147,H185,H223) -> 190084 | I33: 0 | J33: 33741 | K33: 1032.532768 | L33: 1030.16765 | M33: 26350.23521 | N33: 26289.87741 | O33: 53414.87334 | P33: 53343.9425 | Q33: 1032.532768 | R33: 1030.16765 | AA33: =SUM(AA71,AA109,AA147,AA185,AA223) -> 17878574.42 | AB33: 17837027.4 | AC33: 456261201.3 | AD33: 455200921.4 | AE33: 919934892.6 | AF33: 918694325.6 | AG33: 17878574.42 | AH33: 17837027.4 | AI33: 32500 | AJ33: 550.1099822 | AK33: 548.8316123 | AL33: 14038.80619 | AM33: 14006.1822 | AN33: 28305.689 | AO33: 28267.51771 | AP33: 550.1099822 | AQ33: 548.8316123
B34: Female 60-64 | C34: 61.947388 | D34: 84.16739 | E34: female | F34: ALL | H34: =SUM(H72,H110,H148,H186,H224) -> 165146 | I34: 0 | J34: 29015 | K34: 1358.15282 | L34: 1355.081521 | M34: 28820.00556 | N34: 28754.83259 | O34: 52377.01197 | P34: 52308.13386 | Q34: 1358.15282 | R34: 1355.081521 | AA34: =SUM(AA72,AA110,AA148,AA186,AA224) -> 25192582.95 | AB34: 25134245.92 | AC34: 534586660.6 | AD34: 533348748.6 | AE34: 962839226.4 | AF34: 961540826.5 | AG34: 25192582.95 | AH34: 25134245.92 | AI34: 30000 | AJ34: 839.752765 | AK34: 837.8081972 | AL34: 17819.55535 | AM34: 17778.29162 | AN34: 32094.64088 | AO34: 32051.36088 | AP34: 839.752765 | AQ34: 837.8081972
B35: Female 65-69 | C35: 67.063927 | D35: 85.19393 | E35: female | F35: ALL | H35: =SUM(H73,H111,H149,H187,H225) -> 164057 | I35: 0 | J35: 21584 | K35: 2066.254208 | L35: 2062.642641 | M35: 35394.94078 | N35: 35333.07463 | O35: 58973.2205 | P35: 58913.52992 | Q35: 2066.254208 | R35: 2062.642641 | AA35: =SUM(AA73,AA111,AA149,AA187,AA225) -> 35585132.2 | AB35: 35521320.86 | AC35: 609573421.4 | AD35: 608480332.9 | AE35: 1003826931 | AF35: 1002783126 | AG35: 35585132.2 | AH35: 35521320.86 | AI35: 27500 | AJ35: 1294.004807 | AK35: 1291.684395 | AL35: 22166.30623 | AM35: 22126.55756 | AN35: 36502.79749 | AO35: 36464.84096 | AP35: 1294.004807 | AQ35: 1291.684395
B36: Female 70-74 | C36: 71.938164 | D36: 86.24816 | E36: female | F36: ALL | H36: =SUM(H74,H112,H150,H188,H226) -> 127150 | I36: 0 | J36: 16833 | K36: 2426.428824 | L36: 2422.205885 | M36: 32295.75794 | N36: 32239.55064 | O36: 51815.94224 | P36: 51763.22622 | Q36: 2426.428824 | R36: 2422.205885 | AA36: =SUM(AA74,AA112,AA150,AA188,AA226) -> 48769054.05 | AB36: 48682361.35 | AC36: 649115914.4 | AD36: 647962034.8 | AE36: 1031603609 | AF36: 1030530935 | AG36: 48769054.05 | AH36: 48682361.35 | AI36: 25000 | AJ36: 1950.762162 | AK36: 1947.294454 | AL36: 25964.63658 | AM36: 25918.48139 | AN36: 41264.14437 | AO36: 41221.23738 | AP36: 1950.762162 | AQ36: 1947.294454
B37: Female 75-79 | C37: 76.942825 | D37: 87.81283 | E37: female | F37: ALL | H37: =SUM(H75,H113,H151,H189,H227) -> 104331 | I37: 0 | J37: 7192 | K37: 3076.754992 | L37: 3073.836618 | M37: 30367.58716 | N37: 30338.78279 | O37: 48655.39333 | P37: 48628.41019 | Q37: 0 | R37: 0 | AA37: =SUM(AA75,AA113,AA151,AA189,AA227) -> 59361155.62 | AB37: 59304111.01 | AC37: 585894902.8 | AD37: 585331872.2 | AE37: 935996664.2 | AF37: 935471313.8 | AG37: 0 | AH37: 0 | AI37: 20000 | AJ37: 2968.057781 | AK37: 2965.205551 | AL37: 29294.74514 | AM37: 29266.59361 | AN37: 46799.83321 | AO37: 46773.56569 | AP37: 0 | AQ37: 0
B38: Female 80-84 | C38: 81.856712 | D38: 89.73671 | E38: female | F38: ALL | H38: =SUM(H76,H114,H152,H190,H228) -> 80217 | I38: 0 | J38: 5544 | K38: 3567.876277 | L38: 3564.562121 | M38: 24546.98165 | N38: 24524.18026 | O38: 42391.15608 | P38: 42367.59186 | Q38: 0 | R38: 0 | AA38: =SUM(AA76,AA114,AA152,AA190,AA228) -> 55828278.73 | AB38: 55775857.13 | AC38: 384098446 | AD38: 383737785.5 | AE38: 661963669 | AF38: 661592080.5 | AG38: 0 | AH38: 0 | AI38: 12500 | AJ38: 4466.262298 | AK38: 4462.06857 | AL38: 30727.87568 | AM38: 30699.02284 | AN38: 52957.09352 | AO38: 52927.36644 | AP38: 0 | AQ38: 0
B39: Female 85-89 | C39: 86.73082 | D39: 92.22082 | E39: female | F39: ALL | H39: =SUM(H77,H115,H153,H191,H229) -> 49691 | I39: 0 | J39: 3401 | K39: 3270.385991 | L39: 3267.473737 | M39: 14684.0331 | N39: 14670.95708 | O39: 29525.06547 | P39: 29508.79983 | Q39: 0 | R39: 0 | AA39: =SUM(AA77,AA115,AA153,AA191,AA229) -> 50005245.61 | AB39: 49959911.98 | AC39: 224523552.8 | AD39: 224320004.8 | AE39: 448983820.1 | AF39: 448731822.4 | AG39: 0 | AH39: 0 | AI39: 7500 | AJ39: 6667.366082 | AK39: 6661.321597 | AL39: 29936.47371 | AM39: 29909.33397 | AN39: 59864.50934 | AO39: 59830.90966 | AP39: 0 | AQ39: 0
B40: Female 90+ | C40: 92.779343 | D40: 96.27934 | E40: female | F40: ALL | H40: =SUM(H78,H116,H154,H192,H230) -> 29050 | I40: 0 | J40: 1956 | K40: 3071.288894 | L40: 3068.767891 | M40: 7678.213021 | N40: 7671.910522 | O40: 19930.14616 | P40: 19919.34099 | Q40: 0 | R40: 0 | AA40: =SUM(AA78,AA116,AA154,AA192,AA230) -> 54267596.9 | AB40: 54221696.35 | AC40: 135668829.4 | AD40: 135554078.2 | AE40: 348509125.9 | AF40: 348313584.1 | AG40: 0 | AH40: 0 | AI40: 5000 | AJ40: 10853.51938 | AK40: 10844.33927 | AL40: 27133.76589 | AM40: 27110.81564 | AN40: 69701.82517 | AO40: 69662.71682 | AP40: 0 | AQ40: 0
B41: Male 0-4 | C41: 2.0320823 | D41: 77.402082 | E41: male | F41: ALL | H41: =SUM(H79,H117,H155,H193,H231) -> 0 | I41: 0 | J41: 0 | AA41: =SUM(AA79,AA117,AA155,AA193,AA231) ->  | AI41: 25000
B42: Male 5-9 | C42: 6.9784756 | D42: 77.398476 | E42: male | F42: ALL | H42: =SUM(H80,H118,H156,H194,H232) -> 0 | I42: 0 | J42: 0 | AA42: =SUM(AA80,AA118,AA156,AA194,AA232) ->  | AI42: 27500
B43: Male 10-15 | C43: 12.471144 | D43: 77.92114 | E43: male | F43: ALL | H43: =SUM(H81,H119,H157,H195,H233) -> 0 | I43: 0 | J43: 0 | AA43: =SUM(AA81,AA119,AA157,AA195,AA233) ->  | AI43: 33000
B44: Male 16-19 | C44: 17.556318 | D44: 77.07632 | E44: male | F44: ALL | H44: =SUM(H82,H120,H158,H196,H234) -> 124418 | I44: 0 | J44: 23233 | K44: 56.98308559 | L44: 56.89169598 | M44: 3334.650282 | N44: 3329.302163 | O44: 8826.189231 | P44: 8817.423554 | Q44: 56.98308559 | R44: 56.89169598 | AA44: =SUM(AA82,AA120,AA158,AA196,AA234) -> 1013108.448 | AB44: 1011480.807 | AC44: 59287108.42 | AD44: 59191858.85 | AE44: 156551621.6 | AF44: 156395579.1 | AG44: 1013108.448 | AH44: 1011480.807 | AI44: 22000 | AJ44: 46.05038402 | AK44: 45.97640032 | AL44: 2694.868565 | AM44: 2690.539039 | AN44: 7115.9828 | AO44: 7108.889957 | AP44: 46.05038402 | AQ44: 45.97640032
B45: Male 20-24 | C45: 22.054632 | D45: 77.70463 | E45: male | F45: ALL | H45: =SUM(H83,H121,H159,H197,H235) -> 181688 | I45: 0 | J45: 34097 | K45: 117.5292609 | L45: 117.3402989 | M45: 6422.973872 | N45: 6412.647098 | O45: 15171.57336 | P45: 15156.44932 | Q45: 117.5292609 | R45: 117.3402989 | AA45: =SUM(AA83,AA121,AA159,AA197,AA235) -> 1939971.573 | AB45: 1936855.777 | AC45: 106019442.6 | AD45: 105849164.3 | AE45: 250437460.6 | AF45: 250187859.6 | AG45: 1939971.573 | AH45: 1936855.777 | AI45: 30000 | AJ45: 64.66571909 | AK45: 64.56185923 | AL45: 3533.981419 | AM45: 3528.305478 | AN45: 8347.915354 | AO45: 8339.595321 | AP45: 64.66571909 | AQ45: 64.56185923
B46: Male 25-29 | C46: 26.959763 | D46: 77.78976 | E46: male | F46: ALL | H46: =SUM(H84,H122,H160,H198,H236) -> 186149 | I46: 0 | J46: 44400 | K46: 180.0667229 | L46: 179.7200415 | M46: 8972.724262 | N46: 8955.449129 | O46: 18844.70775 | P46: 18821.63698 | Q46: 180.0667229 | R46: 179.7200415 | AA46: =SUM(AA84,AA122,AA160,AA198,AA236) -> 2808963.824 | AB46: 2803642.882 | AC46: 139970658.9 | AD46: 139705516.4 | AE46: 298066844.9 | AF46: 297708825.1 | AG46: 2808963.824 | AH46: 2803642.882 | AI46: 30000 | AJ46: 93.63212746 | AK46: 93.45476273 | AL46: 4665.68863 | AM46: 4656.850547 | AN46: 9935.561496 | AO46: 9923.627503 | AP46: 93.63212746 | AQ46: 93.45476273
B47: Male 30-34 | C47: 31.981522 | D47: 78.06152 | E47: male | F47: ALL | H47: =SUM(H85,H123,H161,H199,H237) -> 172305 | I47: 0 | J47: 41043 | K47: 242.7336449 | L47: 242.267786 | M47: 10942.43223 | N47: 10921.43131 | O47: 20810.11301 | P47: 20784.69231 | Q47: 242.7336449 | R47: 242.267786 | AA47: =SUM(AA85,AA123,AA161,AA199,AA237) -> 4444721.454 | AB47: 4436305.996 | AC47: 200368034.3 | AD47: 199988665.4 | AE47: 385911765.1 | AF47: 385448230 | AG47: 4444721.454 | AH47: 4436305.996 | AI47: 32500 | AJ47: 136.7606601 | AK47: 136.501723 | AL47: 6165.170285 | AM47: 6153.497398 | AN47: 11874.20816 | AO47: 11859.94554 | AP47: 136.7606601 | AQ47: 136.501723
B48: Male 35-39 | C48: 36.92601 | D48: 78.33601 | E48: male | F48: ALL | H48: =SUM(H86,H124,H162,H200,H238) -> 161268 | I48: 0 | J48: 38222 | K48: 321.6493217 | L48: 321.0182749 | M48: 12997.84909 | N48: 12972.34849 | O48: 22880.10876 | P48: 22851.8321 | Q48: 321.6493217 | R48: 321.0182749 | AA48: =SUM(AA86,AA124,AA162,AA200,AA238) -> 6949961.682 | AB48: 6936372.02 | AC48: 280847951.6 | AD48: 280298793.3 | AE48: 495329032.5 | AF48: 494719249.3 | AG48: 6949961.682 | AH48: 6936372.02 | AI48: 35000 | AJ48: 198.5703338 | AK48: 198.1820577 | AL48: 8024.227188 | AM48: 8008.536952 | AN48: 14152.25807 | AO48: 14134.8357 | AP48: 198.5703338 | AQ48: 198.1820577
B49: Male 40-44 | C49: 42.067703 | D49: 78.9077 | E49: male | F49: ALL | H49: =SUM(H87,H125,H163,H201,H239) -> 164929 | I49: 0 | J49: 38290 | K49: 475.9162081 | L49: 474.995946 | M49: 17056.83547 | N49: 17023.85328 | O49: 27796.41123 | P49: 27762.6306 | Q49: 475.9162081 | R49: 474.995946 | AA49: =SUM(AA87,AA125,AA163,AA201,AA239) -> 10240286.19 | AB49: 10220284.08 | AC49: 367011826.5 | AD49: 366294950.8 | AE49: 594504097.5 | AF49: 593772230.7 | AG49: 10240286.19 | AH49: 10220284.08 | AI49: 35000 | AJ49: 292.5796055 | AK49: 292.0081166 | AL49: 10486.05218 | AM49: 10465.57002 | AN49: 16985.83136 | AO49: 16964.92088 | AP49: 292.5796055 | AQ49: 292.0081166
B50: Male 45-49 | C50: 47.038155 | D50: 79.41815 | E50: male | F50: ALL | H50: =SUM(H88,H126,H164,H202,H240) -> 189422 | I50: 0 | J50: 41563 | K50: 794.6930565 | L50: 793.2264366 | M50: 24937.46414 | N50: 24891.44161 | O50: 38076.87909 | P50: 38032.82999 | Q50: 794.6930565 | R50: 793.2264366 | AA50: =SUM(AA88,AA126,AA164,AA202,AA240) -> 14890850.39 | AB50: 14863077.75 | AC50: 467274810.6 | AD50: 466403305.5 | AE50: 709212168.1 | AF50: 708381217.1 | AG50: 14890850.39 | AH50: 14863077.75 | AI50: 35000 | AJ50: 425.4528682 | AK50: 424.6593643 | AL50: 13350.70888 | AM50: 13325.80873 | AN50: 20263.2048 | AO50: 20239.46335 | AP50: 425.4528682 | AQ50: 424.6593643
B51: Male 50-54 | C51: 51.998646 | D51: 79.98865 | E51: male | F51: ALL | H51: =SUM(H89,H127,H165,H203,H241) -> 197429 | I51: 0 | J51: 43283 | K51: 1201.941075 | L51: 1199.73156 | M51: 32440.39442 | N51: 32380.75961 | O51: 47294.71013 | P51: 47240.07357 | Q51: 1201.941075 | R51: 1199.73156 | AA51: =SUM(AA89,AA127,AA165,AA203,AA241) -> 21629005.3 | AB51: 21588755.75 | AC51: 583766939.6 | AD51: 582680604 | AE51: 845753788.7 | AF51: 844762873.3 | AG51: 21629005.3 | AH51: 21588755.75 | AI51: 35000 | AJ51: 617.97158 | AK51: 616.8215928 | AL51: 16679.05542 | AM51: 16648.01726 | AN51: 24164.39396 | AO51: 24136.0821 | AP51: 617.97158 | AQ51: 616.8215928
B52: Male 55-59 | C52: 56.950867 | D52: 80.66087 | E52: male | F52: ALL | H52: =SUM(H90,H128,H166,H204,H242) -> 180737 | I52: 0 | J52: 33959 | K52: 1594.909271 | L52: 1592.291982 | M52: 36220.39432 | N52: 36160.95568 | O52: 51591.13693 | P52: 51538.6692 | Q52: 1594.909271 | R52: 1592.291982 | AA52: =SUM(AA90,AA128,AA166,AA204,AA242) -> 29138433.18 | AB52: 29089771.17 | AC52: 661733904.8 | AD52: 660628790.5 | AE52: 936266656.8 | AF52: 935295779.2 | AG52: 29138433.18 | AH52: 29089771.17 | AI52: 32500 | AJ52: 896.5671746 | AK52: 895.0698821 | AL52: 20361.04323 | AM52: 20327.03971 | AN52: 28808.20482 | AO52: 28778.33167 | AP52: 896.5671746 | AQ52: 895.0698821
B53: Male 60-64 | C53: 61.942989 | D53: 81.61299 | E53: male | F53: ALL | H53: =SUM(H91,H129,H167,H205,H243) -> 156406 | I53: 0 | J53: 29050 | K53: 1989.183233 | L53: 1985.966628 | M53: 37138.05294 | N53: 37077.99893 | O53: 53033.32073 | P53: 52979.96537 | Q53: 1989.183233 | R53: 1985.966628 | AA53: =SUM(AA91,AA129,AA167,AA205,AA243) -> 39108076.28 | AB53: 39043092.17 | AC53: 730147823.3 | AD53: 728934569.8 | AE53: 1031793596 | AF53: 1030723645 | AG53: 39108076.28 | AH53: 39043092.17 | AI53: 30000 | AJ53: 1303.602543 | AK53: 1301.436406 | AL53: 24338.26078 | AM53: 24297.81899 | AN53: 34393.11986 | AO53: 34357.45485 | AP53: 1303.602543 | AQ53: 1301.436406
B54: Male 65-69 | C54: 67.05442 | D54: 82.95442 | E54: male | F54: ALL | H54: =SUM(H92,H130,H168,H206,H244) -> 153467 | I54: 0 | J54: 20986 | K54: 2842.680803 | L54: 2839.133385 | M54: 42355.94397 | N54: 42303.08744 | O54: 62174.33177 | P54: 62126.78928 | Q54: 2842.680803 | R54: 2839.133385 | AA54: =SUM(AA92,AA130,AA168,AA206,AA244) -> 52531096.2 | AB54: 52463281.7 | AC54: 782713333.4 | AD54: 781702897.3 | AE54: 1133962873 | AF54: 1133063069 | AG54: 52531096.2 | AH54: 52463281.7 | AI54: 27500 | AJ54: 1910.22168 | AK54: 1907.755698 | AL54: 28462.30303 | AM54: 28425.5599 | AN54: 41235.01357 | AO54: 41202.29342 | AP54: 1910.22168 | AQ54: 1907.755698
B55: Male 70-74 | C55: 71.891098 | D55: 84.3411 | E55: male | F55: ALL | H55: =SUM(H93,H131,H169,H207,H245) -> 111869 | I55: 0 | J55: 15303 | K55: 2970.663762 | L55: 2967.001621 | M55: 34014.10601 | N55: 33972.17449 | O55: 53814.8044 | P55: 53773.67329 | Q55: 2970.663762 | R55: 2967.001621 | AA55: =SUM(AA93,AA131,AA169,AA207,AA245) -> 68441171.97 | AB55: 68353830.91 | AC55: 783651556 | AD55: 782651500.6 | AE55: 1223954580 | AF55: 1222983391 | AG55: 68441171.97 | AH55: 68353830.91 | AI55: 25000 | AJ55: 2737.646879 | AK55: 2734.153236 | AL55: 31346.06224 | AM55: 31306.06002 | AN55: 48958.18319 | AO55: 48919.33563 | AP55: 2737.646879 | AQ55: 2734.153236
B56: Male 75-79 | C56: 76.9077 | D56: 86.3577 | E56: male | F56: ALL | H56: =SUM(H94,H132,H170,H208,H246) -> 82515 | I56: 0 | J56: 5452 | K56: 3200.471533 | L56: 3198.401966 | M56: 27043.98446 | N56: 27026.49662 | O56: 47629.86304 | P56: 47611.14276 | Q56: 0 | R56: 0 | AA56: =SUM(AA94,AA132,AA170,AA208,AA246) -> 79383208.6 | AB56: 79329800.29 | AC56: 670788112.6 | AD56: 670336812.4 | AE56: 1170005852 | AF56: 1169526609 | AG56: 0 | AH56: 0 | AI56: 20000 | AJ56: 3969.16043 | AK56: 3966.490014 | AL56: 33539.40563 | AM56: 33516.84062 | AN56: 58500.29258 | AO56: 58476.33046 | AP56: 0 | AQ56: 0
B57: Male 80-84 | C57: 81.797089 | D57: 88.62709 | E57: male | F57: ALL | H57: =SUM(H95,H133,H171,H209,H247) -> 56201 | I57: 0 | J57: 3679 | K57: 3097.864425 | L57: 3095.930637 | M57: 18060.55269 | N57: 18049.27871 | O57: 38436.06303 | P57: 38421.07814 | Q57: 0 | R57: 0 | AA57: =SUM(AA95,AA133,AA171,AA209,AA247) -> 70991409.71 | AB57: 70945025.65 | AC57: 413879989.6 | AD57: 413609570.5 | AE57: 869840774.2 | AF57: 869484450.1 | AG57: 0 | AH57: 0 | AI57: 12500 | AJ57: 5679.312777 | AK57: 5675.602052 | AL57: 33110.39917 | AM57: 33088.76564 | AN57: 69587.26194 | AO57: 69558.756 | AP57: 0 | AQ57: 0
B58: Male 85-89 | C58: 86.630753 | D58: 91.42075 | E58: male | F58: ALL | H58: =SUM(H96,H134,H172,H210,H248) -> 28287 | I58: 0 | J58: 1822 | K58: 2191.932197 | L58: 2190.635874 | M58: 8307.416449 | N58: 8302.50339 | O58: 22836.6917 | P58: 22827.92192 | Q58: 0 | R58: 0 | AA58: =SUM(AA96,AA134,AA172,AA210,AA248) -> 60418636.16 | AB58: 60380785.08 | AC58: 228986449.8 | AD58: 228842994.3 | AE58: 619589003.4 | AF58: 619335232.2 | AG58: 0 | AH58: 0 | AI58: 7500 | AJ58: 8055.818155 | AK58: 8050.771344 | AL58: 30531.52664 | AM58: 30512.39924 | AN58: 82611.86713 | AO58: 82578.03095 | AP58: 0 | AQ58: 0
B59: Male 90+ | C59: 92.215477 | D59: 95.51548 | E59: male | F59: ALL | H59: =SUM(H97,H135,H173,H211,H249) -> 12017 | I59: 0 | J59: 774 | K59: 1382.036872 | L59: 1381.273015 | M59: 3178.688951 | N59: 3176.932078 | O59: 11815.7848 | P59: 11811.24186 | Q59: 0 | R59: 0 | AA59: =SUM(AA97,AA135,AA173,AA211,AA249) -> 59827349.05 | AB59: 59792444.61 | AC59: 137603082.3 | AD59: 137522802 | AE59: 503620030.1 | AF59: 503413666.1 | AG59: 0 | AH59: 0 | AI59: 5000 | AJ59: =AA59/$AI59 -> 11965.46981 | AK59: 11958.48892 | AL59: =AC59/$AI59 -> 27520.61646 | AM59: 27504.5604 | AN59: 100724.006 | AO59: 100682.7332 | AP59: 0 | AQ59: 0
B60: Female 0-4 | C60: 2.0384007 | D60: 81.468401 | E60: female | F60: 1 | G60: =HLOOKUP($E$2,'Prevalence Rates'!$C$3:$BC$249,'Prevalence Rates'!$BD60,FALSE) -> 0 | H60: =HLOOKUP($E$2,'Population 2016'!$C$3:$BC$249,'Population 2016'!BD60,FALSE) -> 0 | I60: 0 | J60: =H60*G60 -> 0 | K60: =IF(AND(OR($E$2="Orkney Health Board",$E$2="Orkney Islands Local Authority"),$F60=1),0,IF(AND(OR($E$2="Shetland Health Board",$E$2="Western Isles Health Board",$E$2="Shetland Islands Local Authority",$E$2="Eilean Siar Local Authority"),OR($F60=1,$F60=5)),0,new_ci(VALUE(LEFT(Options!$B$14,2)),$C60,$E60,$F60,2016,$I60,1,$H60,$G60*$H60,Options!$B$8))) ->  | L60: =IF(AND(OR($E$2="Orkney Health Board",$E$2="Orkney Islands Local Authority"),$F60=1),0,IF(AND(OR($E$2="Shetland Health Board",$E$2="Western Isles Health Board",$E$2="Shetland Islands Local Authority",$E$2="Eilean Siar Local Authority"),OR($F60=1,$F60=5)),0,new_ci(VALUE(LEFT(Options!$B$14,2)),$C60,$E60,$F60,2016,$I60+$J60,1,$H60,$G60*$H60,Options!$B$8))) ->  | M60: =IF(AND(OR($E$2="Orkney Health Board",$E$2="Orkney Islands Local Authority"),$F60=1),0,IF(AND(OR($E$2="Shetland Health Board",$E$2="Western Isles Health Board",$E$2="Shetland Islands Local Authority",$E$2="Eilean Siar Local Authority"),OR($F60=1,$F60=5)),0,new_yllv2(VALUE(LEFT(Options!$B$14,2)),$C60,$D60,$E60,$F60,2016,$I60,1,$H60,$G60*$H60,Options!$B$8))) ->  | N60: =IF(AND(OR($E$2="Orkney Health Board",$E$2="Orkney Islands Local Authority"),$F60=1),0,IF(AND(OR($E$2="Shetland Health Board",$E$2="Western Isles Health Board",$E$2="Shetland Islands Local Authority",$E$2="Eilean Siar Local Authority"),OR($F60=1,$F60=5)),0,new_yllv2(VALUE(LEFT(Options!$B$14,2)),$C60,$D60,$E60,$F60,2016,$I60+$J60,1,$H60,$G60*$H60,Options!$B$8))) ->  | O60: =IF(AND(OR($E$2="Orkney Health Board",$E$2="Orkney Islands Local Authority"),$F60=1),0,IF(AND(OR($E$2="Shetland Health Board",$E$2="Western Isles Health Board",$E$2="Shetland Islands Local Authority",$E$2="Eilean Siar Local Authority"),OR($F60=1,$F60=5)),0,hosp_count(VALUE(LEFT(Options!$B$14,2)),$C60,$E60,$F60,2016,$I60,1,$H60,$G60*$H60, Options!$B$8))) ->  | P60: =IF(AND(OR($E$2="Orkney Health Board",$E$2="Orkney Islands Local Authority"),$F60=1),0,IF(AND(OR($E$2="Shetland Health Board",$E$2="Western Isles Health Board",$E$2="Shetland Islands Local Authority",$E$2="Eilean Siar Local Authority"),OR($F60=1,$F60=5)),0,hosp_count(VALUE(LEFT(Options!$B$14,2)),$C60,$E60,$F60,2016,$I60+$J60,1,$H60,$G60*$H60, Options!$B$8))) ->  | Q60: =IF(AND(OR($E$2="Orkney Health Board",$E$2="Orkney Islands Local Authority"),$F60=1),0,IF(AND(OR($E$2="Shetland Health Board",$E$2="Western Isles Health Board",$E$2="Shetland Islands Local Authority",$E$2="Eilean Siar Local Authority"),OR($F60=1,$F60=5)),0,prem_mort(VALUE(LEFT(Options!$B$14,2)),$C60,$E60,$F60,2016,$I60,1,$H60,$G60*$H60,Options!$B$8))) ->  | R60: =IF(AND(OR($E$2="Orkney Health Board",$E$2="Orkney Islands Local Authority"),$F60=1),0,IF(AND(OR($E$2="Shetland Health Board",$E$2="Western Isles Health Board",$E$2="Shetland Islands Local Authority",$E$2="Eilean Siar Local Authority"),OR($F60=1,$F60=5)),0,prem_mort(VALUE(LEFT(Options!$B$14,2)),$C60,$E60,$F60,2016,$I60+$J60,1,$H60,$G60*$H60,Options!$B$8))) ->  | S60: =K60*100000/$H60 ->  | AA60: =S60*$AI60 ->  | AB60: =T60*$AI60 ->  | AC60: =U60*$AI60 ->  | AD60: =V60*$AI60 ->  | AE60: =W60*$AI60 ->  | AF60: =X60*$AI60 ->  | AG60: =Y60*$AI60 ->  | AH60: =Z60*$AI60 ->  | AI60: 5000
B61: Female 5-9 | C61: 6.9792795 | D61: 81.43928 | E61: female | F61: 1 | G61: =HLOOKUP($E$2,'Prevalence Rates'!$C$3:$BC$249,'Prevalence Rates'!$BD61,FALSE) -> 0 | H61: =HLOOKUP($E$2,'Population 2016'!$C$3:$BC$249,'Population 2016'!BD61,FALSE) -> 0 | I61: 0 | J61: =H61*G61 -> 0 | K61: =IF(AND(OR($E$2="Orkney Health Board",$E$2="Orkney Islands Local Authority"),$F61=1),0,IF(AND(OR($E$2="Shetland Health Board",$E$2="Western Isles Health Board",$E$2="Shetland Islands Local Authority",$E$2="Eilean Siar Local Authority"),OR($F61=1,$F61=5)),0,new_ci(VALUE(LEFT(Options!$B$14,2)),$C61,$E61,$F61,2016,$I61,1,$H61,$G61*$H61,Options!$B$8))) ->  | L61: =IF(AND(OR($E$2="Orkney Health Board",$E$2="Orkney Islands Local Authority"),$F61=1),0,IF(AND(OR($E$2="Shetland Health Board",$E$2="Western Isles Health Board",$E$2="Shetland Islands Local Authority",$E$2="Eilean Siar Local Authority"),OR($F61=1,$F61=5)),0,new_ci(VALUE(LEFT(Options!$B$14,2)),$C61,$E61,$F61,2016,$I61+$J61,1,$H61,$G61*$H61,Options!$B$8))) ->  | M61: =IF(AND(OR($E$2="Orkney Health Board",$E$2="Orkney Islands Local Authority"),$F61=1),0,IF(AND(OR($E$2="Shetland Health Board",$E$2="Western Isles Health Board",$E$2="Shetland Islands Local Authority",$E$2="Eilean Siar Local Authority"),OR($F61=1,$F61=5)),0,new_yllv2(VALUE(LEFT(Options!$B$14,2)),$C61,$D61,$E61,$F61,2016,$I61,1,$H61,$G61*$H61,Options!$B$8))) ->  | N61: =IF(AND(OR($E$2="Orkney Health Board",$E$2="Orkney Islands Local Authority"),$F61=1),0,IF(AND(OR($E$2="Shetland Health Board",$E$2="Western Isles Health Board",$E$2="Shetland Islands Local Authority",$E$2="Eilean Siar Local Authority"),OR($F61=1,$F61=5)),0,new_yllv2(VALUE(LEFT(Options!$B$14,2)),$C61,$D61,$E61,$F61,2016,$I61+$J61,1,$H61,$G61*$H61,Options!$B$8))) ->  | O61: =IF(AND(OR($E$2="Orkney Health Board",$E$2="Orkney Islands Local Authority"),$F61=1),0,IF(AND(OR($E$2="Shetland Health Board",$E$2="Western Isles Health Board",$E$2="Shetland Islands Local Authority",$E$2="Eilean Siar Local Authority"),OR($F61=1,$F61=5)),0,hosp_count(VALUE(LEFT(Options!$B$14,2)),$C61,$E61,$F61,2016,$I61,1,$H61,$G61*$H61, Options!$B$8))) ->  | P61: =IF(AND(OR($E$2="Orkney Health Board",$E$2="Orkney Islands Local Authority"),$F61=1),0,IF(AND(OR($E$2="Shetland Health Board",$E$2="Western Isles Health Board",$E$2="Shetland Islands Local Authority",$E$2="Eilean Siar Local Authority"),OR($F61=1,$F61=5)),0,hosp_count(VALUE(LEFT(Options!$B$14,2)),$C61,$E61,$F61,2016,$I61+$J61,1,$H61,$G61*$H61, Options!$B$8))) ->  | Q61: =IF(AND(OR($E$2="Orkney Health Board",$E$2="Orkney Islands Local Authority"),$F61=1),0,IF(AND(OR($E$2="Shetland Health Board",$E$2="Western Isles Health Board",$E$2="Shetland Islands Local Authority",$E$2="Eilean Siar Local Authority"),OR($F61=1,$F61=5)),0,prem_mort(VALUE(LEFT(Options!$B$14,2)),$C61,$E61,$F61,2016,$I61,1,$H61,$G61*$H61,Options!$B$8))) ->  | R61: =IF(AND(OR($E$2="Orkney Health Board",$E$2="Orkney Islands Local Authority"),$F61=1),0,IF(AND(OR($E$2="Shetland Health Board",$E$2="Western Isles Health Board",$E$2="Shetland Islands Local Authority",$E$2="Eilean Siar Local Authority"),OR($F61=1,$F61=5)),0,prem_mort(VALUE(LEFT(Options!$B$14,2)),$C61,$E61,$F61,2016,$I61+$J61,1,$H61,$G61*$H61,Options!$B$8))) ->  | S61: =K61*100000/$H61 ->  | T61: =L61*100000/$H61 ->  | U61: =M61*100000/$H61 ->  | V61: =N61*100000/$H61 ->  | W61: =O61*100000/$H61 ->  | X61: =P61*100000/$H61 ->  | Y61: =Q61*100000/$H61 ->  | Z61: =R61*100000/$H61 ->  | AA61: =S61*$AI61 ->  | AB61: =T61*$AI61 ->  | AC61: =U61*$AI61 ->  | AI61: 5500
B62: Female 10-15 | C62: 12.478312 | D62: 81.94831 | E62: female | F62: 1 | G62: =HLOOKUP($E$2,'Prevalence Rates'!$C$3:$BC$249,'Prevalence Rates'!$BD62,FALSE) -> 0 | H62: =HLOOKUP($E$2,'Population 2016'!$C$3:$BC$249,'Population 2016'!BD62,FALSE) -> 0 | I62: 0 | J62: =H62*G62 -> 0 | K62: =IF(AND(OR($E$2="Orkney Health Board",$E$2="Orkney Islands Local Authority"),$F62=1),0,IF(AND(OR($E$2="Shetland Health Board",$E$2="Western Isles Health Board",$E$2="Shetland Islands Local Authority",$E$2="Eilean Siar Local Authority"),OR($F62=1,$F62=5)),0,new_ci(VALUE(LEFT(Options!$B$14,2)),$C62,$E62,$F62,2016,$I62,1,$H62,$G62*$H62,Options!$B$8))) ->  | L62: =IF(AND(OR($E$2="Orkney Health Board",$E$2="Orkney Islands Local Authority"),$F62=1),0,IF(AND(OR($E$2="Shetland Health Board",$E$2="Western Isles Health Board",$E$2="Shetland Islands Local Authority",$E$2="Eilean Siar Local Authority"),OR($F62=1,$F62=5)),0,new_ci(VALUE(LEFT(Options!$B$14,2)),$C62,$E62,$F62,2016,$I62+$J62,1,$H62,$G62*$H62,Options!$B$8))) ->  | M62: =IF(AND(OR($E$2="Orkney Health Board",$E$2="Orkney Islands Local Authority"),$F62=1),0,IF(AND(OR($E$2="Shetland Health Board",$E$2="Western Isles Health Board",$E$2="Shetland Islands Local Authority",$E$2="Eilean Siar Local Authority"),OR($F62=1,$F62=5)),0,new_yllv2(VALUE(LEFT(Options!$B$14,2)),$C62,$D62,$E62,$F62,2016,$I62,1,$H62,$G62*$H62,Options!$B$8))) ->  | N62: =IF(AND(OR($E$2="Orkney Health Board",$E$2="Orkney Islands Local Authority"),$F62=1),0,IF(AND(OR($E$2="Shetland Health Board",$E$2="Western Isles Health Board",$E$2="Shetland Islands Local Authority",$E$2="Eilean Siar Local Authority"),OR($F62=1,$F62=5)),0,new_yllv2(VALUE(LEFT(Options!$B$14,2)),$C62,$D62,$E62,$F62,2016,$I62+$J62,1,$H62,$G62*$H62,Options!$B$8))) ->  | O62: =IF(AND(OR($E$2="Orkney Health Board",$E$2="Orkney Islands Local Authority"),$F62=1),0,IF(AND(OR($E$2="Shetland Health Board",$E$2="Western Isles Health Board",$E$2="Shetland Islands Local Authority",$E$2="Eilean Siar Local Authority"),OR($F62=1,$F62=5)),0,hosp_count(VALUE(LEFT(Options!$B$14,2)),$C62,$E62,$F62,2016,$I62,1,$H62,$G62*$H62, Options!$B$8))) ->  | P62: =IF(AND(OR($E$2="Orkney Health Board",$E$2="Orkney Islands Local Authority"),$F62=1),0,IF(AND(OR($E$2="Shetland Health Board",$E$2="Western Isles Health Board",$E$2="Shetland Islands Local Authority",$E$2="Eilean Siar Local Authority"),OR($F62=1,$F62=5)),0,hosp_count(VALUE(LEFT(Options!$B$14,2)),$C62,$E62,$F62,2016,$I62+$J62,1,$H62,$G62*$H62, Options!$B$8))) ->  | Q62: =IF(AND(OR($E$2="Orkney Health Board",$E$2="Orkney Islands Local Authority"),$F62=1),0,IF(AND(OR($E$2="Shetland Health Board",$E$2="Western Isles Health Board",$E$2="Shetland Islands Local Authority",$E$2="Eilean Siar Local Authority"),OR($F62=1,$F62=5)),0,prem_mort(VALUE(LEFT(Options!$B$14,2)),$C62,$E62,$F62,2016,$I62,1,$H62,$G62*$H62,Options!$B$8))) ->  | R62: =IF(AND(OR($E$2="Orkney Health Board",$E$2="Orkney Islands Local Authority"),$F62=1),0,IF(AND(OR($E$2="Shetland Health Board",$E$2="Western Isles Health Board",$E$2="Shetland Islands Local Authority",$E$2="Eilean Siar Local Authority"),OR($F62=1,$F62=5)),0,prem_mort(VALUE(LEFT(Options!$B$14,2)),$C62,$E62,$F62,2016,$I62+$J62,1,$H62,$G62*$H62,Options!$B$8))) ->  | AI62: 6600
A63: SIMD Q1 (most deprived) | B63: Female 16-19 | C63: 17.570053 | D63: 81.10005 | E63: female | F63: 1 | G63: =HLOOKUP($E$2,'Prevalence Rates'!$C$3:$BC$249,'Prevalence Rates'!$BD63,FALSE) -> 0.2768 | H63: =HLOOKUP($E$2,'Population 2016'!$C$3:$BC$249,'Population 2016'!BD63,FALSE) -> 24142 | I63: 0 | J63: =ROUND(0.807*(HLOOKUP($E$2,'Population at Risk'!$C$3:$BC$249,'Population at Risk'!$BD63,FALSE)),0) -> 5393 | K63: =IF(AND(OR($E$2="Orkney Health Board",$E$2="Orkney Islands Local Authority"),$F63=1),0,IF(AND(OR($E$2="Shetland Health Board",$E$2="Western Isles Health Board",$E$2="Shetland Islands Local Authority",$E$2="Eilean Siar Local Authority"),OR($F63=1,$F63=5)),0,new_ci(VALUE(LEFT(Options!$B$14,2)),$C63,$E63,$F63,2016,$I63,1,$H63,$G63*$H63,Options!$B$8))) -> 7.67760073 | L63: =IF(AND(OR($E$2="Orkney Health Board",$E$2="Orkney Islands Local Authority"),$F63=1),0,IF(AND(OR($E$2="Shetland Health Board",$E$2="Western Isles Health Board",$E$2="Shetland Islands Local Authority",$E$2="Eilean Siar Local Authority"),OR($F63=1,$F63=5)),0,new_ci(VALUE(LEFT(Options!$B$14,2)),$C63,$E63,$F63,2016,$I63+$J63,1,$H63,$G63*$H63,Options!$B$8))) -> 7.65841729 | M63: =IF(AND(OR($E$2="Orkney Health Board",$E$2="Orkney Islands Local Authority"),$F63=1),0,IF(AND(OR($E$2="Shetland Health Board",$E$2="Western Isles Health Board",$E$2="Shetland Islands Local Authority",$E$2="Eilean Siar Local Authority"),OR($F63=1,$F63=5)),0,new_yllv2(VALUE(LEFT(Options!$B$14,2)),$C63,$D63,$E63,$F63,2016,$I63,1,$H63,$G63*$H63,Options!$B$8))) -> 480.0803506 | N63: =IF(AND(OR($E$2="Orkney Health Board",$E$2="Orkney Islands Local Authority"),$F63=1),0,IF(AND(OR($E$2="Shetland Health Board",$E$2="Western Isles Health Board",$E$2="Shetland Islands Local Authority",$E$2="Eilean Siar Local Authority"),OR($F63=1,$F63=5)),0,new_yllv2(VALUE(LEFT(Options!$B$14,2)),$C63,$D63,$E63,$F63,2016,$I63+$J63,1,$H63,$G63*$H63,Options!$B$8))) -> 478.8808102 | O63: =IF(AND(OR($E$2="Orkney Health Board",$E$2="Orkney Islands Local Authority"),$F63=1),0,IF(AND(OR($E$2="Shetland Health Board",$E$2="Western Isles Health Board",$E$2="Shetland Islands Local Authority",$E$2="Eilean Siar Local Authority"),OR($F63=1,$F63=5)),0,hosp_count(VALUE(LEFT(Options!$B$14,2)),$C63,$E63,$F63,2016,$I63,1,$H63,$G63*$H63, Options!$B$8))) -> 3441.218007 | P63: =IF(AND(OR($E$2="Orkney Health Board",$E$2="Orkney Islands Local Authority"),$F63=1),0,IF(AND(OR($E$2="Shetland Health Board",$E$2="Western Isles Health Board",$E$2="Shetland Islands Local Authority",$E$2="Eilean Siar Local Authority"),OR($F63=1,$F63=5)),0,hosp_count(VALUE(LEFT(Options!$B$14,2)),$C63,$E63,$F63,2016,$I63+$J63,1,$H63,$G63*$H63, Options!$B$8))) -> 3435.969023 | Q63: =IF(AND(OR($E$2="Orkney Health Board",$E$2="Orkney Islands Local Authority"),$F63=1),0,IF(AND(OR($E$2="Shetland Health Board",$E$2="Western Isles Health Board",$E$2="Shetland Islands Local Authority",$E$2="Eilean Siar Local Authority"),OR($F63=1,$F63=5)),0,prem_mort(VALUE(LEFT(Options!$B$14,2)),$C63,$E63,$F63,2016,$I63,1,$H63,$G63*$H63,Options!$B$8))) -> 7.67760073 | R63: =IF(AND(OR($E$2="Orkney Health Board",$E$2="Orkney Islands Local Authority"),$F63=1),0,IF(AND(OR($E$2="Shetland Health Board",$E$2="Western Isles Health Board",$E$2="Shetland Islands Local Authority",$E$2="Eilean Siar Local Authority"),OR($F63=1,$F63=5)),0,prem_mort(VALUE(LEFT(Options!$B$14,2)),$C63,$E63,$F63,2016,$I63+$J63,1,$H63,$G63*$H63,Options!$B$8))) -> 7.65841729 | S63: 31.80184214 | T63: 31.72238129 | U63: 1988.569094 | V63: 1983.600407 | W63: 14254.07177 | X63: 14232.32965 | Y63: 31.80184214 | Z63: 31.72238129 | AA63: =S63*$AI63 -> 139928.1054 | AB63: 139578.4777 | AC63: 8749704.013 | AD63: 8727841.789 | AE63: 62717915.79 | AF63: 62622250.44 | AG63: 139928.1054 | AH63: =Z63*$AI63 -> 139578.4777 | AI63: 4400
B64: Female 20-24 | C64: 22.077057 | D64: 81.66706 | E64: female | F64: 1 | G64: =HLOOKUP($E$2,'Prevalence Rates'!$C$3:$BC$249,'Prevalence Rates'!$BD64,FALSE) -> 0.2768 | H64: =HLOOKUP($E$2,'Population 2016'!$C$3:$BC$249,'Population 2016'!BD64,FALSE) -> 37624 | I64: 0 | J64: =ROUND(0.807*(HLOOKUP($E$2,'Population at Risk'!$C$3:$BC$249,'Population at Risk'!$BD64,FALSE)),0) -> 8404 | K64: =IF(AND(OR($E$2="Orkney Health Board",$E$2="Orkney Islands Local Authority"),$F64=1),0,IF(AND(OR($E$2="Shetland Health Board",$E$2="Western Isles Health Board",$E$2="Shetland Islands Local Authority",$E$2="Eilean Siar Local Authority"),OR($F64=1,$F64=5)),0,new_ci(VALUE(LEFT(Options!$B$14,2)),$C64,$E64,$F64,2016,$I64,1,$H64,$G64*$H64,Options!$B$8))) -> 17.55353843 | L64: =IF(AND(OR($E$2="Orkney Health Board",$E$2="Orkney Islands Local Authority"),$F64=1),0,IF(AND(OR($E$2="Shetland Health Board",$E$2="Western Isles Health Board",$E$2="Shetland Islands Local Authority",$E$2="Eilean Siar Local Authority"),OR($F64=1,$F64=5)),0,new_ci(VALUE(LEFT(Options!$B$14,2)),$C64,$E64,$F64,2016,$I64+$J64,1,$H64,$G64*$H64,Options!$B$8))) -> 17.50968972 | M64: =IF(AND(OR($E$2="Orkney Health Board",$E$2="Orkney Islands Local Authority"),$F64=1),0,IF(AND(OR($E$2="Shetland Health Board",$E$2="Western Isles Health Board",$E$2="Shetland Islands Local Authority",$E$2="Eilean Siar Local Authority"),OR($F64=1,$F64=5)),0,new_yllv2(VALUE(LEFT(Options!$B$14,2)),$C64,$D64,$E64,$F64,2016,$I64,1,$H64,$G64*$H64,Options!$B$8))) -> 1028.461869 | N64: =IF(AND(OR($E$2="Orkney Health Board",$E$2="Orkney Islands Local Authority"),$F64=1),0,IF(AND(OR($E$2="Shetland Health Board",$E$2="Western Isles Health Board",$E$2="Shetland Islands Local Authority",$E$2="Eilean Siar Local Authority"),OR($F64=1,$F64=5)),0,new_yllv2(VALUE(LEFT(Options!$B$14,2)),$C64,$D64,$E64,$F64,2016,$I64+$J64,1,$H64,$G64*$H64,Options!$B$8))) -> 1025.892773 | O64: =IF(AND(OR($E$2="Orkney Health Board",$E$2="Orkney Islands Local Authority"),$F64=1),0,IF(AND(OR($E$2="Shetland Health Board",$E$2="Western Isles Health Board",$E$2="Shetland Islands Local Authority",$E$2="Eilean Siar Local Authority"),OR($F64=1,$F64=5)),0,hosp_count(VALUE(LEFT(Options!$B$14,2)),$C64,$E64,$F64,2016,$I64,1,$H64,$G64*$H64, Options!$B$8))) -> 6006.741035 | P64: =IF(AND(OR($E$2="Orkney Health Board",$E$2="Orkney Islands Local Authority"),$F64=1),0,IF(AND(OR($E$2="Shetland Health Board",$E$2="Western Isles Health Board",$E$2="Shetland Islands Local Authority",$E$2="Eilean Siar Local Authority"),OR($F64=1,$F64=5)),0,hosp_count(VALUE(LEFT(Options!$B$14,2)),$C64,$E64,$F64,2016,$I64+$J64,1,$H64,$G64*$H64, Options!$B$8))) -> 5997.579551 | Q64: =IF(AND(OR($E$2="Orkney Health Board",$E$2="Orkney Islands Local Authority"),$F64=1),0,IF(AND(OR($E$2="Shetland Health Board",$E$2="Western Isles Health Board",$E$2="Shetland Islands Local Authority",$E$2="Eilean Siar Local Authority"),OR($F64=1,$F64=5)),0,prem_mort(VALUE(LEFT(Options!$B$14,2)),$C64,$E64,$F64,2016,$I64,1,$H64,$G64*$H64,Options!$B$8))) -> 17.55353843 | R64: =IF(AND(OR($E$2="Orkney Health Board",$E$2="Orkney Islands Local Authority"),$F64=1),0,IF(AND(OR($E$2="Shetland Health Board",$E$2="Western Isles Health Board",$E$2="Shetland Islands Local Authority",$E$2="Eilean Siar Local Authority"),OR($F64=1,$F64=5)),0,prem_mort(VALUE(LEFT(Options!$B$14,2)),$C64,$E64,$F64,2016,$I64+$J64,1,$H64,$G64*$H64,Options!$B$8))) -> 17.50968972 | S64: 46.65516275 | T64: 46.53861823 | U64: 2733.526126 | V64: 2726.697782 | W64: 15965.18455 | X64: 15940.83444 | Y64: 46.65516275 | Z64: 46.53861823 | AA64: 279930.9765 | AB64: 279231.7094 | AC64: 16401156.75 | AD64: 16360186.69 | AE64: 95791107.3 | AF64: 95645006.67 | AG64: 279930.9765 | AH64: 279231.7094 | AI64: 6000
B65: Female 25-29 | C65: 26.975187 | D65: 81.64519 | E65: female | F65: 1 | G65: =HLOOKUP($E$2,'Prevalence Rates'!$C$3:$BC$249,'Prevalence Rates'!$BD65,FALSE) -> 0.3587 | H65: =HLOOKUP($E$2,'Population 2016'!$C$3:$BC$249,'Population 2016'!BD65,FALSE) -> 45129 | I65: 0 | J65: =ROUND(0.807*(HLOOKUP($E$2,'Population at Risk'!$C$3:$BC$249,'Population at Risk'!$BD65,FALSE)),0) -> 13064 | K65: =IF(AND(OR($E$2="Orkney Health Board",$E$2="Orkney Islands Local Authority"),$F65=1),0,IF(AND(OR($E$2="Shetland Health Board",$E$2="Western Isles Health Board",$E$2="Shetland Islands Local Authority",$E$2="Eilean Siar Local Authority"),OR($F65=1,$F65=5)),0,new_ci(VALUE(LEFT(Options!$B$14,2)),$C65,$E65,$F65,2016,$I65,1,$H65,$G65*$H65,Options!$B$8))) -> 31.93216374 | L65: =IF(AND(OR($E$2="Orkney Health Board",$E$2="Orkney Islands Local Authority"),$F65=1),0,IF(AND(OR($E$2="Shetland Health Board",$E$2="Western Isles Health Board",$E$2="Shetland Islands Local Authority",$E$2="Eilean Siar Local Authority"),OR($F65=1,$F65=5)),0,new_ci(VALUE(LEFT(Options!$B$14,2)),$C65,$E65,$F65,2016,$I65+$J65,1,$H65,$G65*$H65,Options!$B$8))) -> 31.83406616 | M65: =IF(AND(OR($E$2="Orkney Health Board",$E$2="Orkney Islands Local Authority"),$F65=1),0,IF(AND(OR($E$2="Shetland Health Board",$E$2="Western Isles Health Board",$E$2="Shetland Islands Local Authority",$E$2="Eilean Siar Local Authority"),OR($F65=1,$F65=5)),0,new_yllv2(VALUE(LEFT(Options!$B$14,2)),$C65,$D65,$E65,$F65,2016,$I65,1,$H65,$G65*$H65,Options!$B$8))) -> 1713.799324 | N65: =IF(AND(OR($E$2="Orkney Health Board",$E$2="Orkney Islands Local Authority"),$F65=1),0,IF(AND(OR($E$2="Shetland Health Board",$E$2="Western Isles Health Board",$E$2="Shetland Islands Local Authority",$E$2="Eilean Siar Local Authority"),OR($F65=1,$F65=5)),0,new_yllv2(VALUE(LEFT(Options!$B$14,2)),$C65,$D65,$E65,$F65,2016,$I65+$J65,1,$H65,$G65*$H65,Options!$B$8))) -> 1708.534426 | O65: =IF(AND(OR($E$2="Orkney Health Board",$E$2="Orkney Islands Local Authority"),$F65=1),0,IF(AND(OR($E$2="Shetland Health Board",$E$2="Western Isles Health Board",$E$2="Shetland Islands Local Authority",$E$2="Eilean Siar Local Authority"),OR($F65=1,$F65=5)),0,hosp_count(VALUE(LEFT(Options!$B$14,2)),$C65,$E65,$F65,2016,$I65,1,$H65,$G65*$H65, Options!$B$8))) -> 8149.619987 | P65: =IF(AND(OR($E$2="Orkney Health Board",$E$2="Orkney Islands Local Authority"),$F65=1),0,IF(AND(OR($E$2="Shetland Health Board",$E$2="Western Isles Health Board",$E$2="Shetland Islands Local Authority",$E$2="Eilean Siar Local Authority"),OR($F65=1,$F65=5)),0,hosp_count(VALUE(LEFT(Options!$B$14,2)),$C65,$E65,$F65,2016,$I65+$J65,1,$H65,$G65*$H65, Options!$B$8))) -> 8134.117224 | Q65: =IF(AND(OR($E$2="Orkney Health Board",$E$2="Orkney Islands Local Authority"),$F65=1),0,IF(AND(OR($E$2="Shetland Health Board",$E$2="Western Isles Health Board",$E$2="Shetland Islands Local Authority",$E$2="Eilean Siar Local Authority"),OR($F65=1,$F65=5)),0,prem_mort(VALUE(LEFT(Options!$B$14,2)),$C65,$E65,$F65,2016,$I65,1,$H65,$G65*$H65,Options!$B$8))) -> 31.93216374 | R65: =IF(AND(OR($E$2="Orkney Health Board",$E$2="Orkney Islands Local Authority"),$F65=1),0,IF(AND(OR($E$2="Shetland Health Board",$E$2="Western Isles Health Board",$E$2="Shetland Islands Local Authority",$E$2="Eilean Siar Local Authority"),OR($F65=1,$F65=5)),0,prem_mort(VALUE(LEFT(Options!$B$14,2)),$C65,$E65,$F65,2016,$I65+$J65,1,$H65,$G65*$H65,Options!$B$8))) -> 31.83406616 | S65: 70.75752562 | T65: 70.54015414 | U65: 3797.556612 | V65: 3785.890284 | W65: 18058.49894 | X65: 18024.14683 | Y65: 70.75752562 | Z65: 70.54015414 | AA65: 424545.1537 | AB65: 423240.9248 | AC65: 22785339.67 | AD65: 22715341.71 | AE65: 108350993.6 | AF65: 108144881 | AG65: 424545.1537 | AH65: 423240.9248 | AI65: 6000
B66: Female 30-34 | C66: 31.999905 | D66: 81.7999 | E66: female | F66: 1 | G66: =HLOOKUP($E$2,'Prevalence Rates'!$C$3:$BC$249,'Prevalence Rates'!$BD66,FALSE) -> 0.3587 | H66: =HLOOKUP($E$2,'Population 2016'!$C$3:$BC$249,'Population 2016'!BD66,FALSE) -> 41240 | I66: 0 | J66: =ROUND(0.807*(HLOOKUP($E$2,'Population at Risk'!$C$3:$BC$249,'Population at Risk'!$BD66,FALSE)),0) -> 11938 | K66: =IF(AND(OR($E$2="Orkney Health Board",$E$2="Orkney Islands Local Authority"),$F66=1),0,IF(AND(OR($E$2="Shetland Health Board",$E$2="Western Isles Health Board",$E$2="Shetland Islands Local Authority",$E$2="Eilean Siar Local Authority"),OR($F66=1,$F66=5)),0,new_ci(VALUE(LEFT(Options!$B$14,2)),$C66,$E66,$F66,2016,$I66,1,$H66,$G66*$H66,Options!$B$8))) -> 44.73096207 | L66: =IF(AND(OR($E$2="Orkney Health Board",$E$2="Orkney Islands Local Authority"),$F66=1),0,IF(AND(OR($E$2="Shetland Health Board",$E$2="Western Isles Health Board",$E$2="Shetland Islands Local Authority",$E$2="Eilean Siar Local Authority"),OR($F66=1,$F66=5)),0,new_ci(VALUE(LEFT(Options!$B$14,2)),$C66,$E66,$F66,2016,$I66+$J66,1,$H66,$G66*$H66,Options!$B$8))) -> 44.59359031 | M66: =IF(AND(OR($E$2="Orkney Health Board",$E$2="Orkney Islands Local Authority"),$F66=1),0,IF(AND(OR($E$2="Shetland Health Board",$E$2="Western Isles Health Board",$E$2="Shetland Islands Local Authority",$E$2="Eilean Siar Local Authority"),OR($F66=1,$F66=5)),0,new_yllv2(VALUE(LEFT(Options!$B$14,2)),$C66,$D66,$E66,$F66,2016,$I66,1,$H66,$G66*$H66,Options!$B$8))) -> 2182.870725 | N66: =IF(AND(OR($E$2="Orkney Health Board",$E$2="Orkney Islands Local Authority"),$F66=1),0,IF(AND(OR($E$2="Shetland Health Board",$E$2="Western Isles Health Board",$E$2="Shetland Islands Local Authority",$E$2="Eilean Siar Local Authority"),OR($F66=1,$F66=5)),0,new_yllv2(VALUE(LEFT(Options!$B$14,2)),$C66,$D66,$E66,$F66,2016,$I66+$J66,1,$H66,$G66*$H66,Options!$B$8))) -> 2176.166984 | O66: =IF(AND(OR($E$2="Orkney Health Board",$E$2="Orkney Islands Local Authority"),$F66=1),0,IF(AND(OR($E$2="Shetland Health Board",$E$2="Western Isles Health Board",$E$2="Shetland Islands Local Authority",$E$2="Eilean Siar Local Authority"),OR($F66=1,$F66=5)),0,hosp_count(VALUE(LEFT(Options!$B$14,2)),$C66,$E66,$F66,2016,$I66,1,$H66,$G66*$H66, Options!$B$8))) -> 8450.664705 | P66: =IF(AND(OR($E$2="Orkney Health Board",$E$2="Orkney Islands Local Authority"),$F66=1),0,IF(AND(OR($E$2="Shetland Health Board",$E$2="Western Isles Health Board",$E$2="Shetland Islands Local Authority",$E$2="Eilean Siar Local Authority"),OR($F66=1,$F66=5)),0,hosp_count(VALUE(LEFT(Options!$B$14,2)),$C66,$E66,$F66,2016,$I66+$J66,1,$H66,$G66*$H66, Options!$B$8))) -> 8434.589555 | Q66: =IF(AND(OR($E$2="Orkney Health Board",$E$2="Orkney Islands Local Authority"),$F66=1),0,IF(AND(OR($E$2="Shetland Health Board",$E$2="Western Isles Health Board",$E$2="Shetland Islands Local Authority",$E$2="Eilean Siar Local Authority"),OR($F66=1,$F66=5)),0,prem_mort(VALUE(LEFT(Options!$B$14,2)),$C66,$E66,$F66,2016,$I66,1,$H66,$G66*$H66,Options!$B$8))) -> 44.73096207 | R66: =IF(AND(OR($E$2="Orkney Health Board",$E$2="Orkney Islands Local Authority"),$F66=1),0,IF(AND(OR($E$2="Shetland Health Board",$E$2="Western Isles Health Board",$E$2="Shetland Islands Local Authority",$E$2="Eilean Siar Local Authority"),OR($F66=1,$F66=5)),0,prem_mort(VALUE(LEFT(Options!$B$14,2)),$C66,$E66,$F66,2016,$I66+$J66,1,$H66,$G66*$H66,Options!$B$8))) -> 44.59359031 | S66: 108.4649905 | T66: 108.1318873 | U66: 5293.090993 | V66: 5276.835558 | W66: 20491.42751 | X66: 20452.448 | Y66: 108.4649905 | Z66: 108.1318873 | AA66: 705022.4381 | AB66: 702857.2673 | AC66: 34405091.45 | AD66: 34299431.13 | AE66: 133194278.8 | AF66: 132940912 | AG66: 705022.4381 | AH66: 702857.2673 | AI66: 6500
B67: Female 35-39 | C67: 36.918118 | D67: 81.89812 | E67: female | F67: 1 | G67: =HLOOKUP($E$2,'Prevalence Rates'!$C$3:$BC$249,'Prevalence Rates'!$BD67,FALSE) -> 0.3929 | H67: =HLOOKUP($E$2,'Population 2016'!$C$3:$BC$249,'Population 2016'!BD67,FALSE) -> 35038 | I67: 0 | J67: =ROUND(0.807*(HLOOKUP($E$2,'Population at Risk'!$C$3:$BC$249,'Population at Risk'!$BD67,FALSE)),0) -> 11110 | K67: =IF(AND(OR($E$2="Orkney Health Board",$E$2="Orkney Islands Local Authority"),$F67=1),0,IF(AND(OR($E$2="Shetland Health Board",$E$2="Western Isles Health Board",$E$2="Shetland Islands Local Authority",$E$2="Eilean Siar Local Authority"),OR($F67=1,$F67=5)),0,new_ci(VALUE(LEFT(Options!$B$14,2)),$C67,$E67,$F67,2016,$I67,1,$H67,$G67*$H67,Options!$B$8))) -> 57.72552212 | L67: =IF(AND(OR($E$2="Orkney Health Board",$E$2="Orkney Islands Local Authority"),$F67=1),0,IF(AND(OR($E$2="Shetland Health Board",$E$2="Western Isles Health Board",$E$2="Shetland Islands Local Authority",$E$2="Eilean Siar Local Authority"),OR($F67=1,$F67=5)),0,new_ci(VALUE(LEFT(Options!$B$14,2)),$C67,$E67,$F67,2016,$I67+$J67,1,$H67,$G67*$H67,Options!$B$8))) -> 57.53546113 | M67: =IF(AND(OR($E$2="Orkney Health Board",$E$2="Orkney Islands Local Authority"),$F67=1),0,IF(AND(OR($E$2="Shetland Health Board",$E$2="Western Isles Health Board",$E$2="Shetland Islands Local Authority",$E$2="Eilean Siar Local Authority"),OR($F67=1,$F67=5)),0,new_yllv2(VALUE(LEFT(Options!$B$14,2)),$C67,$D67,$E67,$F67,2016,$I67,1,$H67,$G67*$H67,Options!$B$8))) -> 2538.768578 | N67: =IF(AND(OR($E$2="Orkney Health Board",$E$2="Orkney Islands Local Authority"),$F67=1),0,IF(AND(OR($E$2="Shetland Health Board",$E$2="Western Isles Health Board",$E$2="Shetland Islands Local Authority",$E$2="Eilean Siar Local Authority"),OR($F67=1,$F67=5)),0,new_yllv2(VALUE(LEFT(Options!$B$14,2)),$C67,$D67,$E67,$F67,2016,$I67+$J67,1,$H67,$G67*$H67,Options!$B$8))) -> 2530.409696 | O67: =IF(AND(OR($E$2="Orkney Health Board",$E$2="Orkney Islands Local Authority"),$F67=1),0,IF(AND(OR($E$2="Shetland Health Board",$E$2="Western Isles Health Board",$E$2="Shetland Islands Local Authority",$E$2="Eilean Siar Local Authority"),OR($F67=1,$F67=5)),0,hosp_count(VALUE(LEFT(Options!$B$14,2)),$C67,$E67,$F67,2016,$I67,1,$H67,$G67*$H67, Options!$B$8))) -> 8125.285242 | P67: =IF(AND(OR($E$2="Orkney Health Board",$E$2="Orkney Islands Local Authority"),$F67=1),0,IF(AND(OR($E$2="Shetland Health Board",$E$2="Western Isles Health Board",$E$2="Shetland Islands Local Authority",$E$2="Eilean Siar Local Authority"),OR($F67=1,$F67=5)),0,hosp_count(VALUE(LEFT(Options!$B$14,2)),$C67,$E67,$F67,2016,$I67+$J67,1,$H67,$G67*$H67, Options!$B$8))) -> 8108.616813 | Q67: =IF(AND(OR($E$2="Orkney Health Board",$E$2="Orkney Islands Local Authority"),$F67=1),0,IF(AND(OR($E$2="Shetland Health Board",$E$2="Western Isles Health Board",$E$2="Shetland Islands Local Authority",$E$2="Eilean Siar Local Authority"),OR($F67=1,$F67=5)),0,prem_mort(VALUE(LEFT(Options!$B$14,2)),$C67,$E67,$F67,2016,$I67,1,$H67,$G67*$H67,Options!$B$8))) -> 57.72552212 | R67: =IF(AND(OR($E$2="Orkney Health Board",$E$2="Orkney Islands Local Authority"),$F67=1),0,IF(AND(OR($E$2="Shetland Health Board",$E$2="Western Isles Health Board",$E$2="Shetland Islands Local Authority",$E$2="Eilean Siar Local Authority"),OR($F67=1,$F67=5)),0,prem_mort(VALUE(LEFT(Options!$B$14,2)),$C67,$E67,$F67,2016,$I67+$J67,1,$H67,$G67*$H67,Options!$B$8))) -> 57.53546113 | S67: 164.7511905 | T67: 164.208748 | U67: 7245.757687 | V67: 7221.901066 | W67: 23189.92306 | X67: 23142.35063 | Y67: 164.7511905 | Z67: 164.208748 | AA67: 1153258.333 | AB67: 1149461.236 | AC67: 50720303.81 | AD67: 50553307.46 | AE67: 162329461.4 | AF67: 161996454.4 | AG67: 1153258.333 | AH67: 1149461.236 | AI67: 7000
B68: Female 40-44 | C68: 42.077438 | D68: 82.30744 | E68: female | F68: 1 | G68: =HLOOKUP($E$2,'Prevalence Rates'!$C$3:$BC$249,'Prevalence Rates'!$BD68,FALSE) -> 0.3929 | H68: =HLOOKUP($E$2,'Population 2016'!$C$3:$BC$249,'Population 2016'!BD68,FALSE) -> 33663 | I68: 0 | J68: =ROUND(0.807*(HLOOKUP($E$2,'Population at Risk'!$C$3:$BC$249,'Population at Risk'!$BD68,FALSE)),0) -> 10674 | K68: =IF(AND(OR($E$2="Orkney Health Board",$E$2="Orkney Islands Local Authority"),$F68=1),0,IF(AND(OR($E$2="Shetland Health Board",$E$2="Western Isles Health Board",$E$2="Shetland Islands Local Authority",$E$2="Eilean Siar Local Authority"),OR($F68=1,$F68=5)),0,new_ci(VALUE(LEFT(Options!$B$14,2)),$C68,$E68,$F68,2016,$I68,1,$H68,$G68*$H68,Options!$B$8))) -> 85.96961749 | L68: =IF(AND(OR($E$2="Orkney Health Board",$E$2="Orkney Islands Local Authority"),$F68=1),0,IF(AND(OR($E$2="Shetland Health Board",$E$2="Western Isles Health Board",$E$2="Shetland Islands Local Authority",$E$2="Eilean Siar Local Authority"),OR($F68=1,$F68=5)),0,new_ci(VALUE(LEFT(Options!$B$14,2)),$C68,$E68,$F68,2016,$I68+$J68,1,$H68,$G68*$H68,Options!$B$8))) -> 85.68677357 | M68: =IF(AND(OR($E$2="Orkney Health Board",$E$2="Orkney Islands Local Authority"),$F68=1),0,IF(AND(OR($E$2="Shetland Health Board",$E$2="Western Isles Health Board",$E$2="Shetland Islands Local Authority",$E$2="Eilean Siar Local Authority"),OR($F68=1,$F68=5)),0,new_yllv2(VALUE(LEFT(Options!$B$14,2)),$C68,$D68,$E68,$F68,2016,$I68,1,$H68,$G68*$H68,Options!$B$8))) -> 3372.588266 | N68: =IF(AND(OR($E$2="Orkney Health Board",$E$2="Orkney Islands Local Authority"),$F68=1),0,IF(AND(OR($E$2="Shetland Health Board",$E$2="Western Isles Health Board",$E$2="Shetland Islands Local Authority",$E$2="Eilean Siar Local Authority"),OR($F68=1,$F68=5)),0,new_yllv2(VALUE(LEFT(Options!$B$14,2)),$C68,$D68,$E68,$F68,2016,$I68+$J68,1,$H68,$G68*$H68,Options!$B$8))) -> 3361.492298 | O68: =IF(AND(OR($E$2="Orkney Health Board",$E$2="Orkney Islands Local Authority"),$F68=1),0,IF(AND(OR($E$2="Shetland Health Board",$E$2="Western Isles Health Board",$E$2="Shetland Islands Local Authority",$E$2="Eilean Siar Local Authority"),OR($F68=1,$F68=5)),0,hosp_count(VALUE(LEFT(Options!$B$14,2)),$C68,$E68,$F68,2016,$I68,1,$H68,$G68*$H68, Options!$B$8))) -> 8888.185251 | P68: =IF(AND(OR($E$2="Orkney Health Board",$E$2="Orkney Islands Local Authority"),$F68=1),0,IF(AND(OR($E$2="Shetland Health Board",$E$2="Western Isles Health Board",$E$2="Shetland Islands Local Authority",$E$2="Eilean Siar Local Authority"),OR($F68=1,$F68=5)),0,hosp_count(VALUE(LEFT(Options!$B$14,2)),$C68,$E68,$F68,2016,$I68+$J68,1,$H68,$G68*$H68, Options!$B$8))) -> 8869.951803 | Q68: =IF(AND(OR($E$2="Orkney Health Board",$E$2="Orkney Islands Local Authority"),$F68=1),0,IF(AND(OR($E$2="Shetland Health Board",$E$2="Western Isles Health Board",$E$2="Shetland Islands Local Authority",$E$2="Eilean Siar Local Authority"),OR($F68=1,$F68=5)),0,prem_mort(VALUE(LEFT(Options!$B$14,2)),$C68,$E68,$F68,2016,$I68,1,$H68,$G68*$H68,Options!$B$8))) -> 85.96961749 | R68: =IF(AND(OR($E$2="Orkney Health Board",$E$2="Orkney Islands Local Authority"),$F68=1),0,IF(AND(OR($E$2="Shetland Health Board",$E$2="Western Isles Health Board",$E$2="Shetland Islands Local Authority",$E$2="Eilean Siar Local Authority"),OR($F68=1,$F68=5)),0,prem_mort(VALUE(LEFT(Options!$B$14,2)),$C68,$E68,$F68,2016,$I68+$J68,1,$H68,$G68*$H68,Options!$B$8))) -> 85.68677357 | S68: 255.3831135 | T68: 254.5428915 | U68: 10018.68005 | V68: 9985.718143 | W68: 26403.42587 | X68: 26349.26122 | Y68: 255.3831135 | Z68: 254.5428915 | AA68: 1787681.794 | AB68: 1781800.241 | AC68: 70130760.37 | AD68: 69900027 | AE68: 184823981.1 | AF68: 184444828.5 | AG68: 1787681.794 | AH68: 1781800.241 | AI68: 7000
B69: Female 45-49 | C69: 47.025772 | D69: 82.58577 | E69: female | F69: 1 | G69: =HLOOKUP($E$2,'Prevalence Rates'!$C$3:$BC$249,'Prevalence Rates'!$BD69,FALSE) -> 0.4315 | H69: =HLOOKUP($E$2,'Population 2016'!$C$3:$BC$249,'Population 2016'!BD69,FALSE) -> 39197 | I69: 0 | J69: =ROUND(0.807*(HLOOKUP($E$2,'Population at Risk'!$C$3:$BC$249,'Population at Risk'!$BD69,FALSE)),0) -> 13649 | K69: =IF(AND(OR($E$2="Orkney Health Board",$E$2="Orkney Islands Local Authority"),$F69=1),0,IF(AND(OR($E$2="Shetland Health Board",$E$2="Western Isles Health Board",$E$2="Shetland Islands Local Authority",$E$2="Eilean Siar Local Authority"),OR($F69=1,$F69=5)),0,new_ci(VALUE(LEFT(Options!$B$14,2)),$C69,$E69,$F69,2016,$I69,1,$H69,$G69*$H69,Options!$B$8))) -> 152.375444 | L69: =IF(AND(OR($E$2="Orkney Health Board",$E$2="Orkney Islands Local Authority"),$F69=1),0,IF(AND(OR($E$2="Shetland Health Board",$E$2="Western Isles Health Board",$E$2="Shetland Islands Local Authority",$E$2="Eilean Siar Local Authority"),OR($F69=1,$F69=5)),0,new_ci(VALUE(LEFT(Options!$B$14,2)),$C69,$E69,$F69,2016,$I69+$J69,1,$H69,$G69*$H69,Options!$B$8))) -> 151.8380679 | M69: =IF(AND(OR($E$2="Orkney Health Board",$E$2="Orkney Islands Local Authority"),$F69=1),0,IF(AND(OR($E$2="Shetland Health Board",$E$2="Western Isles Health Board",$E$2="Shetland Islands Local Authority",$E$2="Eilean Siar Local Authority"),OR($F69=1,$F69=5)),0,new_yllv2(VALUE(LEFT(Options!$B$14,2)),$C69,$D69,$E69,$F69,2016,$I69,1,$H69,$G69*$H69,Options!$B$8))) -> 5266.09504 | N69: =IF(AND(OR($E$2="Orkney Health Board",$E$2="Orkney Islands Local Authority"),$F69=1),0,IF(AND(OR($E$2="Shetland Health Board",$E$2="Western Isles Health Board",$E$2="Shetland Islands Local Authority",$E$2="Eilean Siar Local Authority"),OR($F69=1,$F69=5)),0,new_yllv2(VALUE(LEFT(Options!$B$14,2)),$C69,$D69,$E69,$F69,2016,$I69+$J69,1,$H69,$G69*$H69,Options!$B$8))) -> 5247.523322 | O69: =IF(AND(OR($E$2="Orkney Health Board",$E$2="Orkney Islands Local Authority"),$F69=1),0,IF(AND(OR($E$2="Shetland Health Board",$E$2="Western Isles Health Board",$E$2="Shetland Islands Local Authority",$E$2="Eilean Siar Local Authority"),OR($F69=1,$F69=5)),0,hosp_count(VALUE(LEFT(Options!$B$14,2)),$C69,$E69,$F69,2016,$I69,1,$H69,$G69*$H69, Options!$B$8))) -> 11721.12367 | P69: =IF(AND(OR($E$2="Orkney Health Board",$E$2="Orkney Islands Local Authority"),$F69=1),0,IF(AND(OR($E$2="Shetland Health Board",$E$2="Western Isles Health Board",$E$2="Shetland Islands Local Authority",$E$2="Eilean Siar Local Authority"),OR($F69=1,$F69=5)),0,hosp_count(VALUE(LEFT(Options!$B$14,2)),$C69,$E69,$F69,2016,$I69+$J69,1,$H69,$G69*$H69, Options!$B$8))) -> 11695.17099 | Q69: =IF(AND(OR($E$2="Orkney Health Board",$E$2="Orkney Islands Local Authority"),$F69=1),0,IF(AND(OR($E$2="Shetland Health Board",$E$2="Western Isles Health Board",$E$2="Shetland Islands Local Authority",$E$2="Eilean Siar Local Authority"),OR($F69=1,$F69=5)),0,prem_mort(VALUE(LEFT(Options!$B$14,2)),$C69,$E69,$F69,2016,$I69,1,$H69,$G69*$H69,Options!$B$8))) -> 152.375444 | R69: =IF(AND(OR($E$2="Orkney Health Board",$E$2="Orkney Islands Local Authority"),$F69=1),0,IF(AND(OR($E$2="Shetland Health Board",$E$2="Western Isles Health Board",$E$2="Shetland Islands Local Authority",$E$2="Eilean Siar Local Authority"),OR($F69=1,$F69=5)),0,prem_mort(VALUE(LEFT(Options!$B$14,2)),$C69,$E69,$F69,2016,$I69+$J69,1,$H69,$G69*$H69,Options!$B$8))) -> 151.8380679 | S69: 388.7426181 | T69: 387.3716556 | U69: 13434.9441 | V69: 13387.56364 | W69: 29903.1142 | X69: 29836.90331 | Y69: 388.7426181 | Z69: 387.3716556 | AA69: 2721198.327 | AB69: 2711601.59 | AC69: 94044608.72 | AD69: 93712945.51 | AE69: 209321799.4 | AF69: 208858323.2 | AG69: 2721198.327 | AH69: 2711601.59 | AI69: 7000
B70: Female 50-54 | C70: 51.990826 | D70: 82.98083 | E70: female | F70: 1 | G70: =HLOOKUP($E$2,'Prevalence Rates'!$C$3:$BC$249,'Prevalence Rates'!$BD70,FALSE) -> 0.4315 | H70: =HLOOKUP($E$2,'Population 2016'!$C$3:$BC$249,'Population 2016'!BD70,FALSE) -> 39704 | I70: 0 | J70: =ROUND(0.807*(HLOOKUP($E$2,'Population at Risk'!$C$3:$BC$249,'Population at Risk'!$BD70,FALSE)),0) -> 13826 | K70: =IF(AND(OR($E$2="Orkney Health Board",$E$2="Orkney Islands Local Authority"),$F70=1),0,IF(AND(OR($E$2="Shetland Health Board",$E$2="Western Isles Health Board",$E$2="Shetland Islands Local Authority",$E$2="Eilean Siar Local Authority"),OR($F70=1,$F70=5)),0,new_ci(VALUE(LEFT(Options!$B$14,2)),$C70,$E70,$F70,2016,$I70,1,$H70,$G70*$H70,Options!$B$8))) -> 235.1885546 | L70: =IF(AND(OR($E$2="Orkney Health Board",$E$2="Orkney Islands Local Authority"),$F70=1),0,IF(AND(OR($E$2="Shetland Health Board",$E$2="Western Isles Health Board",$E$2="Shetland Islands Local Authority",$E$2="Eilean Siar Local Authority"),OR($F70=1,$F70=5)),0,new_ci(VALUE(LEFT(Options!$B$14,2)),$C70,$E70,$F70,2016,$I70+$J70,1,$H70,$G70*$H70,Options!$B$8))) -> 234.3604367 | M70: =IF(AND(OR($E$2="Orkney Health Board",$E$2="Orkney Islands Local Authority"),$F70=1),0,IF(AND(OR($E$2="Shetland Health Board",$E$2="Western Isles Health Board",$E$2="Shetland Islands Local Authority",$E$2="Eilean Siar Local Authority"),OR($F70=1,$F70=5)),0,new_yllv2(VALUE(LEFT(Options!$B$14,2)),$C70,$D70,$E70,$F70,2016,$I70,1,$H70,$G70*$H70,Options!$B$8))) -> 7053.305694 | N70: =IF(AND(OR($E$2="Orkney Health Board",$E$2="Orkney Islands Local Authority"),$F70=1),0,IF(AND(OR($E$2="Shetland Health Board",$E$2="Western Isles Health Board",$E$2="Shetland Islands Local Authority",$E$2="Eilean Siar Local Authority"),OR($F70=1,$F70=5)),0,new_yllv2(VALUE(LEFT(Options!$B$14,2)),$C70,$D70,$E70,$F70,2016,$I70+$J70,1,$H70,$G70*$H70,Options!$B$8))) -> 7028.470434 | O70: =IF(AND(OR($E$2="Orkney Health Board",$E$2="Orkney Islands Local Authority"),$F70=1),0,IF(AND(OR($E$2="Shetland Health Board",$E$2="Western Isles Health Board",$E$2="Shetland Islands Local Authority",$E$2="Eilean Siar Local Authority"),OR($F70=1,$F70=5)),0,hosp_count(VALUE(LEFT(Options!$B$14,2)),$C70,$E70,$F70,2016,$I70,1,$H70,$G70*$H70, Options!$B$8))) -> 13452.08093 | P70: =IF(AND(OR($E$2="Orkney Health Board",$E$2="Orkney Islands Local Authority"),$F70=1),0,IF(AND(OR($E$2="Shetland Health Board",$E$2="Western Isles Health Board",$E$2="Shetland Islands Local Authority",$E$2="Eilean Siar Local Authority"),OR($F70=1,$F70=5)),0,hosp_count(VALUE(LEFT(Options!$B$14,2)),$C70,$E70,$F70,2016,$I70+$J70,1,$H70,$G70*$H70, Options!$B$8))) -> 13422.29462 | Q70: =IF(AND(OR($E$2="Orkney Health Board",$E$2="Orkney Islands Local Authority"),$F70=1),0,IF(AND(OR($E$2="Shetland Health Board",$E$2="Western Isles Health Board",$E$2="Shetland Islands Local Authority",$E$2="Eilean Siar Local Authority"),OR($F70=1,$F70=5)),0,prem_mort(VALUE(LEFT(Options!$B$14,2)),$C70,$E70,$F70,2016,$I70,1,$H70,$G70*$H70,Options!$B$8))) -> 235.1885546 | R70: =IF(AND(OR($E$2="Orkney Health Board",$E$2="Orkney Islands Local Authority"),$F70=1),0,IF(AND(OR($E$2="Shetland Health Board",$E$2="Western Isles Health Board",$E$2="Shetland Islands Local Authority",$E$2="Eilean Siar Local Authority"),OR($F70=1,$F70=5)),0,prem_mort(VALUE(LEFT(Options!$B$14,2)),$C70,$E70,$F70,2016,$I70+$J70,1,$H70,$G70*$H70,Options!$B$8))) -> 234.3604367 | S70: 592.3548122 | T70: 590.2690829 | U70: 17764.72319 | V70: 17702.17216 | W70: 33880.92115 | X70: 33805.90021 | Y70: 592.3548122 | Z70: 590.2690829 | AA70: 4146483.685 | AB70: 4131883.581 | AC70: 124353062.3 | AD70: 123915205.1 | AE70: 237166448.1 | AF70: 236641301.5 | AG70: 4146483.685 | AH70: 4131883.581 | AI70: 7000
B71: Female 55-59 | C71: 56.953041 | D71: 83.47304 | E71: female | F71: 1 | G71: =HLOOKUP($E$2,'Prevalence Rates'!$C$3:$BC$249,'Prevalence Rates'!$BD71,FALSE) -> 0.3953 | H71: =HLOOKUP($E$2,'Population 2016'!$C$3:$BC$249,'Population 2016'!BD71,FALSE) -> 35528 | I71: 0 | J71: =ROUND(0.807*(HLOOKUP($E$2,'Population at Risk'!$C$3:$BC$249,'Population at Risk'!$BD71,FALSE)),0) -> 11334 | K71: =IF(AND(OR($E$2="Orkney Health Board",$E$2="Orkney Islands Local Authority"),$F71=1),0,IF(AND(OR($E$2="Shetland Health Board",$E$2="Western Isles Health Board",$E$2="Shetland Islands Local Authority",$E$2="Eilean Siar Local Authority"),OR($F71=1,$F71=5)),0,new_ci(VALUE(LEFT(Options!$B$14,2)),$C71,$E71,$F71,2016,$I71,1,$H71,$G71*$H71,Options!$B$8))) -> 320.4143705 | L71: =IF(AND(OR($E$2="Orkney Health Board",$E$2="Orkney Islands Local Authority"),$F71=1),0,IF(AND(OR($E$2="Shetland Health Board",$E$2="Western Isles Health Board",$E$2="Shetland Islands Local Authority",$E$2="Eilean Siar Local Authority"),OR($F71=1,$F71=5)),0,new_ci(VALUE(LEFT(Options!$B$14,2)),$C71,$E71,$F71,2016,$I71+$J71,1,$H71,$G71*$H71,Options!$B$8))) -> 319.3609398 | M71: =IF(AND(OR($E$2="Orkney Health Board",$E$2="Orkney Islands Local Authority"),$F71=1),0,IF(AND(OR($E$2="Shetland Health Board",$E$2="Western Isles Health Board",$E$2="Shetland Islands Local Authority",$E$2="Eilean Siar Local Authority"),OR($F71=1,$F71=5)),0,new_yllv2(VALUE(LEFT(Options!$B$14,2)),$C71,$D71,$E71,$F71,2016,$I71,1,$H71,$G71*$H71,Options!$B$8))) -> 8176.974415 | N71: =IF(AND(OR($E$2="Orkney Health Board",$E$2="Orkney Islands Local Authority"),$F71=1),0,IF(AND(OR($E$2="Shetland Health Board",$E$2="Western Isles Health Board",$E$2="Shetland Islands Local Authority",$E$2="Eilean Siar Local Authority"),OR($F71=1,$F71=5)),0,new_yllv2(VALUE(LEFT(Options!$B$14,2)),$C71,$D71,$E71,$F71,2016,$I71+$J71,1,$H71,$G71*$H71,Options!$B$8))) -> 8150.090865 | O71: =IF(AND(OR($E$2="Orkney Health Board",$E$2="Orkney Islands Local Authority"),$F71=1),0,IF(AND(OR($E$2="Shetland Health Board",$E$2="Western Isles Health Board",$E$2="Shetland Islands Local Authority",$E$2="Eilean Siar Local Authority"),OR($F71=1,$F71=5)),0,hosp_count(VALUE(LEFT(Options!$B$14,2)),$C71,$E71,$F71,2016,$I71,1,$H71,$G71*$H71, Options!$B$8))) -> 13637.46804 | P71: =IF(AND(OR($E$2="Orkney Health Board",$E$2="Orkney Islands Local Authority"),$F71=1),0,IF(AND(OR($E$2="Shetland Health Board",$E$2="Western Isles Health Board",$E$2="Shetland Islands Local Authority",$E$2="Eilean Siar Local Authority"),OR($F71=1,$F71=5)),0,hosp_count(VALUE(LEFT(Options!$B$14,2)),$C71,$E71,$F71,2016,$I71+$J71,1,$H71,$G71*$H71, Options!$B$8))) -> 13609.35186 | Q71: =IF(AND(OR($E$2="Orkney Health Board",$E$2="Orkney Islands Local Authority"),$F71=1),0,IF(AND(OR($E$2="Shetland Health Board",$E$2="Western Isles Health Board",$E$2="Shetland Islands Local Authority",$E$2="Eilean Siar Local Authority"),OR($F71=1,$F71=5)),0,prem_mort(VALUE(LEFT(Options!$B$14,2)),$C71,$E71,$F71,2016,$I71,1,$H71,$G71*$H71,Options!$B$8))) -> 320.4143705 | R71: =IF(AND(OR($E$2="Orkney Health Board",$E$2="Orkney Islands Local Authority"),$F71=1),0,IF(AND(OR($E$2="Shetland Health Board",$E$2="Western Isles Health Board",$E$2="Shetland Islands Local Authority",$E$2="Eilean Siar Local Authority"),OR($F71=1,$F71=5)),0,prem_mort(VALUE(LEFT(Options!$B$14,2)),$C71,$E71,$F71,2016,$I71+$J71,1,$H71,$G71*$H71,Options!$B$8))) -> 319.3609398 | S71: 901.864362 | T71: 898.8992902 | U71: 23015.57762 | V71: 22939.90899 | W71: 38385.12735 | X71: 38305.98926 | Y71: 901.864362 | Z71: 898.8992902 | AA71: 5862118.353 | AB71: 5842845.386 | AC71: 149601254.5 | AD71: 149109408.4 | AE71: 249503327.8 | AF71: 248988930.2 | AG71: 5862118.353 | AH71: 5842845.386 | AI71: 6500
B72: Female 60-64 | C72: 61.947388 | D72: 84.16739 | E72: female | F72: 1 | G72: =HLOOKUP($E$2,'Prevalence Rates'!$C$3:$BC$249,'Prevalence Rates'!$BD72,FALSE) -> 0.3953 | H72: =HLOOKUP($E$2,'Population 2016'!$C$3:$BC$249,'Population 2016'!BD72,FALSE) -> 29212 | I72: 0 | J72: =ROUND(0.807*(HLOOKUP($E$2,'Population at Risk'!$C$3:$BC$249,'Population at Risk'!$BD72,FALSE)),0) -> 9319 | K72: =IF(AND(OR($E$2="Orkney Health Board",$E$2="Orkney Islands Local Authority"),$F72=1),0,IF(AND(OR($E$2="Shetland Health Board",$E$2="Western Isles Health Board",$E$2="Shetland Islands Local Authority",$E$2="Eilean Siar Local Authority"),OR($F72=1,$F72=5)),0,new_ci(VALUE(LEFT(Options!$B$14,2)),$C72,$E72,$F72,2016,$I72,1,$H72,$G72*$H72,Options!$B$8))) -> 401.8429115 | L72: =IF(AND(OR($E$2="Orkney Health Board",$E$2="Orkney Islands Local Authority"),$F72=1),0,IF(AND(OR($E$2="Shetland Health Board",$E$2="Western Isles Health Board",$E$2="Shetland Islands Local Authority",$E$2="Eilean Siar Local Authority"),OR($F72=1,$F72=5)),0,new_ci(VALUE(LEFT(Options!$B$14,2)),$C72,$E72,$F72,2016,$I72+$J72,1,$H72,$G72*$H72,Options!$B$8))) -> 400.5269653 | M72: =IF(AND(OR($E$2="Orkney Health Board",$E$2="Orkney Islands Local Authority"),$F72=1),0,IF(AND(OR($E$2="Shetland Health Board",$E$2="Western Isles Health Board",$E$2="Shetland Islands Local Authority",$E$2="Eilean Siar Local Authority"),OR($F72=1,$F72=5)),0,new_yllv2(VALUE(LEFT(Options!$B$14,2)),$C72,$D72,$E72,$F72,2016,$I72,1,$H72,$G72*$H72,Options!$B$8))) -> 8527.107386 | N72: =IF(AND(OR($E$2="Orkney Health Board",$E$2="Orkney Islands Local Authority"),$F72=1),0,IF(AND(OR($E$2="Shetland Health Board",$E$2="Western Isles Health Board",$E$2="Shetland Islands Local Authority",$E$2="Eilean Siar Local Authority"),OR($F72=1,$F72=5)),0,new_yllv2(VALUE(LEFT(Options!$B$14,2)),$C72,$D72,$E72,$F72,2016,$I72+$J72,1,$H72,$G72*$H72,Options!$B$8))) -> 8499.183004 | O72: =IF(AND(OR($E$2="Orkney Health Board",$E$2="Orkney Islands Local Authority"),$F72=1),0,IF(AND(OR($E$2="Shetland Health Board",$E$2="Western Isles Health Board",$E$2="Shetland Islands Local Authority",$E$2="Eilean Siar Local Authority"),OR($F72=1,$F72=5)),0,hosp_count(VALUE(LEFT(Options!$B$14,2)),$C72,$E72,$F72,2016,$I72,1,$H72,$G72*$H72, Options!$B$8))) -> 12714.02519 | P72: =IF(AND(OR($E$2="Orkney Health Board",$E$2="Orkney Islands Local Authority"),$F72=1),0,IF(AND(OR($E$2="Shetland Health Board",$E$2="Western Isles Health Board",$E$2="Shetland Islands Local Authority",$E$2="Eilean Siar Local Authority"),OR($F72=1,$F72=5)),0,hosp_count(VALUE(LEFT(Options!$B$14,2)),$C72,$E72,$F72,2016,$I72+$J72,1,$H72,$G72*$H72, Options!$B$8))) -> 12687.81312 | Q72: =IF(AND(OR($E$2="Orkney Health Board",$E$2="Orkney Islands Local Authority"),$F72=1),0,IF(AND(OR($E$2="Shetland Health Board",$E$2="Western Isles Health Board",$E$2="Shetland Islands Local Authority",$E$2="Eilean Siar Local Authority"),OR($F72=1,$F72=5)),0,prem_mort(VALUE(LEFT(Options!$B$14,2)),$C72,$E72,$F72,2016,$I72,1,$H72,$G72*$H72,Options!$B$8))) -> 401.8429115 | R72: =IF(AND(OR($E$2="Orkney Health Board",$E$2="Orkney Islands Local Authority"),$F72=1),0,IF(AND(OR($E$2="Shetland Health Board",$E$2="Western Isles Health Board",$E$2="Shetland Islands Local Authority",$E$2="Eilean Siar Local Authority"),OR($F72=1,$F72=5)),0,prem_mort(VALUE(LEFT(Options!$B$14,2)),$C72,$E72,$F72,2016,$I72+$J72,1,$H72,$G72*$H72,Options!$B$8))) -> 400.5269653 | S72: 1375.609036 | T72: 1371.104222 | U72: 29190.42649 | V72: 29094.83433 | W72: 43523.29587 | X72: 43433.5654 | Y72: 1375.609036 | Z72: 1371.104222 | AA72: 8253654.214 | AB72: 8226625.331 | AC72: 175142558.9 | AD72: 174569006 | AE72: 261139775.2 | AF72: 260601392.4 | AG72: 8253654.214 | AH72: 8226625.331 | AI72: 6000
B73: Female 65-69 | C73: 67.063927 | D73: 85.19393 | E73: female | F73: 1 | G73: =HLOOKUP($E$2,'Prevalence Rates'!$C$3:$BC$249,'Prevalence Rates'!$BD73,FALSE) -> 0.2737 | H73: =HLOOKUP($E$2,'Population 2016'!$C$3:$BC$249,'Population 2016'!BD73,FALSE) -> 27762 | I73: 0 | J73: =ROUND(0.807*(HLOOKUP($E$2,'Population at Risk'!$C$3:$BC$249,'Population at Risk'!$BD73,FALSE)),0) -> 6132 | K73: =IF(AND(OR($E$2="Orkney Health Board",$E$2="Orkney Islands Local Authority"),$F73=1),0,IF(AND(OR($E$2="Shetland Health Board",$E$2="Western Isles Health Board",$E$2="Shetland Islands Local Authority",$E$2="Eilean Siar Local Authority"),OR($F73=1,$F73=5)),0,new_ci(VALUE(LEFT(Options!$B$14,2)),$C73,$E73,$F73,2016,$I73,1,$H73,$G73*$H73,Options!$B$8))) -> 587.7302621 | L73: =IF(AND(OR($E$2="Orkney Health Board",$E$2="Orkney Islands Local Authority"),$F73=1),0,IF(AND(OR($E$2="Shetland Health Board",$E$2="Western Isles Health Board",$E$2="Shetland Islands Local Authority",$E$2="Eilean Siar Local Authority"),OR($F73=1,$F73=5)),0,new_ci(VALUE(LEFT(Options!$B$14,2)),$C73,$E73,$F73,2016,$I73+$J73,1,$H73,$G73*$H73,Options!$B$8))) -> 586.3035646 | M73: =IF(AND(OR($E$2="Orkney Health Board",$E$2="Orkney Islands Local Authority"),$F73=1),0,IF(AND(OR($E$2="Shetland Health Board",$E$2="Western Isles Health Board",$E$2="Shetland Islands Local Authority",$E$2="Eilean Siar Local Authority"),OR($F73=1,$F73=5)),0,new_yllv2(VALUE(LEFT(Options!$B$14,2)),$C73,$D73,$E73,$F73,2016,$I73,1,$H73,$G73*$H73,Options!$B$8))) -> 10067.82115 | N73: =IF(AND(OR($E$2="Orkney Health Board",$E$2="Orkney Islands Local Authority"),$F73=1),0,IF(AND(OR($E$2="Shetland Health Board",$E$2="Western Isles Health Board",$E$2="Shetland Islands Local Authority",$E$2="Eilean Siar Local Authority"),OR($F73=1,$F73=5)),0,new_yllv2(VALUE(LEFT(Options!$B$14,2)),$C73,$D73,$E73,$F73,2016,$I73+$J73,1,$H73,$G73*$H73,Options!$B$8))) -> 10043.38182 | O73: =IF(AND(OR($E$2="Orkney Health Board",$E$2="Orkney Islands Local Authority"),$F73=1),0,IF(AND(OR($E$2="Shetland Health Board",$E$2="Western Isles Health Board",$E$2="Shetland Islands Local Authority",$E$2="Eilean Siar Local Authority"),OR($F73=1,$F73=5)),0,hosp_count(VALUE(LEFT(Options!$B$14,2)),$C73,$E73,$F73,2016,$I73,1,$H73,$G73*$H73, Options!$B$8))) -> 13742.51292 | P73: =IF(AND(OR($E$2="Orkney Health Board",$E$2="Orkney Islands Local Authority"),$F73=1),0,IF(AND(OR($E$2="Shetland Health Board",$E$2="Western Isles Health Board",$E$2="Shetland Islands Local Authority",$E$2="Eilean Siar Local Authority"),OR($F73=1,$F73=5)),0,hosp_count(VALUE(LEFT(Options!$B$14,2)),$C73,$E73,$F73,2016,$I73+$J73,1,$H73,$G73*$H73, Options!$B$8))) -> 13721.75583 | Q73: =IF(AND(OR($E$2="Orkney Health Board",$E$2="Orkney Islands Local Authority"),$F73=1),0,IF(AND(OR($E$2="Shetland Health Board",$E$2="Western Isles Health Board",$E$2="Shetland Islands Local Authority",$E$2="Eilean Siar Local Authority"),OR($F73=1,$F73=5)),0,prem_mort(VALUE(LEFT(Options!$B$14,2)),$C73,$E73,$F73,2016,$I73,1,$H73,$G73*$H73,Options!$B$8))) -> 587.7302621 | R73: =IF(AND(OR($E$2="Orkney Health Board",$E$2="Orkney Islands Local Authority"),$F73=1),0,IF(AND(OR($E$2="Shetland Health Board",$E$2="Western Isles Health Board",$E$2="Shetland Islands Local Authority",$E$2="Eilean Siar Local Authority"),OR($F73=1,$F73=5)),0,prem_mort(VALUE(LEFT(Options!$B$14,2)),$C73,$E73,$F73,2016,$I73+$J73,1,$H73,$G73*$H73,Options!$B$8))) -> 586.3035646 | S73: 2117.031417 | T73: 2111.892387 | U73: 36264.75453 | V73: 36176.72293 | W73: 49501.16318 | X73: 49426.39518 | Y73: 2117.031417 | Z73: 2111.892387 | AA73: 11643672.8 | AB73: 11615408.13 | AC73: 199456149.9 | AD73: 198971976.1 | AE73: 272256397.5 | AF73: 271845173.5 | AG73: 11643672.8 | AH73: 11615408.13 | AI73: 5500
B74: Female 70-74 | C74: 71.938164 | D74: 86.24816 | E74: female | F74: 1 | G74: =HLOOKUP($E$2,'Prevalence Rates'!$C$3:$BC$249,'Prevalence Rates'!$BD74,FALSE) -> 0.2737 | H74: =HLOOKUP($E$2,'Population 2016'!$C$3:$BC$249,'Population 2016'!BD74,FALSE) -> 21786 | I74: 0 | J74: =ROUND(0.807*(HLOOKUP($E$2,'Population at Risk'!$C$3:$BC$249,'Population at Risk'!$BD74,FALSE)),0) -> 4812 | K74: =IF(AND(OR($E$2="Orkney Health Board",$E$2="Orkney Islands Local Authority"),$F74=1),0,IF(AND(OR($E$2="Shetland Health Board",$E$2="Western Isles Health Board",$E$2="Shetland Islands Local Authority",$E$2="Eilean Siar Local Authority"),OR($F74=1,$F74=5)),0,new_ci(VALUE(LEFT(Options!$B$14,2)),$C74,$E74,$F74,2016,$I74,1,$H74,$G74*$H74,Options!$B$8))) -> 694.0259278 | L74: =IF(AND(OR($E$2="Orkney Health Board",$E$2="Orkney Islands Local Authority"),$F74=1),0,IF(AND(OR($E$2="Shetland Health Board",$E$2="Western Isles Health Board",$E$2="Shetland Islands Local Authority",$E$2="Eilean Siar Local Authority"),OR($F74=1,$F74=5)),0,new_ci(VALUE(LEFT(Options!$B$14,2)),$C74,$E74,$F74,2016,$I74+$J74,1,$H74,$G74*$H74,Options!$B$8))) -> 692.3583975 | M74: =IF(AND(OR($E$2="Orkney Health Board",$E$2="Orkney Islands Local Authority"),$F74=1),0,IF(AND(OR($E$2="Shetland Health Board",$E$2="Western Isles Health Board",$E$2="Shetland Islands Local Authority",$E$2="Eilean Siar Local Authority"),OR($F74=1,$F74=5)),0,new_yllv2(VALUE(LEFT(Options!$B$14,2)),$C74,$D74,$E74,$F74,2016,$I74,1,$H74,$G74*$H74,Options!$B$8))) -> 9237.482323 | N74: =IF(AND(OR($E$2="Orkney Health Board",$E$2="Orkney Islands Local Authority"),$F74=1),0,IF(AND(OR($E$2="Shetland Health Board",$E$2="Western Isles Health Board",$E$2="Shetland Islands Local Authority",$E$2="Eilean Siar Local Authority"),OR($F74=1,$F74=5)),0,new_yllv2(VALUE(LEFT(Options!$B$14,2)),$C74,$D74,$E74,$F74,2016,$I74+$J74,1,$H74,$G74*$H74,Options!$B$8))) -> 9215.287502 | O74: =IF(AND(OR($E$2="Orkney Health Board",$E$2="Orkney Islands Local Authority"),$F74=1),0,IF(AND(OR($E$2="Shetland Health Board",$E$2="Western Isles Health Board",$E$2="Shetland Islands Local Authority",$E$2="Eilean Siar Local Authority"),OR($F74=1,$F74=5)),0,hosp_count(VALUE(LEFT(Options!$B$14,2)),$C74,$E74,$F74,2016,$I74,1,$H74,$G74*$H74, Options!$B$8))) -> 12191.0075 | P74: =IF(AND(OR($E$2="Orkney Health Board",$E$2="Orkney Islands Local Authority"),$F74=1),0,IF(AND(OR($E$2="Shetland Health Board",$E$2="Western Isles Health Board",$E$2="Shetland Islands Local Authority",$E$2="Eilean Siar Local Authority"),OR($F74=1,$F74=5)),0,hosp_count(VALUE(LEFT(Options!$B$14,2)),$C74,$E74,$F74,2016,$I74+$J74,1,$H74,$G74*$H74, Options!$B$8))) -> 12172.59399 | Q74: =IF(AND(OR($E$2="Orkney Health Board",$E$2="Orkney Islands Local Authority"),$F74=1),0,IF(AND(OR($E$2="Shetland Health Board",$E$2="Western Isles Health Board",$E$2="Shetland Islands Local Authority",$E$2="Eilean Siar Local Authority"),OR($F74=1,$F74=5)),0,prem_mort(VALUE(LEFT(Options!$B$14,2)),$C74,$E74,$F74,2016,$I74,1,$H74,$G74*$H74,Options!$B$8))) -> 694.0259278 | R74: =IF(AND(OR($E$2="Orkney Health Board",$E$2="Orkney Islands Local Authority"),$F74=1),0,IF(AND(OR($E$2="Shetland Health Board",$E$2="Western Isles Health Board",$E$2="Shetland Islands Local Authority",$E$2="Eilean Siar Local Authority"),OR($F74=1,$F74=5)),0,prem_mort(VALUE(LEFT(Options!$B$14,2)),$C74,$E74,$F74,2016,$I74+$J74,1,$H74,$G74*$H74,Options!$B$8))) -> 692.3583975 | S74: 3185.651004 | T74: 3177.996867 | U74: 42401.00213 | V74: 42299.12559 | W74: 55957.98909 | X74: 55873.46915 | Y74: 3185.651004 | Z74: 3177.996867 | AA74: 15928255.02 | AB74: 15889984.34 | AC74: 212005010.6 | AD74: 211495628 | AE74: 279789945.5 | AF74: 279367345.7 | AG74: 15928255.02 | AH74: 15889984.34 | AI74: 5000
B75: Female 75-79 | C75: 76.942825 | D75: 87.81283 | E75: female | F75: 1 | G75: =HLOOKUP($E$2,'Prevalence Rates'!$C$3:$BC$249,'Prevalence Rates'!$BD75,FALSE) -> 0.149 | H75: =HLOOKUP($E$2,'Population 2016'!$C$3:$BC$249,'Population 2016'!BD75,FALSE) -> 19138 | I75: 0 | J75: =ROUND(0.807*(HLOOKUP($E$2,'Population at Risk'!$C$3:$BC$249,'Population at Risk'!$BD75,FALSE)),0) -> 2301 | K75: =IF(AND(OR($E$2="Orkney Health Board",$E$2="Orkney Islands Local Authority"),$F75=1),0,IF(AND(OR($E$2="Shetland Health Board",$E$2="Western Isles Health Board",$E$2="Shetland Islands Local Authority",$E$2="Eilean Siar Local Authority"),OR($F75=1,$F75=5)),0,new_ci(VALUE(LEFT(Options!$B$14,2)),$C75,$E75,$F75,2016,$I75,1,$H75,$G75*$H75,Options!$B$8))) -> 925.0514335 | L75: =IF(AND(OR($E$2="Orkney Health Board",$E$2="Orkney Islands Local Authority"),$F75=1),0,IF(AND(OR($E$2="Shetland Health Board",$E$2="Western Isles Health Board",$E$2="Shetland Islands Local Authority",$E$2="Eilean Siar Local Authority"),OR($F75=1,$F75=5)),0,new_ci(VALUE(LEFT(Options!$B$14,2)),$C75,$E75,$F75,2016,$I75+$J75,1,$H75,$G75*$H75,Options!$B$8))) -> 923.7637898 | M75: =IF(AND(OR($E$2="Orkney Health Board",$E$2="Orkney Islands Local Authority"),$F75=1),0,IF(AND(OR($E$2="Shetland Health Board",$E$2="Western Isles Health Board",$E$2="Shetland Islands Local Authority",$E$2="Eilean Siar Local Authority"),OR($F75=1,$F75=5)),0,new_yllv2(VALUE(LEFT(Options!$B$14,2)),$C75,$D75,$E75,$F75,2016,$I75,1,$H75,$G75*$H75,Options!$B$8))) -> 9130.262274 | N75: =IF(AND(OR($E$2="Orkney Health Board",$E$2="Orkney Islands Local Authority"),$F75=1),0,IF(AND(OR($E$2="Shetland Health Board",$E$2="Western Isles Health Board",$E$2="Shetland Islands Local Authority",$E$2="Eilean Siar Local Authority"),OR($F75=1,$F75=5)),0,new_yllv2(VALUE(LEFT(Options!$B$14,2)),$C75,$D75,$E75,$F75,2016,$I75+$J75,1,$H75,$G75*$H75,Options!$B$8))) -> 9117.553224 | O75: =IF(AND(OR($E$2="Orkney Health Board",$E$2="Orkney Islands Local Authority"),$F75=1),0,IF(AND(OR($E$2="Shetland Health Board",$E$2="Western Isles Health Board",$E$2="Shetland Islands Local Authority",$E$2="Eilean Siar Local Authority"),OR($F75=1,$F75=5)),0,hosp_count(VALUE(LEFT(Options!$B$14,2)),$C75,$E75,$F75,2016,$I75,1,$H75,$G75*$H75, Options!$B$8))) -> 12145.91145 | P75: =IF(AND(OR($E$2="Orkney Health Board",$E$2="Orkney Islands Local Authority"),$F75=1),0,IF(AND(OR($E$2="Shetland Health Board",$E$2="Western Isles Health Board",$E$2="Shetland Islands Local Authority",$E$2="Eilean Siar Local Authority"),OR($F75=1,$F75=5)),0,hosp_count(VALUE(LEFT(Options!$B$14,2)),$C75,$E75,$F75,2016,$I75+$J75,1,$H75,$G75*$H75, Options!$B$8))) -> 12135.29225 | Q75: =IF(AND(OR($E$2="Orkney Health Board",$E$2="Orkney Islands Local Authority"),$F75=1),0,IF(AND(OR($E$2="Shetland Health Board",$E$2="Western Isles Health Board",$E$2="Shetland Islands Local Authority",$E$2="Eilean Siar Local Authority"),OR($F75=1,$F75=5)),0,prem_mort(VALUE(LEFT(Options!$B$14,2)),$C75,$E75,$F75,2016,$I75,1,$H75,$G75*$H75,Options!$B$8))) -> 0 | R75: =IF(AND(OR($E$2="Orkney Health Board",$E$2="Orkney Islands Local Authority"),$F75=1),0,IF(AND(OR($E$2="Shetland Health Board",$E$2="Western Isles Health Board",$E$2="Shetland Islands Local Authority",$E$2="Eilean Siar Local Authority"),OR($F75=1,$F75=5)),0,prem_mort(VALUE(LEFT(Options!$B$14,2)),$C75,$E75,$F75,2016,$I75+$J75,1,$H75,$G75*$H75,Options!$B$8))) -> 0 | S75: 4833.584667 | T75: 4826.856462 | U75: 47707.50483 | V75: 47641.09742 | W75: 63464.8942 | X75: 63409.40669 | Y75: 0 | Z75: 0 | AA75: 19334338.67 | AB75: 19307425.85 | AC75: 190830019.3 | AD75: 190564389.7 | AE75: 253859576.8 | AF75: 253637626.8 | AG75: 0 | AH75: 0 | AI75: 4000
B76: Female 80-84 | C76: 81.856712 | D76: 89.73671 | E76: female | F76: 1 | G76: =HLOOKUP($E$2,'Prevalence Rates'!$C$3:$BC$249,'Prevalence Rates'!$BD76,FALSE) -> 0.149 | H76: =HLOOKUP($E$2,'Population 2016'!$C$3:$BC$249,'Population 2016'!BD76,FALSE) -> 14776 | I76: 0 | J76: =ROUND(0.807*(HLOOKUP($E$2,'Population at Risk'!$C$3:$BC$249,'Population at Risk'!$BD76,FALSE)),0) -> 1777 | K76: =IF(AND(OR($E$2="Orkney Health Board",$E$2="Orkney Islands Local Authority"),$F76=1),0,IF(AND(OR($E$2="Shetland Health Board",$E$2="Western Isles Health Board",$E$2="Shetland Islands Local Authority",$E$2="Eilean Siar Local Authority"),OR($F76=1,$F76=5)),0,new_ci(VALUE(LEFT(Options!$B$14,2)),$C76,$E76,$F76,2016,$I76,1,$H76,$G76*$H76,Options!$B$8))) -> 1070.21873 | L76: =IF(AND(OR($E$2="Orkney Health Board",$E$2="Orkney Islands Local Authority"),$F76=1),0,IF(AND(OR($E$2="Shetland Health Board",$E$2="Western Isles Health Board",$E$2="Shetland Islands Local Authority",$E$2="Eilean Siar Local Authority"),OR($F76=1,$F76=5)),0,new_ci(VALUE(LEFT(Options!$B$14,2)),$C76,$E76,$F76,2016,$I76+$J76,1,$H76,$G76*$H76,Options!$B$8))) -> 1068.769411 | M76: =IF(AND(OR($E$2="Orkney Health Board",$E$2="Orkney Islands Local Authority"),$F76=1),0,IF(AND(OR($E$2="Shetland Health Board",$E$2="Western Isles Health Board",$E$2="Shetland Islands Local Authority",$E$2="Eilean Siar Local Authority"),OR($F76=1,$F76=5)),0,new_yllv2(VALUE(LEFT(Options!$B$14,2)),$C76,$D76,$E76,$F76,2016,$I76,1,$H76,$G76*$H76,Options!$B$8))) -> 7363.102725 | N76: =IF(AND(OR($E$2="Orkney Health Board",$E$2="Orkney Islands Local Authority"),$F76=1),0,IF(AND(OR($E$2="Shetland Health Board",$E$2="Western Isles Health Board",$E$2="Shetland Islands Local Authority",$E$2="Eilean Siar Local Authority"),OR($F76=1,$F76=5)),0,new_yllv2(VALUE(LEFT(Options!$B$14,2)),$C76,$D76,$E76,$F76,2016,$I76+$J76,1,$H76,$G76*$H76,Options!$B$8))) -> 7353.131408 | O76: =IF(AND(OR($E$2="Orkney Health Board",$E$2="Orkney Islands Local Authority"),$F76=1),0,IF(AND(OR($E$2="Shetland Health Board",$E$2="Western Isles Health Board",$E$2="Shetland Islands Local Authority",$E$2="Eilean Siar Local Authority"),OR($F76=1,$F76=5)),0,hosp_count(VALUE(LEFT(Options!$B$14,2)),$C76,$E76,$F76,2016,$I76,1,$H76,$G76*$H76, Options!$B$8))) -> 10611.34119 | P76: =IF(AND(OR($E$2="Orkney Health Board",$E$2="Orkney Islands Local Authority"),$F76=1),0,IF(AND(OR($E$2="Shetland Health Board",$E$2="Western Isles Health Board",$E$2="Shetland Islands Local Authority",$E$2="Eilean Siar Local Authority"),OR($F76=1,$F76=5)),0,hosp_count(VALUE(LEFT(Options!$B$14,2)),$C76,$E76,$F76,2016,$I76+$J76,1,$H76,$G76*$H76, Options!$B$8))) -> 10602.06131 | Q76: =IF(AND(OR($E$2="Orkney Health Board",$E$2="Orkney Islands Local Authority"),$F76=1),0,IF(AND(OR($E$2="Shetland Health Board",$E$2="Western Isles Health Board",$E$2="Shetland Islands Local Authority",$E$2="Eilean Siar Local Authority"),OR($F76=1,$F76=5)),0,prem_mort(VALUE(LEFT(Options!$B$14,2)),$C76,$E76,$F76,2016,$I76,1,$H76,$G76*$H76,Options!$B$8))) -> 0 | R76: =IF(AND(OR($E$2="Orkney Health Board",$E$2="Orkney Islands Local Authority"),$F76=1),0,IF(AND(OR($E$2="Shetland Health Board",$E$2="Western Isles Health Board",$E$2="Shetland Islands Local Authority",$E$2="Eilean Siar Local Authority"),OR($F76=1,$F76=5)),0,prem_mort(VALUE(LEFT(Options!$B$14,2)),$C76,$E76,$F76,2016,$I76+$J76,1,$H76,$G76*$H76,Options!$B$8))) -> 0 | S76: 7242.952967 | T76: 7233.14436 | U76: 49831.50193 | V76: 49764.01873 | W76: 71814.70758 | X76: 71751.90384 | Y76: 0 | Z76: 0 | AA76: 18107382.42 | AB76: 18082860.9 | AC76: 124578754.8 | AD76: 124410046.8 | AE76: 179536769 | AF76: 179379759.6 | AG76: 0 | AH76: 0 | AI76: 2500
B77: Female 85-89 | C77: 86.73082 | D77: 92.22082 | E77: female | F77: 1 | G77: =HLOOKUP($E$2,'Prevalence Rates'!$C$3:$BC$249,'Prevalence Rates'!$BD77,FALSE) -> 0.149 | H77: =HLOOKUP($E$2,'Population 2016'!$C$3:$BC$249,'Population 2016'!BD77,FALSE) -> 8869 | I77: 0 | J77: =ROUND(0.807*(HLOOKUP($E$2,'Population at Risk'!$C$3:$BC$249,'Population at Risk'!$BD77,FALSE)),0) -> 1066 | K77: =IF(AND(OR($E$2="Orkney Health Board",$E$2="Orkney Islands Local Authority"),$F77=1),0,IF(AND(OR($E$2="Shetland Health Board",$E$2="Western Isles Health Board",$E$2="Shetland Islands Local Authority",$E$2="Eilean Siar Local Authority"),OR($F77=1,$F77=5)),0,new_ci(VALUE(LEFT(Options!$B$14,2)),$C77,$E77,$F77,2016,$I77,1,$H77,$G77*$H77,Options!$B$8))) -> 952.9683687 | L77: =IF(AND(OR($E$2="Orkney Health Board",$E$2="Orkney Islands Local Authority"),$F77=1),0,IF(AND(OR($E$2="Shetland Health Board",$E$2="Western Isles Health Board",$E$2="Shetland Islands Local Authority",$E$2="Eilean Siar Local Authority"),OR($F77=1,$F77=5)),0,new_ci(VALUE(LEFT(Options!$B$14,2)),$C77,$E77,$F77,2016,$I77+$J77,1,$H77,$G77*$H77,Options!$B$8))) -> 951.7314633 | M77: =IF(AND(OR($E$2="Orkney Health Board",$E$2="Orkney Islands Local Authority"),$F77=1),0,IF(AND(OR($E$2="Shetland Health Board",$E$2="Western Isles Health Board",$E$2="Shetland Islands Local Authority",$E$2="Eilean Siar Local Authority"),OR($F77=1,$F77=5)),0,new_yllv2(VALUE(LEFT(Options!$B$14,2)),$C77,$D77,$E77,$F77,2016,$I77,1,$H77,$G77*$H77,Options!$B$8))) -> 4278.827975 | N77: =IF(AND(OR($E$2="Orkney Health Board",$E$2="Orkney Islands Local Authority"),$F77=1),0,IF(AND(OR($E$2="Shetland Health Board",$E$2="Western Isles Health Board",$E$2="Shetland Islands Local Authority",$E$2="Eilean Siar Local Authority"),OR($F77=1,$F77=5)),0,new_yllv2(VALUE(LEFT(Options!$B$14,2)),$C77,$D77,$E77,$F77,2016,$I77+$J77,1,$H77,$G77*$H77,Options!$B$8))) -> 4273.27427 | O77: =IF(AND(OR($E$2="Orkney Health Board",$E$2="Orkney Islands Local Authority"),$F77=1),0,IF(AND(OR($E$2="Shetland Health Board",$E$2="Western Isles Health Board",$E$2="Shetland Islands Local Authority",$E$2="Eilean Siar Local Authority"),OR($F77=1,$F77=5)),0,hosp_count(VALUE(LEFT(Options!$B$14,2)),$C77,$E77,$F77,2016,$I77,1,$H77,$G77*$H77, Options!$B$8))) -> 7200.01394 | P77: =IF(AND(OR($E$2="Orkney Health Board",$E$2="Orkney Islands Local Authority"),$F77=1),0,IF(AND(OR($E$2="Shetland Health Board",$E$2="Western Isles Health Board",$E$2="Shetland Islands Local Authority",$E$2="Eilean Siar Local Authority"),OR($F77=1,$F77=5)),0,hosp_count(VALUE(LEFT(Options!$B$14,2)),$C77,$E77,$F77,2016,$I77+$J77,1,$H77,$G77*$H77, Options!$B$8))) -> 7193.720943 | Q77: =IF(AND(OR($E$2="Orkney Health Board",$E$2="Orkney Islands Local Authority"),$F77=1),0,IF(AND(OR($E$2="Shetland Health Board",$E$2="Western Isles Health Board",$E$2="Shetland Islands Local Authority",$E$2="Eilean Siar Local Authority"),OR($F77=1,$F77=5)),0,prem_mort(VALUE(LEFT(Options!$B$14,2)),$C77,$E77,$F77,2016,$I77,1,$H77,$G77*$H77,Options!$B$8))) -> 0 | R77: =IF(AND(OR($E$2="Orkney Health Board",$E$2="Orkney Islands Local Authority"),$F77=1),0,IF(AND(OR($E$2="Shetland Health Board",$E$2="Western Isles Health Board",$E$2="Shetland Islands Local Authority",$E$2="Eilean Siar Local Authority"),OR($F77=1,$F77=5)),0,prem_mort(VALUE(LEFT(Options!$B$14,2)),$C77,$E77,$F77,2016,$I77+$J77,1,$H77,$G77*$H77,Options!$B$8))) -> 0 | S77: 10744.93594 | T77: 10730.98955 | U77: 48244.76238 | V77: 48182.14308 | W77: 81181.8011 | X77: 81110.84613 | Y77: 0 | Z77: 0 | AA77: 16117403.91 | AB77: 16096484.33 | AC77: 72367143.57 | AD77: 72273214.63 | AE77: 121772701.7 | AF77: 121666269.2 | AG77: 0 | AH77: 0 | AI77: 1500
B78: Female 90+ | C78: 92.779343 | D78: 96.27934 | E78: female | F78: 1 | G78: =HLOOKUP($E$2,'Prevalence Rates'!$C$3:$BC$249,'Prevalence Rates'!$BD78,FALSE) -> 0.149 | H78: =HLOOKUP($E$2,'Population 2016'!$C$3:$BC$249,'Population 2016'!BD78,FALSE) -> 4825 | I78: 0 | J78: =ROUND(0.807*(HLOOKUP($E$2,'Population at Risk'!$C$3:$BC$249,'Population at Risk'!$BD78,FALSE)),0) -> 580 | K78: =IF(AND(OR($E$2="Orkney Health Board",$E$2="Orkney Islands Local Authority"),$F78=1),0,IF(AND(OR($E$2="Shetland Health Board",$E$2="Western Isles Health Board",$E$2="Shetland Islands Local Authority",$E$2="Eilean Siar Local Authority"),OR($F78=1,$F78=5)),0,new_ci(VALUE(LEFT(Options!$B$14,2)),$C78,$E78,$F78,2016,$I78,1,$H78,$G78*$H78,Options!$B$8))) -> 833.6901188 | L78: =IF(AND(OR($E$2="Orkney Health Board",$E$2="Orkney Islands Local Authority"),$F78=1),0,IF(AND(OR($E$2="Shetland Health Board",$E$2="Western Isles Health Board",$E$2="Shetland Islands Local Authority",$E$2="Eilean Siar Local Authority"),OR($F78=1,$F78=5)),0,new_ci(VALUE(LEFT(Options!$B$14,2)),$C78,$E78,$F78,2016,$I78+$J78,1,$H78,$G78*$H78,Options!$B$8))) -> 832.694648 | M78: =IF(AND(OR($E$2="Orkney Health Board",$E$2="Orkney Islands Local Authority"),$F78=1),0,IF(AND(OR($E$2="Shetland Health Board",$E$2="Western Isles Health Board",$E$2="Shetland Islands Local Authority",$E$2="Eilean Siar Local Authority"),OR($F78=1,$F78=5)),0,new_yllv2(VALUE(LEFT(Options!$B$14,2)),$C78,$D78,$E78,$F78,2016,$I78,1,$H78,$G78*$H78,Options!$B$8))) -> 2084.222796 | N78: =IF(AND(OR($E$2="Orkney Health Board",$E$2="Orkney Islands Local Authority"),$F78=1),0,IF(AND(OR($E$2="Shetland Health Board",$E$2="Western Isles Health Board",$E$2="Shetland Islands Local Authority",$E$2="Eilean Siar Local Authority"),OR($F78=1,$F78=5)),0,new_yllv2(VALUE(LEFT(Options!$B$14,2)),$C78,$D78,$E78,$F78,2016,$I78+$J78,1,$H78,$G78*$H78,Options!$B$8))) -> 2081.734122 | O78: =IF(AND(OR($E$2="Orkney Health Board",$E$2="Orkney Islands Local Authority"),$F78=1),0,IF(AND(OR($E$2="Shetland Health Board",$E$2="Western Isles Health Board",$E$2="Shetland Islands Local Authority",$E$2="Eilean Siar Local Authority"),OR($F78=1,$F78=5)),0,hosp_count(VALUE(LEFT(Options!$B$14,2)),$C78,$E78,$F78,2016,$I78,1,$H78,$G78*$H78, Options!$B$8))) -> 4560.691784 | P78: =IF(AND(OR($E$2="Orkney Health Board",$E$2="Orkney Islands Local Authority"),$F78=1),0,IF(AND(OR($E$2="Shetland Health Board",$E$2="Western Isles Health Board",$E$2="Shetland Islands Local Authority",$E$2="Eilean Siar Local Authority"),OR($F78=1,$F78=5)),0,hosp_count(VALUE(LEFT(Options!$B$14,2)),$C78,$E78,$F78,2016,$I78+$J78,1,$H78,$G78*$H78, Options!$B$8))) -> 4556.705181 | Q78: =IF(AND(OR($E$2="Orkney Health Board",$E$2="Orkney Islands Local Authority"),$F78=1),0,IF(AND(OR($E$2="Shetland Health Board",$E$2="Western Isles Health Board",$E$2="Shetland Islands Local Authority",$E$2="Eilean Siar Local Authority"),OR($F78=1,$F78=5)),0,prem_mort(VALUE(LEFT(Options!$B$14,2)),$C78,$E78,$F78,2016,$I78,1,$H78,$G78*$H78,Options!$B$8))) -> 0 | R78: =IF(AND(OR($E$2="Orkney Health Board",$E$2="Orkney Islands Local Authority"),$F78=1),0,IF(AND(OR($E$2="Shetland Health Board",$E$2="Western Isles Health Board",$E$2="Shetland Islands Local Authority",$E$2="Eilean Siar Local Authority"),OR($F78=1,$F78=5)),0,prem_mort(VALUE(LEFT(Options!$B$14,2)),$C78,$E78,$F78,2016,$I78+$J78,1,$H78,$G78*$H78,Options!$B$8))) -> 0 | S78: 17278.55168 | T78: 17257.92017 | U78: 43196.32738 | V78: 43144.74864 | W78: 94522.10951 | X78: 94439.48561 | Y78: 0 | Z78: 0 | AA78: 17278551.68 | AB78: 17257920.17 | AC78: 43196327.38 | AD78: 43144748.64 | AE78: 94522109.51 | AF78: 94439485.61 | AG78: 0 | AH78: 0 | AI78: 1000
B79: Male 0-4 | C79: 2.0320823 | D79: 77.402082 | E79: male | F79: 1 | G79: =HLOOKUP($E$2,'Prevalence Rates'!$C$3:$BC$249,'Prevalence Rates'!$BD79,FALSE) -> 0 | H79: =HLOOKUP($E$2,'Population 2016'!$C$3:$BC$249,'Population 2016'!BD79,FALSE) -> 0 | I79: 0 | J79: =ROUND(0.807*(HLOOKUP($E$2,'Population at Risk'!$C$3:$BC$249,'Population at Risk'!$BD79,FALSE)),0) -> 0 | K79: =IF(AND(OR($E$2="Orkney Health Board",$E$2="Orkney Islands Local Authority"),$F79=1),0,IF(AND(OR($E$2="Shetland Health Board",$E$2="Western Isles Health Board",$E$2="Shetland Islands Local Authority",$E$2="Eilean Siar Local Authority"),OR($F79=1,$F79=5)),0,new_ci(VALUE(LEFT(Options!$B$14,2)),$C79,$E79,$F79,2016,$I79,1,$H79,$G79*$H79,Options!$B$8))) ->  | L79: =IF(AND(OR($E$2="Orkney Health Board",$E$2="Orkney Islands Local Authority"),$F79=1),0,IF(AND(OR($E$2="Shetland Health Board",$E$2="Western Isles Health Board",$E$2="Shetland Islands Local Authority",$E$2="Eilean Siar Local Authority"),OR($F79=1,$F79=5)),0,new_ci(VALUE(LEFT(Options!$B$14,2)),$C79,$E79,$F79,2016,$I79+$J79,1,$H79,$G79*$H79,Options!$B$8))) ->  | M79: =IF(AND(OR($E$2="Orkney Health Board",$E$2="Orkney Islands Local Authority"),$F79=1),0,IF(AND(OR($E$2="Shetland Health Board",$E$2="Western Isles Health Board",$E$2="Shetland Islands Local Authority",$E$2="Eilean Siar Local Authority"),OR($F79=1,$F79=5)),0,new_yllv2(VALUE(LEFT(Options!$B$14,2)),$C79,$D79,$E79,$F79,2016,$I79,1,$H79,$G79*$H79,Options!$B$8))) ->  | N79: =IF(AND(OR($E$2="Orkney Health Board",$E$2="Orkney Islands Local Authority"),$F79=1),0,IF(AND(OR($E$2="Shetland Health Board",$E$2="Western Isles Health Board",$E$2="Shetland Islands Local Authority",$E$2="Eilean Siar Local Authority"),OR($F79=1,$F79=5)),0,new_yllv2(VALUE(LEFT(Options!$B$14,2)),$C79,$D79,$E79,$F79,2016,$I79+$J79,1,$H79,$G79*$H79,Options!$B$8))) ->  | O79: =IF(AND(OR($E$2="Orkney Health Board",$E$2="Orkney Islands Local Authority"),$F79=1),0,IF(AND(OR($E$2="Shetland Health Board",$E$2="Western Isles Health Board",$E$2="Shetland Islands Local Authority",$E$2="Eilean Siar Local Authority"),OR($F79=1,$F79=5)),0,hosp_count(VALUE(LEFT(Options!$B$14,2)),$C79,$E79,$F79,2016,$I79,1,$H79,$G79*$H79, Options!$B$8))) ->  | P79: =IF(AND(OR($E$2="Orkney Health Board",$E$2="Orkney Islands Local Authority"),$F79=1),0,IF(AND(OR($E$2="Shetland Health Board",$E$2="Western Isles Health Board",$E$2="Shetland Islands Local Authority",$E$2="Eilean Siar Local Authority"),OR($F79=1,$F79=5)),0,hosp_count(VALUE(LEFT(Options!$B$14,2)),$C79,$E79,$F79,2016,$I79+$J79,1,$H79,$G79*$H79, Options!$B$8))) ->  | Q79: =IF(AND(OR($E$2="Orkney Health Board",$E$2="Orkney Islands Local Authority"),$F79=1),0,IF(AND(OR($E$2="Shetland Health Board",$E$2="Western Isles Health Board",$E$2="Shetland Islands Local Authority",$E$2="Eilean Siar Local Authority"),OR($F79=1,$F79=5)),0,prem_mort(VALUE(LEFT(Options!$B$14,2)),$C79,$E79,$F79,2016,$I79,1,$H79,$G79*$H79,Options!$B$8))) ->  | R79: =IF(AND(OR($E$2="Orkney Health Board",$E$2="Orkney Islands Local Authority"),$F79=1),0,IF(AND(OR($E$2="Shetland Health Board",$E$2="Western Isles Health Board",$E$2="Shetland Islands Local Authority",$E$2="Eilean Siar Local Authority"),OR($F79=1,$F79=5)),0,prem_mort(VALUE(LEFT(Options!$B$14,2)),$C79,$E79,$F79,2016,$I79+$J79,1,$H79,$G79*$H79,Options!$B$8))) ->  | AI79: 5000
B80: Male 5-9 | C80: 6.9784756 | D80: 77.398476 | E80: male | F80: 1 | G80: =HLOOKUP($E$2,'Prevalence Rates'!$C$3:$BC$249,'Prevalence Rates'!$BD80,FALSE) -> 0 | H80: =HLOOKUP($E$2,'Population 2016'!$C$3:$BC$249,'Population 2016'!BD80,FALSE) -> 0 | I80: 0 | J80: =ROUND(0.807*(HLOOKUP($E$2,'Population at Risk'!$C$3:$BC$249,'Population at Risk'!$BD80,FALSE)),0) -> 0 | K80: =IF(AND(OR($E$2="Orkney Health Board",$E$2="Orkney Islands Local Authority"),$F80=1),0,IF(AND(OR($E$2="Shetland Health Board",$E$2="Western Isles Health Board",$E$2="Shetland Islands Local Authority",$E$2="Eilean Siar Local Authority"),OR($F80=1,$F80=5)),0,new_ci(VALUE(LEFT(Options!$B$14,2)),$C80,$E80,$F80,2016,$I80,1,$H80,$G80*$H80,Options!$B$8))) ->  | L80: =IF(AND(OR($E$2="Orkney Health Board",$E$2="Orkney Islands Local Authority"),$F80=1),0,IF(AND(OR($E$2="Shetland Health Board",$E$2="Western Isles Health Board",$E$2="Shetland Islands Local Authority",$E$2="Eilean Siar Local Authority"),OR($F80=1,$F80=5)),0,new_ci(VALUE(LEFT(Options!$B$14,2)),$C80,$E80,$F80,2016,$I80+$J80,1,$H80,$G80*$H80,Options!$B$8))) ->  | M80: =IF(AND(OR($E$2="Orkney Health Board",$E$2="Orkney Islands Local Authority"),$F80=1),0,IF(AND(OR($E$2="Shetland Health Board",$E$2="Western Isles Health Board",$E$2="Shetland Islands Local Authority",$E$2="Eilean Siar Local Authority"),OR($F80=1,$F80=5)),0,new_yllv2(VALUE(LEFT(Options!$B$14,2)),$C80,$D80,$E80,$F80,2016,$I80,1,$H80,$G80*$H80,Options!$B$8))) ->  | N80: =IF(AND(OR($E$2="Orkney Health Board",$E$2="Orkney Islands Local Authority"),$F80=1),0,IF(AND(OR($E$2="Shetland Health Board",$E$2="Western Isles Health Board",$E$2="Shetland Islands Local Authority",$E$2="Eilean Siar Local Authority"),OR($F80=1,$F80=5)),0,new_yllv2(VALUE(LEFT(Options!$B$14,2)),$C80,$D80,$E80,$F80,2016,$I80+$J80,1,$H80,$G80*$H80,Options!$B$8))) ->  | O80: =IF(AND(OR($E$2="Orkney Health Board",$E$2="Orkney Islands Local Authority"),$F80=1),0,IF(AND(OR($E$2="Shetland Health Board",$E$2="Western Isles Health Board",$E$2="Shetland Islands Local Authority",$E$2="Eilean Siar Local Authority"),OR($F80=1,$F80=5)),0,hosp_count(VALUE(LEFT(Options!$B$14,2)),$C80,$E80,$F80,2016,$I80,1,$H80,$G80*$H80, Options!$B$8))) ->  | P80: =IF(AND(OR($E$2="Orkney Health Board",$E$2="Orkney Islands Local Authority"),$F80=1),0,IF(AND(OR($E$2="Shetland Health Board",$E$2="Western Isles Health Board",$E$2="Shetland Islands Local Authority",$E$2="Eilean Siar Local Authority"),OR($F80=1,$F80=5)),0,hosp_count(VALUE(LEFT(Options!$B$14,2)),$C80,$E80,$F80,2016,$I80+$J80,1,$H80,$G80*$H80, Options!$B$8))) ->  | Q80: =IF(AND(OR($E$2="Orkney Health Board",$E$2="Orkney Islands Local Authority"),$F80=1),0,IF(AND(OR($E$2="Shetland Health Board",$E$2="Western Isles Health Board",$E$2="Shetland Islands Local Authority",$E$2="Eilean Siar Local Authority"),OR($F80=1,$F80=5)),0,prem_mort(VALUE(LEFT(Options!$B$14,2)),$C80,$E80,$F80,2016,$I80,1,$H80,$G80*$H80,Options!$B$8))) ->  | R80: =IF(AND(OR($E$2="Orkney Health Board",$E$2="Orkney Islands Local Authority"),$F80=1),0,IF(AND(OR($E$2="Shetland Health Board",$E$2="Western Isles Health Board",$E$2="Shetland Islands Local Authority",$E$2="Eilean Siar Local Authority"),OR($F80=1,$F80=5)),0,prem_mort(VALUE(LEFT(Options!$B$14,2)),$C80,$E80,$F80,2016,$I80+$J80,1,$H80,$G80*$H80,Options!$B$8))) ->  | AI80: 5500
B81: Male 10-15 | C81: 12.471144 | D81: 77.92114 | E81: male | F81: 1 | G81: =HLOOKUP($E$2,'Prevalence Rates'!$C$3:$BC$249,'Prevalence Rates'!$BD81,FALSE) -> 0 | H81: =HLOOKUP($E$2,'Population 2016'!$C$3:$BC$249,'Population 2016'!BD81,FALSE) -> 0 | I81: 0 | J81: =ROUND(0.807*(HLOOKUP($E$2,'Population at Risk'!$C$3:$BC$249,'Population at Risk'!$BD81,FALSE)),0) -> 0 | K81: =IF(AND(OR($E$2="Orkney Health Board",$E$2="Orkney Islands Local Authority"),$F81=1),0,IF(AND(OR($E$2="Shetland Health Board",$E$2="Western Isles Health Board",$E$2="Shetland Islands Local Authority",$E$2="Eilean Siar Local Authority"),OR($F81=1,$F81=5)),0,new_ci(VALUE(LEFT(Options!$B$14,2)),$C81,$E81,$F81,2016,$I81,1,$H81,$G81*$H81,Options!$B$8))) ->  | L81: =IF(AND(OR($E$2="Orkney Health Board",$E$2="Orkney Islands Local Authority"),$F81=1),0,IF(AND(OR($E$2="Shetland Health Board",$E$2="Western Isles Health Board",$E$2="Shetland Islands Local Authority",$E$2="Eilean Siar Local Authority"),OR($F81=1,$F81=5)),0,new_ci(VALUE(LEFT(Options!$B$14,2)),$C81,$E81,$F81,2016,$I81+$J81,1,$H81,$G81*$H81,Options!$B$8))) ->  | M81: =IF(AND(OR($E$2="Orkney Health Board",$E$2="Orkney Islands Local Authority"),$F81=1),0,IF(AND(OR($E$2="Shetland Health Board",$E$2="Western Isles Health Board",$E$2="Shetland Islands Local Authority",$E$2="Eilean Siar Local Authority"),OR($F81=1,$F81=5)),0,new_yllv2(VALUE(LEFT(Options!$B$14,2)),$C81,$D81,$E81,$F81,2016,$I81,1,$H81,$G81*$H81,Options!$B$8))) ->  | N81: =IF(AND(OR($E$2="Orkney Health Board",$E$2="Orkney Islands Local Authority"),$F81=1),0,IF(AND(OR($E$2="Shetland Health Board",$E$2="Western Isles Health Board",$E$2="Shetland Islands Local Authority",$E$2="Eilean Siar Local Authority"),OR($F81=1,$F81=5)),0,new_yllv2(VALUE(LEFT(Options!$B$14,2)),$C81,$D81,$E81,$F81,2016,$I81+$J81,1,$H81,$G81*$H81,Options!$B$8))) ->  | O81: =IF(AND(OR($E$2="Orkney Health Board",$E$2="Orkney Islands Local Authority"),$F81=1),0,IF(AND(OR($E$2="Shetland Health Board",$E$2="Western Isles Health Board",$E$2="Shetland Islands Local Authority",$E$2="Eilean Siar Local Authority"),OR($F81=1,$F81=5)),0,hosp_count(VALUE(LEFT(Options!$B$14,2)),$C81,$E81,$F81,2016,$I81,1,$H81,$G81*$H81, Options!$B$8))) ->  | P81: =IF(AND(OR($E$2="Orkney Health Board",$E$2="Orkney Islands Local Authority"),$F81=1),0,IF(AND(OR($E$2="Shetland Health Board",$E$2="Western Isles Health Board",$E$2="Shetland Islands Local Authority",$E$2="Eilean Siar Local Authority"),OR($F81=1,$F81=5)),0,hosp_count(VALUE(LEFT(Options!$B$14,2)),$C81,$E81,$F81,2016,$I81+$J81,1,$H81,$G81*$H81, Options!$B$8))) ->  | Q81: =IF(AND(OR($E$2="Orkney Health Board",$E$2="Orkney Islands Local Authority"),$F81=1),0,IF(AND(OR($E$2="Shetland Health Board",$E$2="Western Isles Health Board",$E$2="Shetland Islands Local Authority",$E$2="Eilean Siar Local Authority"),OR($F81=1,$F81=5)),0,prem_mort(VALUE(LEFT(Options!$B$14,2)),$C81,$E81,$F81,2016,$I81,1,$H81,$G81*$H81,Options!$B$8))) ->  | R81: =IF(AND(OR($E$2="Orkney Health Board",$E$2="Orkney Islands Local Authority"),$F81=1),0,IF(AND(OR($E$2="Shetland Health Board",$E$2="Western Isles Health Board",$E$2="Shetland Islands Local Authority",$E$2="Eilean Siar Local Authority"),OR($F81=1,$F81=5)),0,prem_mort(VALUE(LEFT(Options!$B$14,2)),$C81,$E81,$F81,2016,$I81+$J81,1,$H81,$G81*$H81,Options!$B$8))) ->  | AI81: 6600
B82: Male 16-19 | C82: 17.556318 | D82: 77.07632 | E82: male | F82: 1 | G82: =HLOOKUP($E$2,'Prevalence Rates'!$C$3:$BC$249,'Prevalence Rates'!$BD82,FALSE) -> 0.3326 | H82: =HLOOKUP($E$2,'Population 2016'!$C$3:$BC$249,'Population 2016'!BD82,FALSE) -> 25359 | I82: 0 | J82: =ROUND(0.807*(HLOOKUP($E$2,'Population at Risk'!$C$3:$BC$249,'Population at Risk'!$BD82,FALSE)),0) -> 6807 | K82: =IF(AND(OR($E$2="Orkney Health Board",$E$2="Orkney Islands Local Authority"),$F82=1),0,IF(AND(OR($E$2="Shetland Health Board",$E$2="Western Isles Health Board",$E$2="Shetland Islands Local Authority",$E$2="Eilean Siar Local Authority"),OR($F82=1,$F82=5)),0,new_ci(VALUE(LEFT(Options!$B$14,2)),$C82,$E82,$F82,2016,$I82,1,$H82,$G82*$H82,Options!$B$8))) -> 19.17168162 | L82: =IF(AND(OR($E$2="Orkney Health Board",$E$2="Orkney Islands Local Authority"),$F82=1),0,IF(AND(OR($E$2="Shetland Health Board",$E$2="Western Isles Health Board",$E$2="Shetland Islands Local Authority",$E$2="Eilean Siar Local Authority"),OR($F82=1,$F82=5)),0,new_ci(VALUE(LEFT(Options!$B$14,2)),$C82,$E82,$F82,2016,$I82+$J82,1,$H82,$G82*$H82,Options!$B$8))) -> 19.1336196 | M82: =IF(AND(OR($E$2="Orkney Health Board",$E$2="Orkney Islands Local Authority"),$F82=1),0,IF(AND(OR($E$2="Shetland Health Board",$E$2="Western Isles Health Board",$E$2="Shetland Islands Local Authority",$E$2="Eilean Siar Local Authority"),OR($F82=1,$F82=5)),0,new_yllv2(VALUE(LEFT(Options!$B$14,2)),$C82,$D82,$E82,$F82,2016,$I82,1,$H82,$G82*$H82,Options!$B$8))) -> 1121.926847 | N82: =IF(AND(OR($E$2="Orkney Health Board",$E$2="Orkney Islands Local Authority"),$F82=1),0,IF(AND(OR($E$2="Shetland Health Board",$E$2="Western Isles Health Board",$E$2="Shetland Islands Local Authority",$E$2="Eilean Siar Local Authority"),OR($F82=1,$F82=5)),0,new_yllv2(VALUE(LEFT(Options!$B$14,2)),$C82,$D82,$E82,$F82,2016,$I82+$J82,1,$H82,$G82*$H82,Options!$B$8))) -> 1119.699457 | O82: =IF(AND(OR($E$2="Orkney Health Board",$E$2="Orkney Islands Local Authority"),$F82=1),0,IF(AND(OR($E$2="Shetland Health Board",$E$2="Western Isles Health Board",$E$2="Shetland Islands Local Authority",$E$2="Eilean Siar Local Authority"),OR($F82=1,$F82=5)),0,hosp_count(VALUE(LEFT(Options!$B$14,2)),$C82,$E82,$F82,2016,$I82,1,$H82,$G82*$H82, Options!$B$8))) -> 2447.125645 | P82: =IF(AND(OR($E$2="Orkney Health Board",$E$2="Orkney Islands Local Authority"),$F82=1),0,IF(AND(OR($E$2="Shetland Health Board",$E$2="Western Isles Health Board",$E$2="Shetland Islands Local Authority",$E$2="Eilean Siar Local Authority"),OR($F82=1,$F82=5)),0,hosp_count(VALUE(LEFT(Options!$B$14,2)),$C82,$E82,$F82,2016,$I82+$J82,1,$H82,$G82*$H82, Options!$B$8))) -> 2443.934148 | Q82: =IF(AND(OR($E$2="Orkney Health Board",$E$2="Orkney Islands Local Authority"),$F82=1),0,IF(AND(OR($E$2="Shetland Health Board",$E$2="Western Isles Health Board",$E$2="Shetland Islands Local Authority",$E$2="Eilean Siar Local Authority"),OR($F82=1,$F82=5)),0,prem_mort(VALUE(LEFT(Options!$B$14,2)),$C82,$E82,$F82,2016,$I82,1,$H82,$G82*$H82,Options!$B$8))) -> 19.17168162 | R82: =IF(AND(OR($E$2="Orkney Health Board",$E$2="Orkney Islands Local Authority"),$F82=1),0,IF(AND(OR($E$2="Shetland Health Board",$E$2="Western Isles Health Board",$E$2="Shetland Islands Local Authority",$E$2="Eilean Siar Local Authority"),OR($F82=1,$F82=5)),0,prem_mort(VALUE(LEFT(Options!$B$14,2)),$C82,$E82,$F82,2016,$I82+$J82,1,$H82,$G82*$H82,Options!$B$8))) -> 19.1336196 | S82: 75.60109475 | T82: 75.451002 | U82: 4424.176216 | V82: 4415.392788 | W82: 9649.92959 | X82: 9637.344328 | Y82: 75.60109475 | Z82: 75.451002 | AA82: 332644.8169 | AB82: 331984.4088 | AC82: 19466375.35 | AD82: 19427728.27 | AE82: 42459690.2 | AF82: 42404315.04 | AG82: 332644.8169 | AH82: 331984.4088 | AI82: 4400
B83: Male 20-24 | C83: 22.054632 | D83: 77.70463 | E83: male | F83: 1 | G83: =HLOOKUP($E$2,'Prevalence Rates'!$C$3:$BC$249,'Prevalence Rates'!$BD83,FALSE) -> 0.3326 | H83: =HLOOKUP($E$2,'Population 2016'!$C$3:$BC$249,'Population 2016'!BD83,FALSE) -> 37180 | I83: 0 | J83: =ROUND(0.807*(HLOOKUP($E$2,'Population at Risk'!$C$3:$BC$249,'Population at Risk'!$BD83,FALSE)),0) -> 9979 | K83: =IF(AND(OR($E$2="Orkney Health Board",$E$2="Orkney Islands Local Authority"),$F83=1),0,IF(AND(OR($E$2="Shetland Health Board",$E$2="Western Isles Health Board",$E$2="Shetland Islands Local Authority",$E$2="Eilean Siar Local Authority"),OR($F83=1,$F83=5)),0,new_ci(VALUE(LEFT(Options!$B$14,2)),$C83,$E83,$F83,2016,$I83,1,$H83,$G83*$H83,Options!$B$8))) -> 39.46897308 | L83: =IF(AND(OR($E$2="Orkney Health Board",$E$2="Orkney Islands Local Authority"),$F83=1),0,IF(AND(OR($E$2="Shetland Health Board",$E$2="Western Isles Health Board",$E$2="Shetland Islands Local Authority",$E$2="Eilean Siar Local Authority"),OR($F83=1,$F83=5)),0,new_ci(VALUE(LEFT(Options!$B$14,2)),$C83,$E83,$F83,2016,$I83+$J83,1,$H83,$G83*$H83,Options!$B$8))) -> 39.39064292 | M83: =IF(AND(OR($E$2="Orkney Health Board",$E$2="Orkney Islands Local Authority"),$F83=1),0,IF(AND(OR($E$2="Shetland Health Board",$E$2="Western Isles Health Board",$E$2="Shetland Islands Local Authority",$E$2="Eilean Siar Local Authority"),OR($F83=1,$F83=5)),0,new_yllv2(VALUE(LEFT(Options!$B$14,2)),$C83,$D83,$E83,$F83,2016,$I83,1,$H83,$G83*$H83,Options!$B$8))) -> 2156.9793 | N83: =IF(AND(OR($E$2="Orkney Health Board",$E$2="Orkney Islands Local Authority"),$F83=1),0,IF(AND(OR($E$2="Shetland Health Board",$E$2="Western Isles Health Board",$E$2="Shetland Islands Local Authority",$E$2="Eilean Siar Local Authority"),OR($F83=1,$F83=5)),0,new_yllv2(VALUE(LEFT(Options!$B$14,2)),$C83,$D83,$E83,$F83,2016,$I83+$J83,1,$H83,$G83*$H83,Options!$B$8))) -> 2152.698557 | O83: =IF(AND(OR($E$2="Orkney Health Board",$E$2="Orkney Islands Local Authority"),$F83=1),0,IF(AND(OR($E$2="Shetland Health Board",$E$2="Western Isles Health Board",$E$2="Shetland Islands Local Authority",$E$2="Eilean Siar Local Authority"),OR($F83=1,$F83=5)),0,hosp_count(VALUE(LEFT(Options!$B$14,2)),$C83,$E83,$F83,2016,$I83,1,$H83,$G83*$H83, Options!$B$8))) -> 4208.978207 | P83: =IF(AND(OR($E$2="Orkney Health Board",$E$2="Orkney Islands Local Authority"),$F83=1),0,IF(AND(OR($E$2="Shetland Health Board",$E$2="Western Isles Health Board",$E$2="Shetland Islands Local Authority",$E$2="Eilean Siar Local Authority"),OR($F83=1,$F83=5)),0,hosp_count(VALUE(LEFT(Options!$B$14,2)),$C83,$E83,$F83,2016,$I83+$J83,1,$H83,$G83*$H83, Options!$B$8))) -> 4203.489516 | Q83: =IF(AND(OR($E$2="Orkney Health Board",$E$2="Orkney Islands Local Authority"),$F83=1),0,IF(AND(OR($E$2="Shetland Health Board",$E$2="Western Isles Health Board",$E$2="Shetland Islands Local Authority",$E$2="Eilean Siar Local Authority"),OR($F83=1,$F83=5)),0,prem_mort(VALUE(LEFT(Options!$B$14,2)),$C83,$E83,$F83,2016,$I83,1,$H83,$G83*$H83,Options!$B$8))) -> 39.46897308 | R83: =IF(AND(OR($E$2="Orkney Health Board",$E$2="Orkney Islands Local Authority"),$F83=1),0,IF(AND(OR($E$2="Shetland Health Board",$E$2="Western Isles Health Board",$E$2="Shetland Islands Local Authority",$E$2="Eilean Siar Local Authority"),OR($F83=1,$F83=5)),0,prem_mort(VALUE(LEFT(Options!$B$14,2)),$C83,$E83,$F83,2016,$I83+$J83,1,$H83,$G83*$H83,Options!$B$8))) -> 39.39064292 | S83: 106.1564634 | T83: 105.9457851 | U83: 5801.45051 | V83: 5789.936946 | W83: 11320.54386 | X83: 11305.78138 | Y83: 106.1564634 | Z83: 105.9457851 | AA83: 636938.7801 | AB83: 635674.7109 | AC83: 34808703.06 | AD83: 34739621.68 | AE83: 67923263.16 | AF83: 67834688.26 | AG83: 636938.7801 | AH83: 635674.7109 | AI83: 6000
B84: Male 25-29 | C84: 26.959763 | D84: 77.78976 | E84: male | F84: 1 | G84: =HLOOKUP($E$2,'Prevalence Rates'!$C$3:$BC$249,'Prevalence Rates'!$BD84,FALSE) -> 0.4096 | H84: =HLOOKUP($E$2,'Population 2016'!$C$3:$BC$249,'Population 2016'!BD84,FALSE) -> 42600 | I84: 0 | J84: =ROUND(0.807*(HLOOKUP($E$2,'Population at Risk'!$C$3:$BC$249,'Population at Risk'!$BD84,FALSE)),0) -> 14081 | K84: =IF(AND(OR($E$2="Orkney Health Board",$E$2="Orkney Islands Local Authority"),$F84=1),0,IF(AND(OR($E$2="Shetland Health Board",$E$2="Western Isles Health Board",$E$2="Shetland Islands Local Authority",$E$2="Eilean Siar Local Authority"),OR($F84=1,$F84=5)),0,new_ci(VALUE(LEFT(Options!$B$14,2)),$C84,$E84,$F84,2016,$I84,1,$H84,$G84*$H84,Options!$B$8))) -> 65.4746096 | L84: =IF(AND(OR($E$2="Orkney Health Board",$E$2="Orkney Islands Local Authority"),$F84=1),0,IF(AND(OR($E$2="Shetland Health Board",$E$2="Western Isles Health Board",$E$2="Shetland Islands Local Authority",$E$2="Eilean Siar Local Authority"),OR($F84=1,$F84=5)),0,new_ci(VALUE(LEFT(Options!$B$14,2)),$C84,$E84,$F84,2016,$I84+$J84,1,$H84,$G84*$H84,Options!$B$8))) -> 65.32273615 | M84: =IF(AND(OR($E$2="Orkney Health Board",$E$2="Orkney Islands Local Authority"),$F84=1),0,IF(AND(OR($E$2="Shetland Health Board",$E$2="Western Isles Health Board",$E$2="Shetland Islands Local Authority",$E$2="Eilean Siar Local Authority"),OR($F84=1,$F84=5)),0,new_yllv2(VALUE(LEFT(Options!$B$14,2)),$C84,$D84,$E84,$F84,2016,$I84,1,$H84,$G84*$H84,Options!$B$8))) -> 3262.5996 | N84: =IF(AND(OR($E$2="Orkney Health Board",$E$2="Orkney Islands Local Authority"),$F84=1),0,IF(AND(OR($E$2="Shetland Health Board",$E$2="Western Isles Health Board",$E$2="Shetland Islands Local Authority",$E$2="Eilean Siar Local Authority"),OR($F84=1,$F84=5)),0,new_yllv2(VALUE(LEFT(Options!$B$14,2)),$C84,$D84,$E84,$F84,2016,$I84+$J84,1,$H84,$G84*$H84,Options!$B$8))) -> 3255.031747 | O84: =IF(AND(OR($E$2="Orkney Health Board",$E$2="Orkney Islands Local Authority"),$F84=1),0,IF(AND(OR($E$2="Shetland Health Board",$E$2="Western Isles Health Board",$E$2="Shetland Islands Local Authority",$E$2="Eilean Siar Local Authority"),OR($F84=1,$F84=5)),0,hosp_count(VALUE(LEFT(Options!$B$14,2)),$C84,$E84,$F84,2016,$I84,1,$H84,$G84*$H84, Options!$B$8))) -> 5739.727444 | P84: =IF(AND(OR($E$2="Orkney Health Board",$E$2="Orkney Islands Local Authority"),$F84=1),0,IF(AND(OR($E$2="Shetland Health Board",$E$2="Western Isles Health Board",$E$2="Shetland Islands Local Authority",$E$2="Eilean Siar Local Authority"),OR($F84=1,$F84=5)),0,hosp_count(VALUE(LEFT(Options!$B$14,2)),$C84,$E84,$F84,2016,$I84+$J84,1,$H84,$G84*$H84, Options!$B$8))) -> 5730.794307 | Q84: =IF(AND(OR($E$2="Orkney Health Board",$E$2="Orkney Islands Local Authority"),$F84=1),0,IF(AND(OR($E$2="Shetland Health Board",$E$2="Western Isles Health Board",$E$2="Shetland Islands Local Authority",$E$2="Eilean Siar Local Authority"),OR($F84=1,$F84=5)),0,prem_mort(VALUE(LEFT(Options!$B$14,2)),$C84,$E84,$F84,2016,$I84,1,$H84,$G84*$H84,Options!$B$8))) -> 65.4746096 | R84: =IF(AND(OR($E$2="Orkney Health Board",$E$2="Orkney Islands Local Authority"),$F84=1),0,IF(AND(OR($E$2="Shetland Health Board",$E$2="Western Isles Health Board",$E$2="Shetland Islands Local Authority",$E$2="Eilean Siar Local Authority"),OR($F84=1,$F84=5)),0,prem_mort(VALUE(LEFT(Options!$B$14,2)),$C84,$E84,$F84,2016,$I84+$J84,1,$H84,$G84*$H84,Options!$B$8))) -> 65.32273615 | S84: 153.6962667 | T84: 153.3397562 | U84: 7658.684506 | V84: 7640.919593 | W84: 13473.5386 | X84: 13452.5688 | Y84: 153.6962667 | Z84: 153.3397562 | AA84: 922177.5999 | AB84: 920038.5374 | AC84: 45952107.04 | AD84: 45845517.56 | AE84: 80841231.6 | AF84: 80715412.78 | AG84: 922177.5999 | AH84: 920038.5374 | AI84: 6000
B85: Male 30-34 | C85: 31.981522 | D85: 78.06152 | E85: male | F85: 1 | G85: =HLOOKUP($E$2,'Prevalence Rates'!$C$3:$BC$249,'Prevalence Rates'!$BD85,FALSE) -> 0.4096 | H85: =HLOOKUP($E$2,'Population 2016'!$C$3:$BC$249,'Population 2016'!BD85,FALSE) -> 38006 | I85: 0 | J85: =ROUND(0.807*(HLOOKUP($E$2,'Population at Risk'!$C$3:$BC$249,'Population at Risk'!$BD85,FALSE)),0) -> 12563 | K85: =IF(AND(OR($E$2="Orkney Health Board",$E$2="Orkney Islands Local Authority"),$F85=1),0,IF(AND(OR($E$2="Shetland Health Board",$E$2="Western Isles Health Board",$E$2="Shetland Islands Local Authority",$E$2="Eilean Siar Local Authority"),OR($F85=1,$F85=5)),0,new_ci(VALUE(LEFT(Options!$B$14,2)),$C85,$E85,$F85,2016,$I85,1,$H85,$G85*$H85,Options!$B$8))) -> 85.31003182 | L85: =IF(AND(OR($E$2="Orkney Health Board",$E$2="Orkney Islands Local Authority"),$F85=1),0,IF(AND(OR($E$2="Shetland Health Board",$E$2="Western Isles Health Board",$E$2="Shetland Islands Local Authority",$E$2="Eilean Siar Local Authority"),OR($F85=1,$F85=5)),0,new_ci(VALUE(LEFT(Options!$B$14,2)),$C85,$E85,$F85,2016,$I85+$J85,1,$H85,$G85*$H85,Options!$B$8))) -> 85.11225628 | M85: =IF(AND(OR($E$2="Orkney Health Board",$E$2="Orkney Islands Local Authority"),$F85=1),0,IF(AND(OR($E$2="Shetland Health Board",$E$2="Western Isles Health Board",$E$2="Shetland Islands Local Authority",$E$2="Eilean Siar Local Authority"),OR($F85=1,$F85=5)),0,new_yllv2(VALUE(LEFT(Options!$B$14,2)),$C85,$D85,$E85,$F85,2016,$I85,1,$H85,$G85*$H85,Options!$B$8))) -> 3845.776064 | N85: =IF(AND(OR($E$2="Orkney Health Board",$E$2="Orkney Islands Local Authority"),$F85=1),0,IF(AND(OR($E$2="Shetland Health Board",$E$2="Western Isles Health Board",$E$2="Shetland Islands Local Authority",$E$2="Eilean Siar Local Authority"),OR($F85=1,$F85=5)),0,new_yllv2(VALUE(LEFT(Options!$B$14,2)),$C85,$D85,$E85,$F85,2016,$I85+$J85,1,$H85,$G85*$H85,Options!$B$8))) -> 3836.860343 | O85: =IF(AND(OR($E$2="Orkney Health Board",$E$2="Orkney Islands Local Authority"),$F85=1),0,IF(AND(OR($E$2="Shetland Health Board",$E$2="Western Isles Health Board",$E$2="Shetland Islands Local Authority",$E$2="Eilean Siar Local Authority"),OR($F85=1,$F85=5)),0,hosp_count(VALUE(LEFT(Options!$B$14,2)),$C85,$E85,$F85,2016,$I85,1,$H85,$G85*$H85, Options!$B$8))) -> 6119.924679 | P85: =IF(AND(OR($E$2="Orkney Health Board",$E$2="Orkney Islands Local Authority"),$F85=1),0,IF(AND(OR($E$2="Shetland Health Board",$E$2="Western Isles Health Board",$E$2="Shetland Islands Local Authority",$E$2="Eilean Siar Local Authority"),OR($F85=1,$F85=5)),0,hosp_count(VALUE(LEFT(Options!$B$14,2)),$C85,$E85,$F85,2016,$I85+$J85,1,$H85,$G85*$H85, Options!$B$8))) -> 6110.399436 | Q85: =IF(AND(OR($E$2="Orkney Health Board",$E$2="Orkney Islands Local Authority"),$F85=1),0,IF(AND(OR($E$2="Shetland Health Board",$E$2="Western Isles Health Board",$E$2="Shetland Islands Local Authority",$E$2="Eilean Siar Local Authority"),OR($F85=1,$F85=5)),0,prem_mort(VALUE(LEFT(Options!$B$14,2)),$C85,$E85,$F85,2016,$I85,1,$H85,$G85*$H85,Options!$B$8))) -> 85.31003182 | R85: =IF(AND(OR($E$2="Orkney Health Board",$E$2="Orkney Islands Local Authority"),$F85=1),0,IF(AND(OR($E$2="Shetland Health Board",$E$2="Western Isles Health Board",$E$2="Shetland Islands Local Authority",$E$2="Eilean Siar Local Authority"),OR($F85=1,$F85=5)),0,prem_mort(VALUE(LEFT(Options!$B$14,2)),$C85,$E85,$F85,2016,$I85+$J85,1,$H85,$G85*$H85,Options!$B$8))) -> 85.11225628 | S85: 224.464642 | T85: 223.9442622 | U85: 10118.86561 | V85: 10095.40689 | W85: 16102.52244 | X85: 16077.45997 | Y85: 224.464642 | Z85: 223.9442622 | AA85: 1459020.173 | AB85: 1455637.704 | AC85: 65772626.47 | AD85: 65620144.79 | AE85: 104666395.9 | AF85: 104503489.8 | AG85: 1459020.173 | AH85: 1455637.704 | AI85: 6500
B86: Male 35-39 | C86: 36.92601 | D86: 78.33601 | E86: male | F86: 1 | G86: =HLOOKUP($E$2,'Prevalence Rates'!$C$3:$BC$249,'Prevalence Rates'!$BD86,FALSE) -> 0.4741 | H86: =HLOOKUP($E$2,'Population 2016'!$C$3:$BC$249,'Population 2016'!BD86,FALSE) -> 32984 | I86: 0 | J86: =ROUND(0.807*(HLOOKUP($E$2,'Population at Risk'!$C$3:$BC$249,'Population at Risk'!$BD86,FALSE)),0) -> 12620 | K86: =IF(AND(OR($E$2="Orkney Health Board",$E$2="Orkney Islands Local Authority"),$F86=1),0,IF(AND(OR($E$2="Shetland Health Board",$E$2="Western Isles Health Board",$E$2="Shetland Islands Local Authority",$E$2="Eilean Siar Local Authority"),OR($F86=1,$F86=5)),0,new_ci(VALUE(LEFT(Options!$B$14,2)),$C86,$E86,$F86,2016,$I86,1,$H86,$G86*$H86,Options!$B$8))) -> 107.4811575 | L86: =IF(AND(OR($E$2="Orkney Health Board",$E$2="Orkney Islands Local Authority"),$F86=1),0,IF(AND(OR($E$2="Shetland Health Board",$E$2="Western Isles Health Board",$E$2="Shetland Islands Local Authority",$E$2="Eilean Siar Local Authority"),OR($F86=1,$F86=5)),0,new_ci(VALUE(LEFT(Options!$B$14,2)),$C86,$E86,$F86,2016,$I86+$J86,1,$H86,$G86*$H86,Options!$B$8))) -> 107.2046633 | M86: =IF(AND(OR($E$2="Orkney Health Board",$E$2="Orkney Islands Local Authority"),$F86=1),0,IF(AND(OR($E$2="Shetland Health Board",$E$2="Western Isles Health Board",$E$2="Shetland Islands Local Authority",$E$2="Eilean Siar Local Authority"),OR($F86=1,$F86=5)),0,new_yllv2(VALUE(LEFT(Options!$B$14,2)),$C86,$D86,$E86,$F86,2016,$I86,1,$H86,$G86*$H86,Options!$B$8))) -> 4343.313573 | N86: =IF(AND(OR($E$2="Orkney Health Board",$E$2="Orkney Islands Local Authority"),$F86=1),0,IF(AND(OR($E$2="Shetland Health Board",$E$2="Western Isles Health Board",$E$2="Shetland Islands Local Authority",$E$2="Eilean Siar Local Authority"),OR($F86=1,$F86=5)),0,new_yllv2(VALUE(LEFT(Options!$B$14,2)),$C86,$D86,$E86,$F86,2016,$I86+$J86,1,$H86,$G86*$H86,Options!$B$8))) -> 4332.140446 | O86: =IF(AND(OR($E$2="Orkney Health Board",$E$2="Orkney Islands Local Authority"),$F86=1),0,IF(AND(OR($E$2="Shetland Health Board",$E$2="Western Isles Health Board",$E$2="Shetland Islands Local Authority",$E$2="Eilean Siar Local Authority"),OR($F86=1,$F86=5)),0,hosp_count(VALUE(LEFT(Options!$B$14,2)),$C86,$E86,$F86,2016,$I86,1,$H86,$G86*$H86, Options!$B$8))) -> 6330.212896 | P86: =IF(AND(OR($E$2="Orkney Health Board",$E$2="Orkney Islands Local Authority"),$F86=1),0,IF(AND(OR($E$2="Shetland Health Board",$E$2="Western Isles Health Board",$E$2="Shetland Islands Local Authority",$E$2="Eilean Siar Local Authority"),OR($F86=1,$F86=5)),0,hosp_count(VALUE(LEFT(Options!$B$14,2)),$C86,$E86,$F86,2016,$I86+$J86,1,$H86,$G86*$H86, Options!$B$8))) -> 6319.096359 | Q86: =IF(AND(OR($E$2="Orkney Health Board",$E$2="Orkney Islands Local Authority"),$F86=1),0,IF(AND(OR($E$2="Shetland Health Board",$E$2="Western Isles Health Board",$E$2="Shetland Islands Local Authority",$E$2="Eilean Siar Local Authority"),OR($F86=1,$F86=5)),0,prem_mort(VALUE(LEFT(Options!$B$14,2)),$C86,$E86,$F86,2016,$I86,1,$H86,$G86*$H86,Options!$B$8))) -> 107.4811575 | R86: =IF(AND(OR($E$2="Orkney Health Board",$E$2="Orkney Islands Local Authority"),$F86=1),0,IF(AND(OR($E$2="Shetland Health Board",$E$2="Western Isles Health Board",$E$2="Shetland Islands Local Authority",$E$2="Eilean Siar Local Authority"),OR($F86=1,$F86=5)),0,prem_mort(VALUE(LEFT(Options!$B$14,2)),$C86,$E86,$F86,2016,$I86+$J86,1,$H86,$G86*$H86,Options!$B$8))) -> 107.2046633 | S86: 325.8584691 | T86: 325.0202018 | U86: 13167.94074 | V86: 13134.06635 | W86: 19191.76842 | X86: 19158.0656 | Y86: 325.8584691 | Z86: 325.0202018 | AA86: 2281009.284 | AB86: 2275141.412 | AC86: 92175585.16 | AD86: 91938464.47 | AE86: 134342378.9 | AF86: 134106459.2 | AG86: 2281009.284 | AH86: 2275141.412 | AI86: 7000
B87: Male 40-44 | C87: 42.067703 | D87: 78.9077 | E87: male | F87: 1 | G87: =HLOOKUP($E$2,'Prevalence Rates'!$C$3:$BC$249,'Prevalence Rates'!$BD87,FALSE) -> 0.4741 | H87: =HLOOKUP($E$2,'Population 2016'!$C$3:$BC$249,'Population 2016'!BD87,FALSE) -> 31623 | I87: 0 | J87: =ROUND(0.807*(HLOOKUP($E$2,'Population at Risk'!$C$3:$BC$249,'Population at Risk'!$BD87,FALSE)),0) -> 12099 | K87: =IF(AND(OR($E$2="Orkney Health Board",$E$2="Orkney Islands Local Authority"),$F87=1),0,IF(AND(OR($E$2="Shetland Health Board",$E$2="Western Isles Health Board",$E$2="Shetland Islands Local Authority",$E$2="Eilean Siar Local Authority"),OR($F87=1,$F87=5)),0,new_ci(VALUE(LEFT(Options!$B$14,2)),$C87,$E87,$F87,2016,$I87,1,$H87,$G87*$H87,Options!$B$8))) -> 151.7923623 | L87: =IF(AND(OR($E$2="Orkney Health Board",$E$2="Orkney Islands Local Authority"),$F87=1),0,IF(AND(OR($E$2="Shetland Health Board",$E$2="Western Isles Health Board",$E$2="Shetland Islands Local Authority",$E$2="Eilean Siar Local Authority"),OR($F87=1,$F87=5)),0,new_ci(VALUE(LEFT(Options!$B$14,2)),$C87,$E87,$F87,2016,$I87+$J87,1,$H87,$G87*$H87,Options!$B$8))) -> 151.4023547 | M87: =IF(AND(OR($E$2="Orkney Health Board",$E$2="Orkney Islands Local Authority"),$F87=1),0,IF(AND(OR($E$2="Shetland Health Board",$E$2="Western Isles Health Board",$E$2="Shetland Islands Local Authority",$E$2="Eilean Siar Local Authority"),OR($F87=1,$F87=5)),0,new_yllv2(VALUE(LEFT(Options!$B$14,2)),$C87,$D87,$E87,$F87,2016,$I87,1,$H87,$G87*$H87,Options!$B$8))) -> 5440.23781 | N87: =IF(AND(OR($E$2="Orkney Health Board",$E$2="Orkney Islands Local Authority"),$F87=1),0,IF(AND(OR($E$2="Shetland Health Board",$E$2="Western Isles Health Board",$E$2="Shetland Islands Local Authority",$E$2="Eilean Siar Local Authority"),OR($F87=1,$F87=5)),0,new_yllv2(VALUE(LEFT(Options!$B$14,2)),$C87,$D87,$E87,$F87,2016,$I87+$J87,1,$H87,$G87*$H87,Options!$B$8))) -> 5426.259937 | O87: =IF(AND(OR($E$2="Orkney Health Board",$E$2="Orkney Islands Local Authority"),$F87=1),0,IF(AND(OR($E$2="Shetland Health Board",$E$2="Western Isles Health Board",$E$2="Shetland Islands Local Authority",$E$2="Eilean Siar Local Authority"),OR($F87=1,$F87=5)),0,hosp_count(VALUE(LEFT(Options!$B$14,2)),$C87,$E87,$F87,2016,$I87,1,$H87,$G87*$H87, Options!$B$8))) -> 7284.154202 | P87: =IF(AND(OR($E$2="Orkney Health Board",$E$2="Orkney Islands Local Authority"),$F87=1),0,IF(AND(OR($E$2="Shetland Health Board",$E$2="Western Isles Health Board",$E$2="Shetland Islands Local Authority",$E$2="Eilean Siar Local Authority"),OR($F87=1,$F87=5)),0,hosp_count(VALUE(LEFT(Options!$B$14,2)),$C87,$E87,$F87,2016,$I87+$J87,1,$H87,$G87*$H87, Options!$B$8))) -> 7271.362724 | Q87: =IF(AND(OR($E$2="Orkney Health Board",$E$2="Orkney Islands Local Authority"),$F87=1),0,IF(AND(OR($E$2="Shetland Health Board",$E$2="Western Isles Health Board",$E$2="Shetland Islands Local Authority",$E$2="Eilean Siar Local Authority"),OR($F87=1,$F87=5)),0,prem_mort(VALUE(LEFT(Options!$B$14,2)),$C87,$E87,$F87,2016,$I87,1,$H87,$G87*$H87,Options!$B$8))) -> 151.7923623 | R87: =IF(AND(OR($E$2="Orkney Health Board",$E$2="Orkney Islands Local Authority"),$F87=1),0,IF(AND(OR($E$2="Shetland Health Board",$E$2="Western Isles Health Board",$E$2="Shetland Islands Local Authority",$E$2="Eilean Siar Local Authority"),OR($F87=1,$F87=5)),0,prem_mort(VALUE(LEFT(Options!$B$14,2)),$C87,$E87,$F87,2016,$I87+$J87,1,$H87,$G87*$H87,Options!$B$8))) -> 151.4023547 | S87: 480.0062053 | T87: 478.7729016 | U87: 17203.42096 | V87: 17159.21936 | W87: 23034.35538 | X87: 22993.90546 | Y87: 480.0062053 | Z87: 478.7729016 | AA87: 3360043.437 | AB87: 3351410.311 | AC87: 120423946.7 | AD87: 120114535.5 | AE87: 161240487.7 | AF87: 160957338.2 | AG87: 3360043.437 | AH87: 3351410.311 | AI87: 7000
B88: Male 45-49 | C88: 47.038155 | D88: 79.41815 | E88: male | F88: 1 | G88: =HLOOKUP($E$2,'Prevalence Rates'!$C$3:$BC$249,'Prevalence Rates'!$BD88,FALSE) -> 0.4347 | H88: =HLOOKUP($E$2,'Population 2016'!$C$3:$BC$249,'Population 2016'!BD88,FALSE) -> 35878 | I88: 0 | J88: =ROUND(0.807*(HLOOKUP($E$2,'Population at Risk'!$C$3:$BC$249,'Population at Risk'!$BD88,FALSE)),0) -> 12586 | K88: =IF(AND(OR($E$2="Orkney Health Board",$E$2="Orkney Islands Local Authority"),$F88=1),0,IF(AND(OR($E$2="Shetland Health Board",$E$2="Western Isles Health Board",$E$2="Shetland Islands Local Authority",$E$2="Eilean Siar Local Authority"),OR($F88=1,$F88=5)),0,new_ci(VALUE(LEFT(Options!$B$14,2)),$C88,$E88,$F88,2016,$I88,1,$H88,$G88*$H88,Options!$B$8))) -> 250.3338635 | L88: =IF(AND(OR($E$2="Orkney Health Board",$E$2="Orkney Islands Local Authority"),$F88=1),0,IF(AND(OR($E$2="Shetland Health Board",$E$2="Western Isles Health Board",$E$2="Shetland Islands Local Authority",$E$2="Eilean Siar Local Authority"),OR($F88=1,$F88=5)),0,new_ci(VALUE(LEFT(Options!$B$14,2)),$C88,$E88,$F88,2016,$I88+$J88,1,$H88,$G88*$H88,Options!$B$8))) -> 249.7302692 | M88: =IF(AND(OR($E$2="Orkney Health Board",$E$2="Orkney Islands Local Authority"),$F88=1),0,IF(AND(OR($E$2="Shetland Health Board",$E$2="Western Isles Health Board",$E$2="Shetland Islands Local Authority",$E$2="Eilean Siar Local Authority"),OR($F88=1,$F88=5)),0,new_yllv2(VALUE(LEFT(Options!$B$14,2)),$C88,$D88,$E88,$F88,2016,$I88,1,$H88,$G88*$H88,Options!$B$8))) -> 7855.475386 | N88: =IF(AND(OR($E$2="Orkney Health Board",$E$2="Orkney Islands Local Authority"),$F88=1),0,IF(AND(OR($E$2="Shetland Health Board",$E$2="Western Isles Health Board",$E$2="Shetland Islands Local Authority",$E$2="Eilean Siar Local Authority"),OR($F88=1,$F88=5)),0,new_yllv2(VALUE(LEFT(Options!$B$14,2)),$C88,$D88,$E88,$F88,2016,$I88+$J88,1,$H88,$G88*$H88,Options!$B$8))) -> 7836.534598 | O88: =IF(AND(OR($E$2="Orkney Health Board",$E$2="Orkney Islands Local Authority"),$F88=1),0,IF(AND(OR($E$2="Shetland Health Board",$E$2="Western Isles Health Board",$E$2="Shetland Islands Local Authority",$E$2="Eilean Siar Local Authority"),OR($F88=1,$F88=5)),0,hosp_count(VALUE(LEFT(Options!$B$14,2)),$C88,$E88,$F88,2016,$I88,1,$H88,$G88*$H88, Options!$B$8))) -> 9858.835372 | P88: =IF(AND(OR($E$2="Orkney Health Board",$E$2="Orkney Islands Local Authority"),$F88=1),0,IF(AND(OR($E$2="Shetland Health Board",$E$2="Western Isles Health Board",$E$2="Shetland Islands Local Authority",$E$2="Eilean Siar Local Authority"),OR($F88=1,$F88=5)),0,hosp_count(VALUE(LEFT(Options!$B$14,2)),$C88,$E88,$F88,2016,$I88+$J88,1,$H88,$G88*$H88, Options!$B$8))) -> 9842.713217 | Q88: =IF(AND(OR($E$2="Orkney Health Board",$E$2="Orkney Islands Local Authority"),$F88=1),0,IF(AND(OR($E$2="Shetland Health Board",$E$2="Western Isles Health Board",$E$2="Shetland Islands Local Authority",$E$2="Eilean Siar Local Authority"),OR($F88=1,$F88=5)),0,prem_mort(VALUE(LEFT(Options!$B$14,2)),$C88,$E88,$F88,2016,$I88,1,$H88,$G88*$H88,Options!$B$8))) -> 250.3338635 | R88: =IF(AND(OR($E$2="Orkney Health Board",$E$2="Orkney Islands Local Authority"),$F88=1),0,IF(AND(OR($E$2="Shetland Health Board",$E$2="Western Isles Health Board",$E$2="Shetland Islands Local Authority",$E$2="Eilean Siar Local Authority"),OR($F88=1,$F88=5)),0,prem_mort(VALUE(LEFT(Options!$B$14,2)),$C88,$E88,$F88,2016,$I88+$J88,1,$H88,$G88*$H88,Options!$B$8))) -> 249.7302692 | S88: 697.7363943 | T88: 696.054042 | U88: 21894.96456 | V88: 21842.17236 | W88: 27478.77633 | X88: 27433.84028 | Y88: 697.7363943 | Z88: 696.054042 | AA88: 4884154.76 | AB88: 4872378.294 | AC88: 153264751.9 | AD88: 152895206.5 | AE88: 192351434.3 | AF88: 192036882 | AG88: 4884154.76 | AH88: 4872378.294 | AI88: 7000
B89: Male 50-54 | C89: 51.998646 | D89: 79.98865 | E89: male | F89: 1 | G89: =HLOOKUP($E$2,'Prevalence Rates'!$C$3:$BC$249,'Prevalence Rates'!$BD89,FALSE) -> 0.4347 | H89: =HLOOKUP($E$2,'Population 2016'!$C$3:$BC$249,'Population 2016'!BD89,FALSE) -> 36922 | I89: 0 | J89: =ROUND(0.807*(HLOOKUP($E$2,'Population at Risk'!$C$3:$BC$249,'Population at Risk'!$BD89,FALSE)),0) -> 12952 | K89: =IF(AND(OR($E$2="Orkney Health Board",$E$2="Orkney Islands Local Authority"),$F89=1),0,IF(AND(OR($E$2="Shetland Health Board",$E$2="Western Isles Health Board",$E$2="Shetland Islands Local Authority",$E$2="Eilean Siar Local Authority"),OR($F89=1,$F89=5)),0,new_ci(VALUE(LEFT(Options!$B$14,2)),$C89,$E89,$F89,2016,$I89,1,$H89,$G89*$H89,Options!$B$8))) -> 373.9917078 | L89: =IF(AND(OR($E$2="Orkney Health Board",$E$2="Orkney Islands Local Authority"),$F89=1),0,IF(AND(OR($E$2="Shetland Health Board",$E$2="Western Isles Health Board",$E$2="Shetland Islands Local Authority",$E$2="Eilean Siar Local Authority"),OR($F89=1,$F89=5)),0,new_ci(VALUE(LEFT(Options!$B$14,2)),$C89,$E89,$F89,2016,$I89+$J89,1,$H89,$G89*$H89,Options!$B$8))) -> 373.0922976 | M89: =IF(AND(OR($E$2="Orkney Health Board",$E$2="Orkney Islands Local Authority"),$F89=1),0,IF(AND(OR($E$2="Shetland Health Board",$E$2="Western Isles Health Board",$E$2="Shetland Islands Local Authority",$E$2="Eilean Siar Local Authority"),OR($F89=1,$F89=5)),0,new_yllv2(VALUE(LEFT(Options!$B$14,2)),$C89,$D89,$E89,$F89,2016,$I89,1,$H89,$G89*$H89,Options!$B$8))) -> 10094.03769 | N89: =IF(AND(OR($E$2="Orkney Health Board",$E$2="Orkney Islands Local Authority"),$F89=1),0,IF(AND(OR($E$2="Shetland Health Board",$E$2="Western Isles Health Board",$E$2="Shetland Islands Local Authority",$E$2="Eilean Siar Local Authority"),OR($F89=1,$F89=5)),0,new_yllv2(VALUE(LEFT(Options!$B$14,2)),$C89,$D89,$E89,$F89,2016,$I89+$J89,1,$H89,$G89*$H89,Options!$B$8))) -> 10069.76261 | O89: =IF(AND(OR($E$2="Orkney Health Board",$E$2="Orkney Islands Local Authority"),$F89=1),0,IF(AND(OR($E$2="Shetland Health Board",$E$2="Western Isles Health Board",$E$2="Shetland Islands Local Authority",$E$2="Eilean Siar Local Authority"),OR($F89=1,$F89=5)),0,hosp_count(VALUE(LEFT(Options!$B$14,2)),$C89,$E89,$F89,2016,$I89,1,$H89,$G89*$H89, Options!$B$8))) -> 12099.02518 | P89: =IF(AND(OR($E$2="Orkney Health Board",$E$2="Orkney Islands Local Authority"),$F89=1),0,IF(AND(OR($E$2="Shetland Health Board",$E$2="Western Isles Health Board",$E$2="Shetland Islands Local Authority",$E$2="Eilean Siar Local Authority"),OR($F89=1,$F89=5)),0,hosp_count(VALUE(LEFT(Options!$B$14,2)),$C89,$E89,$F89,2016,$I89+$J89,1,$H89,$G89*$H89, Options!$B$8))) -> 12079.24 | Q89: =IF(AND(OR($E$2="Orkney Health Board",$E$2="Orkney Islands Local Authority"),$F89=1),0,IF(AND(OR($E$2="Shetland Health Board",$E$2="Western Isles Health Board",$E$2="Shetland Islands Local Authority",$E$2="Eilean Siar Local Authority"),OR($F89=1,$F89=5)),0,prem_mort(VALUE(LEFT(Options!$B$14,2)),$C89,$E89,$F89,2016,$I89,1,$H89,$G89*$H89,Options!$B$8))) -> 373.9917078 | R89: =IF(AND(OR($E$2="Orkney Health Board",$E$2="Orkney Islands Local Authority"),$F89=1),0,IF(AND(OR($E$2="Shetland Health Board",$E$2="Western Isles Health Board",$E$2="Shetland Islands Local Authority",$E$2="Eilean Siar Local Authority"),OR($F89=1,$F89=5)),0,prem_mort(VALUE(LEFT(Options!$B$14,2)),$C89,$E89,$F89,2016,$I89+$J89,1,$H89,$G89*$H89,Options!$B$8))) -> 373.0922976 | S89: 1012.923752 | T89: 1010.487779 | U89: 27338.81613 | V89: 27273.06919 | W89: 32769.14897 | X89: 32715.56255 | Y89: 1012.923752 | Z89: 1010.487779 | AA89: 7090466.266 | AB89: 7073414.45 | AC89: 191371712.9 | AD89: 190911484.3 | AE89: 229384042.8 | AF89: 229008937.8 | AG89: 7090466.266 | AH89: 7073414.45 | AI89: 7000
B90: Male 55-59 | C90: 56.950867 | D90: 80.66087 | E90: male | F90: 1 | G90: =HLOOKUP($E$2,'Prevalence Rates'!$C$3:$BC$249,'Prevalence Rates'!$BD90,FALSE) -> 0.4326 | H90: =HLOOKUP($E$2,'Population 2016'!$C$3:$BC$249,'Population 2016'!BD90,FALSE) -> 33251 | I90: 0 | J90: =ROUND(0.807*(HLOOKUP($E$2,'Population at Risk'!$C$3:$BC$249,'Population at Risk'!$BD90,FALSE)),0) -> 11608 | K90: =IF(AND(OR($E$2="Orkney Health Board",$E$2="Orkney Islands Local Authority"),$F90=1),0,IF(AND(OR($E$2="Shetland Health Board",$E$2="Western Isles Health Board",$E$2="Shetland Islands Local Authority",$E$2="Eilean Siar Local Authority"),OR($F90=1,$F90=5)),0,new_ci(VALUE(LEFT(Options!$B$14,2)),$C90,$E90,$F90,2016,$I90,1,$H90,$G90*$H90,Options!$B$8))) -> 488.2620915 | L90: =IF(AND(OR($E$2="Orkney Health Board",$E$2="Orkney Islands Local Authority"),$F90=1),0,IF(AND(OR($E$2="Shetland Health Board",$E$2="Western Isles Health Board",$E$2="Shetland Islands Local Authority",$E$2="Eilean Siar Local Authority"),OR($F90=1,$F90=5)),0,new_ci(VALUE(LEFT(Options!$B$14,2)),$C90,$E90,$F90,2016,$I90+$J90,1,$H90,$G90*$H90,Options!$B$8))) -> 487.0963558 | M90: =IF(AND(OR($E$2="Orkney Health Board",$E$2="Orkney Islands Local Authority"),$F90=1),0,IF(AND(OR($E$2="Shetland Health Board",$E$2="Western Isles Health Board",$E$2="Shetland Islands Local Authority",$E$2="Eilean Siar Local Authority"),OR($F90=1,$F90=5)),0,new_yllv2(VALUE(LEFT(Options!$B$14,2)),$C90,$D90,$E90,$F90,2016,$I90,1,$H90,$G90*$H90,Options!$B$8))) -> 11088.43356 | N90: =IF(AND(OR($E$2="Orkney Health Board",$E$2="Orkney Islands Local Authority"),$F90=1),0,IF(AND(OR($E$2="Shetland Health Board",$E$2="Western Isles Health Board",$E$2="Shetland Islands Local Authority",$E$2="Eilean Siar Local Authority"),OR($F90=1,$F90=5)),0,new_yllv2(VALUE(LEFT(Options!$B$14,2)),$C90,$D90,$E90,$F90,2016,$I90+$J90,1,$H90,$G90*$H90,Options!$B$8))) -> 11061.9597 | O90: =IF(AND(OR($E$2="Orkney Health Board",$E$2="Orkney Islands Local Authority"),$F90=1),0,IF(AND(OR($E$2="Shetland Health Board",$E$2="Western Isles Health Board",$E$2="Shetland Islands Local Authority",$E$2="Eilean Siar Local Authority"),OR($F90=1,$F90=5)),0,hosp_count(VALUE(LEFT(Options!$B$14,2)),$C90,$E90,$F90,2016,$I90,1,$H90,$G90*$H90, Options!$B$8))) -> 12990.03024 | P90: =IF(AND(OR($E$2="Orkney Health Board",$E$2="Orkney Islands Local Authority"),$F90=1),0,IF(AND(OR($E$2="Shetland Health Board",$E$2="Western Isles Health Board",$E$2="Shetland Islands Local Authority",$E$2="Eilean Siar Local Authority"),OR($F90=1,$F90=5)),0,hosp_count(VALUE(LEFT(Options!$B$14,2)),$C90,$E90,$F90,2016,$I90+$J90,1,$H90,$G90*$H90, Options!$B$8))) -> 12968.8728 | Q90: =IF(AND(OR($E$2="Orkney Health Board",$E$2="Orkney Islands Local Authority"),$F90=1),0,IF(AND(OR($E$2="Shetland Health Board",$E$2="Western Isles Health Board",$E$2="Shetland Islands Local Authority",$E$2="Eilean Siar Local Authority"),OR($F90=1,$F90=5)),0,prem_mort(VALUE(LEFT(Options!$B$14,2)),$C90,$E90,$F90,2016,$I90,1,$H90,$G90*$H90,Options!$B$8))) -> 488.2620915 | R90: =IF(AND(OR($E$2="Orkney Health Board",$E$2="Orkney Islands Local Authority"),$F90=1),0,IF(AND(OR($E$2="Shetland Health Board",$E$2="Western Isles Health Board",$E$2="Shetland Islands Local Authority",$E$2="Eilean Siar Local Authority"),OR($F90=1,$F90=5)),0,prem_mort(VALUE(LEFT(Options!$B$14,2)),$C90,$E90,$F90,2016,$I90+$J90,1,$H90,$G90*$H90,Options!$B$8))) -> 487.0963558 | S90: 1468.413255 | T90: 1464.907389 | U90: 33347.66943 | V90: 33268.05119 | W90: 39066.58519 | X90: 39002.95569 | Y90: 1468.413255 | Z90: 1464.907389 | AA90: 9544686.159 | AB90: 9521898.026 | AC90: 216759851.3 | AD90: 216242332.7 | AE90: 253932803.7 | AF90: 253519212 | AG90: 9544686.159 | AH90: 9521898.026 | AI90: 6500
B91: Male 60-64 | C91: 61.942989 | D91: 81.61299 | E91: male | F91: 1 | G91: =HLOOKUP($E$2,'Prevalence Rates'!$C$3:$BC$249,'Prevalence Rates'!$BD91,FALSE) -> 0.4326 | H91: =HLOOKUP($E$2,'Population 2016'!$C$3:$BC$249,'Population 2016'!BD91,FALSE) -> 27358 | I91: 0 | J91: =ROUND(0.807*(HLOOKUP($E$2,'Population at Risk'!$C$3:$BC$249,'Population at Risk'!$BD91,FALSE)),0) -> 9551 | K91: =IF(AND(OR($E$2="Orkney Health Board",$E$2="Orkney Islands Local Authority"),$F91=1),0,IF(AND(OR($E$2="Shetland Health Board",$E$2="Western Isles Health Board",$E$2="Shetland Islands Local Authority",$E$2="Eilean Siar Local Authority"),OR($F91=1,$F91=5)),0,new_ci(VALUE(LEFT(Options!$B$14,2)),$C91,$E91,$F91,2016,$I91,1,$H91,$G91*$H91,Options!$B$8))) -> 583.4446364 | L91: =IF(AND(OR($E$2="Orkney Health Board",$E$2="Orkney Islands Local Authority"),$F91=1),0,IF(AND(OR($E$2="Shetland Health Board",$E$2="Western Isles Health Board",$E$2="Shetland Islands Local Authority",$E$2="Eilean Siar Local Authority"),OR($F91=1,$F91=5)),0,new_ci(VALUE(LEFT(Options!$B$14,2)),$C91,$E91,$F91,2016,$I91+$J91,1,$H91,$G91*$H91,Options!$B$8))) -> 582.0592868 | M91: =IF(AND(OR($E$2="Orkney Health Board",$E$2="Orkney Islands Local Authority"),$F91=1),0,IF(AND(OR($E$2="Shetland Health Board",$E$2="Western Isles Health Board",$E$2="Shetland Islands Local Authority",$E$2="Eilean Siar Local Authority"),OR($F91=1,$F91=5)),0,new_yllv2(VALUE(LEFT(Options!$B$14,2)),$C91,$D91,$E91,$F91,2016,$I91,1,$H91,$G91*$H91,Options!$B$8))) -> 10892.91195 | N91: =IF(AND(OR($E$2="Orkney Health Board",$E$2="Orkney Islands Local Authority"),$F91=1),0,IF(AND(OR($E$2="Shetland Health Board",$E$2="Western Isles Health Board",$E$2="Shetland Islands Local Authority",$E$2="Eilean Siar Local Authority"),OR($F91=1,$F91=5)),0,new_yllv2(VALUE(LEFT(Options!$B$14,2)),$C91,$D91,$E91,$F91,2016,$I91+$J91,1,$H91,$G91*$H91,Options!$B$8))) -> 10867.04747 | O91: =IF(AND(OR($E$2="Orkney Health Board",$E$2="Orkney Islands Local Authority"),$F91=1),0,IF(AND(OR($E$2="Shetland Health Board",$E$2="Western Isles Health Board",$E$2="Shetland Islands Local Authority",$E$2="Eilean Siar Local Authority"),OR($F91=1,$F91=5)),0,hosp_count(VALUE(LEFT(Options!$B$14,2)),$C91,$E91,$F91,2016,$I91,1,$H91,$G91*$H91, Options!$B$8))) -> 12759.83838 | P91: =IF(AND(OR($E$2="Orkney Health Board",$E$2="Orkney Islands Local Authority"),$F91=1),0,IF(AND(OR($E$2="Shetland Health Board",$E$2="Western Isles Health Board",$E$2="Shetland Islands Local Authority",$E$2="Eilean Siar Local Authority"),OR($F91=1,$F91=5)),0,hosp_count(VALUE(LEFT(Options!$B$14,2)),$C91,$E91,$F91,2016,$I91+$J91,1,$H91,$G91*$H91, Options!$B$8))) -> 12739.05529 | Q91: =IF(AND(OR($E$2="Orkney Health Board",$E$2="Orkney Islands Local Authority"),$F91=1),0,IF(AND(OR($E$2="Shetland Health Board",$E$2="Western Isles Health Board",$E$2="Shetland Islands Local Authority",$E$2="Eilean Siar Local Authority"),OR($F91=1,$F91=5)),0,prem_mort(VALUE(LEFT(Options!$B$14,2)),$C91,$E91,$F91,2016,$I91,1,$H91,$G91*$H91,Options!$B$8))) -> 583.4446364 | R91: =IF(AND(OR($E$2="Orkney Health Board",$E$2="Orkney Islands Local Authority"),$F91=1),0,IF(AND(OR($E$2="Shetland Health Board",$E$2="Western Isles Health Board",$E$2="Shetland Islands Local Authority",$E$2="Eilean Siar Local Authority"),OR($F91=1,$F91=5)),0,prem_mort(VALUE(LEFT(Options!$B$14,2)),$C91,$E91,$F91,2016,$I91+$J91,1,$H91,$G91*$H91,Options!$B$8))) -> 582.0592868 | S91: 2132.62898 | T91: 2127.565198 | U91: 39816.18519 | V91: 39721.64437 | W91: 46640.24555 | X91: 46564.27843 | Y91: 2132.62898 | Z91: 2127.565198 | AA91: 12795773.88 | AB91: 12765391.19 | AC91: 238897111.2 | AD91: 238329866.2 | AE91: 279841473.3 | AF91: 279385670.6 | AG91: 12795773.88 | AH91: 12765391.19 | AI91: 6000
B92: Male 65-69 | C92: 67.05442 | D92: 82.95442 | E92: male | F92: 1 | G92: =HLOOKUP($E$2,'Prevalence Rates'!$C$3:$BC$249,'Prevalence Rates'!$BD92,FALSE) -> 0.3095 | H92: =HLOOKUP($E$2,'Population 2016'!$C$3:$BC$249,'Population 2016'!BD92,FALSE) -> 25567 | I92: 0 | J92: =ROUND(0.807*(HLOOKUP($E$2,'Population at Risk'!$C$3:$BC$249,'Population at Risk'!$BD92,FALSE)),0) -> 6386 | K92: =IF(AND(OR($E$2="Orkney Health Board",$E$2="Orkney Islands Local Authority"),$F92=1),0,IF(AND(OR($E$2="Shetland Health Board",$E$2="Western Isles Health Board",$E$2="Shetland Islands Local Authority",$E$2="Eilean Siar Local Authority"),OR($F92=1,$F92=5)),0,new_ci(VALUE(LEFT(Options!$B$14,2)),$C92,$E92,$F92,2016,$I92,1,$H92,$G92*$H92,Options!$B$8))) -> 797.5414113 | L92: =IF(AND(OR($E$2="Orkney Health Board",$E$2="Orkney Islands Local Authority"),$F92=1),0,IF(AND(OR($E$2="Shetland Health Board",$E$2="Western Isles Health Board",$E$2="Shetland Islands Local Authority",$E$2="Eilean Siar Local Authority"),OR($F92=1,$F92=5)),0,new_ci(VALUE(LEFT(Options!$B$14,2)),$C92,$E92,$F92,2016,$I92+$J92,1,$H92,$G92*$H92,Options!$B$8))) -> 796.0867079 | M92: =IF(AND(OR($E$2="Orkney Health Board",$E$2="Orkney Islands Local Authority"),$F92=1),0,IF(AND(OR($E$2="Shetland Health Board",$E$2="Western Isles Health Board",$E$2="Shetland Islands Local Authority",$E$2="Eilean Siar Local Authority"),OR($F92=1,$F92=5)),0,new_yllv2(VALUE(LEFT(Options!$B$14,2)),$C92,$D92,$E92,$F92,2016,$I92,1,$H92,$G92*$H92,Options!$B$8))) -> 11883.36703 | N92: =IF(AND(OR($E$2="Orkney Health Board",$E$2="Orkney Islands Local Authority"),$F92=1),0,IF(AND(OR($E$2="Shetland Health Board",$E$2="Western Isles Health Board",$E$2="Shetland Islands Local Authority",$E$2="Eilean Siar Local Authority"),OR($F92=1,$F92=5)),0,new_yllv2(VALUE(LEFT(Options!$B$14,2)),$C92,$D92,$E92,$F92,2016,$I92+$J92,1,$H92,$G92*$H92,Options!$B$8))) -> 11861.69195 | O92: =IF(AND(OR($E$2="Orkney Health Board",$E$2="Orkney Islands Local Authority"),$F92=1),0,IF(AND(OR($E$2="Shetland Health Board",$E$2="Western Isles Health Board",$E$2="Shetland Islands Local Authority",$E$2="Eilean Siar Local Authority"),OR($F92=1,$F92=5)),0,hosp_count(VALUE(LEFT(Options!$B$14,2)),$C92,$E92,$F92,2016,$I92,1,$H92,$G92*$H92, Options!$B$8))) -> 14296.67907 | P92: =IF(AND(OR($E$2="Orkney Health Board",$E$2="Orkney Islands Local Authority"),$F92=1),0,IF(AND(OR($E$2="Shetland Health Board",$E$2="Western Isles Health Board",$E$2="Shetland Islands Local Authority",$E$2="Eilean Siar Local Authority"),OR($F92=1,$F92=5)),0,hosp_count(VALUE(LEFT(Options!$B$14,2)),$C92,$E92,$F92,2016,$I92+$J92,1,$H92,$G92*$H92, Options!$B$8))) -> 14279.1616 | Q92: =IF(AND(OR($E$2="Orkney Health Board",$E$2="Orkney Islands Local Authority"),$F92=1),0,IF(AND(OR($E$2="Shetland Health Board",$E$2="Western Isles Health Board",$E$2="Shetland Islands Local Authority",$E$2="Eilean Siar Local Authority"),OR($F92=1,$F92=5)),0,prem_mort(VALUE(LEFT(Options!$B$14,2)),$C92,$E92,$F92,2016,$I92,1,$H92,$G92*$H92,Options!$B$8))) -> 797.5414113 | R92: =IF(AND(OR($E$2="Orkney Health Board",$E$2="Orkney Islands Local Authority"),$F92=1),0,IF(AND(OR($E$2="Shetland Health Board",$E$2="Western Isles Health Board",$E$2="Shetland Islands Local Authority",$E$2="Eilean Siar Local Authority"),OR($F92=1,$F92=5)),0,prem_mort(VALUE(LEFT(Options!$B$14,2)),$C92,$E92,$F92,2016,$I92+$J92,1,$H92,$G92*$H92,Options!$B$8))) -> 796.0867079 | S92: 3119.417262 | T92: 3113.727492 | U92: 46479.3172 | V92: 46394.53963 | W92: 55918.48504 | X92: 55849.96911 | Y92: 3119.417262 | Z92: 3113.727492 | AA92: 17156794.94 | AB92: 17125501.21 | AC92: 255636244.6 | AD92: 255169968 | AE92: =W92*$AI92 -> 307551667.7 | AF92: =X92*$AI92 -> 307174830.1 | AG92: =Y92*$AI92 -> 17156794.94 | AH92: =Z92*$AI92 -> 17125501.21 | AI92: 5500
B93: Male 70-74 | C93: 71.891098 | D93: 84.3411 | E93: male | F93: 1 | G93: =HLOOKUP($E$2,'Prevalence Rates'!$C$3:$BC$249,'Prevalence Rates'!$BD93,FALSE) -> 0.3095 | H93: =HLOOKUP($E$2,'Population 2016'!$C$3:$BC$249,'Population 2016'!BD93,FALSE) -> 18358 | I93: 0 | J93: =ROUND(0.807*(HLOOKUP($E$2,'Population at Risk'!$C$3:$BC$249,'Population at Risk'!$BD93,FALSE)),0) -> 4585 | K93: =IF(AND(OR($E$2="Orkney Health Board",$E$2="Orkney Islands Local Authority"),$F93=1),0,IF(AND(OR($E$2="Shetland Health Board",$E$2="Western Isles Health Board",$E$2="Shetland Islands Local Authority",$E$2="Eilean Siar Local Authority"),OR($F93=1,$F93=5)),0,new_ci(VALUE(LEFT(Options!$B$14,2)),$C93,$E93,$F93,2016,$I93,1,$H93,$G93*$H93,Options!$B$8))) -> 818.7638128 | L93: =IF(AND(OR($E$2="Orkney Health Board",$E$2="Orkney Islands Local Authority"),$F93=1),0,IF(AND(OR($E$2="Shetland Health Board",$E$2="Western Isles Health Board",$E$2="Shetland Islands Local Authority",$E$2="Eilean Siar Local Authority"),OR($F93=1,$F93=5)),0,new_ci(VALUE(LEFT(Options!$B$14,2)),$C93,$E93,$F93,2016,$I93+$J93,1,$H93,$G93*$H93,Options!$B$8))) -> 817.2899251 | M93: =IF(AND(OR($E$2="Orkney Health Board",$E$2="Orkney Islands Local Authority"),$F93=1),0,IF(AND(OR($E$2="Shetland Health Board",$E$2="Western Isles Health Board",$E$2="Shetland Islands Local Authority",$E$2="Eilean Siar Local Authority"),OR($F93=1,$F93=5)),0,new_yllv2(VALUE(LEFT(Options!$B$14,2)),$C93,$D93,$E93,$F93,2016,$I93,1,$H93,$G93*$H93,Options!$B$8))) -> 9374.847294 | N93: =IF(AND(OR($E$2="Orkney Health Board",$E$2="Orkney Islands Local Authority"),$F93=1),0,IF(AND(OR($E$2="Shetland Health Board",$E$2="Western Isles Health Board",$E$2="Shetland Islands Local Authority",$E$2="Eilean Siar Local Authority"),OR($F93=1,$F93=5)),0,new_yllv2(VALUE(LEFT(Options!$B$14,2)),$C93,$D93,$E93,$F93,2016,$I93+$J93,1,$H93,$G93*$H93,Options!$B$8))) -> 9357.971278 | O93: =IF(AND(OR($E$2="Orkney Health Board",$E$2="Orkney Islands Local Authority"),$F93=1),0,IF(AND(OR($E$2="Shetland Health Board",$E$2="Western Isles Health Board",$E$2="Shetland Islands Local Authority",$E$2="Eilean Siar Local Authority"),OR($F93=1,$F93=5)),0,hosp_count(VALUE(LEFT(Options!$B$14,2)),$C93,$E93,$F93,2016,$I93,1,$H93,$G93*$H93, Options!$B$8))) -> 12188.20958 | P93: =IF(AND(OR($E$2="Orkney Health Board",$E$2="Orkney Islands Local Authority"),$F93=1),0,IF(AND(OR($E$2="Shetland Health Board",$E$2="Western Isles Health Board",$E$2="Shetland Islands Local Authority",$E$2="Eilean Siar Local Authority"),OR($F93=1,$F93=5)),0,hosp_count(VALUE(LEFT(Options!$B$14,2)),$C93,$E93,$F93,2016,$I93+$J93,1,$H93,$G93*$H93, Options!$B$8))) -> 12173.2768 | Q93: =IF(AND(OR($E$2="Orkney Health Board",$E$2="Orkney Islands Local Authority"),$F93=1),0,IF(AND(OR($E$2="Shetland Health Board",$E$2="Western Isles Health Board",$E$2="Shetland Islands Local Authority",$E$2="Eilean Siar Local Authority"),OR($F93=1,$F93=5)),0,prem_mort(VALUE(LEFT(Options!$B$14,2)),$C93,$E93,$F93,2016,$I93,1,$H93,$G93*$H93,Options!$B$8))) -> 818.7638128 | R93: =IF(AND(OR($E$2="Orkney Health Board",$E$2="Orkney Islands Local Authority"),$F93=1),0,IF(AND(OR($E$2="Shetland Health Board",$E$2="Western Isles Health Board",$E$2="Shetland Islands Local Authority",$E$2="Eilean Siar Local Authority"),OR($F93=1,$F93=5)),0,prem_mort(VALUE(LEFT(Options!$B$14,2)),$C93,$E93,$F93,2016,$I93+$J93,1,$H93,$G93*$H93,Options!$B$8))) -> 817.2899251 | S93: 4459.983728 | T93: 4451.955143 | U93: 51066.82261 | V93: 50974.89529 | W93: 66391.81602 | X93: 66310.47389 | Y93: 4459.983728 | Z93: 4451.955143 | AA93: 22299918.64 | AB93: 22259775.71 | AC93: 255334113 | AD93: 254874476.5 | AE93: 331959080.1 | AF93: 331552369.5 | AG93: 22299918.64 | AH93: 22259775.71 | AI93: 5000
B94: Male 75-79 | C94: 76.9077 | D94: 86.3577 | E94: male | F94: 1 | G94: =HLOOKUP($E$2,'Prevalence Rates'!$C$3:$BC$249,'Prevalence Rates'!$BD94,FALSE) -> 0.1705 | H94: =HLOOKUP($E$2,'Population 2016'!$C$3:$BC$249,'Population 2016'!BD94,FALSE) -> 13914 | I94: 0 | J94: =ROUND(0.807*(HLOOKUP($E$2,'Population at Risk'!$C$3:$BC$249,'Population at Risk'!$BD94,FALSE)),0) -> 1914 | K94: =IF(AND(OR($E$2="Orkney Health Board",$E$2="Orkney Islands Local Authority"),$F94=1),0,IF(AND(OR($E$2="Shetland Health Board",$E$2="Western Isles Health Board",$E$2="Shetland Islands Local Authority",$E$2="Eilean Siar Local Authority"),OR($F94=1,$F94=5)),0,new_ci(VALUE(LEFT(Options!$B$14,2)),$C94,$E94,$F94,2016,$I94,1,$H94,$G94*$H94,Options!$B$8))) -> 896.5408972 | L94: =IF(AND(OR($E$2="Orkney Health Board",$E$2="Orkney Islands Local Authority"),$F94=1),0,IF(AND(OR($E$2="Shetland Health Board",$E$2="Western Isles Health Board",$E$2="Shetland Islands Local Authority",$E$2="Eilean Siar Local Authority"),OR($F94=1,$F94=5)),0,new_ci(VALUE(LEFT(Options!$B$14,2)),$C94,$E94,$F94,2016,$I94+$J94,1,$H94,$G94*$H94,Options!$B$8))) -> 895.5857919 | M94: =IF(AND(OR($E$2="Orkney Health Board",$E$2="Orkney Islands Local Authority"),$F94=1),0,IF(AND(OR($E$2="Shetland Health Board",$E$2="Western Isles Health Board",$E$2="Shetland Islands Local Authority",$E$2="Eilean Siar Local Authority"),OR($F94=1,$F94=5)),0,new_yllv2(VALUE(LEFT(Options!$B$14,2)),$C94,$D94,$E94,$F94,2016,$I94,1,$H94,$G94*$H94,Options!$B$8))) -> 7575.770581 | N94: =IF(AND(OR($E$2="Orkney Health Board",$E$2="Orkney Islands Local Authority"),$F94=1),0,IF(AND(OR($E$2="Shetland Health Board",$E$2="Western Isles Health Board",$E$2="Shetland Islands Local Authority",$E$2="Eilean Siar Local Authority"),OR($F94=1,$F94=5)),0,new_yllv2(VALUE(LEFT(Options!$B$14,2)),$C94,$D94,$E94,$F94,2016,$I94+$J94,1,$H94,$G94*$H94,Options!$B$8))) -> 7567.699941 | O94: =IF(AND(OR($E$2="Orkney Health Board",$E$2="Orkney Islands Local Authority"),$F94=1),0,IF(AND(OR($E$2="Shetland Health Board",$E$2="Western Isles Health Board",$E$2="Shetland Islands Local Authority",$E$2="Eilean Siar Local Authority"),OR($F94=1,$F94=5)),0,hosp_count(VALUE(LEFT(Options!$B$14,2)),$C94,$E94,$F94,2016,$I94,1,$H94,$G94*$H94, Options!$B$8))) -> 11038.22627 | P94: =IF(AND(OR($E$2="Orkney Health Board",$E$2="Orkney Islands Local Authority"),$F94=1),0,IF(AND(OR($E$2="Shetland Health Board",$E$2="Western Isles Health Board",$E$2="Shetland Islands Local Authority",$E$2="Eilean Siar Local Authority"),OR($F94=1,$F94=5)),0,hosp_count(VALUE(LEFT(Options!$B$14,2)),$C94,$E94,$F94,2016,$I94+$J94,1,$H94,$G94*$H94, Options!$B$8))) -> 11030.31826 | Q94: =IF(AND(OR($E$2="Orkney Health Board",$E$2="Orkney Islands Local Authority"),$F94=1),0,IF(AND(OR($E$2="Shetland Health Board",$E$2="Western Isles Health Board",$E$2="Shetland Islands Local Authority",$E$2="Eilean Siar Local Authority"),OR($F94=1,$F94=5)),0,prem_mort(VALUE(LEFT(Options!$B$14,2)),$C94,$E94,$F94,2016,$I94,1,$H94,$G94*$H94,Options!$B$8))) -> 0 | R94: =IF(AND(OR($E$2="Orkney Health Board",$E$2="Orkney Islands Local Authority"),$F94=1),0,IF(AND(OR($E$2="Shetland Health Board",$E$2="Western Isles Health Board",$E$2="Shetland Islands Local Authority",$E$2="Eilean Siar Local Authority"),OR($F94=1,$F94=5)),0,prem_mort(VALUE(LEFT(Options!$B$14,2)),$C94,$E94,$F94,2016,$I94+$J94,1,$H94,$G94*$H94,Options!$B$8))) -> 0 | S94: 6443.444712 | T94: 6436.580364 | U94: 54447.10782 | V94: 54389.10408 | W94: 79331.79723 | X94: 79274.96236 | Y94: 0 | Z94: 0 | AA94: 25773778.85 | AB94: 25746321.46 | AC94: 217788431.3 | AD94: 217556416.3 | AE94: 317327188.9 | AF94: 317099849.4 | AG94: 0 | AH94: 0 | AI94: 4000
B95: Male 80-84 | C95: 81.797089 | D95: 88.62709 | E95: male | F95: 1 | G95: =HLOOKUP($E$2,'Prevalence Rates'!$C$3:$BC$249,'Prevalence Rates'!$BD95,FALSE) -> 0.1705 | H95: =HLOOKUP($E$2,'Population 2016'!$C$3:$BC$249,'Population 2016'!BD95,FALSE) -> 9236 | I95: 0 | J95: =ROUND(0.807*(HLOOKUP($E$2,'Population at Risk'!$C$3:$BC$249,'Population at Risk'!$BD95,FALSE)),0) -> 1271 | K95: =IF(AND(OR($E$2="Orkney Health Board",$E$2="Orkney Islands Local Authority"),$F95=1),0,IF(AND(OR($E$2="Shetland Health Board",$E$2="Western Isles Health Board",$E$2="Shetland Islands Local Authority",$E$2="Eilean Siar Local Authority"),OR($F95=1,$F95=5)),0,new_ci(VALUE(LEFT(Options!$B$14,2)),$C95,$E95,$F95,2016,$I95,1,$H95,$G95*$H95,Options!$B$8))) -> 847.2829607 | L95: =IF(AND(OR($E$2="Orkney Health Board",$E$2="Orkney Islands Local Authority"),$F95=1),0,IF(AND(OR($E$2="Shetland Health Board",$E$2="Western Isles Health Board",$E$2="Shetland Islands Local Authority",$E$2="Eilean Siar Local Authority"),OR($F95=1,$F95=5)),0,new_ci(VALUE(LEFT(Options!$B$14,2)),$C95,$E95,$F95,2016,$I95+$J95,1,$H95,$G95*$H95,Options!$B$8))) -> 846.4094087 | M95: =IF(AND(OR($E$2="Orkney Health Board",$E$2="Orkney Islands Local Authority"),$F95=1),0,IF(AND(OR($E$2="Shetland Health Board",$E$2="Western Isles Health Board",$E$2="Shetland Islands Local Authority",$E$2="Eilean Siar Local Authority"),OR($F95=1,$F95=5)),0,new_yllv2(VALUE(LEFT(Options!$B$14,2)),$C95,$D95,$E95,$F95,2016,$I95,1,$H95,$G95*$H95,Options!$B$8))) -> 4939.660508 | N95: =IF(AND(OR($E$2="Orkney Health Board",$E$2="Orkney Islands Local Authority"),$F95=1),0,IF(AND(OR($E$2="Shetland Health Board",$E$2="Western Isles Health Board",$E$2="Shetland Islands Local Authority",$E$2="Eilean Siar Local Authority"),OR($F95=1,$F95=5)),0,new_yllv2(VALUE(LEFT(Options!$B$14,2)),$C95,$D95,$E95,$F95,2016,$I95+$J95,1,$H95,$G95*$H95,Options!$B$8))) -> 4934.567699 | O95: =IF(AND(OR($E$2="Orkney Health Board",$E$2="Orkney Islands Local Authority"),$F95=1),0,IF(AND(OR($E$2="Shetland Health Board",$E$2="Western Isles Health Board",$E$2="Shetland Islands Local Authority",$E$2="Eilean Siar Local Authority"),OR($F95=1,$F95=5)),0,hosp_count(VALUE(LEFT(Options!$B$14,2)),$C95,$E95,$F95,2016,$I95,1,$H95,$G95*$H95, Options!$B$8))) -> 8715.71314 | P95: =IF(AND(OR($E$2="Orkney Health Board",$E$2="Orkney Islands Local Authority"),$F95=1),0,IF(AND(OR($E$2="Shetland Health Board",$E$2="Western Isles Health Board",$E$2="Shetland Islands Local Authority",$E$2="Eilean Siar Local Authority"),OR($F95=1,$F95=5)),0,hosp_count(VALUE(LEFT(Options!$B$14,2)),$C95,$E95,$F95,2016,$I95+$J95,1,$H95,$G95*$H95, Options!$B$8))) -> 8709.466561 | Q95: =IF(AND(OR($E$2="Orkney Health Board",$E$2="Orkney Islands Local Authority"),$F95=1),0,IF(AND(OR($E$2="Shetland Health Board",$E$2="Western Isles Health Board",$E$2="Shetland Islands Local Authority",$E$2="Eilean Siar Local Authority"),OR($F95=1,$F95=5)),0,prem_mort(VALUE(LEFT(Options!$B$14,2)),$C95,$E95,$F95,2016,$I95,1,$H95,$G95*$H95,Options!$B$8))) -> 0 | R95: =IF(AND(OR($E$2="Orkney Health Board",$E$2="Orkney Islands Local Authority"),$F95=1),0,IF(AND(OR($E$2="Shetland Health Board",$E$2="Western Isles Health Board",$E$2="Shetland Islands Local Authority",$E$2="Eilean Siar Local Authority"),OR($F95=1,$F95=5)),0,prem_mort(VALUE(LEFT(Options!$B$14,2)),$C95,$E95,$F95,2016,$I95+$J95,1,$H95,$G95*$H95,Options!$B$8))) -> 0 | S95: 9173.700311 | T95: 9164.242191 | U95: 53482.68198 | V95: 53427.54114 | W95: 94366.75119 | X95: 94299.11825 | Y95: 0 | Z95: 0 | AA95: 22934250.78 | AB95: 22910605.48 | AC95: 133706705 | AD95: 133568852.8 | AE95: 235916878 | AF95: 235747795.6 | AG95: 0 | AH95: 0 | AI95: 2500
B96: Male 85-89 | C96: 86.630753 | D96: 91.42075 | E96: male | F96: 1 | G96: =HLOOKUP($E$2,'Prevalence Rates'!$C$3:$BC$249,'Prevalence Rates'!$BD96,FALSE) -> 0.1705 | H96: =HLOOKUP($E$2,'Population 2016'!$C$3:$BC$249,'Population 2016'!BD96,FALSE) -> 4449 | I96: 0 | J96: =ROUND(0.807*(HLOOKUP($E$2,'Population at Risk'!$C$3:$BC$249,'Population at Risk'!$BD96,FALSE)),0) -> 612 | K96: =IF(AND(OR($E$2="Orkney Health Board",$E$2="Orkney Islands Local Authority"),$F96=1),0,IF(AND(OR($E$2="Shetland Health Board",$E$2="Western Isles Health Board",$E$2="Shetland Islands Local Authority",$E$2="Eilean Siar Local Authority"),OR($F96=1,$F96=5)),0,new_ci(VALUE(LEFT(Options!$B$14,2)),$C96,$E96,$F96,2016,$I96,1,$H96,$G96*$H96,Options!$B$8))) -> 574.8527254 | L96: =IF(AND(OR($E$2="Orkney Health Board",$E$2="Orkney Islands Local Authority"),$F96=1),0,IF(AND(OR($E$2="Shetland Health Board",$E$2="Western Isles Health Board",$E$2="Shetland Islands Local Authority",$E$2="Eilean Siar Local Authority"),OR($F96=1,$F96=5)),0,new_ci(VALUE(LEFT(Options!$B$14,2)),$C96,$E96,$F96,2016,$I96+$J96,1,$H96,$G96*$H96,Options!$B$8))) -> 574.2877644 | M96: =IF(AND(OR($E$2="Orkney Health Board",$E$2="Orkney Islands Local Authority"),$F96=1),0,IF(AND(OR($E$2="Shetland Health Board",$E$2="Western Isles Health Board",$E$2="Shetland Islands Local Authority",$E$2="Eilean Siar Local Authority"),OR($F96=1,$F96=5)),0,new_yllv2(VALUE(LEFT(Options!$B$14,2)),$C96,$D96,$E96,$F96,2016,$I96,1,$H96,$G96*$H96,Options!$B$8))) -> 2178.690105 | N96: =IF(AND(OR($E$2="Orkney Health Board",$E$2="Orkney Islands Local Authority"),$F96=1),0,IF(AND(OR($E$2="Shetland Health Board",$E$2="Western Isles Health Board",$E$2="Shetland Islands Local Authority",$E$2="Eilean Siar Local Authority"),OR($F96=1,$F96=5)),0,new_yllv2(VALUE(LEFT(Options!$B$14,2)),$C96,$D96,$E96,$F96,2016,$I96+$J96,1,$H96,$G96*$H96,Options!$B$8))) -> 2176.548904 | O96: =IF(AND(OR($E$2="Orkney Health Board",$E$2="Orkney Islands Local Authority"),$F96=1),0,IF(AND(OR($E$2="Shetland Health Board",$E$2="Western Isles Health Board",$E$2="Shetland Islands Local Authority",$E$2="Eilean Siar Local Authority"),OR($F96=1,$F96=5)),0,hosp_count(VALUE(LEFT(Options!$B$14,2)),$C96,$E96,$F96,2016,$I96,1,$H96,$G96*$H96, Options!$B$8))) -> 4984.184367 | P96: =IF(AND(OR($E$2="Orkney Health Board",$E$2="Orkney Islands Local Authority"),$F96=1),0,IF(AND(OR($E$2="Shetland Health Board",$E$2="Western Isles Health Board",$E$2="Shetland Islands Local Authority",$E$2="Eilean Siar Local Authority"),OR($F96=1,$F96=5)),0,hosp_count(VALUE(LEFT(Options!$B$14,2)),$C96,$E96,$F96,2016,$I96+$J96,1,$H96,$G96*$H96, Options!$B$8))) -> 4980.613606 | Q96: =IF(AND(OR($E$2="Orkney Health Board",$E$2="Orkney Islands Local Authority"),$F96=1),0,IF(AND(OR($E$2="Shetland Health Board",$E$2="Western Isles Health Board",$E$2="Shetland Islands Local Authority",$E$2="Eilean Siar Local Authority"),OR($F96=1,$F96=5)),0,prem_mort(VALUE(LEFT(Options!$B$14,2)),$C96,$E96,$F96,2016,$I96,1,$H96,$G96*$H96,Options!$B$8))) -> 0 | R96: =IF(AND(OR($E$2="Orkney Health Board",$E$2="Orkney Islands Local Authority"),$F96=1),0,IF(AND(OR($E$2="Shetland Health Board",$E$2="Western Isles Health Board",$E$2="Shetland Islands Local Authority",$E$2="Eilean Siar Local Authority"),OR($F96=1,$F96=5)),0,prem_mort(VALUE(LEFT(Options!$B$14,2)),$C96,$E96,$F96,2016,$I96+$J96,1,$H96,$G96*$H96,Options!$B$8))) -> 0 | S96: 12920.94236 | T96: 12908.24375 | U96: 48970.33277 | V96: 48922.20508 | W96: 112029.3182 | X96: 111949.0583 | Y96: 0 | Z96: 0 | AA96: 19381413.53 | AB96: 19362365.62 | AC96: 73455499.15 | AD96: 73383307.62 | AE96: 168043977.3 | AF96: 167923587.5 | AG96: 0 | AH96: 0 | AI96: 1500
B97: Male 90+ | C97: 92.215477 | D97: 95.51548 | E97: male | F97: 1 | G97: =HLOOKUP($E$2,'Prevalence Rates'!$C$3:$BC$249,'Prevalence Rates'!$BD97,FALSE) -> 0.1705 | H97: =HLOOKUP($E$2,'Population 2016'!$C$3:$BC$249,'Population 2016'!BD97,FALSE) -> 1916 | I97: 0 | J97: =ROUND(0.807*(HLOOKUP($E$2,'Population at Risk'!$C$3:$BC$249,'Population at Risk'!$BD97,FALSE)),0) -> 264 | K97: =IF(AND(OR($E$2="Orkney Health Board",$E$2="Orkney Islands Local Authority"),$F97=1),0,IF(AND(OR($E$2="Shetland Health Board",$E$2="Western Isles Health Board",$E$2="Shetland Islands Local Authority",$E$2="Eilean Siar Local Authority"),OR($F97=1,$F97=5)),0,new_ci(VALUE(LEFT(Options!$B$14,2)),$C97,$E97,$F97,2016,$I97,1,$H97,$G97*$H97,Options!$B$8))) -> 363.3653417 | L97: =IF(AND(OR($E$2="Orkney Health Board",$E$2="Orkney Islands Local Authority"),$F97=1),0,IF(AND(OR($E$2="Shetland Health Board",$E$2="Western Isles Health Board",$E$2="Shetland Islands Local Authority",$E$2="Eilean Siar Local Authority"),OR($F97=1,$F97=5)),0,new_ci(VALUE(LEFT(Options!$B$14,2)),$C97,$E97,$F97,2016,$I97+$J97,1,$H97,$G97*$H97,Options!$B$8))) -> 363.0358056 | M97: =IF(AND(OR($E$2="Orkney Health Board",$E$2="Orkney Islands Local Authority"),$F97=1),0,IF(AND(OR($E$2="Shetland Health Board",$E$2="Western Isles Health Board",$E$2="Shetland Islands Local Authority",$E$2="Eilean Siar Local Authority"),OR($F97=1,$F97=5)),0,new_yllv2(VALUE(LEFT(Options!$B$14,2)),$C97,$D97,$E97,$F97,2016,$I97,1,$H97,$G97*$H97,Options!$B$8))) -> 835.741376 | N97: =IF(AND(OR($E$2="Orkney Health Board",$E$2="Orkney Islands Local Authority"),$F97=1),0,IF(AND(OR($E$2="Shetland Health Board",$E$2="Western Isles Health Board",$E$2="Shetland Islands Local Authority",$E$2="Eilean Siar Local Authority"),OR($F97=1,$F97=5)),0,new_yllv2(VALUE(LEFT(Options!$B$14,2)),$C97,$D97,$E97,$F97,2016,$I97+$J97,1,$H97,$G97*$H97,Options!$B$8))) -> 834.983442 | O97: =IF(AND(OR($E$2="Orkney Health Board",$E$2="Orkney Islands Local Authority"),$F97=1),0,IF(AND(OR($E$2="Shetland Health Board",$E$2="Western Isles Health Board",$E$2="Shetland Islands Local Authority",$E$2="Eilean Siar Local Authority"),OR($F97=1,$F97=5)),0,hosp_count(VALUE(LEFT(Options!$B$14,2)),$C97,$E97,$F97,2016,$I97,1,$H97,$G97*$H97, Options!$B$8))) -> 2617.084529 | P97: =IF(AND(OR($E$2="Orkney Health Board",$E$2="Orkney Islands Local Authority"),$F97=1),0,IF(AND(OR($E$2="Shetland Health Board",$E$2="Western Isles Health Board",$E$2="Shetland Islands Local Authority",$E$2="Eilean Siar Local Authority"),OR($F97=1,$F97=5)),0,hosp_count(VALUE(LEFT(Options!$B$14,2)),$C97,$E97,$F97,2016,$I97+$J97,1,$H97,$G97*$H97, Options!$B$8))) -> 2615.206493 | Q97: =IF(AND(OR($E$2="Orkney Health Board",$E$2="Orkney Islands Local Authority"),$F97=1),0,IF(AND(OR($E$2="Shetland Health Board",$E$2="Western Isles Health Board",$E$2="Shetland Islands Local Authority",$E$2="Eilean Siar Local Authority"),OR($F97=1,$F97=5)),0,prem_mort(VALUE(LEFT(Options!$B$14,2)),$C97,$E97,$F97,2016,$I97,1,$H97,$G97*$H97,Options!$B$8))) -> 0 | R97: =IF(AND(OR($E$2="Orkney Health Board",$E$2="Orkney Islands Local Authority"),$F97=1),0,IF(AND(OR($E$2="Shetland Health Board",$E$2="Western Isles Health Board",$E$2="Shetland Islands Local Authority",$E$2="Eilean Siar Local Authority"),OR($F97=1,$F97=5)),0,prem_mort(VALUE(LEFT(Options!$B$14,2)),$C97,$E97,$F97,2016,$I97+$J97,1,$H97,$G97*$H97,Options!$B$8))) -> 0 | S97: 18964.78819 | T97: 18947.58902 | U97: 43619.06973 | V97: 43579.51159 | W97: 136591.0506 | X97: 136493.032 | Y97: 0 | Z97: 0 | AA97: 18964788.19 | AB97: 18947589.02 | AC97: 43619069.73 | AD97: 43579511.59 | AE97: 136591050.6 | AF97: 136493032 | AG97: 0 | AH97: 0 | AI97: 1000
B98: Female 0-4 | C98: 2.0384007 | D98: 81.468401 | E98: female | F98: 2 | G98: =HLOOKUP($E$2,'Prevalence Rates'!$C$3:$BC$249,'Prevalence Rates'!$BD98,FALSE) -> 0 | H98: =HLOOKUP($E$2,'Population 2016'!$C$3:$BC$249,'Population 2016'!BD98,FALSE) -> 0 | I98: 0 | J98: =ROUND(0.807*(HLOOKUP($E$2,'Population at Risk'!$C$3:$BC$249,'Population at Risk'!$BD98,FALSE)),0) -> 0 | K98: =IF(AND(OR($E$2="Orkney Health Board",$E$2="Orkney Islands Local Authority"),$F98=1),0,IF(AND(OR($E$2="Shetland Health Board",$E$2="Western Isles Health Board",$E$2="Shetland Islands Local Authority",$E$2="Eilean Siar Local Authority"),OR($F98=1,$F98=5)),0,new_ci(VALUE(LEFT(Options!$B$14,2)),$C98,$E98,$F98,2016,$I98,1,$H98,$G98*$H98,Options!$B$8))) ->  | L98: =IF(AND(OR($E$2="Orkney Health Board",$E$2="Orkney Islands Local Authority"),$F98=1),0,IF(AND(OR($E$2="Shetland Health Board",$E$2="Western Isles Health Board",$E$2="Shetland Islands Local Authority",$E$2="Eilean Siar Local Authority"),OR($F98=1,$F98=5)),0,new_ci(VALUE(LEFT(Options!$B$14,2)),$C98,$E98,$F98,2016,$I98+$J98,1,$H98,$G98*$H98,Options!$B$8))) ->  | M98: =IF(AND(OR($E$2="Orkney Health Board",$E$2="Orkney Islands Local Authority"),$F98=1),0,IF(AND(OR($E$2="Shetland Health Board",$E$2="Western Isles Health Board",$E$2="Shetland Islands Local Authority",$E$2="Eilean Siar Local Authority"),OR($F98=1,$F98=5)),0,new_yllv2(VALUE(LEFT(Options!$B$14,2)),$C98,$D98,$E98,$F98,2016,$I98,1,$H98,$G98*$H98,Options!$B$8))) ->  | N98: =IF(AND(OR($E$2="Orkney Health Board",$E$2="Orkney Islands Local Authority"),$F98=1),0,IF(AND(OR($E$2="Shetland Health Board",$E$2="Western Isles Health Board",$E$2="Shetland Islands Local Authority",$E$2="Eilean Siar Local Authority"),OR($F98=1,$F98=5)),0,new_yllv2(VALUE(LEFT(Options!$B$14,2)),$C98,$D98,$E98,$F98,2016,$I98+$J98,1,$H98,$G98*$H98,Options!$B$8))) ->  | O98: =IF(AND(OR($E$2="Orkney Health Board",$E$2="Orkney Islands Local Authority"),$F98=1),0,IF(AND(OR($E$2="Shetland Health Board",$E$2="Western Isles Health Board",$E$2="Shetland Islands Local Authority",$E$2="Eilean Siar Local Authority"),OR($F98=1,$F98=5)),0,hosp_count(VALUE(LEFT(Options!$B$14,2)),$C98,$E98,$F98,2016,$I98,1,$H98,$G98*$H98, Options!$B$8))) ->  | P98: =IF(AND(OR($E$2="Orkney Health Board",$E$2="Orkney Islands Local Authority"),$F98=1),0,IF(AND(OR($E$2="Shetland Health Board",$E$2="Western Isles Health Board",$E$2="Shetland Islands Local Authority",$E$2="Eilean Siar Local Authority"),OR($F98=1,$F98=5)),0,hosp_count(VALUE(LEFT(Options!$B$14,2)),$C98,$E98,$F98,2016,$I98+$J98,1,$H98,$G98*$H98, Options!$B$8))) ->  | Q98: =IF(AND(OR($E$2="Orkney Health Board",$E$2="Orkney Islands Local Authority"),$F98=1),0,IF(AND(OR($E$2="Shetland Health Board",$E$2="Western Isles Health Board",$E$2="Shetland Islands Local Authority",$E$2="Eilean Siar Local Authority"),OR($F98=1,$F98=5)),0,prem_mort(VALUE(LEFT(Options!$B$14,2)),$C98,$E98,$F98,2016,$I98,1,$H98,$G98*$H98,Options!$B$8))) ->  | R98: =IF(AND(OR($E$2="Orkney Health Board",$E$2="Orkney Islands Local Authority"),$F98=1),0,IF(AND(OR($E$2="Shetland Health Board",$E$2="Western Isles Health Board",$E$2="Shetland Islands Local Authority",$E$2="Eilean Siar Local Authority"),OR($F98=1,$F98=5)),0,prem_mort(VALUE(LEFT(Options!$B$14,2)),$C98,$E98,$F98,2016,$I98+$J98,1,$H98,$G98*$H98,Options!$B$8))) ->  | AI98: 5000
B99: Female 5-9 | C99: 6.9792795 | D99: 81.43928 | E99: female | F99: 2 | G99: =HLOOKUP($E$2,'Prevalence Rates'!$C$3:$BC$249,'Prevalence Rates'!$BD99,FALSE) -> 0 | H99: =HLOOKUP($E$2,'Population 2016'!$C$3:$BC$249,'Population 2016'!BD99,FALSE) -> 0 | I99: 0 | J99: =ROUND(0.807*(HLOOKUP($E$2,'Population at Risk'!$C$3:$BC$249,'Population at Risk'!$BD99,FALSE)),0) -> 0 | K99: =IF(AND(OR($E$2="Orkney Health Board",$E$2="Orkney Islands Local Authority"),$F99=1),0,IF(AND(OR($E$2="Shetland Health Board",$E$2="Western Isles Health Board",$E$2="Shetland Islands Local Authority",$E$2="Eilean Siar Local Authority"),OR($F99=1,$F99=5)),0,new_ci(VALUE(LEFT(Options!$B$14,2)),$C99,$E99,$F99,2016,$I99,1,$H99,$G99*$H99,Options!$B$8))) ->  | L99: =IF(AND(OR($E$2="Orkney Health Board",$E$2="Orkney Islands Local Authority"),$F99=1),0,IF(AND(OR($E$2="Shetland Health Board",$E$2="Western Isles Health Board",$E$2="Shetland Islands Local Authority",$E$2="Eilean Siar Local Authority"),OR($F99=1,$F99=5)),0,new_ci(VALUE(LEFT(Options!$B$14,2)),$C99,$E99,$F99,2016,$I99+$J99,1,$H99,$G99*$H99,Options!$B$8))) ->  | M99: =IF(AND(OR($E$2="Orkney Health Board",$E$2="Orkney Islands Local Authority"),$F99=1),0,IF(AND(OR($E$2="Shetland Health Board",$E$2="Western Isles Health Board",$E$2="Shetland Islands Local Authority",$E$2="Eilean Siar Local Authority"),OR($F99=1,$F99=5)),0,new_yllv2(VALUE(LEFT(Options!$B$14,2)),$C99,$D99,$E99,$F99,2016,$I99,1,$H99,$G99*$H99,Options!$B$8))) ->  | N99: =IF(AND(OR($E$2="Orkney Health Board",$E$2="Orkney Islands Local Authority"),$F99=1),0,IF(AND(OR($E$2="Shetland Health Board",$E$2="Western Isles Health Board",$E$2="Shetland Islands Local Authority",$E$2="Eilean Siar Local Authority"),OR($F99=1,$F99=5)),0,new_yllv2(VALUE(LEFT(Options!$B$14,2)),$C99,$D99,$E99,$F99,2016,$I99+$J99,1,$H99,$G99*$H99,Options!$B$8))) ->  | O99: =IF(AND(OR($E$2="Orkney Health Board",$E$2="Orkney Islands Local Authority"),$F99=1),0,IF(AND(OR($E$2="Shetland Health Board",$E$2="Western Isles Health Board",$E$2="Shetland Islands Local Authority",$E$2="Eilean Siar Local Authority"),OR($F99=1,$F99=5)),0,hosp_count(VALUE(LEFT(Options!$B$14,2)),$C99,$E99,$F99,2016,$I99,1,$H99,$G99*$H99, Options!$B$8))) ->  | P99: =IF(AND(OR($E$2="Orkney Health Board",$E$2="Orkney Islands Local Authority"),$F99=1),0,IF(AND(OR($E$2="Shetland Health Board",$E$2="Western Isles Health Board",$E$2="Shetland Islands Local Authority",$E$2="Eilean Siar Local Authority"),OR($F99=1,$F99=5)),0,hosp_count(VALUE(LEFT(Options!$B$14,2)),$C99,$E99,$F99,2016,$I99+$J99,1,$H99,$G99*$H99, Options!$B$8))) ->  | Q99: =IF(AND(OR($E$2="Orkney Health Board",$E$2="Orkney Islands Local Authority"),$F99=1),0,IF(AND(OR($E$2="Shetland Health Board",$E$2="Western Isles Health Board",$E$2="Shetland Islands Local Authority",$E$2="Eilean Siar Local Authority"),OR($F99=1,$F99=5)),0,prem_mort(VALUE(LEFT(Options!$B$14,2)),$C99,$E99,$F99,2016,$I99,1,$H99,$G99*$H99,Options!$B$8))) ->  | R99: =IF(AND(OR($E$2="Orkney Health Board",$E$2="Orkney Islands Local Authority"),$F99=1),0,IF(AND(OR($E$2="Shetland Health Board",$E$2="Western Isles Health Board",$E$2="Shetland Islands Local Authority",$E$2="Eilean Siar Local Authority"),OR($F99=1,$F99=5)),0,prem_mort(VALUE(LEFT(Options!$B$14,2)),$C99,$E99,$F99,2016,$I99+$J99,1,$H99,$G99*$H99,Options!$B$8))) ->  | AI99: 5500
B100: Female 10-15 | C100: 12.478312 | D100: 81.94831 | E100: female | F100: 2 | G100: =HLOOKUP($E$2,'Prevalence Rates'!$C$3:$BC$249,'Prevalence Rates'!$BD100,FALSE) -> 0 | H100: =HLOOKUP($E$2,'Population 2016'!$C$3:$BC$249,'Population 2016'!BD100,FALSE) -> 0 | I100: 0 | J100: =ROUND(0.807*(HLOOKUP($E$2,'Population at Risk'!$C$3:$BC$249,'Population at Risk'!$BD100,FALSE)),0) -> 0 | K100: =IF(AND(OR($E$2="Orkney Health Board",$E$2="Orkney Islands Local Authority"),$F100=1),0,IF(AND(OR($E$2="Shetland Health Board",$E$2="Western Isles Health Board",$E$2="Shetland Islands Local Authority",$E$2="Eilean Siar Local Authority"),OR($F100=1,$F100=5)),0,new_ci(VALUE(LEFT(Options!$B$14,2)),$C100,$E100,$F100,2016,$I100,1,$H100,$G100*$H100,Options!$B$8))) ->  | L100: =IF(AND(OR($E$2="Orkney Health Board",$E$2="Orkney Islands Local Authority"),$F100=1),0,IF(AND(OR($E$2="Shetland Health Board",$E$2="Western Isles Health Board",$E$2="Shetland Islands Local Authority",$E$2="Eilean Siar Local Authority"),OR($F100=1,$F100=5)),0,new_ci(VALUE(LEFT(Options!$B$14,2)),$C100,$E100,$F100,2016,$I100+$J100,1,$H100,$G100*$H100,Options!$B$8))) ->  | M100: =IF(AND(OR($E$2="Orkney Health Board",$E$2="Orkney Islands Local Authority"),$F100=1),0,IF(AND(OR($E$2="Shetland Health Board",$E$2="Western Isles Health Board",$E$2="Shetland Islands Local Authority",$E$2="Eilean Siar Local Authority"),OR($F100=1,$F100=5)),0,new_yllv2(VALUE(LEFT(Options!$B$14,2)),$C100,$D100,$E100,$F100,2016,$I100,1,$H100,$G100*$H100,Options!$B$8))) ->  | N100: =IF(AND(OR($E$2="Orkney Health Board",$E$2="Orkney Islands Local Authority"),$F100=1),0,IF(AND(OR($E$2="Shetland Health Board",$E$2="Western Isles Health Board",$E$2="Shetland Islands Local Authority",$E$2="Eilean Siar Local Authority"),OR($F100=1,$F100=5)),0,new_yllv2(VALUE(LEFT(Options!$B$14,2)),$C100,$D100,$E100,$F100,2016,$I100+$J100,1,$H100,$G100*$H100,Options!$B$8))) ->  | O100: =IF(AND(OR($E$2="Orkney Health Board",$E$2="Orkney Islands Local Authority"),$F100=1),0,IF(AND(OR($E$2="Shetland Health Board",$E$2="Western Isles Health Board",$E$2="Shetland Islands Local Authority",$E$2="Eilean Siar Local Authority"),OR($F100=1,$F100=5)),0,hosp_count(VALUE(LEFT(Options!$B$14,2)),$C100,$E100,$F100,2016,$I100,1,$H100,$G100*$H100, Options!$B$8))) ->  | P100: =IF(AND(OR($E$2="Orkney Health Board",$E$2="Orkney Islands Local Authority"),$F100=1),0,IF(AND(OR($E$2="Shetland Health Board",$E$2="Western Isles Health Board",$E$2="Shetland Islands Local Authority",$E$2="Eilean Siar Local Authority"),OR($F100=1,$F100=5)),0,hosp_count(VALUE(LEFT(Options!$B$14,2)),$C100,$E100,$F100,2016,$I100+$J100,1,$H100,$G100*$H100, Options!$B$8))) ->  | Q100: =IF(AND(OR($E$2="Orkney Health Board",$E$2="Orkney Islands Local Authority"),$F100=1),0,IF(AND(OR($E$2="Shetland Health Board",$E$2="Western Isles Health Board",$E$2="Shetland Islands Local Authority",$E$2="Eilean Siar Local Authority"),OR($F100=1,$F100=5)),0,prem_mort(VALUE(LEFT(Options!$B$14,2)),$C100,$E100,$F100,2016,$I100,1,$H100,$G100*$H100,Options!$B$8))) ->  | R100: =IF(AND(OR($E$2="Orkney Health Board",$E$2="Orkney Islands Local Authority"),$F100=1),0,IF(AND(OR($E$2="Shetland Health Board",$E$2="Western Isles Health Board",$E$2="Shetland Islands Local Authority",$E$2="Eilean Siar Local Authority"),OR($F100=1,$F100=5)),0,prem_mort(VALUE(LEFT(Options!$B$14,2)),$C100,$E100,$F100,2016,$I100+$J100,1,$H100,$G100*$H100,Options!$B$8))) ->  | AI100: 6600
A101: SIMD Q2 | B101: Female 16-19 | C101: 17.570053 | D101: 81.10005 | E101: female | F101: 2 | G101: =HLOOKUP($E$2,'Prevalence Rates'!$C$3:$BC$249,'Prevalence Rates'!$BD101,FALSE) -> 0.2637 | H101: =HLOOKUP($E$2,'Population 2016'!$C$3:$BC$249,'Population 2016'!BD101,FALSE) -> 23121 | I101: 0 | J101: =ROUND(0.807*(HLOOKUP($E$2,'Population at Risk'!$C$3:$BC$249,'Population at Risk'!$BD101,FALSE)),0) -> 4920 | K101: =IF(AND(OR($E$2="Orkney Health Board",$E$2="Orkney Islands Local Authority"),$F101=1),0,IF(AND(OR($E$2="Shetland Health Board",$E$2="Western Isles Health Board",$E$2="Shetland Islands Local Authority",$E$2="Eilean Siar Local Authority"),OR($F101=1,$F101=5)),0,new_ci(VALUE(LEFT(Options!$B$14,2)),$C101,$E101,$F101,2016,$I101,1,$H101,$G101*$H101,Options!$B$8))) -> 5.147428818 | L101: =IF(AND(OR($E$2="Orkney Health Board",$E$2="Orkney Islands Local Authority"),$F101=1),0,IF(AND(OR($E$2="Shetland Health Board",$E$2="Western Isles Health Board",$E$2="Shetland Islands Local Authority",$E$2="Eilean Siar Local Authority"),OR($F101=1,$F101=5)),0,new_ci(VALUE(LEFT(Options!$B$14,2)),$C101,$E101,$F101,2016,$I101+$J101,1,$H101,$G101*$H101,Options!$B$8))) -> 5.135070762 | M101: =IF(AND(OR($E$2="Orkney Health Board",$E$2="Orkney Islands Local Authority"),$F101=1),0,IF(AND(OR($E$2="Shetland Health Board",$E$2="Western Isles Health Board",$E$2="Shetland Islands Local Authority",$E$2="Eilean Siar Local Authority"),OR($F101=1,$F101=5)),0,new_yllv2(VALUE(LEFT(Options!$B$14,2)),$C101,$D101,$E101,$F101,2016,$I101,1,$H101,$G101*$H101,Options!$B$8))) -> 321.8687085 | N101: =IF(AND(OR($E$2="Orkney Health Board",$E$2="Orkney Islands Local Authority"),$F101=1),0,IF(AND(OR($E$2="Shetland Health Board",$E$2="Western Isles Health Board",$E$2="Shetland Islands Local Authority",$E$2="Eilean Siar Local Authority"),OR($F101=1,$F101=5)),0,new_yllv2(VALUE(LEFT(Options!$B$14,2)),$C101,$D101,$E101,$F101,2016,$I101+$J101,1,$H101,$G101*$H101,Options!$B$8))) -> 321.0959593 | O101: =IF(AND(OR($E$2="Orkney Health Board",$E$2="Orkney Islands Local Authority"),$F101=1),0,IF(AND(OR($E$2="Shetland Health Board",$E$2="Western Isles Health Board",$E$2="Shetland Islands Local Authority",$E$2="Eilean Siar Local Authority"),OR($F101=1,$F101=5)),0,hosp_count(VALUE(LEFT(Options!$B$14,2)),$C101,$E101,$F101,2016,$I101,1,$H101,$G101*$H101, Options!$B$8))) -> 2679.139383 | P101: =IF(AND(OR($E$2="Orkney Health Board",$E$2="Orkney Islands Local Authority"),$F101=1),0,IF(AND(OR($E$2="Shetland Health Board",$E$2="Western Isles Health Board",$E$2="Shetland Islands Local Authority",$E$2="Eilean Siar Local Authority"),OR($F101=1,$F101=5)),0,hosp_count(VALUE(LEFT(Options!$B$14,2)),$C101,$E101,$F101,2016,$I101+$J101,1,$H101,$G101*$H101, Options!$B$8))) -> 2675.222109 | Q101: =IF(AND(OR($E$2="Orkney Health Board",$E$2="Orkney Islands Local Authority"),$F101=1),0,IF(AND(OR($E$2="Shetland Health Board",$E$2="Western Isles Health Board",$E$2="Shetland Islands Local Authority",$E$2="Eilean Siar Local Authority"),OR($F101=1,$F101=5)),0,prem_mort(VALUE(LEFT(Options!$B$14,2)),$C101,$E101,$F101,2016,$I101,1,$H101,$G101*$H101,Options!$B$8))) -> 5.147428818 | R101: =IF(AND(OR($E$2="Orkney Health Board",$E$2="Orkney Islands Local Authority"),$F101=1),0,IF(AND(OR($E$2="Shetland Health Board",$E$2="Western Isles Health Board",$E$2="Shetland Islands Local Authority",$E$2="Eilean Siar Local Authority"),OR($F101=1,$F101=5)),0,prem_mort(VALUE(LEFT(Options!$B$14,2)),$C101,$E101,$F101,2016,$I101+$J101,1,$H101,$G101*$H101,Options!$B$8))) -> 5.135070762 | S101: 22.26300254 | T101: 22.20955305 | U101: 1392.105482 | V101: 1388.763286 | W101: 11587.47192 | X101: 11570.52943 | Y101: 22.26300254 | Z101: 22.20955305 | AA101: 97957.21118 | AB101: 97722.03344 | AC101: 6125264.121 | AD101: 6110558.458 | AE101: 50984876.45 | AF101: 50910329.49 | AG101: 97957.21118 | AH101: 97722.03344 | AI101: 4400
B102: Female 20-24 | C102: 22.077057 | D102: 81.66706 | E102: female | F102: 2 | G102: =HLOOKUP($E$2,'Prevalence Rates'!$C$3:$BC$249,'Prevalence Rates'!$BD102,FALSE) -> 0.2637 | H102: =HLOOKUP($E$2,'Population 2016'!$C$3:$BC$249,'Population 2016'!BD102,FALSE) -> 36899 | I102: 0 | J102: =ROUND(0.807*(HLOOKUP($E$2,'Population at Risk'!$C$3:$BC$249,'Population at Risk'!$BD102,FALSE)),0) -> 7852 | K102: =IF(AND(OR($E$2="Orkney Health Board",$E$2="Orkney Islands Local Authority"),$F102=1),0,IF(AND(OR($E$2="Shetland Health Board",$E$2="Western Isles Health Board",$E$2="Shetland Islands Local Authority",$E$2="Eilean Siar Local Authority"),OR($F102=1,$F102=5)),0,new_ci(VALUE(LEFT(Options!$B$14,2)),$C102,$E102,$F102,2016,$I102,1,$H102,$G102*$H102,Options!$B$8))) -> 12.05192388 | L102: =IF(AND(OR($E$2="Orkney Health Board",$E$2="Orkney Islands Local Authority"),$F102=1),0,IF(AND(OR($E$2="Shetland Health Board",$E$2="Western Isles Health Board",$E$2="Shetland Islands Local Authority",$E$2="Eilean Siar Local Authority"),OR($F102=1,$F102=5)),0,new_ci(VALUE(LEFT(Options!$B$14,2)),$C102,$E102,$F102,2016,$I102+$J102,1,$H102,$G102*$H102,Options!$B$8))) -> 12.02299083 | M102: =IF(AND(OR($E$2="Orkney Health Board",$E$2="Orkney Islands Local Authority"),$F102=1),0,IF(AND(OR($E$2="Shetland Health Board",$E$2="Western Isles Health Board",$E$2="Shetland Islands Local Authority",$E$2="Eilean Siar Local Authority"),OR($F102=1,$F102=5)),0,new_yllv2(VALUE(LEFT(Options!$B$14,2)),$C102,$D102,$E102,$F102,2016,$I102,1,$H102,$G102*$H102,Options!$B$8))) -> 706.1222564 | N102: =IF(AND(OR($E$2="Orkney Health Board",$E$2="Orkney Islands Local Authority"),$F102=1),0,IF(AND(OR($E$2="Shetland Health Board",$E$2="Western Isles Health Board",$E$2="Shetland Islands Local Authority",$E$2="Eilean Siar Local Authority"),OR($F102=1,$F102=5)),0,new_yllv2(VALUE(LEFT(Options!$B$14,2)),$C102,$D102,$E102,$F102,2016,$I102+$J102,1,$H102,$G102*$H102,Options!$B$8))) -> 704.4270689 | O102: =IF(AND(OR($E$2="Orkney Health Board",$E$2="Orkney Islands Local Authority"),$F102=1),0,IF(AND(OR($E$2="Shetland Health Board",$E$2="Western Isles Health Board",$E$2="Shetland Islands Local Authority",$E$2="Eilean Siar Local Authority"),OR($F102=1,$F102=5)),0,hosp_count(VALUE(LEFT(Options!$B$14,2)),$C102,$E102,$F102,2016,$I102,1,$H102,$G102*$H102, Options!$B$8))) -> 4788.927841 | P102: =IF(AND(OR($E$2="Orkney Health Board",$E$2="Orkney Islands Local Authority"),$F102=1),0,IF(AND(OR($E$2="Shetland Health Board",$E$2="Western Isles Health Board",$E$2="Shetland Islands Local Authority",$E$2="Eilean Siar Local Authority"),OR($F102=1,$F102=5)),0,hosp_count(VALUE(LEFT(Options!$B$14,2)),$C102,$E102,$F102,2016,$I102+$J102,1,$H102,$G102*$H102, Options!$B$8))) -> 4781.925649 | Q102: =IF(AND(OR($E$2="Orkney Health Board",$E$2="Orkney Islands Local Authority"),$F102=1),0,IF(AND(OR($E$2="Shetland Health Board",$E$2="Western Isles Health Board",$E$2="Shetland Islands Local Authority",$E$2="Eilean Siar Local Authority"),OR($F102=1,$F102=5)),0,prem_mort(VALUE(LEFT(Options!$B$14,2)),$C102,$E102,$F102,2016,$I102,1,$H102,$G102*$H102,Options!$B$8))) -> 12.05192388 | R102: =IF(AND(OR($E$2="Orkney Health Board",$E$2="Orkney Islands Local Authority"),$F102=1),0,IF(AND(OR($E$2="Shetland Health Board",$E$2="Western Isles Health Board",$E$2="Shetland Islands Local Authority",$E$2="Eilean Siar Local Authority"),OR($F102=1,$F102=5)),0,prem_mort(VALUE(LEFT(Options!$B$14,2)),$C102,$E102,$F102,2016,$I102+$J102,1,$H102,$G102*$H102,Options!$B$8))) -> 12.02299083 | S102: 32.66192548 | T102: 32.583514 | U102: 1913.662312 | V102: 1909.068183 | W102: 12978.47595 | X102: 12959.49931 | Y102: 32.66192548 | Z102: 32.583514 | AA102: 195971.5529 | AB102: 195501.084 | AC102: 11481973.87 | AD102: 11454409.1 | AE102: 77870855.7 | AF102: 77756995.83 | AG102: 195971.5529 | AH102: 195501.084 | AI102: 6000
B103: Female 25-29 | C103: 26.975187 | D103: 81.64519 | E103: female | F103: 2 | G103: =HLOOKUP($E$2,'Prevalence Rates'!$C$3:$BC$249,'Prevalence Rates'!$BD103,FALSE) -> 0.2801 | H103: =HLOOKUP($E$2,'Population 2016'!$C$3:$BC$249,'Population 2016'!BD103,FALSE) -> 40610 | I103: 0 | J103: =ROUND(0.807*(HLOOKUP($E$2,'Population at Risk'!$C$3:$BC$249,'Population at Risk'!$BD103,FALSE)),0) -> 9180 | K103: =IF(AND(OR($E$2="Orkney Health Board",$E$2="Orkney Islands Local Authority"),$F103=1),0,IF(AND(OR($E$2="Shetland Health Board",$E$2="Western Isles Health Board",$E$2="Shetland Islands Local Authority",$E$2="Eilean Siar Local Authority"),OR($F103=1,$F103=5)),0,new_ci(VALUE(LEFT(Options!$B$14,2)),$C103,$E103,$F103,2016,$I103,1,$H103,$G103*$H103,Options!$B$8))) -> 20.11708557 | L103: =IF(AND(OR($E$2="Orkney Health Board",$E$2="Orkney Islands Local Authority"),$F103=1),0,IF(AND(OR($E$2="Shetland Health Board",$E$2="Western Isles Health Board",$E$2="Shetland Islands Local Authority",$E$2="Eilean Siar Local Authority"),OR($F103=1,$F103=5)),0,new_ci(VALUE(LEFT(Options!$B$14,2)),$C103,$E103,$F103,2016,$I103+$J103,1,$H103,$G103*$H103,Options!$B$8))) -> 20.06633945 | M103: =IF(AND(OR($E$2="Orkney Health Board",$E$2="Orkney Islands Local Authority"),$F103=1),0,IF(AND(OR($E$2="Shetland Health Board",$E$2="Western Isles Health Board",$E$2="Shetland Islands Local Authority",$E$2="Eilean Siar Local Authority"),OR($F103=1,$F103=5)),0,new_yllv2(VALUE(LEFT(Options!$B$14,2)),$C103,$D103,$E103,$F103,2016,$I103,1,$H103,$G103*$H103,Options!$B$8))) -> 1079.684043 | N103: =IF(AND(OR($E$2="Orkney Health Board",$E$2="Orkney Islands Local Authority"),$F103=1),0,IF(AND(OR($E$2="Shetland Health Board",$E$2="Western Isles Health Board",$E$2="Shetland Islands Local Authority",$E$2="Eilean Siar Local Authority"),OR($F103=1,$F103=5)),0,new_yllv2(VALUE(LEFT(Options!$B$14,2)),$C103,$D103,$E103,$F103,2016,$I103+$J103,1,$H103,$G103*$H103,Options!$B$8))) -> 1076.960499 | O103: =IF(AND(OR($E$2="Orkney Health Board",$E$2="Orkney Islands Local Authority"),$F103=1),0,IF(AND(OR($E$2="Shetland Health Board",$E$2="Western Isles Health Board",$E$2="Shetland Islands Local Authority",$E$2="Eilean Siar Local Authority"),OR($F103=1,$F103=5)),0,hosp_count(VALUE(LEFT(Options!$B$14,2)),$C103,$E103,$F103,2016,$I103,1,$H103,$G103*$H103, Options!$B$8))) -> 5961.621382 | P103: =IF(AND(OR($E$2="Orkney Health Board",$E$2="Orkney Islands Local Authority"),$F103=1),0,IF(AND(OR($E$2="Shetland Health Board",$E$2="Western Isles Health Board",$E$2="Shetland Islands Local Authority",$E$2="Eilean Siar Local Authority"),OR($F103=1,$F103=5)),0,hosp_count(VALUE(LEFT(Options!$B$14,2)),$C103,$E103,$F103,2016,$I103+$J103,1,$H103,$G103*$H103, Options!$B$8))) -> 5952.433903 | Q103: =IF(AND(OR($E$2="Orkney Health Board",$E$2="Orkney Islands Local Authority"),$F103=1),0,IF(AND(OR($E$2="Shetland Health Board",$E$2="Western Isles Health Board",$E$2="Shetland Islands Local Authority",$E$2="Eilean Siar Local Authority"),OR($F103=1,$F103=5)),0,prem_mort(VALUE(LEFT(Options!$B$14,2)),$C103,$E103,$F103,2016,$I103,1,$H103,$G103*$H103,Options!$B$8))) -> 20.11708557 | R103: =IF(AND(OR($E$2="Orkney Health Board",$E$2="Orkney Islands Local Authority"),$F103=1),0,IF(AND(OR($E$2="Shetland Health Board",$E$2="Western Isles Health Board",$E$2="Shetland Islands Local Authority",$E$2="Eilean Siar Local Authority"),OR($F103=1,$F103=5)),0,prem_mort(VALUE(LEFT(Options!$B$14,2)),$C103,$E103,$F103,2016,$I103+$J103,1,$H103,$G103*$H103,Options!$B$8))) -> 20.06633945 | S103: 49.53727056 | T103: 49.41231089 | U103: 2658.665459 | V103: 2651.958873 | W103: 14680.1807 | X103: 14657.55701 | Y103: 49.53727056 | Z103: 49.41231089 | AA103: 297223.6233 | AB103: 296473.8653 | AC103: 15951992.76 | AD103: 15911753.24 | AE103: 88081084.2 | AF103: 87945342.08 | AG103: 297223.6233 | AH103: 296473.8653 | AI103: 6000
B104: Female 30-34 | C104: 31.999905 | D104: 81.7999 | E104: female | F104: 2 | G104: =HLOOKUP($E$2,'Prevalence Rates'!$C$3:$BC$249,'Prevalence Rates'!$BD104,FALSE) -> 0.2801 | H104: =HLOOKUP($E$2,'Population 2016'!$C$3:$BC$249,'Population 2016'!BD104,FALSE) -> 38102 | I104: 0 | J104: =ROUND(0.807*(HLOOKUP($E$2,'Population at Risk'!$C$3:$BC$249,'Population at Risk'!$BD104,FALSE)),0) -> 8613 | K104: =IF(AND(OR($E$2="Orkney Health Board",$E$2="Orkney Islands Local Authority"),$F104=1),0,IF(AND(OR($E$2="Shetland Health Board",$E$2="Western Isles Health Board",$E$2="Shetland Islands Local Authority",$E$2="Eilean Siar Local Authority"),OR($F104=1,$F104=5)),0,new_ci(VALUE(LEFT(Options!$B$14,2)),$C104,$E104,$F104,2016,$I104,1,$H104,$G104*$H104,Options!$B$8))) -> 28.93501683 | L104: =IF(AND(OR($E$2="Orkney Health Board",$E$2="Orkney Islands Local Authority"),$F104=1),0,IF(AND(OR($E$2="Shetland Health Board",$E$2="Western Isles Health Board",$E$2="Shetland Islands Local Authority",$E$2="Eilean Siar Local Authority"),OR($F104=1,$F104=5)),0,new_ci(VALUE(LEFT(Options!$B$14,2)),$C104,$E104,$F104,2016,$I104+$J104,1,$H104,$G104*$H104,Options!$B$8))) -> 28.86204491 | M104: =IF(AND(OR($E$2="Orkney Health Board",$E$2="Orkney Islands Local Authority"),$F104=1),0,IF(AND(OR($E$2="Shetland Health Board",$E$2="Western Isles Health Board",$E$2="Shetland Islands Local Authority",$E$2="Eilean Siar Local Authority"),OR($F104=1,$F104=5)),0,new_yllv2(VALUE(LEFT(Options!$B$14,2)),$C104,$D104,$E104,$F104,2016,$I104,1,$H104,$G104*$H104,Options!$B$8))) -> 1412.028677 | N104: =IF(AND(OR($E$2="Orkney Health Board",$E$2="Orkney Islands Local Authority"),$F104=1),0,IF(AND(OR($E$2="Shetland Health Board",$E$2="Western Isles Health Board",$E$2="Shetland Islands Local Authority",$E$2="Eilean Siar Local Authority"),OR($F104=1,$F104=5)),0,new_yllv2(VALUE(LEFT(Options!$B$14,2)),$C104,$D104,$E104,$F104,2016,$I104+$J104,1,$H104,$G104*$H104,Options!$B$8))) -> 1408.467647 | O104: =IF(AND(OR($E$2="Orkney Health Board",$E$2="Orkney Islands Local Authority"),$F104=1),0,IF(AND(OR($E$2="Shetland Health Board",$E$2="Western Isles Health Board",$E$2="Shetland Islands Local Authority",$E$2="Eilean Siar Local Authority"),OR($F104=1,$F104=5)),0,hosp_count(VALUE(LEFT(Options!$B$14,2)),$C104,$E104,$F104,2016,$I104,1,$H104,$G104*$H104, Options!$B$8))) -> 6347.018148 | P104: =IF(AND(OR($E$2="Orkney Health Board",$E$2="Orkney Islands Local Authority"),$F104=1),0,IF(AND(OR($E$2="Shetland Health Board",$E$2="Western Isles Health Board",$E$2="Shetland Islands Local Authority",$E$2="Eilean Siar Local Authority"),OR($F104=1,$F104=5)),0,hosp_count(VALUE(LEFT(Options!$B$14,2)),$C104,$E104,$F104,2016,$I104+$J104,1,$H104,$G104*$H104, Options!$B$8))) -> 6337.2368 | Q104: =IF(AND(OR($E$2="Orkney Health Board",$E$2="Orkney Islands Local Authority"),$F104=1),0,IF(AND(OR($E$2="Shetland Health Board",$E$2="Western Isles Health Board",$E$2="Shetland Islands Local Authority",$E$2="Eilean Siar Local Authority"),OR($F104=1,$F104=5)),0,prem_mort(VALUE(LEFT(Options!$B$14,2)),$C104,$E104,$F104,2016,$I104,1,$H104,$G104*$H104,Options!$B$8))) -> 28.93501683 | R104: =IF(AND(OR($E$2="Orkney Health Board",$E$2="Orkney Islands Local Authority"),$F104=1),0,IF(AND(OR($E$2="Shetland Health Board",$E$2="Western Isles Health Board",$E$2="Shetland Islands Local Authority",$E$2="Eilean Siar Local Authority"),OR($F104=1,$F104=5)),0,prem_mort(VALUE(LEFT(Options!$B$14,2)),$C104,$E104,$F104,2016,$I104+$J104,1,$H104,$G104*$H104,Options!$B$8))) -> 28.86204491 | S104: 75.94093967 | T104: 75.74942238 | U104: 3705.917476 | V104: 3696.571433 | W104: 16657.96585 | X104: 16632.29437 | Y104: 75.94093967 | Z104: 75.74942238 | AA104: 493616.1079 | AB104: 492371.2454 | AC104: 24088463.6 | AD104: 24027714.32 | AE104: 108276778 | AF104: 108109913.4 | AG104: 493616.1079 | AH104: 492371.2454 | AI104: 6500
B105: Female 35-39 | C105: 36.918118 | D105: 81.89812 | E105: female | F105: 2 | G105: =HLOOKUP($E$2,'Prevalence Rates'!$C$3:$BC$249,'Prevalence Rates'!$BD105,FALSE) -> 0.303 | H105: =HLOOKUP($E$2,'Population 2016'!$C$3:$BC$249,'Population 2016'!BD105,FALSE) -> 33014 | I105: 0 | J105: =ROUND(0.807*(HLOOKUP($E$2,'Population at Risk'!$C$3:$BC$249,'Population at Risk'!$BD105,FALSE)),0) -> 8073 | K105: =IF(AND(OR($E$2="Orkney Health Board",$E$2="Orkney Islands Local Authority"),$F105=1),0,IF(AND(OR($E$2="Shetland Health Board",$E$2="Western Isles Health Board",$E$2="Shetland Islands Local Authority",$E$2="Eilean Siar Local Authority"),OR($F105=1,$F105=5)),0,new_ci(VALUE(LEFT(Options!$B$14,2)),$C105,$E105,$F105,2016,$I105,1,$H105,$G105*$H105,Options!$B$8))) -> 38.08489356 | L105: =IF(AND(OR($E$2="Orkney Health Board",$E$2="Orkney Islands Local Authority"),$F105=1),0,IF(AND(OR($E$2="Shetland Health Board",$E$2="Western Isles Health Board",$E$2="Shetland Islands Local Authority",$E$2="Eilean Siar Local Authority"),OR($F105=1,$F105=5)),0,new_ci(VALUE(LEFT(Options!$B$14,2)),$C105,$E105,$F105,2016,$I105+$J105,1,$H105,$G105*$H105,Options!$B$8))) -> 37.98256102 | M105: =IF(AND(OR($E$2="Orkney Health Board",$E$2="Orkney Islands Local Authority"),$F105=1),0,IF(AND(OR($E$2="Shetland Health Board",$E$2="Western Isles Health Board",$E$2="Shetland Islands Local Authority",$E$2="Eilean Siar Local Authority"),OR($F105=1,$F105=5)),0,new_yllv2(VALUE(LEFT(Options!$B$14,2)),$C105,$D105,$E105,$F105,2016,$I105,1,$H105,$G105*$H105,Options!$B$8))) -> 1674.973695 | N105: =IF(AND(OR($E$2="Orkney Health Board",$E$2="Orkney Islands Local Authority"),$F105=1),0,IF(AND(OR($E$2="Shetland Health Board",$E$2="Western Isles Health Board",$E$2="Shetland Islands Local Authority",$E$2="Eilean Siar Local Authority"),OR($F105=1,$F105=5)),0,new_yllv2(VALUE(LEFT(Options!$B$14,2)),$C105,$D105,$E105,$F105,2016,$I105+$J105,1,$H105,$G105*$H105,Options!$B$8))) -> 1670.473109 | O105: =IF(AND(OR($E$2="Orkney Health Board",$E$2="Orkney Islands Local Authority"),$F105=1),0,IF(AND(OR($E$2="Shetland Health Board",$E$2="Western Isles Health Board",$E$2="Shetland Islands Local Authority",$E$2="Eilean Siar Local Authority"),OR($F105=1,$F105=5)),0,hosp_count(VALUE(LEFT(Options!$B$14,2)),$C105,$E105,$F105,2016,$I105,1,$H105,$G105*$H105, Options!$B$8))) -> 6223.679334 | P105: =IF(AND(OR($E$2="Orkney Health Board",$E$2="Orkney Islands Local Authority"),$F105=1),0,IF(AND(OR($E$2="Shetland Health Board",$E$2="Western Isles Health Board",$E$2="Shetland Islands Local Authority",$E$2="Eilean Siar Local Authority"),OR($F105=1,$F105=5)),0,hosp_count(VALUE(LEFT(Options!$B$14,2)),$C105,$E105,$F105,2016,$I105+$J105,1,$H105,$G105*$H105, Options!$B$8))) -> 6213.415911 | Q105: =IF(AND(OR($E$2="Orkney Health Board",$E$2="Orkney Islands Local Authority"),$F105=1),0,IF(AND(OR($E$2="Shetland Health Board",$E$2="Western Isles Health Board",$E$2="Shetland Islands Local Authority",$E$2="Eilean Siar Local Authority"),OR($F105=1,$F105=5)),0,prem_mort(VALUE(LEFT(Options!$B$14,2)),$C105,$E105,$F105,2016,$I105,1,$H105,$G105*$H105,Options!$B$8))) -> 38.08489356 | R105: =IF(AND(OR($E$2="Orkney Health Board",$E$2="Orkney Islands Local Authority"),$F105=1),0,IF(AND(OR($E$2="Shetland Health Board",$E$2="Western Isles Health Board",$E$2="Shetland Islands Local Authority",$E$2="Eilean Siar Local Authority"),OR($F105=1,$F105=5)),0,prem_mort(VALUE(LEFT(Options!$B$14,2)),$C105,$E105,$F105,2016,$I105+$J105,1,$H105,$G105*$H105,Options!$B$8))) -> 37.98256102 | S105: 115.3598278 | T105: 115.0498607 | U105: 5073.525458 | V105: 5059.893104 | W105: 18851.63668 | X105: 18820.54859 | Y105: 115.3598278 | Z105: 115.0498607 | AA105: 807518.7947 | AB105: 805349.025 | AC105: 35514678.21 | AD105: 35419251.73 | AE105: 131961456.8 | AF105: 131743840.1 | AG105: 807518.7947 | AH105: 805349.025 | AI105: 7000
B106: Female 40-44 | C106: 42.077438 | D106: 82.30744 | E106: female | F106: 2 | G106: =HLOOKUP($E$2,'Prevalence Rates'!$C$3:$BC$249,'Prevalence Rates'!$BD106,FALSE) -> 0.303 | H106: =HLOOKUP($E$2,'Population 2016'!$C$3:$BC$249,'Population 2016'!BD106,FALSE) -> 33442 | I106: 0 | J106: =ROUND(0.807*(HLOOKUP($E$2,'Population at Risk'!$C$3:$BC$249,'Population at Risk'!$BD106,FALSE)),0) -> 8177 | K106: =IF(AND(OR($E$2="Orkney Health Board",$E$2="Orkney Islands Local Authority"),$F106=1),0,IF(AND(OR($E$2="Shetland Health Board",$E$2="Western Isles Health Board",$E$2="Shetland Islands Local Authority",$E$2="Eilean Siar Local Authority"),OR($F106=1,$F106=5)),0,new_ci(VALUE(LEFT(Options!$B$14,2)),$C106,$E106,$F106,2016,$I106,1,$H106,$G106*$H106,Options!$B$8))) -> 59.8101559 | L106: =IF(AND(OR($E$2="Orkney Health Board",$E$2="Orkney Islands Local Authority"),$F106=1),0,IF(AND(OR($E$2="Shetland Health Board",$E$2="Western Isles Health Board",$E$2="Shetland Islands Local Authority",$E$2="Eilean Siar Local Authority"),OR($F106=1,$F106=5)),0,new_ci(VALUE(LEFT(Options!$B$14,2)),$C106,$E106,$F106,2016,$I106+$J106,1,$H106,$G106*$H106,Options!$B$8))) -> 59.64955226 | M106: =IF(AND(OR($E$2="Orkney Health Board",$E$2="Orkney Islands Local Authority"),$F106=1),0,IF(AND(OR($E$2="Shetland Health Board",$E$2="Western Isles Health Board",$E$2="Shetland Islands Local Authority",$E$2="Eilean Siar Local Authority"),OR($F106=1,$F106=5)),0,new_yllv2(VALUE(LEFT(Options!$B$14,2)),$C106,$D106,$E106,$F106,2016,$I106,1,$H106,$G106*$H106,Options!$B$8))) -> 2346.352535 | N106: =IF(AND(OR($E$2="Orkney Health Board",$E$2="Orkney Islands Local Authority"),$F106=1),0,IF(AND(OR($E$2="Shetland Health Board",$E$2="Western Isles Health Board",$E$2="Shetland Islands Local Authority",$E$2="Eilean Siar Local Authority"),OR($F106=1,$F106=5)),0,new_yllv2(VALUE(LEFT(Options!$B$14,2)),$C106,$D106,$E106,$F106,2016,$I106+$J106,1,$H106,$G106*$H106,Options!$B$8))) -> 2340.052054 | O106: =IF(AND(OR($E$2="Orkney Health Board",$E$2="Orkney Islands Local Authority"),$F106=1),0,IF(AND(OR($E$2="Shetland Health Board",$E$2="Western Isles Health Board",$E$2="Shetland Islands Local Authority",$E$2="Eilean Siar Local Authority"),OR($F106=1,$F106=5)),0,hosp_count(VALUE(LEFT(Options!$B$14,2)),$C106,$E106,$F106,2016,$I106,1,$H106,$G106*$H106, Options!$B$8))) -> 7177.98054 | P106: =IF(AND(OR($E$2="Orkney Health Board",$E$2="Orkney Islands Local Authority"),$F106=1),0,IF(AND(OR($E$2="Shetland Health Board",$E$2="Western Isles Health Board",$E$2="Shetland Islands Local Authority",$E$2="Eilean Siar Local Authority"),OR($F106=1,$F106=5)),0,hosp_count(VALUE(LEFT(Options!$B$14,2)),$C106,$E106,$F106,2016,$I106+$J106,1,$H106,$G106*$H106, Options!$B$8))) -> 7166.144342 | Q106: =IF(AND(OR($E$2="Orkney Health Board",$E$2="Orkney Islands Local Authority"),$F106=1),0,IF(AND(OR($E$2="Shetland Health Board",$E$2="Western Isles Health Board",$E$2="Shetland Islands Local Authority",$E$2="Eilean Siar Local Authority"),OR($F106=1,$F106=5)),0,prem_mort(VALUE(LEFT(Options!$B$14,2)),$C106,$E106,$F106,2016,$I106,1,$H106,$G106*$H106,Options!$B$8))) -> 59.8101559 | R106: =IF(AND(OR($E$2="Orkney Health Board",$E$2="Orkney Islands Local Authority"),$F106=1),0,IF(AND(OR($E$2="Shetland Health Board",$E$2="Western Isles Health Board",$E$2="Shetland Islands Local Authority",$E$2="Eilean Siar Local Authority"),OR($F106=1,$F106=5)),0,prem_mort(VALUE(LEFT(Options!$B$14,2)),$C106,$E106,$F106,2016,$I106+$J106,1,$H106,$G106*$H106,Options!$B$8))) -> 59.64955226 | S106: 178.8474251 | T106: 178.3671798 | U106: 7016.184844 | V106: 6997.344819 | W106: 21463.96908 | X106: 21428.57587 | Y106: 178.8474251 | Z106: 178.3671798 | AA106: 1251931.976 | AB106: 1248570.258 | AC106: 49113293.91 | AD106: 48981413.73 | AE106: 150247783.6 | AF106: 150000031.1 | AG106: 1251931.976 | AH106: 1248570.258 | AI106: 7000
B107: Female 45-49 | C107: 47.025772 | D107: 82.58577 | E107: female | F107: 2 | G107: =HLOOKUP($E$2,'Prevalence Rates'!$C$3:$BC$249,'Prevalence Rates'!$BD107,FALSE) -> 0.3128 | H107: =HLOOKUP($E$2,'Population 2016'!$C$3:$BC$249,'Population 2016'!BD107,FALSE) -> 39170 | I107: 0 | J107: =ROUND(0.807*(HLOOKUP($E$2,'Population at Risk'!$C$3:$BC$249,'Population at Risk'!$BD107,FALSE)),0) -> 9888 | K107: =IF(AND(OR($E$2="Orkney Health Board",$E$2="Orkney Islands Local Authority"),$F107=1),0,IF(AND(OR($E$2="Shetland Health Board",$E$2="Western Isles Health Board",$E$2="Shetland Islands Local Authority",$E$2="Eilean Siar Local Authority"),OR($F107=1,$F107=5)),0,new_ci(VALUE(LEFT(Options!$B$14,2)),$C107,$E107,$F107,2016,$I107,1,$H107,$G107*$H107,Options!$B$8))) -> 106.6594975 | L107: =IF(AND(OR($E$2="Orkney Health Board",$E$2="Orkney Islands Local Authority"),$F107=1),0,IF(AND(OR($E$2="Shetland Health Board",$E$2="Western Isles Health Board",$E$2="Shetland Islands Local Authority",$E$2="Eilean Siar Local Authority"),OR($F107=1,$F107=5)),0,new_ci(VALUE(LEFT(Options!$B$14,2)),$C107,$E107,$F107,2016,$I107+$J107,1,$H107,$G107*$H107,Options!$B$8))) -> 106.365904 | M107: =IF(AND(OR($E$2="Orkney Health Board",$E$2="Orkney Islands Local Authority"),$F107=1),0,IF(AND(OR($E$2="Shetland Health Board",$E$2="Western Isles Health Board",$E$2="Shetland Islands Local Authority",$E$2="Eilean Siar Local Authority"),OR($F107=1,$F107=5)),0,new_yllv2(VALUE(LEFT(Options!$B$14,2)),$C107,$D107,$E107,$F107,2016,$I107,1,$H107,$G107*$H107,Options!$B$8))) -> 3686.152019 | N107: =IF(AND(OR($E$2="Orkney Health Board",$E$2="Orkney Islands Local Authority"),$F107=1),0,IF(AND(OR($E$2="Shetland Health Board",$E$2="Western Isles Health Board",$E$2="Shetland Islands Local Authority",$E$2="Eilean Siar Local Authority"),OR($F107=1,$F107=5)),0,new_yllv2(VALUE(LEFT(Options!$B$14,2)),$C107,$D107,$E107,$F107,2016,$I107+$J107,1,$H107,$G107*$H107,Options!$B$8))) -> 3676.005428 | O107: =IF(AND(OR($E$2="Orkney Health Board",$E$2="Orkney Islands Local Authority"),$F107=1),0,IF(AND(OR($E$2="Shetland Health Board",$E$2="Western Isles Health Board",$E$2="Shetland Islands Local Authority",$E$2="Eilean Siar Local Authority"),OR($F107=1,$F107=5)),0,hosp_count(VALUE(LEFT(Options!$B$14,2)),$C107,$E107,$F107,2016,$I107,1,$H107,$G107*$H107, Options!$B$8))) -> 9521.815112 | P107: =IF(AND(OR($E$2="Orkney Health Board",$E$2="Orkney Islands Local Authority"),$F107=1),0,IF(AND(OR($E$2="Shetland Health Board",$E$2="Western Isles Health Board",$E$2="Shetland Islands Local Authority",$E$2="Eilean Siar Local Authority"),OR($F107=1,$F107=5)),0,hosp_count(VALUE(LEFT(Options!$B$14,2)),$C107,$E107,$F107,2016,$I107+$J107,1,$H107,$G107*$H107, Options!$B$8))) -> 9505.679665 | Q107: =IF(AND(OR($E$2="Orkney Health Board",$E$2="Orkney Islands Local Authority"),$F107=1),0,IF(AND(OR($E$2="Shetland Health Board",$E$2="Western Isles Health Board",$E$2="Shetland Islands Local Authority",$E$2="Eilean Siar Local Authority"),OR($F107=1,$F107=5)),0,prem_mort(VALUE(LEFT(Options!$B$14,2)),$C107,$E107,$F107,2016,$I107,1,$H107,$G107*$H107,Options!$B$8))) -> 106.6594975 | R107: =IF(AND(OR($E$2="Orkney Health Board",$E$2="Orkney Islands Local Authority"),$F107=1),0,IF(AND(OR($E$2="Shetland Health Board",$E$2="Western Isles Health Board",$E$2="Shetland Islands Local Authority",$E$2="Eilean Siar Local Authority"),OR($F107=1,$F107=5)),0,prem_mort(VALUE(LEFT(Options!$B$14,2)),$C107,$E107,$F107,2016,$I107+$J107,1,$H107,$G107*$H107,Options!$B$8))) -> 106.365904 | S107: 272.2989468 | T107: 271.5494102 | U107: 9410.651058 | V107: 9384.747073 | W107: 24308.94846 | X107: 24267.75508 | Y107: 272.2989468 | Z107: 271.5494102 | AA107: 1906092.628 | AB107: 1900845.871 | AC107: 65874557.41 | AD107: 65693229.51 | AE107: 170162639.2 | AF107: 169874285.6 | AG107: 1906092.628 | AH107: 1900845.871 | AI107: 7000
B108: Female 50-54 | C108: 51.990826 | D108: 82.98083 | E108: female | F108: 2 | G108: =HLOOKUP($E$2,'Prevalence Rates'!$C$3:$BC$249,'Prevalence Rates'!$BD108,FALSE) -> 0.3128 | H108: =HLOOKUP($E$2,'Population 2016'!$C$3:$BC$249,'Population 2016'!BD108,FALSE) -> 40518 | I108: 0 | J108: =ROUND(0.807*(HLOOKUP($E$2,'Population at Risk'!$C$3:$BC$249,'Population at Risk'!$BD108,FALSE)),0) -> 10228 | K108: =IF(AND(OR($E$2="Orkney Health Board",$E$2="Orkney Islands Local Authority"),$F108=1),0,IF(AND(OR($E$2="Shetland Health Board",$E$2="Western Isles Health Board",$E$2="Shetland Islands Local Authority",$E$2="Eilean Siar Local Authority"),OR($F108=1,$F108=5)),0,new_ci(VALUE(LEFT(Options!$B$14,2)),$C108,$E108,$F108,2016,$I108,1,$H108,$G108*$H108,Options!$B$8))) -> 168.1736587 | L108: =IF(AND(OR($E$2="Orkney Health Board",$E$2="Orkney Islands Local Authority"),$F108=1),0,IF(AND(OR($E$2="Shetland Health Board",$E$2="Western Isles Health Board",$E$2="Shetland Islands Local Authority",$E$2="Eilean Siar Local Authority"),OR($F108=1,$F108=5)),0,new_ci(VALUE(LEFT(Options!$B$14,2)),$C108,$E108,$F108,2016,$I108+$J108,1,$H108,$G108*$H108,Options!$B$8))) -> 167.7113439 | M108: =IF(AND(OR($E$2="Orkney Health Board",$E$2="Orkney Islands Local Authority"),$F108=1),0,IF(AND(OR($E$2="Shetland Health Board",$E$2="Western Isles Health Board",$E$2="Shetland Islands Local Authority",$E$2="Eilean Siar Local Authority"),OR($F108=1,$F108=5)),0,new_yllv2(VALUE(LEFT(Options!$B$14,2)),$C108,$D108,$E108,$F108,2016,$I108,1,$H108,$G108*$H108,Options!$B$8))) -> 5043.528697 | N108: =IF(AND(OR($E$2="Orkney Health Board",$E$2="Orkney Islands Local Authority"),$F108=1),0,IF(AND(OR($E$2="Shetland Health Board",$E$2="Western Isles Health Board",$E$2="Shetland Islands Local Authority",$E$2="Eilean Siar Local Authority"),OR($F108=1,$F108=5)),0,new_yllv2(VALUE(LEFT(Options!$B$14,2)),$C108,$D108,$E108,$F108,2016,$I108+$J108,1,$H108,$G108*$H108,Options!$B$8))) -> 5029.663874 | O108: =IF(AND(OR($E$2="Orkney Health Board",$E$2="Orkney Islands Local Authority"),$F108=1),0,IF(AND(OR($E$2="Shetland Health Board",$E$2="Western Isles Health Board",$E$2="Shetland Islands Local Authority",$E$2="Eilean Siar Local Authority"),OR($F108=1,$F108=5)),0,hosp_count(VALUE(LEFT(Options!$B$14,2)),$C108,$E108,$F108,2016,$I108,1,$H108,$G108*$H108, Options!$B$8))) -> 11159.71138 | P108: =IF(AND(OR($E$2="Orkney Health Board",$E$2="Orkney Islands Local Authority"),$F108=1),0,IF(AND(OR($E$2="Shetland Health Board",$E$2="Western Isles Health Board",$E$2="Shetland Islands Local Authority",$E$2="Eilean Siar Local Authority"),OR($F108=1,$F108=5)),0,hosp_count(VALUE(LEFT(Options!$B$14,2)),$C108,$E108,$F108,2016,$I108+$J108,1,$H108,$G108*$H108, Options!$B$8))) -> 11140.80092 | Q108: =IF(AND(OR($E$2="Orkney Health Board",$E$2="Orkney Islands Local Authority"),$F108=1),0,IF(AND(OR($E$2="Shetland Health Board",$E$2="Western Isles Health Board",$E$2="Shetland Islands Local Authority",$E$2="Eilean Siar Local Authority"),OR($F108=1,$F108=5)),0,prem_mort(VALUE(LEFT(Options!$B$14,2)),$C108,$E108,$F108,2016,$I108,1,$H108,$G108*$H108,Options!$B$8))) -> 168.1736587 | R108: =IF(AND(OR($E$2="Orkney Health Board",$E$2="Orkney Islands Local Authority"),$F108=1),0,IF(AND(OR($E$2="Shetland Health Board",$E$2="Western Isles Health Board",$E$2="Shetland Islands Local Authority",$E$2="Eilean Siar Local Authority"),OR($F108=1,$F108=5)),0,prem_mort(VALUE(LEFT(Options!$B$14,2)),$C108,$E108,$F108,2016,$I108+$J108,1,$H108,$G108*$H108,Options!$B$8))) -> 167.7113439 | S108: 415.059131 | T108: 413.9181201 | U108: 12447.625 | V108: 12413.40608 | W108: 27542.60176 | X108: 27495.93002 | Y108: 415.059131 | Z108: 413.9181201 | AA108: 2905413.917 | AB108: 2897426.841 | AC108: 87133374.99 | AD108: 86893842.54 | AE108: 192798212.3 | AF108: 192471510.1 | AG108: 2905413.917 | AH108: 2897426.841 | AI108: 7000
B109: Female 55-59 | C109: 56.953041 | D109: 83.47304 | E109: female | F109: 2 | G109: =HLOOKUP($E$2,'Prevalence Rates'!$C$3:$BC$249,'Prevalence Rates'!$BD109,FALSE) -> 0.293 | H109: =HLOOKUP($E$2,'Population 2016'!$C$3:$BC$249,'Population 2016'!BD109,FALSE) -> 37275 | I109: 0 | J109: =ROUND(0.807*(HLOOKUP($E$2,'Population at Risk'!$C$3:$BC$249,'Population at Risk'!$BD109,FALSE)),0) -> 8814 | K109: =IF(AND(OR($E$2="Orkney Health Board",$E$2="Orkney Islands Local Authority"),$F109=1),0,IF(AND(OR($E$2="Shetland Health Board",$E$2="Western Isles Health Board",$E$2="Shetland Islands Local Authority",$E$2="Eilean Siar Local Authority"),OR($F109=1,$F109=5)),0,new_ci(VALUE(LEFT(Options!$B$14,2)),$C109,$E109,$F109,2016,$I109,1,$H109,$G109*$H109,Options!$B$8))) -> 235.6736339 | L109: =IF(AND(OR($E$2="Orkney Health Board",$E$2="Orkney Islands Local Authority"),$F109=1),0,IF(AND(OR($E$2="Shetland Health Board",$E$2="Western Isles Health Board",$E$2="Shetland Islands Local Authority",$E$2="Eilean Siar Local Authority"),OR($F109=1,$F109=5)),0,new_ci(VALUE(LEFT(Options!$B$14,2)),$C109,$E109,$F109,2016,$I109+$J109,1,$H109,$G109*$H109,Options!$B$8))) -> 235.0602342 | M109: =IF(AND(OR($E$2="Orkney Health Board",$E$2="Orkney Islands Local Authority"),$F109=1),0,IF(AND(OR($E$2="Shetland Health Board",$E$2="Western Isles Health Board",$E$2="Shetland Islands Local Authority",$E$2="Eilean Siar Local Authority"),OR($F109=1,$F109=5)),0,new_yllv2(VALUE(LEFT(Options!$B$14,2)),$C109,$D109,$E109,$F109,2016,$I109,1,$H109,$G109*$H109,Options!$B$8))) -> 6014.390902 | N109: =IF(AND(OR($E$2="Orkney Health Board",$E$2="Orkney Islands Local Authority"),$F109=1),0,IF(AND(OR($E$2="Shetland Health Board",$E$2="Western Isles Health Board",$E$2="Shetland Islands Local Authority",$E$2="Eilean Siar Local Authority"),OR($F109=1,$F109=5)),0,new_yllv2(VALUE(LEFT(Options!$B$14,2)),$C109,$D109,$E109,$F109,2016,$I109+$J109,1,$H109,$G109*$H109,Options!$B$8))) -> 5998.736941 | O109: =IF(AND(OR($E$2="Orkney Health Board",$E$2="Orkney Islands Local Authority"),$F109=1),0,IF(AND(OR($E$2="Shetland Health Board",$E$2="Western Isles Health Board",$E$2="Shetland Islands Local Authority",$E$2="Eilean Siar Local Authority"),OR($F109=1,$F109=5)),0,hosp_count(VALUE(LEFT(Options!$B$14,2)),$C109,$E109,$F109,2016,$I109,1,$H109,$G109*$H109, Options!$B$8))) -> 11631.35715 | P109: =IF(AND(OR($E$2="Orkney Health Board",$E$2="Orkney Islands Local Authority"),$F109=1),0,IF(AND(OR($E$2="Shetland Health Board",$E$2="Western Isles Health Board",$E$2="Shetland Islands Local Authority",$E$2="Eilean Siar Local Authority"),OR($F109=1,$F109=5)),0,hosp_count(VALUE(LEFT(Options!$B$14,2)),$C109,$E109,$F109,2016,$I109+$J109,1,$H109,$G109*$H109, Options!$B$8))) -> 11612.72142 | Q109: =IF(AND(OR($E$2="Orkney Health Board",$E$2="Orkney Islands Local Authority"),$F109=1),0,IF(AND(OR($E$2="Shetland Health Board",$E$2="Western Isles Health Board",$E$2="Shetland Islands Local Authority",$E$2="Eilean Siar Local Authority"),OR($F109=1,$F109=5)),0,prem_mort(VALUE(LEFT(Options!$B$14,2)),$C109,$E109,$F109,2016,$I109,1,$H109,$G109*$H109,Options!$B$8))) -> 235.6736339 | R109: =IF(AND(OR($E$2="Orkney Health Board",$E$2="Orkney Islands Local Authority"),$F109=1),0,IF(AND(OR($E$2="Shetland Health Board",$E$2="Western Isles Health Board",$E$2="Shetland Islands Local Authority",$E$2="Eilean Siar Local Authority"),OR($F109=1,$F109=5)),0,prem_mort(VALUE(LEFT(Options!$B$14,2)),$C109,$E109,$F109,2016,$I109+$J109,1,$H109,$G109*$H109,Options!$B$8))) -> 235.0602342 | S109: 632.2565632 | T109: 630.6109568 | U109: 16135.18686 | V109: 16093.19099 | W109: 31204.17746 | X109: 31154.18223 | Y109: 632.2565632 | Z109: 630.6109568 | AA109: 4109667.66 | AB109: 4098971.219 | AC109: 104878714.6 | AD109: 104605741.4 | AE109: 202827153.5 | AF109: 202502184.5 | AG109: 4109667.66 | AH109: 4098971.219 | AI109: 6500
B110: Female 60-64 | C110: 61.947388 | D110: 84.16739 | E110: female | F110: 2 | G110: =HLOOKUP($E$2,'Prevalence Rates'!$C$3:$BC$249,'Prevalence Rates'!$BD110,FALSE) -> 0.293 | H110: =HLOOKUP($E$2,'Population 2016'!$C$3:$BC$249,'Population 2016'!BD110,FALSE) -> 32644 | I110: 0 | J110: =ROUND(0.807*(HLOOKUP($E$2,'Population at Risk'!$C$3:$BC$249,'Population at Risk'!$BD110,FALSE)),0) -> 7719 | K110: =IF(AND(OR($E$2="Orkney Health Board",$E$2="Orkney Islands Local Authority"),$F110=1),0,IF(AND(OR($E$2="Shetland Health Board",$E$2="Western Isles Health Board",$E$2="Shetland Islands Local Authority",$E$2="Eilean Siar Local Authority"),OR($F110=1,$F110=5)),0,new_ci(VALUE(LEFT(Options!$B$14,2)),$C110,$E110,$F110,2016,$I110,1,$H110,$G110*$H110,Options!$B$8))) -> 315.0576184 | L110: =IF(AND(OR($E$2="Orkney Health Board",$E$2="Orkney Islands Local Authority"),$F110=1),0,IF(AND(OR($E$2="Shetland Health Board",$E$2="Western Isles Health Board",$E$2="Shetland Islands Local Authority",$E$2="Eilean Siar Local Authority"),OR($F110=1,$F110=5)),0,new_ci(VALUE(LEFT(Options!$B$14,2)),$C110,$E110,$F110,2016,$I110+$J110,1,$H110,$G110*$H110,Options!$B$8))) -> 314.2401006 | M110: =IF(AND(OR($E$2="Orkney Health Board",$E$2="Orkney Islands Local Authority"),$F110=1),0,IF(AND(OR($E$2="Shetland Health Board",$E$2="Western Isles Health Board",$E$2="Shetland Islands Local Authority",$E$2="Eilean Siar Local Authority"),OR($F110=1,$F110=5)),0,new_yllv2(VALUE(LEFT(Options!$B$14,2)),$C110,$D110,$E110,$F110,2016,$I110,1,$H110,$G110*$H110,Options!$B$8))) -> 6685.523292 | N110: =IF(AND(OR($E$2="Orkney Health Board",$E$2="Orkney Islands Local Authority"),$F110=1),0,IF(AND(OR($E$2="Shetland Health Board",$E$2="Western Isles Health Board",$E$2="Shetland Islands Local Authority",$E$2="Eilean Siar Local Authority"),OR($F110=1,$F110=5)),0,new_yllv2(VALUE(LEFT(Options!$B$14,2)),$C110,$D110,$E110,$F110,2016,$I110+$J110,1,$H110,$G110*$H110,Options!$B$8))) -> 6668.175564 | O110: =IF(AND(OR($E$2="Orkney Health Board",$E$2="Orkney Islands Local Authority"),$F110=1),0,IF(AND(OR($E$2="Shetland Health Board",$E$2="Western Isles Health Board",$E$2="Shetland Islands Local Authority",$E$2="Eilean Siar Local Authority"),OR($F110=1,$F110=5)),0,hosp_count(VALUE(LEFT(Options!$B$14,2)),$C110,$E110,$F110,2016,$I110,1,$H110,$G110*$H110, Options!$B$8))) -> 11549.81155 | P110: =IF(AND(OR($E$2="Orkney Health Board",$E$2="Orkney Islands Local Authority"),$F110=1),0,IF(AND(OR($E$2="Shetland Health Board",$E$2="Western Isles Health Board",$E$2="Shetland Islands Local Authority",$E$2="Eilean Siar Local Authority"),OR($F110=1,$F110=5)),0,hosp_count(VALUE(LEFT(Options!$B$14,2)),$C110,$E110,$F110,2016,$I110+$J110,1,$H110,$G110*$H110, Options!$B$8))) -> 11531.30638 | Q110: =IF(AND(OR($E$2="Orkney Health Board",$E$2="Orkney Islands Local Authority"),$F110=1),0,IF(AND(OR($E$2="Shetland Health Board",$E$2="Western Isles Health Board",$E$2="Shetland Islands Local Authority",$E$2="Eilean Siar Local Authority"),OR($F110=1,$F110=5)),0,prem_mort(VALUE(LEFT(Options!$B$14,2)),$C110,$E110,$F110,2016,$I110,1,$H110,$G110*$H110,Options!$B$8))) -> 315.0576184 | R110: =IF(AND(OR($E$2="Orkney Health Board",$E$2="Orkney Islands Local Authority"),$F110=1),0,IF(AND(OR($E$2="Shetland Health Board",$E$2="Western Isles Health Board",$E$2="Shetland Islands Local Authority",$E$2="Eilean Siar Local Authority"),OR($F110=1,$F110=5)),0,prem_mort(VALUE(LEFT(Options!$B$14,2)),$C110,$E110,$F110,2016,$I110+$J110,1,$H110,$G110*$H110,Options!$B$8))) -> 314.2401006 | S110: 965.1317803 | T110: 962.6274373 | U110: 20480.09831 | V110: 20426.95614 | W110: 35381.11613 | X110: 35324.42832 | Y110: 965.1317803 | Z110: 962.6274373 | AA110: 5790790.682 | AB110: 5775764.624 | AC110: 122880589.9 | AD110: 122561736.9 | AE110: 212286696.8 | AF110: 211946569.9 | AG110: 5790790.682 | AH110: 5775764.624 | AI110: 6000
B111: Female 65-69 | C111: 67.063927 | D111: 85.19393 | E111: female | F111: 2 | G111: =HLOOKUP($E$2,'Prevalence Rates'!$C$3:$BC$249,'Prevalence Rates'!$BD111,FALSE) -> 0.211 | H111: =HLOOKUP($E$2,'Population 2016'!$C$3:$BC$249,'Population 2016'!BD111,FALSE) -> 32580 | I111: 0 | J111: =ROUND(0.807*(HLOOKUP($E$2,'Population at Risk'!$C$3:$BC$249,'Population at Risk'!$BD111,FALSE)),0) -> 5548 | K111: =IF(AND(OR($E$2="Orkney Health Board",$E$2="Orkney Islands Local Authority"),$F111=1),0,IF(AND(OR($E$2="Shetland Health Board",$E$2="Western Isles Health Board",$E$2="Shetland Islands Local Authority",$E$2="Eilean Siar Local Authority"),OR($F111=1,$F111=5)),0,new_ci(VALUE(LEFT(Options!$B$14,2)),$C111,$E111,$F111,2016,$I111,1,$H111,$G111*$H111,Options!$B$8))) -> 484.5292022 | L111: =IF(AND(OR($E$2="Orkney Health Board",$E$2="Orkney Islands Local Authority"),$F111=1),0,IF(AND(OR($E$2="Shetland Health Board",$E$2="Western Isles Health Board",$E$2="Shetland Islands Local Authority",$E$2="Eilean Siar Local Authority"),OR($F111=1,$F111=5)),0,new_ci(VALUE(LEFT(Options!$B$14,2)),$C111,$E111,$F111,2016,$I111+$J111,1,$H111,$G111*$H111,Options!$B$8))) -> 483.5787765 | M111: =IF(AND(OR($E$2="Orkney Health Board",$E$2="Orkney Islands Local Authority"),$F111=1),0,IF(AND(OR($E$2="Shetland Health Board",$E$2="Western Isles Health Board",$E$2="Shetland Islands Local Authority",$E$2="Eilean Siar Local Authority"),OR($F111=1,$F111=5)),0,new_yllv2(VALUE(LEFT(Options!$B$14,2)),$C111,$D111,$E111,$F111,2016,$I111,1,$H111,$G111*$H111,Options!$B$8))) -> 8299.986687 | N111: =IF(AND(OR($E$2="Orkney Health Board",$E$2="Orkney Islands Local Authority"),$F111=1),0,IF(AND(OR($E$2="Shetland Health Board",$E$2="Western Isles Health Board",$E$2="Shetland Islands Local Authority",$E$2="Eilean Siar Local Authority"),OR($F111=1,$F111=5)),0,new_yllv2(VALUE(LEFT(Options!$B$14,2)),$C111,$D111,$E111,$F111,2016,$I111+$J111,1,$H111,$G111*$H111,Options!$B$8))) -> 8283.705892 | O111: =IF(AND(OR($E$2="Orkney Health Board",$E$2="Orkney Islands Local Authority"),$F111=1),0,IF(AND(OR($E$2="Shetland Health Board",$E$2="Western Isles Health Board",$E$2="Shetland Islands Local Authority",$E$2="Eilean Siar Local Authority"),OR($F111=1,$F111=5)),0,hosp_count(VALUE(LEFT(Options!$B$14,2)),$C111,$E111,$F111,2016,$I111,1,$H111,$G111*$H111, Options!$B$8))) -> 13110.40891 | P111: =IF(AND(OR($E$2="Orkney Health Board",$E$2="Orkney Islands Local Authority"),$F111=1),0,IF(AND(OR($E$2="Shetland Health Board",$E$2="Western Isles Health Board",$E$2="Shetland Islands Local Authority",$E$2="Eilean Siar Local Authority"),OR($F111=1,$F111=5)),0,hosp_count(VALUE(LEFT(Options!$B$14,2)),$C111,$E111,$F111,2016,$I111+$J111,1,$H111,$G111*$H111, Options!$B$8))) -> 13094.67029 | Q111: =IF(AND(OR($E$2="Orkney Health Board",$E$2="Orkney Islands Local Authority"),$F111=1),0,IF(AND(OR($E$2="Shetland Health Board",$E$2="Western Isles Health Board",$E$2="Shetland Islands Local Authority",$E$2="Eilean Siar Local Authority"),OR($F111=1,$F111=5)),0,prem_mort(VALUE(LEFT(Options!$B$14,2)),$C111,$E111,$F111,2016,$I111,1,$H111,$G111*$H111,Options!$B$8))) -> 484.5292022 | R111: =IF(AND(OR($E$2="Orkney Health Board",$E$2="Orkney Islands Local Authority"),$F111=1),0,IF(AND(OR($E$2="Shetland Health Board",$E$2="Western Isles Health Board",$E$2="Shetland Islands Local Authority",$E$2="Eilean Siar Local Authority"),OR($F111=1,$F111=5)),0,prem_mort(VALUE(LEFT(Options!$B$14,2)),$C111,$E111,$F111,2016,$I111+$J111,1,$H111,$G111*$H111,Options!$B$8))) -> 483.5787765 | S111: 1487.198288 | T111: 1484.281082 | U111: 25475.71113 | V111: 25425.73939 | W111: 40240.66578 | X111: 40192.35816 | Y111: 1487.198288 | Z111: 1484.281082 | AA111: 8179590.583 | AB111: 8163545.951 | AC111: 140116411.2 | AD111: 139841566.6 | AE111: 221323661.8 | AF111: 221057969.9 | AG111: 8179590.583 | AH111: 8163545.951 | AI111: 5500
B112: Female 70-74 | C112: 71.938164 | D112: 86.24816 | E112: female | F112: 2 | G112: =HLOOKUP($E$2,'Prevalence Rates'!$C$3:$BC$249,'Prevalence Rates'!$BD112,FALSE) -> 0.211 | H112: =HLOOKUP($E$2,'Population 2016'!$C$3:$BC$249,'Population 2016'!BD112,FALSE) -> 25764 | I112: 0 | J112: =ROUND(0.807*(HLOOKUP($E$2,'Population at Risk'!$C$3:$BC$249,'Population at Risk'!$BD112,FALSE)),0) -> 4387 | K112: =IF(AND(OR($E$2="Orkney Health Board",$E$2="Orkney Islands Local Authority"),$F112=1),0,IF(AND(OR($E$2="Shetland Health Board",$E$2="Western Isles Health Board",$E$2="Shetland Islands Local Authority",$E$2="Eilean Siar Local Authority"),OR($F112=1,$F112=5)),0,new_ci(VALUE(LEFT(Options!$B$14,2)),$C112,$E112,$F112,2016,$I112,1,$H112,$G112*$H112,Options!$B$8))) -> 577.6105517 | L112: =IF(AND(OR($E$2="Orkney Health Board",$E$2="Orkney Islands Local Authority"),$F112=1),0,IF(AND(OR($E$2="Shetland Health Board",$E$2="Western Isles Health Board",$E$2="Shetland Islands Local Authority",$E$2="Eilean Siar Local Authority"),OR($F112=1,$F112=5)),0,new_ci(VALUE(LEFT(Options!$B$14,2)),$C112,$E112,$F112,2016,$I112+$J112,1,$H112,$G112*$H112,Options!$B$8))) -> 576.4862965 | M112: =IF(AND(OR($E$2="Orkney Health Board",$E$2="Orkney Islands Local Authority"),$F112=1),0,IF(AND(OR($E$2="Shetland Health Board",$E$2="Western Isles Health Board",$E$2="Shetland Islands Local Authority",$E$2="Eilean Siar Local Authority"),OR($F112=1,$F112=5)),0,new_yllv2(VALUE(LEFT(Options!$B$14,2)),$C112,$D112,$E112,$F112,2016,$I112,1,$H112,$G112*$H112,Options!$B$8))) -> 7687.994133 | N112: =IF(AND(OR($E$2="Orkney Health Board",$E$2="Orkney Islands Local Authority"),$F112=1),0,IF(AND(OR($E$2="Shetland Health Board",$E$2="Western Isles Health Board",$E$2="Shetland Islands Local Authority",$E$2="Eilean Siar Local Authority"),OR($F112=1,$F112=5)),0,new_yllv2(VALUE(LEFT(Options!$B$14,2)),$C112,$D112,$E112,$F112,2016,$I112+$J112,1,$H112,$G112*$H112,Options!$B$8))) -> 7673.030301 | O112: =IF(AND(OR($E$2="Orkney Health Board",$E$2="Orkney Islands Local Authority"),$F112=1),0,IF(AND(OR($E$2="Shetland Health Board",$E$2="Western Isles Health Board",$E$2="Shetland Islands Local Authority",$E$2="Eilean Siar Local Authority"),OR($F112=1,$F112=5)),0,hosp_count(VALUE(LEFT(Options!$B$14,2)),$C112,$E112,$F112,2016,$I112,1,$H112,$G112*$H112, Options!$B$8))) -> 11719.93338 | P112: =IF(AND(OR($E$2="Orkney Health Board",$E$2="Orkney Islands Local Authority"),$F112=1),0,IF(AND(OR($E$2="Shetland Health Board",$E$2="Western Isles Health Board",$E$2="Shetland Islands Local Authority",$E$2="Eilean Siar Local Authority"),OR($F112=1,$F112=5)),0,hosp_count(VALUE(LEFT(Options!$B$14,2)),$C112,$E112,$F112,2016,$I112+$J112,1,$H112,$G112*$H112, Options!$B$8))) -> 11705.86499 | Q112: =IF(AND(OR($E$2="Orkney Health Board",$E$2="Orkney Islands Local Authority"),$F112=1),0,IF(AND(OR($E$2="Shetland Health Board",$E$2="Western Isles Health Board",$E$2="Shetland Islands Local Authority",$E$2="Eilean Siar Local Authority"),OR($F112=1,$F112=5)),0,prem_mort(VALUE(LEFT(Options!$B$14,2)),$C112,$E112,$F112,2016,$I112,1,$H112,$G112*$H112,Options!$B$8))) -> 577.6105517 | R112: =IF(AND(OR($E$2="Orkney Health Board",$E$2="Orkney Islands Local Authority"),$F112=1),0,IF(AND(OR($E$2="Shetland Health Board",$E$2="Western Isles Health Board",$E$2="Shetland Islands Local Authority",$E$2="Eilean Siar Local Authority"),OR($F112=1,$F112=5)),0,prem_mort(VALUE(LEFT(Options!$B$14,2)),$C112,$E112,$F112,2016,$I112+$J112,1,$H112,$G112*$H112,Options!$B$8))) -> 576.4862965 | S112: 2241.928861 | T112: 2237.565194 | U112: 29840.06417 | V112: 29781.98378 | W112: 45489.57221 | X112: 45434.96734 | Y112: 2241.928861 | Z112: 2237.565194 | AA112: 11209644.3 | AB112: 11187825.97 | AC112: 149200320.9 | AD112: 148909918.9 | AE112: 227447861.1 | AF112: 227174836.7 | AG112: 11209644.3 | AH112: 11187825.97 | AI112: 5000
B113: Female 75-79 | C113: 76.942825 | D113: 87.81283 | E113: female | F113: 2 | G113: =HLOOKUP($E$2,'Prevalence Rates'!$C$3:$BC$249,'Prevalence Rates'!$BD113,FALSE) -> 0.0965 | H113: =HLOOKUP($E$2,'Population 2016'!$C$3:$BC$249,'Population 2016'!BD113,FALSE) -> 22167 | I113: 0 | J113: =ROUND(0.807*(HLOOKUP($E$2,'Population at Risk'!$C$3:$BC$249,'Population at Risk'!$BD113,FALSE)),0) -> 1726 | K113: =IF(AND(OR($E$2="Orkney Health Board",$E$2="Orkney Islands Local Authority"),$F113=1),0,IF(AND(OR($E$2="Shetland Health Board",$E$2="Western Isles Health Board",$E$2="Shetland Islands Local Authority",$E$2="Eilean Siar Local Authority"),OR($F113=1,$F113=5)),0,new_ci(VALUE(LEFT(Options!$B$14,2)),$C113,$E113,$F113,2016,$I113,1,$H113,$G113*$H113,Options!$B$8))) -> 756.1650227 | L113: =IF(AND(OR($E$2="Orkney Health Board",$E$2="Orkney Islands Local Authority"),$F113=1),0,IF(AND(OR($E$2="Shetland Health Board",$E$2="Western Isles Health Board",$E$2="Shetland Islands Local Authority",$E$2="Eilean Siar Local Authority"),OR($F113=1,$F113=5)),0,new_ci(VALUE(LEFT(Options!$B$14,2)),$C113,$E113,$F113,2016,$I113+$J113,1,$H113,$G113*$H113,Options!$B$8))) -> 755.4471363 | M113: =IF(AND(OR($E$2="Orkney Health Board",$E$2="Orkney Islands Local Authority"),$F113=1),0,IF(AND(OR($E$2="Shetland Health Board",$E$2="Western Isles Health Board",$E$2="Shetland Islands Local Authority",$E$2="Eilean Siar Local Authority"),OR($F113=1,$F113=5)),0,new_yllv2(VALUE(LEFT(Options!$B$14,2)),$C113,$D113,$E113,$F113,2016,$I113,1,$H113,$G113*$H113,Options!$B$8))) -> 7463.352555 | N113: =IF(AND(OR($E$2="Orkney Health Board",$E$2="Orkney Islands Local Authority"),$F113=1),0,IF(AND(OR($E$2="Shetland Health Board",$E$2="Western Isles Health Board",$E$2="Shetland Islands Local Authority",$E$2="Eilean Siar Local Authority"),OR($F113=1,$F113=5)),0,new_yllv2(VALUE(LEFT(Options!$B$14,2)),$C113,$D113,$E113,$F113,2016,$I113+$J113,1,$H113,$G113*$H113,Options!$B$8))) -> 7456.267012 | O113: =IF(AND(OR($E$2="Orkney Health Board",$E$2="Orkney Islands Local Authority"),$F113=1),0,IF(AND(OR($E$2="Shetland Health Board",$E$2="Western Isles Health Board",$E$2="Shetland Islands Local Authority",$E$2="Eilean Siar Local Authority"),OR($F113=1,$F113=5)),0,hosp_count(VALUE(LEFT(Options!$B$14,2)),$C113,$E113,$F113,2016,$I113,1,$H113,$G113*$H113, Options!$B$8))) -> 11436.42365 | P113: =IF(AND(OR($E$2="Orkney Health Board",$E$2="Orkney Islands Local Authority"),$F113=1),0,IF(AND(OR($E$2="Shetland Health Board",$E$2="Western Isles Health Board",$E$2="Shetland Islands Local Authority",$E$2="Eilean Siar Local Authority"),OR($F113=1,$F113=5)),0,hosp_count(VALUE(LEFT(Options!$B$14,2)),$C113,$E113,$F113,2016,$I113+$J113,1,$H113,$G113*$H113, Options!$B$8))) -> 11429.77071 | Q113: =IF(AND(OR($E$2="Orkney Health Board",$E$2="Orkney Islands Local Authority"),$F113=1),0,IF(AND(OR($E$2="Shetland Health Board",$E$2="Western Isles Health Board",$E$2="Shetland Islands Local Authority",$E$2="Eilean Siar Local Authority"),OR($F113=1,$F113=5)),0,prem_mort(VALUE(LEFT(Options!$B$14,2)),$C113,$E113,$F113,2016,$I113,1,$H113,$G113*$H113,Options!$B$8))) -> 0 | R113: =IF(AND(OR($E$2="Orkney Health Board",$E$2="Orkney Islands Local Authority"),$F113=1),0,IF(AND(OR($E$2="Shetland Health Board",$E$2="Western Isles Health Board",$E$2="Shetland Islands Local Authority",$E$2="Eilean Siar Local Authority"),OR($F113=1,$F113=5)),0,prem_mort(VALUE(LEFT(Options!$B$14,2)),$C113,$E113,$F113,2016,$I113+$J113,1,$H113,$G113*$H113,Options!$B$8))) -> 0 | S113: 3411.219482 | T113: 3407.980946 | U113: 33668.75335 | V113: 33636.78898 | W113: 51592.11283 | X113: 51562.10002 | Y113: 0 | Z113: 0 | AA113: 13644877.93 | AB113: 13631923.78 | AC113: 134675013.4 | AD113: 134547155.9 | AE113: 206368451.3 | AF113: 206248400.1 | AG113: 0 | AH113: 0 | AI113: 4000
B114: Female 80-84 | C114: 81.856712 | D114: 89.73671 | E114: female | F114: 2 | G114: =HLOOKUP($E$2,'Prevalence Rates'!$C$3:$BC$249,'Prevalence Rates'!$BD114,FALSE) -> 0.0965 | H114: =HLOOKUP($E$2,'Population 2016'!$C$3:$BC$249,'Population 2016'!BD114,FALSE) -> 17470 | I114: 0 | J114: =ROUND(0.807*(HLOOKUP($E$2,'Population at Risk'!$C$3:$BC$249,'Population at Risk'!$BD114,FALSE)),0) -> 1360 | K114: =IF(AND(OR($E$2="Orkney Health Board",$E$2="Orkney Islands Local Authority"),$F114=1),0,IF(AND(OR($E$2="Shetland Health Board",$E$2="Western Isles Health Board",$E$2="Shetland Islands Local Authority",$E$2="Eilean Siar Local Authority"),OR($F114=1,$F114=5)),0,new_ci(VALUE(LEFT(Options!$B$14,2)),$C114,$E114,$F114,2016,$I114,1,$H114,$G114*$H114,Options!$B$8))) -> 896.7113743 | L114: =IF(AND(OR($E$2="Orkney Health Board",$E$2="Orkney Islands Local Authority"),$F114=1),0,IF(AND(OR($E$2="Shetland Health Board",$E$2="Western Isles Health Board",$E$2="Shetland Islands Local Authority",$E$2="Eilean Siar Local Authority"),OR($F114=1,$F114=5)),0,new_ci(VALUE(LEFT(Options!$B$14,2)),$C114,$E114,$F114,2016,$I114+$J114,1,$H114,$G114*$H114,Options!$B$8))) -> 895.8776229 | M114: =IF(AND(OR($E$2="Orkney Health Board",$E$2="Orkney Islands Local Authority"),$F114=1),0,IF(AND(OR($E$2="Shetland Health Board",$E$2="Western Isles Health Board",$E$2="Shetland Islands Local Authority",$E$2="Eilean Siar Local Authority"),OR($F114=1,$F114=5)),0,new_yllv2(VALUE(LEFT(Options!$B$14,2)),$C114,$D114,$E114,$F114,2016,$I114,1,$H114,$G114*$H114,Options!$B$8))) -> 6169.372462 | N114: =IF(AND(OR($E$2="Orkney Health Board",$E$2="Orkney Islands Local Authority"),$F114=1),0,IF(AND(OR($E$2="Shetland Health Board",$E$2="Western Isles Health Board",$E$2="Shetland Islands Local Authority",$E$2="Eilean Siar Local Authority"),OR($F114=1,$F114=5)),0,new_yllv2(VALUE(LEFT(Options!$B$14,2)),$C114,$D114,$E114,$F114,2016,$I114+$J114,1,$H114,$G114*$H114,Options!$B$8))) -> 6163.636254 | O114: =IF(AND(OR($E$2="Orkney Health Board",$E$2="Orkney Islands Local Authority"),$F114=1),0,IF(AND(OR($E$2="Shetland Health Board",$E$2="Western Isles Health Board",$E$2="Shetland Islands Local Authority",$E$2="Eilean Siar Local Authority"),OR($F114=1,$F114=5)),0,hosp_count(VALUE(LEFT(Options!$B$14,2)),$C114,$E114,$F114,2016,$I114,1,$H114,$G114*$H114, Options!$B$8))) -> 10198.96391 | P114: =IF(AND(OR($E$2="Orkney Health Board",$E$2="Orkney Islands Local Authority"),$F114=1),0,IF(AND(OR($E$2="Shetland Health Board",$E$2="Western Isles Health Board",$E$2="Shetland Islands Local Authority",$E$2="Eilean Siar Local Authority"),OR($F114=1,$F114=5)),0,hosp_count(VALUE(LEFT(Options!$B$14,2)),$C114,$E114,$F114,2016,$I114+$J114,1,$H114,$G114*$H114, Options!$B$8))) -> 10193.03204 | Q114: =IF(AND(OR($E$2="Orkney Health Board",$E$2="Orkney Islands Local Authority"),$F114=1),0,IF(AND(OR($E$2="Shetland Health Board",$E$2="Western Isles Health Board",$E$2="Shetland Islands Local Authority",$E$2="Eilean Siar Local Authority"),OR($F114=1,$F114=5)),0,prem_mort(VALUE(LEFT(Options!$B$14,2)),$C114,$E114,$F114,2016,$I114,1,$H114,$G114*$H114,Options!$B$8))) -> 0 | R114: =IF(AND(OR($E$2="Orkney Health Board",$E$2="Orkney Islands Local Authority"),$F114=1),0,IF(AND(OR($E$2="Shetland Health Board",$E$2="Western Isles Health Board",$E$2="Shetland Islands Local Authority",$E$2="Eilean Siar Local Authority"),OR($F114=1,$F114=5)),0,prem_mort(VALUE(LEFT(Options!$B$14,2)),$C114,$E114,$F114,2016,$I114+$J114,1,$H114,$G114*$H114,Options!$B$8))) -> 0 | S114: 5132.864192 | T114: 5128.091717 | U114: 35314.09538 | V114: 35281.26076 | W114: 58379.87353 | X114: 58345.91893 | Y114: 0 | Z114: 0 | AA114: 12832160.48 | AB114: 12820229.29 | AC114: 88285238.44 | AD114: 88203151.89 | AE114: 145949683.8 | AF114: 145864797.3 | AG114: 0 | AH114: 0 | AI114: 2500
B115: Female 85-89 | C115: 86.73082 | D115: 92.22082 | E115: female | F115: 2 | G115: =HLOOKUP($E$2,'Prevalence Rates'!$C$3:$BC$249,'Prevalence Rates'!$BD115,FALSE) -> 0.0965 | H115: =HLOOKUP($E$2,'Population 2016'!$C$3:$BC$249,'Population 2016'!BD115,FALSE) -> 10411 | I115: 0 | J115: =ROUND(0.807*(HLOOKUP($E$2,'Population at Risk'!$C$3:$BC$249,'Population at Risk'!$BD115,FALSE)),0) -> 811 | K115: =IF(AND(OR($E$2="Orkney Health Board",$E$2="Orkney Islands Local Authority"),$F115=1),0,IF(AND(OR($E$2="Shetland Health Board",$E$2="Western Isles Health Board",$E$2="Shetland Islands Local Authority",$E$2="Eilean Siar Local Authority"),OR($F115=1,$F115=5)),0,new_ci(VALUE(LEFT(Options!$B$14,2)),$C115,$E115,$F115,2016,$I115,1,$H115,$G115*$H115,Options!$B$8))) -> 797.6582182 | L115: =IF(AND(OR($E$2="Orkney Health Board",$E$2="Orkney Islands Local Authority"),$F115=1),0,IF(AND(OR($E$2="Shetland Health Board",$E$2="Western Isles Health Board",$E$2="Shetland Islands Local Authority",$E$2="Eilean Siar Local Authority"),OR($F115=1,$F115=5)),0,new_ci(VALUE(LEFT(Options!$B$14,2)),$C115,$E115,$F115,2016,$I115+$J115,1,$H115,$G115*$H115,Options!$B$8))) -> 796.9388235 | M115: =IF(AND(OR($E$2="Orkney Health Board",$E$2="Orkney Islands Local Authority"),$F115=1),0,IF(AND(OR($E$2="Shetland Health Board",$E$2="Western Isles Health Board",$E$2="Shetland Islands Local Authority",$E$2="Eilean Siar Local Authority"),OR($F115=1,$F115=5)),0,new_yllv2(VALUE(LEFT(Options!$B$14,2)),$C115,$D115,$E115,$F115,2016,$I115,1,$H115,$G115*$H115,Options!$B$8))) -> 3581.4854 | N115: =IF(AND(OR($E$2="Orkney Health Board",$E$2="Orkney Islands Local Authority"),$F115=1),0,IF(AND(OR($E$2="Shetland Health Board",$E$2="Western Isles Health Board",$E$2="Shetland Islands Local Authority",$E$2="Eilean Siar Local Authority"),OR($F115=1,$F115=5)),0,new_yllv2(VALUE(LEFT(Options!$B$14,2)),$C115,$D115,$E115,$F115,2016,$I115+$J115,1,$H115,$G115*$H115,Options!$B$8))) -> 3578.255317 | O115: =IF(AND(OR($E$2="Orkney Health Board",$E$2="Orkney Islands Local Authority"),$F115=1),0,IF(AND(OR($E$2="Shetland Health Board",$E$2="Western Isles Health Board",$E$2="Shetland Islands Local Authority",$E$2="Eilean Siar Local Authority"),OR($F115=1,$F115=5)),0,hosp_count(VALUE(LEFT(Options!$B$14,2)),$C115,$E115,$F115,2016,$I115,1,$H115,$G115*$H115, Options!$B$8))) -> 6870.698357 | P115: =IF(AND(OR($E$2="Orkney Health Board",$E$2="Orkney Islands Local Authority"),$F115=1),0,IF(AND(OR($E$2="Shetland Health Board",$E$2="Western Isles Health Board",$E$2="Shetland Islands Local Authority",$E$2="Eilean Siar Local Authority"),OR($F115=1,$F115=5)),0,hosp_count(VALUE(LEFT(Options!$B$14,2)),$C115,$E115,$F115,2016,$I115+$J115,1,$H115,$G115*$H115, Options!$B$8))) -> 6866.699657 | Q115: =IF(AND(OR($E$2="Orkney Health Board",$E$2="Orkney Islands Local Authority"),$F115=1),0,IF(AND(OR($E$2="Shetland Health Board",$E$2="Western Isles Health Board",$E$2="Shetland Islands Local Authority",$E$2="Eilean Siar Local Authority"),OR($F115=1,$F115=5)),0,prem_mort(VALUE(LEFT(Options!$B$14,2)),$C115,$E115,$F115,2016,$I115,1,$H115,$G115*$H115,Options!$B$8))) -> 0 | R115: =IF(AND(OR($E$2="Orkney Health Board",$E$2="Orkney Islands Local Authority"),$F115=1),0,IF(AND(OR($E$2="Shetland Health Board",$E$2="Western Isles Health Board",$E$2="Shetland Islands Local Authority",$E$2="Eilean Siar Local Authority"),OR($F115=1,$F115=5)),0,prem_mort(VALUE(LEFT(Options!$B$14,2)),$C115,$E115,$F115,2016,$I115+$J115,1,$H115,$G115*$H115,Options!$B$8))) -> 0 | S115: 7661.686852 | T115: 7654.776904 | U115: 34400.97397 | V115: 34369.9483 | W115: 65994.60529 | X115: 65956.19688 | Y115: 0 | Z115: 0 | AA115: 11492530.28 | AB115: 11482165.36 | AC115: 51601460.95 | AD115: 51554922.45 | AE115: 98991907.94 | AF115: 98934295.32 | AG115: 0 | AH115: 0 | AI115: 1500
B116: Female 90+ | C116: 92.779343 | D116: 96.27934 | E116: female | F116: 2 | G116: =HLOOKUP($E$2,'Prevalence Rates'!$C$3:$BC$249,'Prevalence Rates'!$BD116,FALSE) -> 0.0965 | H116: =HLOOKUP($E$2,'Population 2016'!$C$3:$BC$249,'Population 2016'!BD116,FALSE) -> 5892 | I116: 0 | J116: =ROUND(0.807*(HLOOKUP($E$2,'Population at Risk'!$C$3:$BC$249,'Population at Risk'!$BD116,FALSE)),0) -> 459 | K116: =IF(AND(OR($E$2="Orkney Health Board",$E$2="Orkney Islands Local Authority"),$F116=1),0,IF(AND(OR($E$2="Shetland Health Board",$E$2="Western Isles Health Board",$E$2="Shetland Islands Local Authority",$E$2="Eilean Siar Local Authority"),OR($F116=1,$F116=5)),0,new_ci(VALUE(LEFT(Options!$B$14,2)),$C116,$E116,$F116,2016,$I116,1,$H116,$G116*$H116,Options!$B$8))) -> 734.6322686 | L116: =IF(AND(OR($E$2="Orkney Health Board",$E$2="Orkney Islands Local Authority"),$F116=1),0,IF(AND(OR($E$2="Shetland Health Board",$E$2="Western Isles Health Board",$E$2="Shetland Islands Local Authority",$E$2="Eilean Siar Local Authority"),OR($F116=1,$F116=5)),0,new_ci(VALUE(LEFT(Options!$B$14,2)),$C116,$E116,$F116,2016,$I116+$J116,1,$H116,$G116*$H116,Options!$B$8))) -> 734.0094769 | M116: =IF(AND(OR($E$2="Orkney Health Board",$E$2="Orkney Islands Local Authority"),$F116=1),0,IF(AND(OR($E$2="Shetland Health Board",$E$2="Western Isles Health Board",$E$2="Shetland Islands Local Authority",$E$2="Eilean Siar Local Authority"),OR($F116=1,$F116=5)),0,new_yllv2(VALUE(LEFT(Options!$B$14,2)),$C116,$D116,$E116,$F116,2016,$I116,1,$H116,$G116*$H116,Options!$B$8))) -> 1836.578468 | N116: =IF(AND(OR($E$2="Orkney Health Board",$E$2="Orkney Islands Local Authority"),$F116=1),0,IF(AND(OR($E$2="Shetland Health Board",$E$2="Western Isles Health Board",$E$2="Shetland Islands Local Authority",$E$2="Eilean Siar Local Authority"),OR($F116=1,$F116=5)),0,new_yllv2(VALUE(LEFT(Options!$B$14,2)),$C116,$D116,$E116,$F116,2016,$I116+$J116,1,$H116,$G116*$H116,Options!$B$8))) -> 1835.02149 | O116: =IF(AND(OR($E$2="Orkney Health Board",$E$2="Orkney Islands Local Authority"),$F116=1),0,IF(AND(OR($E$2="Shetland Health Board",$E$2="Western Isles Health Board",$E$2="Shetland Islands Local Authority",$E$2="Eilean Siar Local Authority"),OR($F116=1,$F116=5)),0,hosp_count(VALUE(LEFT(Options!$B$14,2)),$C116,$E116,$F116,2016,$I116,1,$H116,$G116*$H116, Options!$B$8))) -> 4527.369044 | P116: =IF(AND(OR($E$2="Orkney Health Board",$E$2="Orkney Islands Local Authority"),$F116=1),0,IF(AND(OR($E$2="Shetland Health Board",$E$2="Western Isles Health Board",$E$2="Shetland Islands Local Authority",$E$2="Eilean Siar Local Authority"),OR($F116=1,$F116=5)),0,hosp_count(VALUE(LEFT(Options!$B$14,2)),$C116,$E116,$F116,2016,$I116+$J116,1,$H116,$G116*$H116, Options!$B$8))) -> 4524.734016 | Q116: =IF(AND(OR($E$2="Orkney Health Board",$E$2="Orkney Islands Local Authority"),$F116=1),0,IF(AND(OR($E$2="Shetland Health Board",$E$2="Western Isles Health Board",$E$2="Shetland Islands Local Authority",$E$2="Eilean Siar Local Authority"),OR($F116=1,$F116=5)),0,prem_mort(VALUE(LEFT(Options!$B$14,2)),$C116,$E116,$F116,2016,$I116,1,$H116,$G116*$H116,Options!$B$8))) -> 0 | R116: =IF(AND(OR($E$2="Orkney Health Board",$E$2="Orkney Islands Local Authority"),$F116=1),0,IF(AND(OR($E$2="Shetland Health Board",$E$2="Western Isles Health Board",$E$2="Shetland Islands Local Authority",$E$2="Eilean Siar Local Authority"),OR($F116=1,$F116=5)),0,prem_mort(VALUE(LEFT(Options!$B$14,2)),$C116,$E116,$F116,2016,$I116+$J116,1,$H116,$G116*$H116,Options!$B$8))) -> 0 | S116: 12468.30055 | T116: 12457.73043 | U116: 31170.71398 | V116: 31144.2887 | W116: 76839.25737 | X116: 76794.53523 | Y116: 0 | Z116: 0 | AA116: 12468300.55 | AB116: 12457730.43 | AC116: 31170713.98 | AD116: 31144288.7 | AE116: 76839257.37 | AF116: 76794535.23 | AG116: 0 | AH116: 0 | AI116: 1000
B117: Male 0-4 | C117: 2.0320823 | D117: 77.402082 | E117: male | F117: 2 | G117: =HLOOKUP($E$2,'Prevalence Rates'!$C$3:$BC$249,'Prevalence Rates'!$BD117,FALSE) -> 0 | H117: =HLOOKUP($E$2,'Population 2016'!$C$3:$BC$249,'Population 2016'!BD117,FALSE) -> 0 | I117: 0 | J117: =ROUND(0.807*(HLOOKUP($E$2,'Population at Risk'!$C$3:$BC$249,'Population at Risk'!$BD117,FALSE)),0) -> 0 | K117: =IF(AND(OR($E$2="Orkney Health Board",$E$2="Orkney Islands Local Authority"),$F117=1),0,IF(AND(OR($E$2="Shetland Health Board",$E$2="Western Isles Health Board",$E$2="Shetland Islands Local Authority",$E$2="Eilean Siar Local Authority"),OR($F117=1,$F117=5)),0,new_ci(VALUE(LEFT(Options!$B$14,2)),$C117,$E117,$F117,2016,$I117,1,$H117,$G117*$H117,Options!$B$8))) ->  | L117: =IF(AND(OR($E$2="Orkney Health Board",$E$2="Orkney Islands Local Authority"),$F117=1),0,IF(AND(OR($E$2="Shetland Health Board",$E$2="Western Isles Health Board",$E$2="Shetland Islands Local Authority",$E$2="Eilean Siar Local Authority"),OR($F117=1,$F117=5)),0,new_ci(VALUE(LEFT(Options!$B$14,2)),$C117,$E117,$F117,2016,$I117+$J117,1,$H117,$G117*$H117,Options!$B$8))) ->  | M117: =IF(AND(OR($E$2="Orkney Health Board",$E$2="Orkney Islands Local Authority"),$F117=1),0,IF(AND(OR($E$2="Shetland Health Board",$E$2="Western Isles Health Board",$E$2="Shetland Islands Local Authority",$E$2="Eilean Siar Local Authority"),OR($F117=1,$F117=5)),0,new_yllv2(VALUE(LEFT(Options!$B$14,2)),$C117,$D117,$E117,$F117,2016,$I117,1,$H117,$G117*$H117,Options!$B$8))) ->  | N117: =IF(AND(OR($E$2="Orkney Health Board",$E$2="Orkney Islands Local Authority"),$F117=1),0,IF(AND(OR($E$2="Shetland Health Board",$E$2="Western Isles Health Board",$E$2="Shetland Islands Local Authority",$E$2="Eilean Siar Local Authority"),OR($F117=1,$F117=5)),0,new_yllv2(VALUE(LEFT(Options!$B$14,2)),$C117,$D117,$E117,$F117,2016,$I117+$J117,1,$H117,$G117*$H117,Options!$B$8))) ->  | O117: =IF(AND(OR($E$2="Orkney Health Board",$E$2="Orkney Islands Local Authority"),$F117=1),0,IF(AND(OR($E$2="Shetland Health Board",$E$2="Western Isles Health Board",$E$2="Shetland Islands Local Authority",$E$2="Eilean Siar Local Authority"),OR($F117=1,$F117=5)),0,hosp_count(VALUE(LEFT(Options!$B$14,2)),$C117,$E117,$F117,2016,$I117,1,$H117,$G117*$H117, Options!$B$8))) ->  | P117: =IF(AND(OR($E$2="Orkney Health Board",$E$2="Orkney Islands Local Authority"),$F117=1),0,IF(AND(OR($E$2="Shetland Health Board",$E$2="Western Isles Health Board",$E$2="Shetland Islands Local Authority",$E$2="Eilean Siar Local Authority"),OR($F117=1,$F117=5)),0,hosp_count(VALUE(LEFT(Options!$B$14,2)),$C117,$E117,$F117,2016,$I117+$J117,1,$H117,$G117*$H117, Options!$B$8))) ->  | Q117: =IF(AND(OR($E$2="Orkney Health Board",$E$2="Orkney Islands Local Authority"),$F117=1),0,IF(AND(OR($E$2="Shetland Health Board",$E$2="Western Isles Health Board",$E$2="Shetland Islands Local Authority",$E$2="Eilean Siar Local Authority"),OR($F117=1,$F117=5)),0,prem_mort(VALUE(LEFT(Options!$B$14,2)),$C117,$E117,$F117,2016,$I117,1,$H117,$G117*$H117,Options!$B$8))) ->  | R117: =IF(AND(OR($E$2="Orkney Health Board",$E$2="Orkney Islands Local Authority"),$F117=1),0,IF(AND(OR($E$2="Shetland Health Board",$E$2="Western Isles Health Board",$E$2="Shetland Islands Local Authority",$E$2="Eilean Siar Local Authority"),OR($F117=1,$F117=5)),0,prem_mort(VALUE(LEFT(Options!$B$14,2)),$C117,$E117,$F117,2016,$I117+$J117,1,$H117,$G117*$H117,Options!$B$8))) ->  | AI117: 5000
